Workbook

Sheet Accueil
B2: Saison du Championnat : | D2: 2023 - 2024 | H2: Championnat de France de Rugby à 15 - Nationale | U2: =IF($H$2="","",IF($H$2="Choix du Championnat de Rugby","","Nous sommes le "&TEXT(TODAY(),"jjjj jj mmmm aaaa"))) -> Nous sommes le lundi 11 mars 2024
B4: =IF($B$2="","",IF($D$2="","",IF($D$2="Choix de la saison","","Date du début du Championnat"))) -> Date du début du Championnat | T4: =IF(AF4="","",IF(AF4>3,"",IF(AF4<-3,"",IF(AF4<-3,"",IF(AF4>3,"",IF(AF4>3,"P",IF(AF4<-3,"P",IF(AF4<=3,"P",IF(AF4<=3,"P",IF(AF4<=3,"P")))))))))) ->  | U4: =IF($B$2="","",IF($D$2="","",IF($D$2="Choix de la saison","","Date de la fin du Championnat"))) -> Date de la fin du Championnat | AF4: =IF(N4=0,"",IF(N4="","",N4-AG4)) ->  | AG4: =NOW() -> 2024-03-11T13:35:26.990
B6: 2023-08-25 | M6: =IF($U$2="","",IF(N6=0,"",IF(N6="","",_xlfn.XLOOKUP(N6,Suivi!DH2:DH31,Suivi!DI2:DI31)))) ->  | T6: =IF(AF6="","",IF(AF6>3,"",IF(AF6<-3,"",IF(AF6<-3,"",IF(AF6>3,"",IF(AF6>3,"P",IF(AF6<-3,"P",IF(AF6<=3,"P",IF(AF6<=3,"P",IF(AF6<=3,"P")))))))))) ->  | U6: 2024-04-27 | AF6: =IF(N6=0,"",IF(N6="","",N6-AG6)) ->  | AG6: =NOW() -> 2024-03-11T13:35:26.990
G8: =IF($U$2="","",IF(N8=0,"",IF(N8="","","Tableau final : niveau, date et heure du prochain match à jouer :"))) ->  | M8: =IF($U$2="","",IF(N8=0,"",IF(N8="","",_xlfn.XLOOKUP(N8,'Tableau Final'!BC3:BC7,'Tableau Final'!BD3:BD7)))) ->  | N8: =IF($U$2="","",MIN('Tableau Final'!BC3:BC7)) -> 00:00:00 | T8: =IF(AF8="","",IF(AF8>3,"",IF(AF8<-3,"",IF(AF8<-3,"",IF(AF8>3,"",IF(AF8>3,"P",IF(AF8<-3,"P",IF(AF8<=3,"P",IF(AF8<=3,"P",IF(AF8<=3,"P")))))))))) ->  | AF8: =IF(N8=0,"",IF(N8="","",N8-AG8)) ->  | AG8: =NOW() -> 2024-03-11T13:35:26.990
G10: =IF($U$2="","",IF(N10=0,"",IF(N10="","","Tableau final : niveau, date et heure du dernier match programmé :"))) ->  | M10: =IF($U$2="","",IF(N10=0,"",IF(N10="","",_xlfn.XLOOKUP(N10,'Tableau Final'!BC3:BC7,'Tableau Final'!BD3:BD7)))) ->  | N10: =IF($U$2="","",MAX('Tableau Final'!BC3:BC7)) -> 00:00:00 | T10: =IF(AF10="","",IF(AF10>3,"",IF(AF10<-3,"",IF(AF10<-3,"",IF(AF10>3,"",IF(AF10>3,"P",IF(AF10<-3,"P",IF(AF10<=3,"P",IF(AF10<=3,"P",IF(AF10<=3,"P")))))))))) ->  | AF10: =IF(N10=0,"",IF(N10="","",N10-AG10)) ->  | AG10: =NOW() -> 2024-03-11T13:35:26.990
K22: =IF($U$2="","",IF($B$6="","",IF($U$6="","",IF('J01'!$AA$20="","",IF(Suivi!$O$16>0,"Championnat en cours",IF(Suivi!$O$16=0,"Saison régulière terminée")))))) -> Championnat en cours
K24: =IF('Tableau Final'!C3="","",IF(COUNTBLANK('Tableau Final'!AZ1:AZ5)>=1,"Tableau final en cours","Championnat terminé")) -> 
G26: Match à rejouer | H26: Match annulé | I26: Match arrêté | J26: Match avec réserves | K26: Match reporté | L26: Match reprogrammé | N26: Equipe exclue | O26: Forfait gagnant | P26: Forfait général | Q26: Forfait perdant | R26: Gagné sur tapis vert | S26: Perdu sur tapis vert
G27: =IF(G28="","",IF(COUNTA(G28:G507)<=1,"Match à rejouer","Matchs à rejouer")) -> Match à rejouer | H27: =IF(H28="","",IF(COUNTA(H28:H507)<=1,"Match annulé","Matchs annulés")) ->  | I27: =IF(I28="","",IF(COUNTA(I28:I507)<=1,"Match arrêté","Matchs arrêtés")) ->  | J27: =IF(J28="","",IF(COUNTA(J28:J507)<=1,"Match avec réserves","Matchs avec réserves")) ->  | K27: =IF(K28="","",IF(COUNTA(K28:K507)<=1,"Match reporté","Matchs reportés")) -> Match reporté | L27: =IF(L28="","",IF(COUNTA(L28:L507)<=1,"Match reprogrammé","Matchs reprogrammés")) ->  | N27: =IF(N28="","",IF(COUNTA(N28:N507)<=1,"Equipe exclue","Equipes exclues")) ->  | O27: =IF(O28="","",IF(COUNTA(O28:O507)<=1,"Forfait gagnant","Forfaits gagnants")) -> Forfaits gagnants | P27: =IF(P28="","",IF(COUNTA(P28:P507)<=1,"Forfait général","Forfaits généraux")) -> Forfaits généraux | Q27: =IF(Q28="","",IF(COUNTA(Q28:Q507)<=1,"Forfait perdant","Forfaits perdants")) ->  | R27: =IF(R28="","",IF(COUNTA(R28:R507)<=1,"Gagné sur tapis vert","Gagnés sur tapis vert")) ->  | S27: =IF(S28="","",IF(COUNTA(S28:S507)<=1,"Perdu sur tapis vert","Perdus sur tapis vert")) -> 
G28: =_xlfn._xlws.FILTER(Données!$J$2:$J$241,Données!$I$2:$I$241=Accueil!G26,"") -> Journée 12 | H28: =_xlfn._xlws.FILTER(Données!$J$2:$J$241,Données!$I$2:$I$241=Accueil!H26,"") ->  | I28: =_xlfn._xlws.FILTER(Données!$J$2:$J$241,Données!$I$2:$I$241=Accueil!I26,"") ->  | J28: =_xlfn._xlws.FILTER(Données!$J$2:$J$241,Données!$I$2:$I$241=Accueil!J26,"") ->  | K28: =_xlfn._xlws.FILTER(Données!$J$2:$J$241,Données!$I$2:$I$241=Accueil!K26,"") -> Journée 21 | L28: =_xlfn._xlws.FILTER(Données!$J$2:$J$241,Données!$I$2:$I$241=Accueil!L26,"") ->  | N28: =_xlfn._xlws.FILTER(Données!$L$2:$L$481,Données!$K$2:$K$481=Accueil!N26,"") ->  | O28: =_xlfn._xlws.FILTER(Données!$L$2:$L$481,Données!$K$2:$K$481=Accueil!O26,"") -> Journée 01 | P28: =_xlfn._xlws.FILTER(Données!$L$2:$L$481,Données!$K$2:$K$481=Accueil!P26,"") -> Journée 01 | Q28: =_xlfn._xlws.FILTER(Données!$L$2:$L$481,Données!$K$2:$K$481=Accueil!Q26,"") ->  | R28: =_xlfn._xlws.FILTER(Données!$L$2:$L$481,Données!$K$2:$K$481=Accueil!R26,"") ->  | S28: =_xlfn._xlws.FILTER(Données!$L$2:$L$481,Données!$K$2:$K$481=Accueil!S26,"") -> 
O29: Journée 02 | P29: Journée 02
O30: Journée 03 | P30: Journée 03
O31: Journée 04 | P31: Journée 04
O32: Journée 05 | P32: Journée 05
O33: Journée 06 | P33: Journée 06
O34: Journée 07 | P34: Journée 07
O35: Journée 08 | P35: Journée 08
O36: Journée 09 | P36: Journée 09
O37: Journée 10 | P37: Journée 10
O38: Journée 11 | P38: Journée 11
O39: Journée 12 | P39: Journée 12
O40: Journée 13 | P40: Journée 13
O41: Journée 14 | P41: Journée 14
O42: Journée 15 | P42: Journée 15
O43: Journée 16 | P43: Journée 16
O44: Journée 17 | P44: Journée 17
O45: Journée 18 | P45: Journée 18
O46: Journée 19 | P46: Journée 19
O47: Journée 20 | P47: Journée 20
O48: Journée 21 | P48: Journée 21
O49: Journée 22 | P49: Journée 22
O50: Journée 23 | P50: Journée 23
O51: Journée 24 | P51: Journée 24
O52: Journée 25 | P52: Journée 25
O53: Journée 26 | P53: Journée 26

Sheet Equipes
C1: Equipes du Championnat
C2: Albi
C3: Blagnac
C4: Bourg-en-Bresse
C5: Bourgoin-Jallieu
C6: Carcassonne
C7: Chambéry
C8: Hyères | M8: =IF(Accueil!$U$2="","",Accueil!$U$2) -> Nous sommes le lundi 11 mars 2024
C9: Massy
C10: Narbonne
C11: Nice
C12: Périgueux
C13: Suresnes
C14: Tarbes
C15: Vienne
M16: =IF(Accueil!$H$2="","",IF(Accueil!$H$2="Choix du Championnat de Rugby","",Accueil!$H$2)) -> Championnat de France de Rugby à 15 - Nationale
O18: =IF(Accueil!$B$2="","",IF(Accueil!$D$2="","",IF(Accueil!$D$2="Choix de la saison","",_xlfn.CONCAT(Accueil!$B$2," ",Accueil!$D$2)))) -> Saison du Championnat : 2023 - 2024
M20: =IF(Accueil!$D$2="","",IF(Accueil!$D$2="Choix de la saison","",IF(Accueil!$B$4="","",IF(Accueil!$B$6="","",_xlfn.CONCAT(Accueil!$B$4," : ",TEXT(Accueil!$B$6,"jjjj jj mmmm aaaa")))))) -> Date du début du Championnat : vendredi 25 août 2023
M22: =IF(Accueil!$D$2="","",IF(Accueil!$D$2="Choix de la saison","",IF(Accueil!$U$4="","",IF(Accueil!$U$6="","",_xlfn.CONCAT(Accueil!$U$4," : ",TEXT(Accueil!$U$6,"jjjj jj mmmm aaaa")))))) -> Date de la fin du Championnat : samedi 27 avril 2024

Sheet Suivi
A1: Journées "Aller" | B1: Matchs inscrits ou non-inscrits | C1: Dates complètes ou incomplètes | D1: Horaires complets ou incomplets | E1: Résultats complets ou incomplets | F1: Dates et heures du déroulement de chaque journée | G1: =IF(SUM(G2:G14)>1,"Matchs restant à jouer",IF(SUM(G2:G14)=1,"Match restant à jouer","Tous les matchs sont joués")) -> Match restant à jouer | I1: Journées "Retour" | J1: Matchs inscrits ou non-inscrits | K1: Dates complètes ou incomplètes | L1: Horaires complets ou incomplets | M1: Résultats complets ou incomplets | N1: Dates et heures du déroulement de chaque journée | O1: =IF(SUM(O2:O14)>1,"Matchs restant à jouer",IF(SUM(O2:O14)=1,"Match restant à jouer","Tous les matchs sont joués")) -> Matchs restant à jouer | AY1: Journées | AZ1: Dates et heures du début de chaque journée | BB1: Journées | BC1: Dates et heures de la fin de chaque journée | BE1: Journées | BF1: Dates et heures du prochain match | BH1: Journées | BI1: Dates et heures du dernier match | BK1: Etats | BM1: Nombre de matchs | CG1: =TODAY() -> 2024-03-11 | CH1: =NOW() -> 2024-03-11T13:35:26.990 | CI1: Dates et heures de début | CJ1: Dates et heures de fin | CK1: Journées | CS1: Plus petites journées | CT1: Plus grandes journées | CV1: Plus petites journées | CW1: Plus grandes journées | CX1: Journées | DE1: Dates et heures du prochain match | DF1: Journées | DH1: Dates et heures du dernier match | DI1: Journées | DK1: Journées | DL1: du | DM1: Début de la journée | DN1: au | DO1: Fin de la journée
A2: =IF(CS2="","",IF(CT2="","",IF(AND(CS2>3,CT2>3),"J01",IF(AND(CS2<-3,CT2>3),"J01",IF(AND(CS2<-3,CT2<-3),"J01",IF(AND(CS2>3,CT2<-3),"J01",IF(AND(CS2>3,CT2<=3),"J01*",IF(AND(CS2<-3,CT2<=3),"J01*",IF(AND(CS2<=3,CT2>3),"J01*",IF(AND(CS2<=3,CT2<=3),"J01*",IF(AND(CS2<=3,CT2<-3),"J01*"))))))))))) ->  | B2: =IF(COUNTA('J01'!$D$3:$D$9)+COUNTA('J01'!$M$3:$M$9)<14,"Matchs non-inscrits","Matchs inscrits") -> Matchs inscrits | C2: =IF(COUNTA('J01'!$Q$3:$Q$9)<7,"Dates incomplètes","Dates complètes") -> Dates complètes | D2: =IF(COUNTA('J01'!$R$3:$R$9)<7,"Horaires incomplets","Horaires complets") -> Horaires complets | E2: =IF(SUM('J01'!$GD$3:$GE$9)="","Résultats incomplets",IF(SUM('J01'!$GD$3:$GE$9)<14,"Résultats incomplets","Résultats complets")) -> Résultats complets | F2: =IF(DM2="","",IF(DO2="","",_xlfn.CONCAT(DL2," ",TEXT(DM2,"jjjj jj mmmm aaaa - hh""h"":mm")," ",DN2," ",TEXT(DO2,"jjjj jj mmmm aaaa - hh""h"":mm")))) ->  | G2: =COUNTBLANK('J01'!$HM$3:$HN$9)/2 -> 0 | I2: =IF(CS15="","",IF(CT15="","",IF(AND(CS15>3,CT15>3),"J14",IF(AND(CS15<-3,CT15>3),"J14",IF(AND(CS15<-3,CT15<-3),"J14",IF(AND(CS15>3,CT15<-3),"J14",IF(AND(CS15>3,CT15<=3),"J14*",IF(AND(CS15<-3,CT15<=3),"J14*",IF(AND(CS15<=3,CT15>3),"J14*",IF(AND(CS15<=3,CT15<=3),"J14*",IF(AND(CS15<=3,CT15<-3),"J14*"))))))))))) ->  | J2: =IF(COUNTA('J14'!$D$3:$D$9)+COUNTA('J14'!$M$3:$M$9)<14,"Matchs non-inscrits","Matchs inscrits") -> Matchs inscrits | K2: =IF(COUNTA('J14'!$Q$3:$Q$9)<7,"Dates incomplètes","Dates complètes") -> Dates complètes | L2: =IF(COUNTA('J14'!$R$3:$R$9)<7,"Horaires incomplets","Horaires complets") -> Horaires complets | M2: =IF(SUM('J14'!$GD$3:$GE$9)="","Résultats incomplets",IF(SUM('J14'!$GD$3:$GE$9)<14,"Résultats incomplets","Résultats complets")) -> Résultats complets | N2: =IF(DM15="","",IF(DO15="","",_xlfn.CONCAT(DL15," ",TEXT(DM15,"jjjj jj mmmm aaaa - hh""h"":mm")," ",DN15," ",TEXT(DO15,"jjjj jj mmmm aaaa - hh""h"":mm")))) ->  | O2: =COUNTBLANK('J14'!$HM$3:$HN$9)/2 -> 0 | AY2: J01 | AZ2: =IF('J01'!$HH$3=0,"",IF('J01'!$HH$3="","",'J01'!$HH$3)) ->  | BB2: J01 | BC2: =IF('J01'!$HH$9=0,"",IF('J01'!$HH$9="","",'J01'!$HH$9)) ->  | BE2: J01 | BF2: =IF('J01'!$HJ$3=0,"",IF('J01'!$HJ$3="","",'J01'!$HJ$3)) ->  | BH2: J01 | BI2: =IF('J01'!$HK$3=0,"",IF('J01'!$HK$3="","",'J01'!$HK$3)) ->  | BK2: =IF(B2="Matchs inscrits",1)+IF(C2="Dates complètes",1)+IF(D2="Horaires complets",1)+IF(E2="Résultats complets",1) -> 4 | BM2: =G2 -> 0 | CI2: =IF(AZ2=0,"",IF(AZ2="","",AZ2)) ->  | CJ2: =IF(BC2=0,"",IF(BC2="","",BC2)) ->  | CK2: Journée 01 | CS2: =IF(CV2="","",CV2-$CH$1) ->  | CT2: =IF(CW2="","",CW2-$CH$1) ->  | CV2: =IF('J01'!$HH$3="","",SMALL('J01'!$HH$3:$HH$9,1)) ->  | CW2: =IF('J01'!$HH$3="","",LARGE('J01'!$HH$3:$HH$9,1)) ->  | CX2: Journée 01 | DE2: =IF(BF2=0,"",IF(BF2="","",BF2)) ->  | DF2: Journée 01 | DH2: =IF(BI2=0,"",IF(BI2="","",BI2)) ->  | DI2: Journée 01 | DK2: J01 | DL2: du | DM2: =IF('J01'!$HH$3="","",IF(COUNTA('J01'!$HH$3:$HH$9)<7,"",MIN('J01'!$HH$3:$HH$9))) ->  | DN2: au | DO2: =IF('J01'!$HH$3="","",IF(COUNTA('J01'!$HH$3:$HH$9)<7,"",MAX('J01'!$HH$3:$HH$9))) -> 
A3: =IF(CS3="","",IF(CT3="","",IF(AND(CS3>3,CT3>3),"J02",IF(AND(CS3<-3,CT3>3),"J02",IF(AND(CS3<-3,CT3<-3),"J02",IF(AND(CS3>3,CT3<-3),"J02",IF(AND(CS3>3,CT3<=3),"J02*",IF(AND(CS3<-3,CT3<=3),"J02*",IF(AND(CS3<=3,CT3>3),"J02*",IF(AND(CS3<=3,CT3<=3),"J02*",IF(AND(CS3<=3,CT3<-3),"J02*"))))))))))) ->  | B3: =IF(COUNTA('J02'!$D$3:$D$9)+COUNTA('J02'!$M$3:$M$9)<14,"Matchs non-inscrits","Matchs inscrits") -> Matchs inscrits | C3: =IF(COUNTA('J02'!$Q$3:$Q$9)<7,"Dates incomplètes","Dates complètes") -> Dates complètes | D3: =IF(COUNTA('J02'!$R$3:$R$9)<7,"Horaires incomplets","Horaires complets") -> Horaires complets | E3: =IF(SUM('J02'!$GD$3:$GE$9)="","Résultats incomplets",IF(SUM('J02'!$GD$3:$GE$9)<14,"Résultats incomplets","Résultats complets")) -> Résultats complets | F3: =IF(DM3="","",IF(DO3="","",_xlfn.CONCAT(DL3," ",TEXT(DM3,"jjjj jj mmmm aaaa - hh""h"":mm")," ",DN3," ",TEXT(DO3,"jjjj jj mmmm aaaa - hh""h"":mm")))) ->  | G3: =COUNTBLANK('J02'!$HM$3:$HN$9)/2 -> 0 | I3: =IF(CS16="","",IF(CT16="","",IF(AND(CS16>3,CT16>3),"J15",IF(AND(CS16<-3,CT16>3),"J15",IF(AND(CS16<-3,CT16<-3),"J15",IF(AND(CS16>3,CT16<-3),"J15",IF(AND(CS16>3,CT16<=3),"J15*",IF(AND(CS16<-3,CT16<=3),"J15*",IF(AND(CS16<=3,CT16>3),"J15*",IF(AND(CS16<=3,CT16<=3),"J15*",IF(AND(CS16<=3,CT16<-3),"J15*"))))))))))) ->  | J3: =IF(COUNTA('J15'!$D$3:$D$9)+COUNTA('J15'!$M$3:$M$9)<14,"Matchs non-inscrits","Matchs inscrits") -> Matchs inscrits | K3: =IF(COUNTA('J15'!$Q$3:$Q$9)<7,"Dates incomplètes","Dates complètes") -> Dates complètes | L3: =IF(COUNTA('J15'!$R$3:$R$9)<7,"Horaires incomplets","Horaires complets") -> Horaires complets | M3: =IF(SUM('J15'!$GD$3:$GE$9)="","Résultats incomplets",IF(SUM('J15'!$GD$3:$GE$9)<14,"Résultats incomplets","Résultats complets")) -> Résultats complets | O3: =COUNTBLANK('J15'!$HM$3:$HN$9)/2 -> 0 | AY3: J02 | AZ3: =IF('J02'!$HH$3=0,"",IF('J02'!$HH$3="","",'J02'!$HH$3)) ->  | BB3: J02 | BC3: =IF('J02'!$HH$9=0,"",IF('J02'!$HH$9="","",'J02'!$HH$9)) ->  | BE3: J02 | BF3: =IF('J02'!$HJ$3=0,"",IF('J02'!$HJ$3="","",'J02'!$HJ$3)) ->  | BH3: J02 | BI3: =IF('J02'!$HK$3=0,"",IF('J02'!$HK$3="","",'J02'!$HK$3)) ->  | BK3: =IF(B3="Matchs inscrits",1)+IF(C3="Dates complètes",1)+IF(D3="Horaires complets",1)+IF(E3="Résultats complets",1) -> 4 | BM3: =G3 -> 0 | CI3: =IF(AZ3=0,"",IF(AZ3="","",AZ3)) ->  | CJ3: =IF(BC3=0,"",IF(BC3="","",BC3)) ->  | CK3: Journée 02 | CS3: =IF(CV3="","",CV3-$CH$1) ->  | CT3: =IF(CW3="","",CW3-$CH$1) ->  | CV3: =IF('J02'!$HH$3="","",SMALL('J02'!$HH$3:$HH$9,1)) ->  | CW3: =IF('J02'!$HH$3="","",LARGE('J02'!$HH$3:$HH$9,1)) ->  | CX3: Journée 02 | DE3: =IF(BF3=0,"",IF(BF3="","",BF3)) ->  | DF3: Journée 02 | DH3: =IF(BI3=0,"",IF(BI3="","",BI3)) ->  | DI3: Journée 02 | DK3: J02 | DL3: du | DM3: =IF('J02'!$HH$3="","",IF(COUNTA('J02'!$HH$3:$HH$9)<7,"",MIN('J02'!$HH$3:$HH$9))) ->  | DN3: au | DO3: =IF('J02'!$HH$3="","",IF(COUNTA('J02'!$HH$3:$HH$9)<7,"",MAX('J02'!$HH$3:$HH$9))) -> 
A4: =IF(CS4="","",IF(CT4="","",IF(AND(CS4>3,CT4>3),"J03",IF(AND(CS4<-3,CT4>3),"J03",IF(AND(CS4<-3,CT4<-3),"J03",IF(AND(CS4>3,CT4<-3),"J03",IF(AND(CS4>3,CT4<=3),"J03*",IF(AND(CS4<-3,CT4<=3),"J03*",IF(AND(CS4<=3,CT4>3),"J03*",IF(AND(CS4<=3,CT4<=3),"J03*",IF(AND(CS4<=3,CT4<-3),"J03*"))))))))))) ->  | B4: =IF(COUNTA('J03'!$D$3:$D$9)+COUNTA('J03'!$M$3:$M$9)<14,"Matchs non-inscrits","Matchs inscrits") -> Matchs inscrits | C4: =IF(COUNTA('J03'!$Q$3:$Q$9)<7,"Dates incomplètes","Dates complètes") -> Dates complètes | D4: =IF(COUNTA('J03'!$R$3:$R$9)<7,"Horaires incomplets","Horaires complets") -> Horaires complets | E4: =IF(SUM('J03'!$GD$3:$GE$9)="","Résultats incomplets",IF(SUM('J03'!$GD$3:$GE$9)<14,"Résultats incomplets","Résultats complets")) -> Résultats complets | G4: =COUNTBLANK('J03'!$HM$3:$HN$9)/2 -> 0 | I4: =IF(CS17="","",IF(CT17="","",IF(AND(CS17>3,CT17>3),"J16",IF(AND(CS17<-3,CT17>3),"J16",IF(AND(CS17<-3,CT17<-3),"J16",IF(AND(CS17>3,CT17<-3),"J16",IF(AND(CS17>3,CT17<=3),"J16*",IF(AND(CS17<-3,CT17<=3),"J16*",IF(AND(CS17<=3,CT17>3),"J16*",IF(AND(CS17<=3,CT17<=3),"J16*",IF(AND(CS17<=3,CT17<-3),"J16*"))))))))))) ->  | J4: =IF(COUNTA('J16'!$D$3:$D$9)+COUNTA('J16'!$M$3:$M$9)<14,"Matchs non-inscrits","Matchs inscrits") -> Matchs inscrits | K4: =IF(COUNTA('J16'!$Q$3:$Q$9)<7,"Dates incomplètes","Dates complètes") -> Dates complètes | L4: =IF(COUNTA('J16'!$R$3:$R$9)<7,"Horaires incomplets","Horaires complets") -> Horaires complets | M4: =IF(SUM('J16'!$GD$3:$GE$9)="","Résultats incomplets",IF(SUM('J16'!$GD$3:$GE$9)<14,"Résultats incomplets","Résultats complets")) -> Résultats complets | O4: =COUNTBLANK('J16'!$HM$3:$HN$9)/2 -> 0 | AY4: J03 | AZ4: =IF('J03'!$HH$3=0,"",IF('J03'!$HH$3="","",'J03'!$HH$3)) ->  | BB4: J03 | BC4: =IF('J03'!$HH$9=0,"",IF('J03'!$HH$9="","",'J03'!$HH$9)) ->  | BE4: J03 | BF4: =IF('J03'!$HJ$3=0,"",IF('J03'!$HJ$3="","",'J03'!$HJ$3)) ->  | BH4: J03 | BI4: =IF('J03'!$HK$3=0,"",IF('J03'!$HK$3="","",'J03'!$HK$3)) ->  | BK4: 4 | BM4: 0 | CK4: Journée 03 | CV4: =IF('J03'!$HH$3="","",SMALL('J03'!$HH$3:$HH$9,1)) ->  | CW4: =IF('J03'!$HH$3="","",LARGE('J03'!$HH$3:$HH$9,1)) ->  | CX4: Journée 03 | DF4: Journée 03 | DI4: Journée 03 | DK4: J03 | DL4: du | DM4: =IF('J03'!$HH$3="","",IF(COUNTA('J03'!$HH$3:$HH$9)<7,"",MIN('J03'!$HH$3:$HH$9))) ->  | DN4: au | DO4: =IF('J03'!$HH$3="","",IF(COUNTA('J03'!$HH$3:$HH$9)<7,"",MAX('J03'!$HH$3:$HH$9))) -> 
A5: =IF(CS5="","",IF(CT5="","",IF(AND(CS5>3,CT5>3),"J04",IF(AND(CS5<-3,CT5>3),"J04",IF(AND(CS5<-3,CT5<-3),"J04",IF(AND(CS5>3,CT5<-3),"J04",IF(AND(CS5>3,CT5<=3),"J04*",IF(AND(CS5<-3,CT5<=3),"J04*",IF(AND(CS5<=3,CT5>3),"J04*",IF(AND(CS5<=3,CT5<=3),"J04*",IF(AND(CS5<=3,CT5<-3),"J04*"))))))))))) ->  | B5: =IF(COUNTA('J04'!$D$3:$D$9)+COUNTA('J04'!$M$3:$M$9)<14,"Matchs non-inscrits","Matchs inscrits") -> Matchs inscrits | C5: =IF(COUNTA('J04'!$Q$3:$Q$9)<7,"Dates incomplètes","Dates complètes") -> Dates complètes | D5: =IF(COUNTA('J04'!$R$3:$R$9)<7,"Horaires incomplets","Horaires complets") -> Horaires complets | E5: =IF(SUM('J04'!$GD$3:$GE$9)="","Résultats incomplets",IF(SUM('J04'!$GD$3:$GE$9)<14,"Résultats incomplets","Résultats complets")) -> Résultats complets | G5: =COUNTBLANK('J04'!$HM$3:$HN$9)/2 -> 0 | I5: =IF(CS18="","",IF(CT18="","",IF(AND(CS18>3,CT18>3),"J17",IF(AND(CS18<-3,CT18>3),"J17",IF(AND(CS18<-3,CT18<-3),"J17",IF(AND(CS18>3,CT18<-3),"J17",IF(AND(CS18>3,CT18<=3),"J17*",IF(AND(CS18<-3,CT18<=3),"J17*",IF(AND(CS18<=3,CT18>3),"J17*",IF(AND(CS18<=3,CT18<=3),"J17*",IF(AND(CS18<=3,CT18<-3),"J17*"))))))))))) ->  | J5: =IF(COUNTA('J17'!$D$3:$D$9)+COUNTA('J17'!$M$3:$M$9)<14,"Matchs non-inscrits","Matchs inscrits") -> Matchs inscrits | K5: =IF(COUNTA('J17'!$Q$3:$Q$9)<7,"Dates incomplètes","Dates complètes") -> Dates complètes | L5: =IF(COUNTA('J17'!$R$3:$R$9)<7,"Horaires incomplets","Horaires complets") -> Horaires complets | M5: =IF(SUM('J17'!$GD$3:$GE$9)="","Résultats incomplets",IF(SUM('J17'!$GD$3:$GE$9)<14,"Résultats incomplets","Résultats complets")) -> Résultats complets | O5: =COUNTBLANK('J17'!$HM$3:$HN$9)/2 -> 0 | AY5: J04 | AZ5: =IF('J04'!$HH$3=0,"",IF('J04'!$HH$3="","",'J04'!$HH$3)) ->  | BB5: J04 | BC5: =IF('J04'!$HH$9=0,"",IF('J04'!$HH$9="","",'J04'!$HH$9)) ->  | BE5: J04 | BF5: =IF('J04'!$HJ$3=0,"",IF('J04'!$HJ$3="","",'J04'!$HJ$3)) ->  | BH5: J04 | BI5: =IF('J04'!$HK$3=0,"",IF('J04'!$HK$3="","",'J04'!$HK$3)) ->  | BK5: 4 | BM5: 0 | CK5: Journée 04 | CV5: =IF('J04'!$HH$3="","",SMALL('J04'!$HH$3:$HH$9,1)) ->  | CW5: =IF('J04'!$HH$3="","",LARGE('J04'!$HH$3:$HH$9,1)) ->  | CX5: Journée 04 | DF5: Journée 04 | DI5: Journée 04 | DK5: J04 | DL5: du | DM5: =IF('J04'!$HH$3="","",IF(COUNTA('J04'!$HH$3:$HH$9)<7,"",MIN('J04'!$HH$3:$HH$9))) ->  | DN5: au | DO5: =IF('J04'!$HH$3="","",IF(COUNTA('J04'!$HH$3:$HH$9)<7,"",MAX('J04'!$HH$3:$HH$9))) -> 
A6: =IF(CS6="","",IF(CT6="","",IF(AND(CS6>3,CT6>3),"J05",IF(AND(CS6<-3,CT6>3),"J05",IF(AND(CS6<-3,CT6<-3),"J05",IF(AND(CS6>3,CT6<-3),"J05",IF(AND(CS6>3,CT6<=3),"J05*",IF(AND(CS6<-3,CT6<=3),"J05*",IF(AND(CS6<=3,CT6>3),"J05*",IF(AND(CS6<=3,CT6<=3),"J05*",IF(AND(CS6<=3,CT6<-3),"J05*"))))))))))) ->  | B6: =IF(COUNTA('J05'!$D$3:$D$9)+COUNTA('J05'!$M$3:$M$9)<14,"Matchs non-inscrits","Matchs inscrits") -> Matchs inscrits | C6: =IF(COUNTA('J05'!$Q$3:$Q$9)<7,"Dates incomplètes","Dates complètes") -> Dates complètes | D6: =IF(COUNTA('J05'!$R$3:$R$9)<7,"Horaires incomplets","Horaires complets") -> Horaires complets | E6: =IF(SUM('J05'!$GD$3:$GE$9)="","Résultats incomplets",IF(SUM('J05'!$GD$3:$GE$9)<14,"Résultats incomplets","Résultats complets")) -> Résultats complets | G6: =COUNTBLANK('J05'!$HM$3:$HN$9)/2 -> 0 | I6: =IF(CS19="","",IF(CT19="","",IF(AND(CS19>3,CT19>3),"J18",IF(AND(CS19<-3,CT19>3),"J18",IF(AND(CS19<-3,CT19<-3),"J18",IF(AND(CS19>3,CT19<-3),"J18",IF(AND(CS19>3,CT19<=3),"J18*",IF(AND(CS19<-3,CT19<=3),"J18*",IF(AND(CS19<=3,CT19>3),"J18*",IF(AND(CS19<=3,CT19<=3),"J18*",IF(AND(CS19<=3,CT19<-3),"J18*"))))))))))) ->  | J6: =IF(COUNTA('J18'!$D$3:$D$9)+COUNTA('J18'!$M$3:$M$9)<14,"Matchs non-inscrits","Matchs inscrits") -> Matchs inscrits | K6: =IF(COUNTA('J18'!$Q$3:$Q$9)<7,"Dates incomplètes","Dates complètes") -> Dates complètes | L6: =IF(COUNTA('J18'!$R$3:$R$9)<7,"Horaires incomplets","Horaires complets") -> Horaires complets | M6: =IF(SUM('J18'!$GD$3:$GE$9)="","Résultats incomplets",IF(SUM('J18'!$GD$3:$GE$9)<14,"Résultats incomplets","Résultats complets")) -> Résultats complets | O6: =COUNTBLANK('J18'!$HM$3:$HN$9)/2 -> 0 | AY6: J05 | AZ6: =IF('J05'!$HH$3=0,"",IF('J05'!$HH$3="","",'J05'!$HH$3)) ->  | BB6: J05 | BC6: =IF('J05'!$HH$9=0,"",IF('J05'!$HH$9="","",'J05'!$HH$9)) ->  | BE6: J05 | BF6: =IF('J05'!$HJ$3=0,"",IF('J05'!$HJ$3="","",'J05'!$HJ$3)) ->  | BH6: J05 | BI6: =IF('J05'!$HK$3=0,"",IF('J05'!$HK$3="","",'J05'!$HK$3)) ->  | BK6: 4 | BM6: 0 | CK6: Journée 05 | CV6: =IF('J05'!$HH$3="","",SMALL('J05'!$HH$3:$HH$9,1)) ->  | CW6: =IF('J05'!$HH$3="","",LARGE('J05'!$HH$3:$HH$9,1)) ->  | CX6: Journée 05 | DF6: Journée 05 | DI6: Journée 05 | DK6: J05 | DL6: du | DM6: =IF('J05'!$HH$3="","",IF(COUNTA('J05'!$HH$3:$HH$9)<7,"",MIN('J05'!$HH$3:$HH$9))) ->  | DN6: au | DO6: =IF('J05'!$HH$3="","",IF(COUNTA('J05'!$HH$3:$HH$9)<7,"",MAX('J05'!$HH$3:$HH$9))) -> 
A7: =IF(CS7="","",IF(CT7="","",IF(AND(CS7>3,CT7>3),"J06",IF(AND(CS7<-3,CT7>3),"J06",IF(AND(CS7<-3,CT7<-3),"J06",IF(AND(CS7>3,CT7<-3),"J06",IF(AND(CS7>3,CT7<=3),"J06*",IF(AND(CS7<-3,CT7<=3),"J06*",IF(AND(CS7<=3,CT7>3),"J06*",IF(AND(CS7<=3,CT7<=3),"J06*",IF(AND(CS7<=3,CT7<-3),"J06*"))))))))))) ->  | B7: =IF(COUNTA('J06'!$D$3:$D$9)+COUNTA('J06'!$M$3:$M$9)<14,"Matchs non-inscrits","Matchs inscrits") -> Matchs inscrits | C7: =IF(COUNTA('J06'!$Q$3:$Q$9)<7,"Dates incomplètes","Dates complètes") -> Dates complètes | D7: =IF(COUNTA('J06'!$R$3:$R$9)<7,"Horaires incomplets","Horaires complets") -> Horaires complets | E7: =IF(SUM('J06'!$GD$3:$GE$9)="","Résultats incomplets",IF(SUM('J06'!$GD$3:$GE$9)<14,"Résultats incomplets","Résultats complets")) -> Résultats complets | G7: =COUNTBLANK('J06'!$HM$3:$HN$9)/2 -> 0 | I7: =IF(CS20="","",IF(CT20="","",IF(AND(CS20>3,CT20>3),"J19",IF(AND(CS20<-3,CT20>3),"J19",IF(AND(CS20<-3,CT20<-3),"J19",IF(AND(CS20>3,CT20<-3),"J19",IF(AND(CS20>3,CT20<=3),"J19*",IF(AND(CS20<-3,CT20<=3),"J19*",IF(AND(CS20<=3,CT20>3),"J19*",IF(AND(CS20<=3,CT20<=3),"J19*",IF(AND(CS20<=3,CT20<-3),"J19*"))))))))))) ->  | J7: =IF(COUNTA('J19'!$D$3:$D$9)+COUNTA('J19'!$M$3:$M$9)<14,"Matchs non-inscrits","Matchs inscrits") -> Matchs inscrits | K7: =IF(COUNTA('J19'!$Q$3:$Q$9)<7,"Dates incomplètes","Dates complètes") -> Dates complètes | L7: =IF(COUNTA('J19'!$R$3:$R$9)<7,"Horaires incomplets","Horaires complets") -> Horaires complets | M7: =IF(SUM('J19'!$GD$3:$GE$9)="","Résultats incomplets",IF(SUM('J19'!$GD$3:$GE$9)<14,"Résultats incomplets","Résultats complets")) -> Résultats complets | O7: =COUNTBLANK('J19'!$HM$3:$HN$9)/2 -> 0 | AY7: J06 | AZ7: =IF('J06'!$HH$3=0,"",IF('J06'!$HH$3="","",'J06'!$HH$3)) ->  | BB7: J06 | BC7: =IF('J06'!$HH$9=0,"",IF('J06'!$HH$9="","",'J06'!$HH$9)) ->  | BE7: J06 | BF7: =IF('J06'!$HJ$3=0,"",IF('J06'!$HJ$3="","",'J06'!$HJ$3)) ->  | BH7: J06 | BI7: =IF('J06'!$HK$3=0,"",IF('J06'!$HK$3="","",'J06'!$HK$3)) ->  | BK7: 4 | BM7: 0 | CK7: Journée 06 | CV7: =IF('J06'!$HH$3="","",SMALL('J06'!$HH$3:$HH$9,1)) ->  | CW7: =IF('J06'!$HH$3="","",LARGE('J06'!$HH$3:$HH$9,1)) ->  | CX7: Journée 06 | DF7: Journée 06 | DI7: Journée 06 | DK7: J06 | DL7: du | DM7: =IF('J06'!$HH$3="","",IF(COUNTA('J06'!$HH$3:$HH$9)<7,"",MIN('J06'!$HH$3:$HH$9))) ->  | DN7: au | DO7: =IF('J06'!$HH$3="","",IF(COUNTA('J06'!$HH$3:$HH$9)<7,"",MAX('J06'!$HH$3:$HH$9))) -> 
A8: =IF(CS8="","",IF(CT8="","",IF(AND(CS8>3,CT8>3),"J07",IF(AND(CS8<-3,CT8>3),"J07",IF(AND(CS8<-3,CT8<-3),"J07",IF(AND(CS8>3,CT8<-3),"J07",IF(AND(CS8>3,CT8<=3),"J07*",IF(AND(CS8<-3,CT8<=3),"J07*",IF(AND(CS8<=3,CT8>3),"J07*",IF(AND(CS8<=3,CT8<=3),"J07*",IF(AND(CS8<=3,CT8<-3),"J07*"))))))))))) ->  | B8: =IF(COUNTA('J07'!$D$3:$D$9)+COUNTA('J07'!$M$3:$M$9)<14,"Matchs non-inscrits","Matchs inscrits") -> Matchs inscrits | C8: =IF(COUNTA('J07'!$Q$3:$Q$9)<7,"Dates incomplètes","Dates complètes") -> Dates complètes | D8: =IF(COUNTA('J07'!$R$3:$R$9)<7,"Horaires incomplets","Horaires complets") -> Horaires complets | E8: =IF(SUM('J07'!$GD$3:$GE$9)="","Résultats incomplets",IF(SUM('J07'!$GD$3:$GE$9)<14,"Résultats incomplets","Résultats complets")) -> Résultats complets | G8: =COUNTBLANK('J07'!$HM$3:$HN$9)/2 -> 0 | I8: =IF(CS21="","",IF(CT21="","",IF(AND(CS21>3,CT21>3),"J20",IF(AND(CS21<-3,CT21>3),"J20",IF(AND(CS21<-3,CT21<-3),"J20",IF(AND(CS21>3,CT21<-3),"J20",IF(AND(CS21>3,CT21<=3),"J20*",IF(AND(CS21<-3,CT21<=3),"J20*",IF(AND(CS21<=3,CT21>3),"J20*",IF(AND(CS21<=3,CT21<=3),"J20*",IF(AND(CS21<=3,CT21<-3),"J20*"))))))))))) ->  | J8: =IF(COUNTA('J20'!$D$3:$D$9)+COUNTA('J20'!$M$3:$M$9)<14,"Matchs non-inscrits","Matchs inscrits") -> Matchs inscrits | K8: =IF(COUNTA('J20'!$Q$3:$Q$9)<7,"Dates incomplètes","Dates complètes") -> Dates complètes | L8: =IF(COUNTA('J20'!$R$3:$R$9)<7,"Horaires incomplets","Horaires complets") -> Horaires complets | M8: =IF(SUM('J20'!$GD$3:$GE$9)="","Résultats incomplets",IF(SUM('J20'!$GD$3:$GE$9)<14,"Résultats incomplets","Résultats complets")) -> Résultats complets | O8: =COUNTBLANK('J20'!$HM$3:$HN$9)/2 -> 0 | AY8: J07 | AZ8: =IF('J07'!$HH$3=0,"",IF('J07'!$HH$3="","",'J07'!$HH$3)) ->  | BB8: J07 | BC8: =IF('J07'!$HH$9=0,"",IF('J07'!$HH$9="","",'J07'!$HH$9)) ->  | BE8: J07 | BF8: =IF('J07'!$HJ$3=0,"",IF('J07'!$HJ$3="","",'J07'!$HJ$3)) ->  | BH8: J07 | BI8: =IF('J07'!$HK$3=0,"",IF('J07'!$HK$3="","",'J07'!$HK$3)) ->  | BK8: 4 | BM8: 0 | CK8: Journée 07 | CV8: =IF('J07'!$HH$3="","",SMALL('J07'!$HH$3:$HH$9,1)) ->  | CW8: =IF('J07'!$HH$3="","",LARGE('J07'!$HH$3:$HH$9,1)) ->  | CX8: Journée 07 | DF8: Journée 07 | DI8: Journée 07 | DK8: J07 | DL8: du | DM8: =IF('J07'!$HH$3="","",IF(COUNTA('J07'!$HH$3:$HH$9)<7,"",MIN('J07'!$HH$3:$HH$9))) ->  | DN8: au | DO8: =IF('J07'!$HH$3="","",IF(COUNTA('J07'!$HH$3:$HH$9)<7,"",MAX('J07'!$HH$3:$HH$9))) -> 
A9: =IF(CS9="","",IF(CT9="","",IF(AND(CS9>3,CT9>3),"J08",IF(AND(CS9<-3,CT9>3),"J08",IF(AND(CS9<-3,CT9<-3),"J08",IF(AND(CS9>3,CT9<-3),"J08",IF(AND(CS9>3,CT9<=3),"J08*",IF(AND(CS9<-3,CT9<=3),"J08*",IF(AND(CS9<=3,CT9>3),"J08*",IF(AND(CS9<=3,CT9<=3),"J08*",IF(AND(CS9<=3,CT9<-3),"J08*"))))))))))) ->  | B9: =IF(COUNTA('J08'!$D$3:$D$9)+COUNTA('J08'!$M$3:$M$9)<14,"Matchs non-inscrits","Matchs inscrits") -> Matchs inscrits | C9: =IF(COUNTA('J08'!$Q$3:$Q$9)<7,"Dates incomplètes","Dates complètes") -> Dates complètes | D9: =IF(COUNTA('J08'!$R$3:$R$9)<7,"Horaires incomplets","Horaires complets") -> Horaires complets | E9: =IF(SUM('J08'!$GD$3:$GE$9)="","Résultats incomplets",IF(SUM('J08'!$GD$3:$GE$9)<14,"Résultats incomplets","Résultats complets")) -> Résultats complets | G9: =COUNTBLANK('J08'!$HM$3:$HN$9)/2 -> 0 | I9: =IF(CS22="","",IF(CT22="","",IF(AND(CS22>3,CT22>3),"J21",IF(AND(CS22<-3,CT22>3),"J21",IF(AND(CS22<-3,CT22<-3),"J21",IF(AND(CS22>3,CT22<-3),"J21",IF(AND(CS22>3,CT22<=3),"J21*",IF(AND(CS22<-3,CT22<=3),"J21*",IF(AND(CS22<=3,CT22>3),"J21*",IF(AND(CS22<=3,CT22<=3),"J21*",IF(AND(CS22<=3,CT22<-3),"J21*"))))))))))) ->  | J9: =IF(COUNTA('J21'!$D$3:$D$9)+COUNTA('J21'!$M$3:$M$9)<14,"Matchs non-inscrits","Matchs inscrits") -> Matchs inscrits | K9: =IF(COUNTA('J21'!$Q$3:$Q$9)<7,"Dates incomplètes","Dates complètes") -> Dates complètes | L9: =IF(COUNTA('J21'!$R$3:$R$9)<7,"Horaires incomplets","Horaires complets") -> Horaires complets | M9: =IF(SUM('J21'!$GD$3:$GE$9)="","Résultats incomplets",IF(SUM('J21'!$GD$3:$GE$9)<14,"Résultats incomplets","Résultats complets")) -> Résultats incomplets | O9: =COUNTBLANK('J21'!$HM$3:$HN$9)/2 -> 1 | AY9: J08 | AZ9: =IF('J08'!$HH$3=0,"",IF('J08'!$HH$3="","",'J08'!$HH$3)) ->  | BB9: J08 | BC9: =IF('J08'!$HH$9=0,"",IF('J08'!$HH$9="","",'J08'!$HH$9)) ->  | BE9: J08 | BF9: =IF('J08'!$HJ$3=0,"",IF('J08'!$HJ$3="","",'J08'!$HJ$3)) ->  | BH9: J08 | BI9: =IF('J08'!$HK$3=0,"",IF('J08'!$HK$3="","",'J08'!$HK$3)) ->  | BK9: 4 | BM9: 0 | CK9: Journée 08 | CV9: =IF('J08'!$HH$3="","",SMALL('J08'!$HH$3:$HH$9,1)) ->  | CW9: =IF('J08'!$HH$3="","",LARGE('J08'!$HH$3:$HH$9,1)) ->  | CX9: Journée 08 | DF9: Journée 08 | DI9: Journée 08 | DK9: J08 | DL9: du | DM9: =IF('J08'!$HH$3="","",IF(COUNTA('J08'!$HH$3:$HH$9)<7,"",MIN('J08'!$HH$3:$HH$9))) ->  | DN9: au | DO9: =IF('J08'!$HH$3="","",IF(COUNTA('J08'!$HH$3:$HH$9)<7,"",MAX('J08'!$HH$3:$HH$9))) -> 
A10: =IF(CS10="","",IF(CT10="","",IF(AND(CS10>3,CT10>3),"J09",IF(AND(CS10<-3,CT10>3),"J09",IF(AND(CS10<-3,CT10<-3),"J09",IF(AND(CS10>3,CT10<-3),"J09",IF(AND(CS10>3,CT10<=3),"J09*",IF(AND(CS10<-3,CT10<=3),"J09*",IF(AND(CS10<=3,CT10>3),"J09*",IF(AND(CS10<=3,CT10<=3),"J09*",IF(AND(CS10<=3,CT10<-3),"J09*"))))))))))) ->  | B10: =IF(COUNTA('J09'!$D$3:$D$9)+COUNTA('J09'!$M$3:$M$9)<14,"Matchs non-inscrits","Matchs inscrits") -> Matchs inscrits | C10: =IF(COUNTA('J09'!$Q$3:$Q$9)<7,"Dates incomplètes","Dates complètes") -> Dates complètes | D10: =IF(COUNTA('J09'!$R$3:$R$9)<7,"Horaires incomplets","Horaires complets") -> Horaires complets | E10: =IF(SUM('J09'!$GD$3:$GE$9)="","Résultats incomplets",IF(SUM('J09'!$GD$3:$GE$9)<14,"Résultats incomplets","Résultats complets")) -> Résultats complets | G10: =COUNTBLANK('J09'!$HM$3:$HN$9)/2 -> 0 | I10: =IF(CS23="","",IF(CT23="","",IF(AND(CS23>3,CT23>3),"J22",IF(AND(CS23<-3,CT23>3),"J22",IF(AND(CS23<-3,CT23<-3),"J22",IF(AND(CS23>3,CT23<-3),"J22",IF(AND(CS23>3,CT23<=3),"J22*",IF(AND(CS23<-3,CT23<=3),"J22*",IF(AND(CS23<=3,CT23>3),"J22*",IF(AND(CS23<=3,CT23<=3),"J22*",IF(AND(CS23<=3,CT23<-3),"J22*"))))))))))) ->  | J10: =IF(COUNTA('J22'!$D$3:$D$9)+COUNTA('J22'!$M$3:$M$9)<14,"Matchs non-inscrits","Matchs inscrits") -> Matchs inscrits | K10: =IF(COUNTA('J22'!$Q$3:$Q$9)<7,"Dates incomplètes","Dates complètes") -> Dates complètes | L10: =IF(COUNTA('J22'!$R$3:$R$9)<7,"Horaires incomplets","Horaires complets") -> Horaires complets | M10: =IF(SUM('J22'!$GD$3:$GE$9)="","Résultats incomplets",IF(SUM('J22'!$GD$3:$GE$9)<14,"Résultats incomplets","Résultats complets")) -> Résultats complets | O10: =COUNTBLANK('J22'!$HM$3:$HN$9)/2 -> 0 | AY10: J09 | AZ10: =IF('J09'!$HH$3=0,"",IF('J09'!$HH$3="","",'J09'!$HH$3)) ->  | BB10: J09 | BC10: =IF('J09'!$HH$9=0,"",IF('J09'!$HH$9="","",'J09'!$HH$9)) ->  | BE10: J09 | BF10: =IF('J09'!$HJ$3=0,"",IF('J09'!$HJ$3="","",'J09'!$HJ$3)) ->  | BH10: J09 | BI10: =IF('J09'!$HK$3=0,"",IF('J09'!$HK$3="","",'J09'!$HK$3)) ->  | BK10: 4 | BM10: 0 | CK10: Journée 09 | CV10: =IF('J09'!$HH$3="","",SMALL('J09'!$HH$3:$HH$9,1)) ->  | CW10: =IF('J09'!$HH$3="","",LARGE('J09'!$HH$3:$HH$9,1)) ->  | CX10: Journée 09 | DF10: Journée 09 | DI10: Journée 09 | DK10: J09 | DL10: du | DM10: =IF('J09'!$HH$3="","",IF(COUNTA('J09'!$HH$3:$HH$9)<7,"",MIN('J09'!$HH$3:$HH$9))) ->  | DN10: au | DO10: =IF('J09'!$HH$3="","",IF(COUNTA('J09'!$HH$3:$HH$9)<7,"",MAX('J09'!$HH$3:$HH$9))) -> 
A11: =IF(CS11="","",IF(CT11="","",IF(AND(CS11>3,CT11>3),"J10",IF(AND(CS11<-3,CT11>3),"J10",IF(AND(CS11<-3,CT11<-3),"J10",IF(AND(CS11>3,CT11<-3),"J10",IF(AND(CS11>3,CT11<=3),"J10*",IF(AND(CS11<-3,CT11<=3),"J10*",IF(AND(CS11<=3,CT11>3),"J10*",IF(AND(CS11<=3,CT11<=3),"J10*",IF(AND(CS11<=3,CT11<-3),"J10*"))))))))))) ->  | B11: =IF(COUNTA('J10'!$D$3:$D$9)+COUNTA('J10'!$M$3:$M$9)<14,"Matchs non-inscrits","Matchs inscrits") -> Matchs inscrits | C11: =IF(COUNTA('J10'!$Q$3:$Q$9)<7,"Dates incomplètes","Dates complètes") -> Dates complètes | D11: =IF(COUNTA('J10'!$R$3:$R$9)<7,"Horaires incomplets","Horaires complets") -> Horaires complets | E11: =IF(SUM('J10'!$GD$3:$GE$9)="","Résultats incomplets",IF(SUM('J10'!$GD$3:$GE$9)<14,"Résultats incomplets","Résultats complets")) -> Résultats complets | G11: =COUNTBLANK('J10'!$HM$3:$HN$9)/2 -> 0 | I11: =IF(CS24="","",IF(CT24="","",IF(AND(CS24>3,CT24>3),"J23",IF(AND(CS24<-3,CT24>3),"J23",IF(AND(CS24<-3,CT24<-3),"J23",IF(AND(CS24>3,CT24<-3),"J23",IF(AND(CS24>3,CT24<=3),"J23*",IF(AND(CS24<-3,CT24<=3),"J23*",IF(AND(CS24<=3,CT24>3),"J23*",IF(AND(CS24<=3,CT24<=3),"J23*",IF(AND(CS24<=3,CT24<-3),"J23*"))))))))))) ->  | J11: =IF(COUNTA('J23'!$D$3:$D$9)+COUNTA('J23'!$M$3:$M$9)<14,"Matchs non-inscrits","Matchs inscrits") -> Matchs inscrits | K11: =IF(COUNTA('J23'!$Q$3:$Q$9)<7,"Dates incomplètes","Dates complètes") -> Dates complètes | L11: =IF(COUNTA('J23'!$R$3:$R$9)<7,"Horaires incomplets","Horaires complets") -> Horaires complets | M11: =IF(SUM('J23'!$GD$3:$GE$9)="","Résultats incomplets",IF(SUM('J23'!$GD$3:$GE$9)<14,"Résultats incomplets","Résultats complets")) -> Résultats incomplets | O11: =COUNTBLANK('J23'!$HM$3:$HN$9)/2 -> 6 | AY11: J10 | AZ11: =IF('J10'!$HH$3=0,"",IF('J10'!$HH$3="","",'J10'!$HH$3)) ->  | BB11: J10 | BC11: =IF('J10'!$HH$9=0,"",IF('J10'!$HH$9="","",'J10'!$HH$9)) ->  | BE11: J10 | BF11: =IF('J10'!$HJ$3=0,"",IF('J10'!$HJ$3="","",'J10'!$HJ$3)) ->  | BH11: J10 | BI11: =IF('J10'!$HK$3=0,"",IF('J10'!$HK$3="","",'J10'!$HK$3)) ->  | BK11: 4 | BM11: 0 | CK11: Journée 10 | CV11: =IF('J10'!$HH$3="","",SMALL('J10'!$HH$3:$HH$9,1)) ->  | CW11: =IF('J10'!$HH$3="","",LARGE('J10'!$HH$3:$HH$9,1)) ->  | CX11: Journée 10 | DF11: Journée 10 | DI11: Journée 10 | DK11: J10 | DL11: du | DM11: =IF('J10'!$HH$3="","",IF(COUNTA('J10'!$HH$3:$HH$9)<7,"",MIN('J10'!$HH$3:$HH$9))) ->  | DN11: au | DO11: =IF('J10'!$HH$3="","",IF(COUNTA('J10'!$HH$3:$HH$9)<7,"",MAX('J10'!$HH$3:$HH$9))) -> 
A12: =IF(CS12="","",IF(CT12="","",IF(AND(CS12>3,CT12>3),"J11",IF(AND(CS12<-3,CT12>3),"J11",IF(AND(CS12<-3,CT12<-3),"J11",IF(AND(CS12>3,CT12<-3),"J11",IF(AND(CS12>3,CT12<=3),"J11*",IF(AND(CS12<-3,CT12<=3),"J11*",IF(AND(CS12<=3,CT12>3),"J11*",IF(AND(CS12<=3,CT12<=3),"J11*",IF(AND(CS12<=3,CT12<-3),"J11*"))))))))))) ->  | B12: =IF(COUNTA('J11'!$D$3:$D$9)+COUNTA('J11'!$M$3:$M$9)<14,"Matchs non-inscrits","Matchs inscrits") -> Matchs inscrits | C12: =IF(COUNTA('J11'!$Q$3:$Q$9)<7,"Dates incomplètes","Dates complètes") -> Dates complètes | D12: =IF(COUNTA('J11'!$R$3:$R$9)<7,"Horaires incomplets","Horaires complets") -> Horaires complets | E12: =IF(SUM('J11'!$GD$3:$GE$9)="","Résultats incomplets",IF(SUM('J11'!$GD$3:$GE$9)<14,"Résultats incomplets","Résultats complets")) -> Résultats complets | G12: =COUNTBLANK('J11'!$HM$3:$HN$9)/2 -> 0 | I12: =IF(CS25="","",IF(CT25="","",IF(AND(CS25>3,CT25>3),"J24",IF(AND(CS25<-3,CT25>3),"J24",IF(AND(CS25<-3,CT25<-3),"J24",IF(AND(CS25>3,CT25<-3),"J24",IF(AND(CS25>3,CT25<=3),"J24*",IF(AND(CS25<-3,CT25<=3),"J24*",IF(AND(CS25<=3,CT25>3),"J24*",IF(AND(CS25<=3,CT25<=3),"J24*",IF(AND(CS25<=3,CT25<-3),"J24*"))))))))))) ->  | J12: =IF(COUNTA('J24'!$D$3:$D$9)+COUNTA('J24'!$M$3:$M$9)<14,"Matchs non-inscrits","Matchs inscrits") -> Matchs inscrits | K12: =IF(COUNTA('J24'!$Q$3:$Q$9)<7,"Dates incomplètes","Dates complètes") -> Dates complètes | L12: =IF(COUNTA('J24'!$R$3:$R$9)<7,"Horaires incomplets","Horaires complets") -> Horaires complets | M12: =IF(SUM('J24'!$GD$3:$GE$9)="","Résultats incomplets",IF(SUM('J24'!$GD$3:$GE$9)<14,"Résultats incomplets","Résultats complets")) -> Résultats incomplets | O12: =COUNTBLANK('J24'!$HM$3:$HN$9)/2 -> 6 | AY12: J11 | AZ12: =IF('J11'!$HH$3=0,"",IF('J11'!$HH$3="","",'J11'!$HH$3)) ->  | BB12: J11 | BC12: =IF('J11'!$HH$9=0,"",IF('J11'!$HH$9="","",'J11'!$HH$9)) ->  | BE12: J11 | BF12: =IF('J11'!$HJ$3=0,"",IF('J11'!$HJ$3="","",'J11'!$HJ$3)) ->  | BH12: J11 | BI12: =IF('J11'!$HK$3=0,"",IF('J11'!$HK$3="","",'J11'!$HK$3)) ->  | BK12: 4 | BM12: 0 | CK12: Journée 11 | CV12: =IF('J11'!$HH$3="","",SMALL('J11'!$HH$3:$HH$9,1)) ->  | CW12: =IF('J11'!$HH$3="","",LARGE('J11'!$HH$3:$HH$9,1)) ->  | CX12: Journée 11 | DF12: Journée 11 | DI12: Journée 11 | DK12: J11 | DL12: du | DM12: =IF('J11'!$HH$3="","",IF(COUNTA('J11'!$HH$3:$HH$9)<7,"",MIN('J11'!$HH$3:$HH$9))) ->  | DN12: au | DO12: =IF('J11'!$HH$3="","",IF(COUNTA('J11'!$HH$3:$HH$9)<7,"",MAX('J11'!$HH$3:$HH$9))) -> 
A13: =IF(CS13="","",IF(CT13="","",IF(AND(CS13>3,CT13>3),"J12",IF(AND(CS13<-3,CT13>3),"J12",IF(AND(CS13<-3,CT13<-3),"J12",IF(AND(CS13>3,CT13<-3),"J12",IF(AND(CS13>3,CT13<=3),"J12*",IF(AND(CS13<-3,CT13<=3),"J12*",IF(AND(CS13<=3,CT13>3),"J12*",IF(AND(CS13<=3,CT13<=3),"J12*",IF(AND(CS13<=3,CT13<-3),"J12*"))))))))))) ->  | B13: =IF(COUNTA('J12'!$D$3:$D$9)+COUNTA('J12'!$M$3:$M$9)<14,"Matchs non-inscrits","Matchs inscrits") -> Matchs inscrits | C13: =IF(COUNTA('J12'!$Q$3:$Q$9)<7,"Dates incomplètes","Dates complètes") -> Dates complètes | D13: =IF(COUNTA('J12'!$R$3:$R$9)<7,"Horaires incomplets","Horaires complets") -> Horaires complets | E13: =IF(SUM('J12'!$GD$3:$GE$9)="","Résultats incomplets",IF(SUM('J12'!$GD$3:$GE$9)<14,"Résultats incomplets","Résultats complets")) -> Résultats incomplets | G13: =COUNTBLANK('J12'!$HM$3:$HN$9)/2 -> 1 | I13: =IF(CS26="","",IF(CT26="","",IF(AND(CS26>3,CT26>3),"J25",IF(AND(CS26<-3,CT26>3),"J25",IF(AND(CS26<-3,CT26<-3),"J25",IF(AND(CS26>3,CT26<-3),"J25",IF(AND(CS26>3,CT26<=3),"J25*",IF(AND(CS26<-3,CT26<=3),"J25*",IF(AND(CS26<=3,CT26>3),"J25*",IF(AND(CS26<=3,CT26<=3),"J25*",IF(AND(CS26<=3,CT26<-3),"J25*"))))))))))) ->  | J13: =IF(COUNTA('J25'!$D$3:$D$9)+COUNTA('J25'!$M$3:$M$9)<14,"Matchs non-inscrits","Matchs inscrits") -> Matchs inscrits | K13: =IF(COUNTA('J25'!$Q$3:$Q$9)<7,"Dates incomplètes","Dates complètes") -> Dates complètes | L13: =IF(COUNTA('J25'!$R$3:$R$9)<7,"Horaires incomplets","Horaires complets") -> Horaires complets | M13: =IF(SUM('J25'!$GD$3:$GE$9)="","Résultats incomplets",IF(SUM('J25'!$GD$3:$GE$9)<14,"Résultats incomplets","Résultats complets")) -> Résultats incomplets | O13: =COUNTBLANK('J25'!$HM$3:$HN$9)/2 -> 6 | AY13: J12 | AZ13: =IF('J12'!$HH$3=0,"",IF('J12'!$HH$3="","",'J12'!$HH$3)) ->  | BB13: J12 | BC13: =IF('J12'!$HH$9=0,"",IF('J12'!$HH$9="","",'J12'!$HH$9)) ->  | BE13: J12 | BF13: =IF('J12'!$HJ$3=0,"",IF('J12'!$HJ$3="","",'J12'!$HJ$3)) ->  | BH13: J12 | BI13: =IF('J12'!$HK$3=0,"",IF('J12'!$HK$3="","",'J12'!$HK$3)) ->  | BK13: 3 | BM13: 1 | CK13: Journée 12 | CV13: =IF('J12'!$HH$3="","",SMALL('J12'!$HH$3:$HH$9,1)) ->  | CW13: =IF('J12'!$HH$3="","",LARGE('J12'!$HH$3:$HH$9,1)) ->  | CX13: Journée 12 | DF13: Journée 12 | DI13: Journée 12 | DK13: J12 | DL13: du | DM13: =IF('J12'!$HH$3="","",IF(COUNTA('J12'!$HH$3:$HH$9)<7,"",MIN('J12'!$HH$3:$HH$9))) ->  | DN13: au | DO13: =IF('J12'!$HH$3="","",IF(COUNTA('J12'!$HH$3:$HH$9)<7,"",MAX('J12'!$HH$3:$HH$9))) -> 
A14: =IF(CS14="","",IF(CT14="","",IF(AND(CS14>3,CT14>3),"J13",IF(AND(CS14<-3,CT14>3),"J13",IF(AND(CS14<-3,CT14<-3),"J13",IF(AND(CS14>3,CT14<-3),"J13",IF(AND(CS14>3,CT14<=3),"J13*",IF(AND(CS14<-3,CT14<=3),"J13*",IF(AND(CS14<=3,CT14>3),"J13*",IF(AND(CS14<=3,CT14<=3),"J13*",IF(AND(CS14<=3,CT14<-3),"J13*"))))))))))) ->  | B14: =IF(COUNTA('J13'!$D$3:$D$9)+COUNTA('J13'!$M$3:$M$9)<14,"Matchs non-inscrits","Matchs inscrits") -> Matchs inscrits | C14: =IF(COUNTA('J13'!$Q$3:$Q$9)<7,"Dates incomplètes","Dates complètes") -> Dates complètes | D14: =IF(COUNTA('J13'!$R$3:$R$9)<7,"Horaires incomplets","Horaires complets") -> Horaires complets | E14: =IF(SUM('J13'!$GD$3:$GE$9)="","Résultats incomplets",IF(SUM('J13'!$GD$3:$GE$9)<14,"Résultats incomplets","Résultats complets")) -> Résultats complets | G14: =COUNTBLANK('J13'!$HM$3:$HN$9)/2 -> 0 | I14: =IF(CS27="","",IF(CT27="","",IF(AND(CS27>3,CT27>3),"J26",IF(AND(CS27<-3,CT27>3),"J26",IF(AND(CS27<-3,CT27<-3),"J26",IF(AND(CS27>3,CT27<-3),"J26",IF(AND(CS27>3,CT27<=3),"J26*",IF(AND(CS27<-3,CT27<=3),"J26*",IF(AND(CS27<=3,CT27>3),"J26*",IF(AND(CS27<=3,CT27<=3),"J26*",IF(AND(CS27<=3,CT27<-3),"J26*"))))))))))) ->  | J14: =IF(COUNTA('J26'!$D$3:$D$9)+COUNTA('J26'!$M$3:$M$9)<14,"Matchs non-inscrits","Matchs inscrits") -> Matchs inscrits | K14: =IF(COUNTA('J26'!$Q$3:$Q$9)<7,"Dates incomplètes","Dates complètes") -> Dates complètes | L14: =IF(COUNTA('J26'!$R$3:$R$9)<7,"Horaires incomplets","Horaires complets") -> Horaires incomplets | M14: =IF(SUM('J26'!$GD$3:$GE$9)="","Résultats incomplets",IF(SUM('J26'!$GD$3:$GE$9)<14,"Résultats incomplets","Résultats complets")) -> Résultats incomplets | O14: =COUNTBLANK('J26'!$HM$3:$HN$9)/2 -> 6 | AY14: J13 | AZ14: =IF('J13'!$HH$3=0,"",IF('J13'!$HH$3="","",'J13'!$HH$3)) ->  | BB14: J13 | BC14: =IF('J13'!$HH$9=0,"",IF('J13'!$HH$9="","",'J13'!$HH$9)) ->  | BE14: J13 | BF14: =IF('J13'!$HJ$3=0,"",IF('J13'!$HJ$3="","",'J13'!$HJ$3)) ->  | BH14: J13 | BI14: =IF('J13'!$HK$3=0,"",IF('J13'!$HK$3="","",'J13'!$HK$3)) ->  | BK14: 4 | BM14: 0 | CK14: Journée 13 | CV14: =IF('J13'!$HH$3="","",SMALL('J13'!$HH$3:$HH$9,1)) ->  | CW14: =IF('J13'!$HH$3="","",LARGE('J13'!$HH$3:$HH$9,1)) ->  | CX14: Journée 13 | DF14: Journée 13 | DI14: Journée 13 | DK14: J13 | DL14: du | DM14: =IF('J13'!$HH$3="","",IF(COUNTA('J13'!$HH$3:$HH$9)<7,"",MIN('J13'!$HH$3:$HH$9))) ->  | DN14: au | DO14: =IF('J13'!$HH$3="","",IF(COUNTA('J13'!$HH$3:$HH$9)<7,"",MAX('J13'!$HH$3:$HH$9))) -> 
A15: J00* : Le début ou la fin des journées ayant été ou devant être jouées dans les derniers/prochains 3 jours. | I15: J00* : Le début ou la fin des journées ayant été ou devant être jouées dans les derniers/prochains 3 jours. | AY15: J14 | AZ15: =IF('J14'!$HH$3=0,"",IF('J14'!$HH$3="","",'J14'!$HH$3)) ->  | BB15: J14 | BC15: =IF('J14'!$HH$9=0,"",IF('J14'!$HH$9="","",'J14'!$HH$9)) ->  | BE15: J14 | BF15: =IF('J14'!$HJ$3=0,"",IF('J14'!$HJ$3="","",'J14'!$HJ$3)) ->  | BH15: J14 | BI15: =IF('J14'!$HK$3=0,"",IF('J14'!$HK$3="","",'J14'!$HK$3)) ->  | BK15: =IF(J2="Matchs inscrits",1)+IF(K2="Dates complètes",1)+IF(L2="Horaires complets",1)+IF(M2="Résultats complets",1) -> 4 | BM15: =O2 -> 0 | CK15: Journée 14 | CV15: =IF('J14'!$HH$3="","",SMALL('J14'!$HH$3:$HH$9,1)) ->  | CW15: =IF('J14'!$HH$3="","",LARGE('J14'!$HH$3:$HH$9,1)) ->  | CX15: Journée 14 | DF15: Journée 14 | DI15: Journée 14 | DK15: J14 | DL15: du | DM15: =IF('J14'!$HH$3="","",IF(COUNTA('J14'!$HH$3:$HH$9)<7,"",MIN('J14'!$HH$3:$HH$9))) ->  | DN15: au | DO15: =IF('J14'!$HH$3="","",IF(COUNTA('J14'!$HH$3:$HH$9)<7,"",MAX('J14'!$HH$3:$HH$9))) -> 
A16: =IF(Accueil!$U$2="","",Accueil!$U$2) -> Nous sommes le lundi 11 mars 2024 | N16: =IF(O16=0,"",IF(O16="","",IF(O16=1,"Nombre de match restant à jouer :","Nombre de matchs restant à jouer :"))) -> Nombre de matchs restant à jouer : | O16: =BM33 -> 26 | AY16: J15 | AZ16: =IF('J15'!$HH$3=0,"",IF('J15'!$HH$3="","",'J15'!$HH$3)) ->  | BB16: J15 | BC16: =IF('J15'!$HH$9=0,"",IF('J15'!$HH$9="","",'J15'!$HH$9)) ->  | BE16: J15 | BF16: =IF('J15'!$HJ$3=0,"",IF('J15'!$HJ$3="","",'J15'!$HJ$3)) ->  | BH16: J15 | BI16: =IF('J15'!$HK$3=0,"",IF('J15'!$HK$3="","",'J15'!$HK$3)) ->  | BK16: 4 | BM16: 0 | CK16: Journée 15 | CV16: =IF('J15'!$HH$3="","",SMALL('J15'!$HH$3:$HH$9,1)) ->  | CW16: =IF('J15'!$HH$3="","",LARGE('J15'!$HH$3:$HH$9,1)) ->  | CX16: Journée 15 | DF16: Journée 15 | DI16: Journée 15 | DK16: J15 | DL16: du | DM16: =IF('J15'!$HH$3="","",IF(COUNTA('J15'!$HH$3:$HH$9)<7,"",MIN('J15'!$HH$3:$HH$9))) ->  | DN16: au | DO16: =IF('J15'!$HH$3="","",IF(COUNTA('J15'!$HH$3:$HH$9)<7,"",MAX('J15'!$HH$3:$HH$9))) -> 
AY17: J16 | AZ17: =IF('J16'!$HH$3=0,"",IF('J16'!$HH$3="","",'J16'!$HH$3)) ->  | BB17: J16 | BC17: =IF('J16'!$HH$9=0,"",IF('J16'!$HH$9="","",'J16'!$HH$9)) ->  | BE17: J16 | BF17: =IF('J16'!$HJ$3=0,"",IF('J16'!$HJ$3="","",'J16'!$HJ$3)) ->  | BH17: J16 | BI17: =IF('J16'!$HK$3=0,"",IF('J16'!$HK$3="","",'J16'!$HK$3)) ->  | BK17: 4 | BM17: 0 | CK17: Journée 16 | CV17: =IF('J16'!$HH$3="","",SMALL('J16'!$HH$3:$HH$9,1)) ->  | CW17: =IF('J16'!$HH$3="","",LARGE('J16'!$HH$3:$HH$9,1)) ->  | CX17: Journée 16 | DF17: Journée 16 | DI17: Journée 16 | DK17: J16 | DL17: du | DM17: =IF('J16'!$HH$3="","",IF(COUNTA('J16'!$HH$3:$HH$9)<7,"",MIN('J16'!$HH$3:$HH$9))) ->  | DN17: au | DO17: =IF('J16'!$HH$3="","",IF(COUNTA('J16'!$HH$3:$HH$9)<7,"",MAX('J16'!$HH$3:$HH$9))) -> 
A18: =IF(Equipes!$M$16="","",Equipes!$M$16) -> Championnat de France de Rugby à 15 - Nationale | N18: =IF(Equipes!$M$20="","",Equipes!$M$20) -> Date du début du Championnat : vendredi 25 août 2023 | AY18: J17 | AZ18: =IF('J17'!$HH$3=0,"",IF('J17'!$HH$3="","",'J17'!$HH$3)) ->  | BB18: J17 | BC18: =IF('J17'!$HH$9=0,"",IF('J17'!$HH$9="","",'J17'!$HH$9)) ->  | BE18: J17 | BF18: =IF('J17'!$HJ$3=0,"",IF('J17'!$HJ$3="","",'J17'!$HJ$3)) ->  | BH18: J17 | BI18: =IF('J17'!$HK$3=0,"",IF('J17'!$HK$3="","",'J17'!$HK$3)) ->  | BK18: 4 | BM18: 0 | CK18: Journée 17 | CV18: =IF('J17'!$HH$3="","",SMALL('J17'!$HH$3:$HH$9,1)) ->  | CW18: =IF('J17'!$HH$3="","",LARGE('J17'!$HH$3:$HH$9,1)) ->  | CX18: Journée 17 | DF18: Journée 17 | DI18: Journée 17 | DK18: J17 | DL18: du | DM18: =IF('J17'!$HH$3="","",IF(COUNTA('J17'!$HH$3:$HH$9)<7,"",MIN('J17'!$HH$3:$HH$9))) ->  | DN18: au | DO18: =IF('J17'!$HH$3="","",IF(COUNTA('J17'!$HH$3:$HH$9)<7,"",MAX('J17'!$HH$3:$HH$9))) -> 
AY19: J18 | AZ19: =IF('J18'!$HH$3=0,"",IF('J18'!$HH$3="","",'J18'!$HH$3)) ->  | BB19: J18 | BC19: =IF('J18'!$HH$9=0,"",IF('J18'!$HH$9="","",'J18'!$HH$9)) ->  | BE19: J18 | BF19: =IF('J18'!$HJ$3=0,"",IF('J18'!$HJ$3="","",'J18'!$HJ$3)) ->  | BH19: J18 | BI19: =IF('J18'!$HK$3=0,"",IF('J18'!$HK$3="","",'J18'!$HK$3)) ->  | BK19: 4 | BM19: 0 | CK19: Journée 18 | CV19: =IF('J18'!$HH$3="","",SMALL('J18'!$HH$3:$HH$9,1)) ->  | CW19: =IF('J18'!$HH$3="","",LARGE('J18'!$HH$3:$HH$9,1)) ->  | CX19: Journée 18 | DF19: Journée 18 | DI19: Journée 18 | DK19: J18 | DL19: du | DM19: =IF('J18'!$HH$3="","",IF(COUNTA('J18'!$HH$3:$HH$9)<7,"",MIN('J18'!$HH$3:$HH$9))) ->  | DN19: au | DO19: =IF('J18'!$HH$3="","",IF(COUNTA('J18'!$HH$3:$HH$9)<7,"",MAX('J18'!$HH$3:$HH$9))) -> 
A20: =IF(Equipes!$O$18="","",Equipes!$O$18) -> Saison du Championnat : 2023 - 2024 | N20: =IF(Equipes!$M$22="","",Equipes!$M$22) -> Date de la fin du Championnat : samedi 27 avril 2024 | AY20: J19 | AZ20: =IF('J19'!$HH$3=0,"",IF('J19'!$HH$3="","",'J19'!$HH$3)) ->  | BB20: J19 | BC20: =IF('J19'!$HH$9=0,"",IF('J19'!$HH$9="","",'J19'!$HH$9)) ->  | BE20: J19 | BF20: =IF('J19'!$HJ$3=0,"",IF('J19'!$HJ$3="","",'J19'!$HJ$3)) ->  | BH20: J19 | BI20: =IF('J19'!$HK$3=0,"",IF('J19'!$HK$3="","",'J19'!$HK$3)) ->  | BK20: 4 | BM20: 0 | CK20: Journée 19 | CV20: =IF('J19'!$HH$3="","",SMALL('J19'!$HH$3:$HH$9,1)) ->  | CW20: =IF('J19'!$HH$3="","",LARGE('J19'!$HH$3:$HH$9,1)) ->  | CX20: Journée 19 | DF20: Journée 19 | DI20: Journée 19 | DK20: J19 | DL20: du | DM20: =IF('J19'!$HH$3="","",IF(COUNTA('J19'!$HH$3:$HH$9)<7,"",MIN('J19'!$HH$3:$HH$9))) ->  | DN20: au | DO20: =IF('J19'!$HH$3="","",IF(COUNTA('J19'!$HH$3:$HH$9)<7,"",MAX('J19'!$HH$3:$HH$9))) -> 
AY21: J20 | AZ21: =IF('J20'!$HH$3=0,"",IF('J20'!$HH$3="","",'J20'!$HH$3)) ->  | BB21: J20 | BC21: =IF('J20'!$HH$9=0,"",IF('J20'!$HH$9="","",'J20'!$HH$9)) ->  | BE21: J20 | BF21: =IF('J20'!$HJ$3=0,"",IF('J20'!$HJ$3="","",'J20'!$HJ$3)) ->  | BH21: J20 | BI21: =IF('J20'!$HK$3=0,"",IF('J20'!$HK$3="","",'J20'!$HK$3)) ->  | BK21: 4 | BM21: 0 | CK21: Journée 20 | CV21: =IF('J20'!$HH$3="","",SMALL('J20'!$HH$3:$HH$9,1)) ->  | CW21: =IF('J20'!$HH$3="","",LARGE('J20'!$HH$3:$HH$9,1)) ->  | CX21: Journée 20 | DF21: Journée 20 | DI21: Journée 20 | DK21: J20 | DL21: du | DM21: =IF('J20'!$HH$3="","",IF(COUNTA('J20'!$HH$3:$HH$9)<7,"",MIN('J20'!$HH$3:$HH$9))) ->  | DN21: au | DO21: =IF('J20'!$HH$3="","",IF(COUNTA('J20'!$HH$3:$HH$9)<7,"",MAX('J20'!$HH$3:$HH$9))) -> 
AY22: J21 | AZ22: =IF('J21'!$HH$3=0,"",IF('J21'!$HH$3="","",'J21'!$HH$3)) ->  | BB22: J21 | BC22: =IF('J21'!$HH$9=0,"",IF('J21'!$HH$9="","",'J21'!$HH$9)) ->  | BE22: J21 | BF22: =IF('J21'!$HJ$3=0,"",IF('J21'!$HJ$3="","",'J21'!$HJ$3)) ->  | BH22: J21 | BI22: =IF('J21'!$HK$3=0,"",IF('J21'!$HK$3="","",'J21'!$HK$3)) ->  | BK22: 3 | BM22: 1 | CK22: Journée 21 | CV22: =IF('J21'!$HH$3="","",SMALL('J21'!$HH$3:$HH$9,1)) ->  | CW22: =IF('J21'!$HH$3="","",LARGE('J21'!$HH$3:$HH$9,1)) ->  | CX22: Journée 21 | DF22: Journée 21 | DI22: Journée 21 | DK22: J21 | DL22: du | DM22: =IF('J21'!$HH$3="","",IF(COUNTA('J21'!$HH$3:$HH$9)<7,"",MIN('J21'!$HH$3:$HH$9))) ->  | DN22: au | DO22: =IF('J21'!$HH$3="","",IF(COUNTA('J21'!$HH$3:$HH$9)<7,"",MAX('J21'!$HH$3:$HH$9))) -> 
AY23: J22 | AZ23: =IF('J22'!$HH$3=0,"",IF('J22'!$HH$3="","",'J22'!$HH$3)) ->  | BB23: J22 | BC23: =IF('J22'!$HH$9=0,"",IF('J22'!$HH$9="","",'J22'!$HH$9)) ->  | BE23: J22 | BF23: =IF('J22'!$HJ$3=0,"",IF('J22'!$HJ$3="","",'J22'!$HJ$3)) ->  | BH23: J22 | BI23: =IF('J22'!$HK$3=0,"",IF('J22'!$HK$3="","",'J22'!$HK$3)) ->  | BK23: 4 | BM23: 0 | CK23: Journée 22 | CV23: =IF('J22'!$HH$3="","",SMALL('J22'!$HH$3:$HH$9,1)) ->  | CW23: =IF('J22'!$HH$3="","",LARGE('J22'!$HH$3:$HH$9,1)) ->  | CX23: Journée 22 | DF23: Journée 22 | DI23: Journée 22 | DK23: J22 | DL23: du | DM23: =IF('J22'!$HH$3="","",IF(COUNTA('J22'!$HH$3:$HH$9)<7,"",MIN('J22'!$HH$3:$HH$9))) ->  | DN23: au | DO23: =IF('J22'!$HH$3="","",IF(COUNTA('J22'!$HH$3:$HH$9)<7,"",MAX('J22'!$HH$3:$HH$9))) -> 
AY24: J23 | AZ24: =IF('J23'!$HH$3=0,"",IF('J23'!$HH$3="","",'J23'!$HH$3)) ->  | BB24: J23 | BC24: =IF('J23'!$HH$9=0,"",IF('J23'!$HH$9="","",'J23'!$HH$9)) ->  | BE24: J23 | BF24: =IF('J23'!$HJ$3=0,"",IF('J23'!$HJ$3="","",'J23'!$HJ$3)) ->  | BH24: J23 | BI24: =IF('J23'!$HK$3=0,"",IF('J23'!$HK$3="","",'J23'!$HK$3)) ->  | BK24: 3 | BM24: 6 | CK24: Journée 23 | CV24: =IF('J23'!$HH$3="","",SMALL('J23'!$HH$3:$HH$9,1)) ->  | CW24: =IF('J23'!$HH$3="","",LARGE('J23'!$HH$3:$HH$9,1)) ->  | CX24: Journée 23 | DF24: Journée 23 | DI24: Journée 23 | DK24: J23 | DL24: du | DM24: =IF('J23'!$HH$3="","",IF(COUNTA('J23'!$HH$3:$HH$9)<7,"",MIN('J23'!$HH$3:$HH$9))) ->  | DN24: au | DO24: =IF('J23'!$HH$3="","",IF(COUNTA('J23'!$HH$3:$HH$9)<7,"",MAX('J23'!$HH$3:$HH$9))) -> 
AY25: J24 | AZ25: =IF('J24'!$HH$3=0,"",IF('J24'!$HH$3="","",'J24'!$HH$3)) ->  | BB25: J24 | BC25: =IF('J24'!$HH$9=0,"",IF('J24'!$HH$9="","",'J24'!$HH$9)) ->  | BE25: J24 | BF25: =IF('J24'!$HJ$3=0,"",IF('J24'!$HJ$3="","",'J24'!$HJ$3)) ->  | BH25: J24 | BI25: =IF('J24'!$HK$3=0,"",IF('J24'!$HK$3="","",'J24'!$HK$3)) ->  | BK25: 3 | BM25: 6 | CK25: Journée 24 | CV25: =IF('J24'!$HH$3="","",SMALL('J24'!$HH$3:$HH$9,1)) ->  | CW25: =IF('J24'!$HH$3="","",LARGE('J24'!$HH$3:$HH$9,1)) ->  | CX25: Journée 24 | DF25: Journée 24 | DI25: Journée 24 | DK25: J24 | DL25: du | DM25: =IF('J24'!$HH$3="","",IF(COUNTA('J24'!$HH$3:$HH$9)<7,"",MIN('J24'!$HH$3:$HH$9))) ->  | DN25: au | DO25: =IF('J24'!$HH$3="","",IF(COUNTA('J24'!$HH$3:$HH$9)<7,"",MAX('J24'!$HH$3:$HH$9))) -> 
AY26: J25 | AZ26: =IF('J25'!$HH$3=0,"",IF('J25'!$HH$3="","",'J25'!$HH$3)) ->  | BB26: J25 | BC26: =IF('J25'!$HH$9=0,"",IF('J25'!$HH$9="","",'J25'!$HH$9)) ->  | BE26: J25 | BF26: =IF('J25'!$HJ$3=0,"",IF('J25'!$HJ$3="","",'J25'!$HJ$3)) ->  | BH26: J25 | BI26: =IF('J25'!$HK$3=0,"",IF('J25'!$HK$3="","",'J25'!$HK$3)) ->  | BK26: 3 | BM26: 6 | CK26: Journée 25 | CV26: =IF('J25'!$HH$3="","",SMALL('J25'!$HH$3:$HH$9,1)) ->  | CW26: =IF('J25'!$HH$3="","",LARGE('J25'!$HH$3:$HH$9,1)) ->  | CX26: Journée 25 | DF26: Journée 25 | DI26: Journée 25 | DK26: J25 | DL26: du | DM26: =IF('J25'!$HH$3="","",IF(COUNTA('J25'!$HH$3:$HH$9)<7,"",MIN('J25'!$HH$3:$HH$9))) ->  | DN26: au | DO26: =IF('J25'!$HH$3="","",IF(COUNTA('J25'!$HH$3:$HH$9)<7,"",MAX('J25'!$HH$3:$HH$9))) -> 
AY27: J26 | AZ27: =IF('J26'!$HH$3=0,"",IF('J26'!$HH$3="","",'J26'!$HH$3)) ->  | BB27: J26 | BC27: =IF('J26'!$HH$9=0,"",IF('J26'!$HH$9="","",'J26'!$HH$9)) ->  | BE27: J26 | BF27: =IF('J26'!$HJ$3=0,"",IF('J26'!$HJ$3="","",'J26'!$HJ$3)) ->  | BH27: J26 | BI27: =IF('J26'!$HK$3=0,"",IF('J26'!$HK$3="","",'J26'!$HK$3)) ->  | BK27: 2 | BM27: 6 | CK27: Journée 26 | CV27: =IF('J26'!$HH$3="","",SMALL('J26'!$HH$3:$HH$9,1)) ->  | CW27: =IF('J26'!$HH$3="","",LARGE('J26'!$HH$3:$HH$9,1)) ->  | CX27: Journée 26 | DF27: Journée 26 | DI27: Journée 26 | DK27: J26 | DL27: du | DM27: =IF('J26'!$HH$3="","",IF(COUNTA('J26'!$HH$3:$HH$9)<7,"",MIN('J26'!$HH$3:$HH$9))) ->  | DN27: au | DO27: =IF('J26'!$HH$3="","",IF(COUNTA('J26'!$HH$3:$HH$9)<7,"",MAX('J26'!$HH$3:$HH$9))) -> 
BM33: =SUM(BM2:BM31) -> 26

Sheet J01
A1: =IF(Accueil!$H$2="","",IF(Accueil!$H$2="Choix du Championnat de Rugby","",IF(Accueil!$B$2="","",IF(Accueil!$D$2="","",IF(Accueil!$D$2="Choix de la saison","",_xlfn.CONCAT(Accueil!$H$2," / ",Accueil!$B$2," ",Accueil!$D$2)))))) -> Championnat de France de Rugby à 15 - Nationale / Saison du Championnat : 2023 - 2024 | S1: 1 | U1: CLASSEMENT GENERAL | AS1: CLASSEMENT A DOMICILE | BQ1: CLASSEMENT A L'EXTERIEUR | CO1: =U1 -> CLASSEMENT GENERAL | CQ1: =AS1 -> CLASSEMENT A DOMICILE | CS1: =BQ1 -> CLASSEMENT A L'EXTERIEUR | CU1: =U1 -> CLASSEMENT GENERAL | DP1: =AS1 -> CLASSEMENT A DOMICILE | EK1: =BQ1 -> CLASSEMENT A L'EXTERIEUR | FF1: =U1 -> CLASSEMENT GENERAL | FH1: =AS1 -> CLASSEMENT A DOMICILE | FJ1: =BQ1 -> CLASSEMENT A L'EXTERIEUR | FL1: Dom. | FM1: Ext. | FN1: Dom. | FO1: Ext. | FP1: Dom. | FQ1: Ext. | FR1: Dom. | FS1: Ext. | FT1: Dom. | FU1: Ext. | FV1: Dom. | FW1: Ext. | FX1: Dom. | FY1: Ext. | FZ1: Dom. | GA1: Ext. | GB1: Dom. | GC1: Ext. | GD1: Dom. | GE1: Ext. | GF1: Dom. | GG1: Ext. | GH1: Dom. | GI1: Ext. | GJ1: Dom. | GK1: Ext. | GL1: Dom. | GM1: Ext. | GN1: Dom. | GO1: Ext. | GP1: Dom. | GQ1: Ext. | GR1: Dom. | GS1: Ext. | GT1: =U1 -> CLASSEMENT GENERAL | GX1: =AS1 -> CLASSEMENT A DOMICILE | HB1: =BQ1 -> CLASSEMENT A L'EXTERIEUR
A2: Points de pénalités | B2: Points de bonus | C2: Equipes exclues, forfaits, matchs gagnés ou perdus sur tapis vert | D2: Equipes | E2: Points | F2: Bonus défensif Bd | G2: Essais | H2: Bonus offensif Bo | I2: Points | J2: Bonus défensif Bd | K2: Essais | L2: Bonus offensif Bo | M2: Equipes | N2: Equipes exclues, forfaits, matchs gagnés ou perdus sur tapis vert | O2: Points de bonus | P2: Points de pénalités | Q2: Dates | R2: Horaires | S2: Matchs à rejouer, annulés, arrêtés, avec réserves, reportés ou reprogrammés | U2: Place | V2: Equipes | W2: Logo | X2: Points | Y2: Evolution | AA2: Joués | AB2: Gagnés | AC2: Nuls | AD2: Perdus | AE2: Points marqués | AF2: Moyenne par match | AG2: Points encaissés | AH2: Moyenne par match | AI2: +/- | AJ2: Tous les bonus | AK2: B.O + B.P | AL2: Bonus offensif | AM2: Bonus défensif | AN2: Bonus fédération | AO2: Bonus pénalité | AP2: Essais marqués | AQ2: Essais encaissés | AR2: +/- | AS2: Place | AT2: Equipes | AU2: Logo | AV2: Points | AW2: Evolution | AY2: Joués | AZ2: Gagnés | BA2: Nuls | BB2: Perdus | BC2: Points marqués | BD2: Moyenne par match | BE2: Points encaissés | BF2: Moyenne par match | BG2: +/- | BH2: Tous les bonus | BI2: B.O + B.P | BJ2: Bonus offensif | BK2: Bonus défensif | BL2: Bonus fédération | BM2: Bonus pénalité | BN2: Essais marqués | BO2: Essais encaissés | BP2: +/- | BQ2: Place | BR2: Equipes | BS2: Logo | BT2: Points | BU2: Evolution | BW2: Joués | BX2: Gagnés | BY2: Nuls | BZ2: Perdus | CA2: Points marqués | CB2: Moyenne par match | CC2: Points encaissés | CD2: Moyenne par match | CE2: +/- | CF2: Tous les bonus | CG2: B.O + B.P | CH2: Bonus offensif | CI2: Bonus défensif | CJ2: Bonus fédération | CK2: Bonus pénalité | CL2: Essais marqués | CM2: Essais encaissés | CN2: +/- | CO2: Rang | CP2: Place | CQ2: Rang | CR2: Place | CS2: Rang | CT2: Place | CU2: Equipes | CV2: Rang | CW2: Evolution | CY2: Place | CZ2: Points | DA2: Joués | DB2: Gagnés | DC2: Nuls | DD2: Perdus | DE2: Points marqués | DF2: Moyenne par match | DG2: Points encaissés | DH2: Moyene par match | DI2: +/- | DJ2: Bonus offensif | DK2: Bonus défensif | DL2: Bonus fédération | DM2: Essais marqués | DN2: Essais encaissés | DO2: +/- | DP2: Equipes | DQ2: Rang | DR2: Evolution | DT2: Place | DU2: Points | DV2: Joués | DW2: Gagnés | DX2: Nuls | DY2: Perdus | DZ2: Points marqués | EA2: Moyenne par match | EB2: Points encaissés | EC2: Moyenne par match | ED2: +/- | EE2: Bonus offensif | EF2: Bonus défensif | EG2: Bonus fédération | EH2: Essais marqués | EI2: Essais encaissés | EJ2: +/- | EK2: Equipes | EL2: Rang | EM2: Evolution | EO2: Place | EP2: Points | EQ2: Joués | ER2: Gagnés | ES2: Nuls | ET2: Perdus | EU2: Points marqués | EV2: Moyenne par match | EW2: Points encaissés | EX2: Moyenne par match | EY2: +/- | EZ2: Bonus offensif | FA2: Bonus défensif | FB2: Bonus fédération | FC2: Essais marqués | FD2: Essais encaissés | FE2: +/- | FF2: Rang | FG2: Place | FH2: Rang | FI2: Place | FJ2: Rang | FK2: Place | FL2: Points de pénalités | FM2: Points de pénalités | FN2: Points de bonus | FO2: Points de bonus | FP2: Pts | FQ2: Pts | FR2: Bo | FS2: Bo | FT2: Bd | FU2: Bd | FV2: T Pts | FW2: T Pts | FX2: T Pts | FY2: TPts | FZ2: J annulé | GA2: J annulé | GB2: J | GC2: J | GD2: Total J | GE2: Total J | GF2: G | GG2: G | GH2: N | GI2: N | GJ2: P | GK2: P | GL2: Pts + | GM2: Pts + | GN2: Pts - | GO2: Pts - | GP2: Essais + | GQ2: Essais + | GR2: Essais - | GS2: Essais - | GT2: Equipes | GU2: Rang | GV2: Place | GW2: Equipes | GX2: Equipes | GY2: Rang | GZ2: Place | HA2: Equipes | HB2: Equipes | HC2: Rang | HD2: Place | HE2: Equipes | HG2: ok | HH2: Dates et horaires des matchs prévus | HI2: Dates et horaires des matchs restant à jouer | HJ2: Date et horaire minimum à jouer | HK2: Date et horaire maximum à jouer | HM2: Total J | HN2: Total J
D3: Hyères | E3: 24 | F3: =IF(E3="","",IF(I3="","",IF(E3>I3,"",IF(E3=I3,"",IF(E3<I3,IF(SUM(I3-E3)<=7,"Bd","")))))) ->  | G3: 2 | H3: =IF(G3="","",IF(K3="","",IF(SUM(G3-K3)>=3,"Bo",""))) ->  | I3: 10 | J3: =IF(I3="","",IF(E3="","",IF(I3>E3,"",IF(I3=E3,"",IF(I3<E3,IF(SUM(E3-I3)<=7,"Bd","")))))) ->  | K3: 1 | L3: =IF(K3="","",IF(G3="","",IF(SUM(K3-G3)>=3,"Bo",""))) ->  | M3: Suresnes | Q3: samedi 26 août 2023 | R3: 15:30:00 | U3: 1 | V3: =IFERROR(_xlfn.XLOOKUP(CO3,$CP$3:$CP$18,$CU$3:$CU$18),"") -> Vienne | X3: =IFERROR(_xlfn.XLOOKUP(V3,$CU$3:$CU$18,$CZ$3:$CZ$18),"") -> 5 | Y3: =IFERROR(_xlfn.XLOOKUP(V3,$CU$3:$CU$18,$CW$3:$CW$18),"") -> 0 | Z3: =IFERROR(_xlfn.XLOOKUP(V3,$CU$3:$CU$18,$CX$3:$CX$18),"") -> u | AA3: =IFERROR(_xlfn.XLOOKUP(V3,$CU$3:$CU$18,$DA$3:$DA$18),"") -> 1 | AB3: =IFERROR(_xlfn.XLOOKUP(V3,$CU$3:$CU$18,$DB$3:$DB$18),"") -> 1 | AC3: =IFERROR(_xlfn.XLOOKUP(V3,$CU$3:$CU$18,$DC$3:$DC$18),"") -> 0 | AD3: =IFERROR(_xlfn.XLOOKUP(V3,$CU$3:$CU$18,$DD$3:$DD$18),"") -> 0 | AE3: =IFERROR(_xlfn.XLOOKUP(V3,$CU$3:$CU$18,$DE$3:$DE$18),"") -> 25 | AF3: =IFERROR(ROUND(AE3/AA3,0),0) -> 25 | AG3: =IFERROR(_xlfn.XLOOKUP(V3,$CU$3:$CU$18,$DG$3:$DG$18),"") -> 0 | AH3: =IFERROR(ROUND(AG3/AA3,0),0) -> 0 | AI3: =IFERROR(_xlfn.XLOOKUP(V3,$CU$3:$CU$18,$DI$3:$DI$18),"") -> 25 | AJ3: =SUM(AL3:AO3) -> 0 | AK3: =(AL3+AO3) -> 0 | AL3: =IFERROR(_xlfn.XLOOKUP(V3,$CU$3:$CU$18,$DJ$3:$DJ$18),"") -> 0 | AM3: =IFERROR(_xlfn.XLOOKUP(V3,$CU$3:$CU$18,$DK$3:$DK$18),"") -> 0 | AN3: 0 | AO3: 0 | AP3: =IFERROR(_xlfn.XLOOKUP(V3,$CU$3:$CU$18,$DM$3:$DM$18),"") -> 0 | AQ3: =IFERROR(_xlfn.XLOOKUP(V3,$CU$3:$CU$18,$DN$3:$DN$18),"") -> 0 | AR3: =IFERROR(_xlfn.XLOOKUP(V3,$CU$3:$CU$18,$DO$3:$DO$18),"") -> 0 | AS3: 1 | AT3: =IFERROR(_xlfn.XLOOKUP(CQ3,$CR$3:$CR$18,$DP$3:$DP$18),"") -> Hyères | AV3: =IFERROR(_xlfn.XLOOKUP(AT3,$DP$3:$DP$18,$DU$3:$DU$18),"") -> 4 | AW3: =IFERROR(_xlfn.XLOOKUP(AT3,$DP$3:$DP$18,$DR$3:$DR$18),"") -> 0 | AX3: =IFERROR(_xlfn.XLOOKUP(AT3,$DP$3:$DP$18,$DS$3:$DS$18),"") -> u | AY3: =IFERROR(_xlfn.XLOOKUP(AT3,$DP$3:$DP$18,$DV$3:$DV$18),"") -> 1 | AZ3: =IFERROR(_xlfn.XLOOKUP(AT3,$DP$3:$DP$18,$DW$3:$DW$18),"") -> 1 | BA3: =IFERROR(_xlfn.XLOOKUP(AT3,$DP$3:$DP$18,$DX$3:$DX$18),"") -> 0 | BB3: =IFERROR(_xlfn.XLOOKUP(AT3,$DP$3:$DP$18,$DY$3:$DY$18),"") -> 0 | BC3: =IFERROR(_xlfn.XLOOKUP(AT3,$DP$3:$DP$18,$DZ$3:$DZ$18),"") -> 24 | BD3: =IFERROR(BC3/AY3,0) -> 24 | BE3: =IFERROR(_xlfn.XLOOKUP(AT3,$DP$3:$DP$18,$EB$3:$EB$18),"") -> 10 | BF3: =IFERROR(BE3/AY3,0) -> 10 | BG3: =IFERROR(_xlfn.XLOOKUP(AT3,$DP$3:$DP$18,$ED$3:$ED$18),"") -> 14 | BH3: =SUM(BJ3:BM3) -> 0 | BI3: =(BJ3+BM3) -> 0 | BJ3: =IFERROR(_xlfn.XLOOKUP(AT3,$DP$3:$DP$18,$EE$3:$EE$18),"") -> 0 | BK3: =IFERROR(_xlfn.XLOOKUP(AT3,$DP$3:$DP$18,$EF$3:$EF$18),"") -> 0 | BL3: 0 | BM3: 0 | BN3: =IFERROR(_xlfn.XLOOKUP(AT3,$DP$3:$DP$18,$EH$3:$EH$18),"") -> 2 | BO3: =IFERROR(_xlfn.XLOOKUP(AT3,$DP$3:$DP$18,$EI$3:$EI$18),"") -> 1 | BP3: =IFERROR(_xlfn.XLOOKUP(AT3,$DP$3:$DP$18,$EJ$3:$EJ$18),"") -> 1 | BQ3: 1 | BR3: =IFERROR(_xlfn.XLOOKUP(CS3,$CT$3:$CT$18,$EK$3:$EK$18),"") -> Vienne | BT3: =IFERROR(_xlfn.XLOOKUP(BR3,$EK$3:$EK$18,$EP$3:$EP$18),"") -> 4 | BU3: =IFERROR(_xlfn.XLOOKUP(BR3,$EK$3:$EK$18,$EM$3:$EM$18),"") -> 0 | BV3: =IFERROR(_xlfn.XLOOKUP(BR3,$EK$3:$EK$18,$EN$3:$EN$18),"") -> u | BW3: =IFERROR(_xlfn.XLOOKUP(BR3,$EK$3:$EK$18,$EQ$3:$EQ$18),"") -> 1 | BX3: =IFERROR(_xlfn.XLOOKUP(BR3,$EK$3:$EK$18,$ER$3:$ER$18),"") -> 1 | BY3: =IFERROR(_xlfn.XLOOKUP(BR3,$EK$3:$EK$18,$ES$3:$ES$18),"") -> 0 | BZ3: =IFERROR(_xlfn.XLOOKUP(BR3,$EK$3:$EK$18,$ET$3:$ET$18),"") -> 0 | CA3: =IFERROR(_xlfn.XLOOKUP(BR3,$EK$3:$EK$18,$EU$3:$EU$18),"") -> 25 | CB3: =IFERROR(ROUND(CA3/BW3,0),0) -> 25 | CC3: =IFERROR(_xlfn.XLOOKUP(BR3,$EK$3:$EK$18,$EW$3:$EW$18),"") -> 0 | CD3: =IFERROR(ROUND(CC3/BW3,0),0) -> 0 | CE3: =IFERROR(_xlfn.XLOOKUP(BR3,$EK$3:$EK$18,$EY$3:$EY$18),"") -> 25 | CF3: =SUM(CH3:CK3) -> 0 | CG3: =(CH3+CK3) -> 0 | CH3: =IFERROR(_xlfn.XLOOKUP(BR3,$EK$3:$EK$18,$EZ$3:$EZ$18),"") -> 0 | CI3: =IFERROR(_xlfn.XLOOKUP(BR3,$EK$3:$EK$18,$FA$3:$FA$18),"") -> 0 | CJ3: 0 | CK3: 0 | CL3: =IFERROR(_xlfn.XLOOKUP(BR3,$EK$3:$EK$18,$FC$3:$FC$18),"") -> 0 | CM3: =IFERROR(_xlfn.XLOOKUP(BR3,$EK$3:$EK$18,$FD$3:$FD$18),"") -> 0 | CN3: =IFERROR(_xlfn.XLOOKUP(BR3,$EK$3:$EK$18,$FE$3:$FE$18),"") -> 0 | CO3: 1 | CP3: =CY3 -> 12 | CQ3: 1 | CR3: =DT3 -> 7 | CS3: 1 | CT3: =EO3 -> 13 | CU3: =IF(Equipes!$C$2="","",Equipes!$C$2) -> Albi | CV3: =_xlfn.RANK.EQ(FF3,$FF$3:$FF$18) -> 12 | CW3: =CV3-CV3 -> 0 | CX3: u | CY3: =_xlfn.RANK.EQ(FG3,$FG$3:$FG$18) -> 12 | CZ3: =SUMPRODUCT(($D$3:$D$10=CU3)*($FX$3:$FX$10))+SUMPRODUCT(($M$3:$M$10=CU3)*($FY$3:$FY$10)) -> 0 | DA3: =SUMPRODUCT(($D$3:$D$10=CU3)*($GB$3:$GB$10))+SUMPRODUCT(($M$3:$M$10=CU3)*($GC$3:$GC$10)) -> 1 | DB3: =SUMPRODUCT(($D$3:$D$10=CU3)*($GF$3:$GF$10))+SUMPRODUCT(($M$3:$M$10=CU3)*($GG$3:$GG$10)) -> 0 | DC3: =SUMPRODUCT(($D$3:$D$10=CU3)*($GH$3:$GH$10))+SUMPRODUCT(($M$3:$M$10=CU3)*($GI$3:$GI$10)) -> 0 | DD3: =SUMPRODUCT(($D$3:$D$10=CU3)*($GJ$3:$GJ$10))+SUMPRODUCT(($M$3:$M$10=CU3)*($GK$3:$GK$10)) -> 1 | DE3: =SUMPRODUCT(($D$3:$D$10=CU3)*($GL$3:$GL$10))+SUMPRODUCT(($M$3:$M$10=CU3)*($GM$3:$GM$10)) -> 6 | DF3: =ROUND(DE3/DA3,0) -> 6 | DG3: =SUMPRODUCT(($D$3:$D$10=CU3)*($GN$3:$GN$10))+SUMPRODUCT(($M$3:$M$10=CU3)*($GO$3:$GO$10)) -> 17 | DH3: =ROUND(DG3/DA3,0) -> 17 | DI3: =DE3-DG3 -> -11 | DJ3: =SUMPRODUCT(($D$3:$D$10=CU3)*($FR$3:$FR$10))+SUMPRODUCT(($M$3:$M$10=CU3)*($FS$3:$FS$10)) -> 0 | DK3: =SUMPRODUCT(($D$3:$D$10=CU3)*($FT$3:$FT$10))+SUMPRODUCT(($M$3:$M$10=CU3)*($FU$3:$FU$10)) -> 0 | DL3: 0 | DM3: =SUMPRODUCT(($D$3:$D$10=CU3)*($GP$3:$GP$10))+SUMPRODUCT(($M$3:$M$10=CU3)*($GQ$3:$GQ$10)) -> 0 | DN3: =SUMPRODUCT(($D$3:$D$10=CU3)*($GR$3:$GR$10))+SUMPRODUCT(($M$3:$M$10=CU3)*($GS$3:$GS$10)) -> 1 | DO3: =DM3-DN3 -> -1 | DP3: =IF(Equipes!$C$2="","",Equipes!$C$2) -> Albi | DQ3: =_xlfn.RANK.EQ(FH3,$FH$3:$FH$18) -> 7 | DR3: =DQ3-DQ3 -> 0 | DS3: u | DT3: =_xlfn.RANK.EQ(FI3,$FI$3:$FI$18) -> 7 | DU3: =SUMPRODUCT(($D$3:$D$10=DP3)*($FV$3:$FV$10)) -> 0 | DV3: =SUMPRODUCT(($D$3:$D$10=DP3)*($GB$3:$GB$10)) -> 0 | DW3: =SUMPRODUCT(($D$3:$D$10=DP3)*($GF$3:$GF$10)) -> 0 | DX3: =SUMPRODUCT(($D$3:$D$10=DP3)*($GH$3:$GH$10)) -> 0 | DY3: =SUMPRODUCT(($D$3:$D$10=DP3)*($GJ$3:$GJ$10)) -> 0 | DZ3: =SUMPRODUCT(($D$3:$D$10=DP3)*($GL$3:$GL$10)) -> 0 | EA3: =IFERROR(ROUND(DZ3/DV3,0),0) -> 0 | EB3: =SUMPRODUCT(($D$3:$D$10=DP3)*($GN$3:$GN$10)) -> 0 | EC3: =IFERROR(ROUND(EB3/DV3,0),0) -> 0 | ED3: =DZ3-EB3 -> 0 | EE3: =SUMPRODUCT(($D$3:$D$10=DP3)*($FR$3:$FR$10)) -> 0 | EF3: =SUMPRODUCT(($D$3:$D$10=DP3)*($FT$3:$FT$10)) -> 0 | EG3: 0 | EH3: =SUMPRODUCT(($D$3:$D$10=DP3)*($GP$3:$GP$10)) -> 0 | EI3: =SUMPRODUCT(($D$3:$D$10=DP3)*($GR$3:$GR$10)) -> 0 | EJ3: =EH3-EI3 -> 0 | EK3: =IF(Equipes!$C$2="","",Equipes!$C$2) -> Albi | EL3: =_xlfn.RANK.EQ(FJ3,$FJ$3:$FJ$18) -> 13 | EM3: =EL3-EL3 -> 0 | EN3: u | EO3: =_xlfn.RANK.EQ(FK3,$FK$3:$FK$18) -> 13 | EP3: =SUMPRODUCT(($M$3:$M$10=EK3)*($FW$3:$FW$10)) -> 0 | EQ3: =SUMPRODUCT(($M$3:$M$10=EK3)*($GC$3:$GC$10)) -> 1 | ER3: =SUMPRODUCT(($M$3:$M$10=EK3)*($GG$3:$GG$10)) -> 0 | ES3: =SUMPRODUCT(($M$3:$M$10=EK3)*($GI$3:$GI$10)) -> 0 | ET3: =SUMPRODUCT(($M$3:$M$10=EK3)*($GK$3:$GK$10)) -> 1 | EU3: =SUMPRODUCT(($M$3:$M$10=EK3)*($GM$3:$GM$10)) -> 6 | EV3: =IFERROR(ROUND(EU3/EQ3,0),0) -> 6 | EW3: =SUMPRODUCT(($M$3:$M$10=EK3)*($GO$3:$GO$10)) -> 17 | EX3: =IFERROR(ROUND(EW3/EQ3,0),0) -> 17 | EY3: =EU3-EW3 -> -11 | EZ3: =SUMPRODUCT(($M$3:$M$10=EK3)*($FS$3:$FS$10)) -> 0 | FA3: =SUMPRODUCT(($M$3:$M$10=EK3)*($FU$3:$FU$10)) -> 0 | FB3: 0 | FC3: =SUMPRODUCT(($M$3:$M$10=EK3)*($GQ$3:$GQ$10)) -> 0 | FD3: =SUMPRODUCT(($M$3:$M$10=EK3)*($GS$3:$GS$10)) -> 1 | FE3: =FC3-FD3 -> -1 | FF3: =SUM(CZ3*1000)+(DI3/100)+(DE3/10000) -> -0.1094 | FG3: =FF3+0.00000014 -> -0.10939986 | FH3: =SUM(DU3*1000)+(ED3/100)+(DZ3/10000) -> 0 | FI3: =FH3+0.00000014 -> 1.4e-07 | FJ3: =SUM(EP3*1000)+(EY3/100)+(EU3/10000) -> -0.1094 | FK3: =FJ3+0.00000014 -> -0.10939986 | FL3: =A3 -> 0 | FM3: =P3 -> 0 | FN3: =B3 -> 0 | FO3: =O3 -> 0 | FP3: =IF(E3="",0,IF(I3="",0,IF(E3>I3,4,IF(E3=I3,2,IF(E3<I3,0))))) -> 4 | FQ3: =IF(I3="",0,IF(E3="",0,IF(I3>E3,4,IF(I3=E3,2,IF(I3<E3,0))))) -> 0 | FR3: =IF(G3<>"",IF(SUM(G3-K3)>=3,1)) -> FALSE | FS3: =IF(K3<>"",IF(SUM(K3-G3)>=3,1)) -> FALSE | FT3: =IF(E3<>"",IF(E3<I3,IF(SUM(I3-E3)<=7,1))) -> FALSE | FU3: =IF(I3<>"",IF(I3<E3,IF(SUM(E3-I3)<=7,1))) -> FALSE | FV3: =SUM(FP3,FR3,FT3) -> 4 | FW3: 0 | FX3: =FV3-FL3+FN3 -> 4 | FY3: =FW3-FM3+FO3 -> 0 | FZ3: =IF(S3="Match annulé",1,"") ->  | GA3: =IF(S3="Match annulé",1,"") ->  | GB3: =IF(E3="",0,1) -> 1 | GC3: =IF(I3="",0,1) -> 1 | GD3: =IF(SUM(FZ3,GB3)<>0,SUM(FZ3,GB3),0) -> 1 | GE3: 1 | GF3: =IF(E3<>"",IF(E3>I3,1)) -> 1 | GG3: =IF(I3<>"",IF(I3>E3,1)) -> FALSE | GH3: =IF(E3<>"",IF(E3=I3,1)) -> FALSE | GI3: =IF(I3<>"",IF(I3=E3,1)) -> FALSE | GJ3: =IF(E3<>"",IF(E3<I3,1)) -> FALSE | GK3: =IF(I3<>"",IF(I3<E3,1)) -> 1 | GL3: =E3 -> 24 | GM3: =I3 -> 10 | GN3: =I3 -> 10 | GO3: =E3 -> 24 | GP3: =G3 -> 2 | GQ3: =K3 -> 1 | GR3: =K3 -> 1 | GS3: =G3 -> 2 | GT3: =IFERROR(_xlfn.XLOOKUP(CO3,$CP$3:$CP$18,$CU$3:$CU$18),"") -> Vienne | GU3: =IFERROR(_xlfn.XLOOKUP(GT3,$CU$3:$CU$18,$FF$3:$FF$18),"") -> 5000.2525 | GV3: =IF(GU3="","",_xlfn.RANK.EQ(GU3,GU3:GU18)) -> 1 | GW3: =IF(CU3="","",CU3) -> Albi | GX3: =IFERROR(_xlfn.XLOOKUP(CQ3,$CR$3:$CR$18,$DP$3:$DP$18),"") -> Hyères | GY3: =IFERROR(_xlfn.XLOOKUP(GX3,$DP$3:$DP$18,$FH$3:$FH$18),"") -> 4000.1424 | GZ3: =IF(GY3="","",_xlfn.RANK.EQ(GY3,GY3:GY18)) -> 1 | HA3: =IF(DP3="","",DP3) -> Albi | HB3: =IFERROR(_xlfn.XLOOKUP(CS3,$CT$3:$CT$18,$EK$3:$EK$18),"") -> Vienne | HC3: =IFERROR(_xlfn.XLOOKUP(HB3,$EK$3:$EK$18,$FJ$3:$FJ$18),"") -> 4000.2525 | HD3: =IF(HC3="","",_xlfn.RANK.EQ(HC3,HC3:HC18)) -> 1 | HE3: =IF(EK3="","",EK3) -> Albi | HG3: =IF(AND(I3="",S3=""),"",IF(AND(I3>=0,S3=""),"ok",IF(AND(I3="",S3="Match à rejouer"),"ok",IF(AND(I3="",S3="Match annulé"),"ok",IF(AND(I3="",S3="Match arrêté"),"ok",IF(AND(I3="",S3="Match avec réserves"),"ok",IF(AND(I3="",S3="Match reporté"),"ok",IF(AND(I3="",S3="Match reprogrammé"),"")))))))) -> ok | HH3: =IF(Q3="","",IF(R3="","",Q3+R3)) ->  | HI3: =IF(Q3="","",IF(R3="","",IF(HG3="ok","",Q3+R3))) ->  | HJ3: =MIN(HI3:HI9) -> 00:00:00 | HK3: =MAX(HI3:HI9) -> 00:00:00 | HM3: =IF(SUM(FZ3,GB3)<>0,SUM(FZ3,GB3),"") -> 1 | HN3: =IF(SUM(GA3,GC3)<>0,SUM(GA3,GC3),"") -> 1
D4: Massy | E4: 20 | G4: 2 | I4: 13 | J4: Bd | K4: 1 | M4: Tarbes | Q4: samedi 26 août 2023 | R4: 17:30:00 | U4: =IF(GU4=GU3,GV3,GV4) -> 2 | V4: Hyères | X4: 4 | Y4: 0 | Z4: u | AA4: 1 | AB4: 1 | AC4: 0 | AD4: 0 | AE4: 24 | AF4: =IFERROR(ROUND(AE4/AA4,0),0) -> 24 | AG4: 10 | AH4: =IFERROR(ROUND(AG4/AA4,0),0) -> 10 | AI4: 14 | AJ4: =SUM(AL4:AO4) -> 0 | AK4: =(AL4+AO4) -> 0 | AL4: 0 | AM4: 0 | AN4: 0 | AO4: 0 | AP4: 2 | AQ4: 1 | AR4: 1 | AS4: =IF(GY4=GY3,GZ3,GZ4) -> 2 | AT4: Périgueux | AV4: 4 | AW4: 0 | AX4: u | AY4: 1 | AZ4: 1 | BA4: 0 | BB4: 0 | BC4: 25 | BD4: =IFERROR(BC4/AY4,0) -> 25 | BE4: 14 | BF4: =IFERROR(BE4/AY4,0) -> 14 | BG4: 11 | BH4: =SUM(BJ4:BM4) -> 0 | BI4: =(BJ4+BM4) -> 0 | BJ4: 0 | BK4: 0 | BL4: 0 | BM4: 0 | BN4: 3 | BO4: 2 | BP4: 1 | BQ4: =IF(HC4=HC3,HD3,HD4) -> 2 | BR4: Carcassonne | BT4: 4 | BU4: 0 | BV4: u | BW4: 1 | BX4: 1 | BY4: 0 | BZ4: 0 | CA4: 12 | CB4: =IFERROR(ROUND(CA4/BW4,0),0) -> 12 | CC4: 10 | CD4: =IFERROR(ROUND(CC4/BW4,0),0) -> 10 | CE4: 2 | CF4: =SUM(CH4:CK4) -> 0 | CG4: =(CH4+CK4) -> 0 | CH4: 0 | CI4: 0 | CJ4: 0 | CK4: 0 | CL4: 0 | CM4: 1 | CN4: -1 | CO4: 2 | CP4: 14 | CQ4: 2 | CR4: 14 | CS4: 2 | CT4: 4 | CU4: =IF(Equipes!$C$3="","",Equipes!$C$3) -> Blagnac | CV4: 14 | CW4: 0 | CX4: u | CY4: 14 | CZ4: =SUMPRODUCT(($D$3:$D$10=CU4)*($FX$3:$FX$10))+SUMPRODUCT(($M$3:$M$10=CU4)*($FY$3:$FY$10)) -> -2 | DA4: =SUMPRODUCT(($D$3:$D$10=CU4)*($GB$3:$GB$10))+SUMPRODUCT(($M$3:$M$10=CU4)*($GC$3:$GC$10)) -> 1 | DB4: =SUMPRODUCT(($D$3:$D$10=CU4)*($GF$3:$GF$10))+SUMPRODUCT(($M$3:$M$10=CU4)*($GG$3:$GG$10)) -> 0 | DC4: =SUMPRODUCT(($D$3:$D$10=CU4)*($GH$3:$GH$10))+SUMPRODUCT(($M$3:$M$10=CU4)*($GI$3:$GI$10)) -> 0 | DD4: =SUMPRODUCT(($D$3:$D$10=CU4)*($GJ$3:$GJ$10))+SUMPRODUCT(($M$3:$M$10=CU4)*($GK$3:$GK$10)) -> 1 | DE4: =SUMPRODUCT(($D$3:$D$10=CU4)*($GL$3:$GL$10))+SUMPRODUCT(($M$3:$M$10=CU4)*($GM$3:$GM$10)) -> 0 | DF4: =ROUND(DE4/DA4,0) -> 0 | DG4: =SUMPRODUCT(($D$3:$D$10=CU4)*($GN$3:$GN$10))+SUMPRODUCT(($M$3:$M$10=CU4)*($GO$3:$GO$10)) -> 25 | DH4: =ROUND(DG4/DA4,0) -> 25 | DI4: -25 | DJ4: =SUMPRODUCT(($D$3:$D$10=CU4)*($FR$3:$FR$10))+SUMPRODUCT(($M$3:$M$10=CU4)*($FS$3:$FS$10)) -> 0 | DK4: =SUMPRODUCT(($D$3:$D$10=CU4)*($FT$3:$FT$10))+SUMPRODUCT(($M$3:$M$10=CU4)*($FU$3:$FU$10)) -> 0 | DL4: 0 | DM4: =SUMPRODUCT(($D$3:$D$10=CU4)*($GP$3:$GP$10))+SUMPRODUCT(($M$3:$M$10=CU4)*($GQ$3:$GQ$10)) -> 0 | DN4: =SUMPRODUCT(($D$3:$D$10=CU4)*($GR$3:$GR$10))+SUMPRODUCT(($M$3:$M$10=CU4)*($GS$3:$GS$10)) -> 0 | DO4: 0 | DP4: =IF(Equipes!$C$3="","",Equipes!$C$3) -> Blagnac | DQ4: 14 | DR4: 0 | DS4: u | DT4: 14 | DU4: =SUMPRODUCT(($D$3:$D$10=DP4)*($FV$3:$FV$10)) -> 0 | DV4: =SUMPRODUCT(($D$3:$D$10=DP4)*($GB$3:$GB$10)) -> 1 | DW4: =SUMPRODUCT(($D$3:$D$10=DP4)*($GF$3:$GF$10)) -> 0 | DX4: =SUMPRODUCT(($D$3:$D$10=DP4)*($GH$3:$GH$10)) -> 0 | DY4: =SUMPRODUCT(($D$3:$D$10=DP4)*($GJ$3:$GJ$10)) -> 1 | DZ4: =SUMPRODUCT(($D$3:$D$10=DP4)*($GL$3:$GL$10)) -> 0 | EA4: =IFERROR(ROUND(DZ4/DV4,0),0) -> 0 | EB4: =SUMPRODUCT(($D$3:$D$10=DP4)*($GN$3:$GN$10)) -> 25 | EC4: =IFERROR(ROUND(EB4/DV4,0),0) -> 25 | ED4: -25 | EE4: =SUMPRODUCT(($D$3:$D$10=DP4)*($FR$3:$FR$10)) -> 0 | EF4: =SUMPRODUCT(($D$3:$D$10=DP4)*($FT$3:$FT$10)) -> 0 | EG4: 0 | EH4: =SUMPRODUCT(($D$3:$D$10=DP4)*($GP$3:$GP$10)) -> 0 | EI4: =SUMPRODUCT(($D$3:$D$10=DP4)*($GR$3:$GR$10)) -> 0 | EJ4: 0 | EK4: =IF(Equipes!$C$3="","",Equipes!$C$3) -> Blagnac | EL4: 4 | EM4: 0 | EN4: u | EO4: 4 | EP4: =SUMPRODUCT(($M$3:$M$10=EK4)*($FW$3:$FW$10)) -> 0 | EQ4: =SUMPRODUCT(($M$3:$M$10=EK4)*($GC$3:$GC$10)) -> 0 | ER4: =SUMPRODUCT(($M$3:$M$10=EK4)*($GG$3:$GG$10)) -> 0 | ES4: =SUMPRODUCT(($M$3:$M$10=EK4)*($GI$3:$GI$10)) -> 0 | ET4: =SUMPRODUCT(($M$3:$M$10=EK4)*($GK$3:$GK$10)) -> 0 | EU4: =SUMPRODUCT(($M$3:$M$10=EK4)*($GM$3:$GM$10)) -> 0 | EV4: =IFERROR(ROUND(EU4/EQ4,0),0) -> 0 | EW4: =SUMPRODUCT(($M$3:$M$10=EK4)*($GO$3:$GO$10)) -> 0 | EX4: =IFERROR(ROUND(EW4/EQ4,0),0) -> 0 | EY4: 0 | EZ4: 0 | FA4: =SUMPRODUCT(($M$3:$M$10=EK4)*($FU$3:$FU$10)) -> 0 | FB4: 0 | FC4: =SUMPRODUCT(($M$3:$M$10=EK4)*($GQ$3:$GQ$10)) -> 0 | FD4: =SUMPRODUCT(($M$3:$M$10=EK4)*($GS$3:$GS$10)) -> 0 | FE4: 0 | FF4: -2000.25 | FG4: =FF4+0.00000013 -> -2000.25 | FH4: =SUM(DU4*1000)+(ED4/100)+(DZ4/10000) -> -0.25 | FI4: =FH4+0.00000013 -> -0.24999987 | FJ4: =SUM(EP4*1000)+(EY4/100)+(EU4/10000) -> 0 | FK4: =FJ4+0.00000013 -> 1.3e-07 | FL4: 0 | FM4: 0 | FN4: 0 | FO4: 0 | FP4: 4 | FQ4: 0 | FR4: FALSE | FS4: FALSE | FT4: FALSE | FU4: 1 | FV4: 4 | FW4: 1 | FX4: =FV4-FL4+FN4 -> 4 | FY4: =FW4-FM4+FO4 -> 1 | GB4: 1 | GC4: 1 | GD4: 1 | GE4: 1 | GF4: 1 | GG4: FALSE | GH4: FALSE | GI4: FALSE | GJ4: FALSE | GK4: 1 | GL4: 20 | GM4: 13 | GN4: 13 | GO4: 20 | GP4: 2 | GQ4: 1 | GR4: 1 | GS4: 2 | GT4: Hyères | GU4: 4000.1424 | GV4: =IF(GU4="","",_xlfn.RANK.EQ(GU4,GU3:GU18)) -> 2 | GW4: Blagnac | GX4: Périgueux | GY4: =IFERROR(_xlfn.XLOOKUP(GX4,$DP$3:$DP$18,$FH$3:$FH$18),"") -> 4000.1125 | GZ4: =IF(GY4="","",_xlfn.RANK.EQ(GY4,GY3:GY18)) -> 2 | HA4: =IF(DP4="","",DP4) -> Blagnac | HB4: Carcassonne | HC4: =IFERROR(_xlfn.XLOOKUP(HB4,$EK$3:$EK$18,$FJ$3:$FJ$18),"") -> 4000.0212 | HD4: =IF(HC4="","",_xlfn.RANK.EQ(HC4,HC3:HC18)) -> 2 | HE4: =IF(EK4="","",EK4) -> Blagnac | HG4: ok | HM4: =IF(SUM(FZ4,GB4)<>0,SUM(FZ4,GB4),"") -> 1 | HN4: =IF(SUM(GA4,GC4)<>0,SUM(GA4,GC4),"") -> 1
A5: 2 | C5: Forfait général | D5: Blagnac | E5: 0 | I5: 25 | M5: Vienne | N5: Forfait gagnant | O5: 1 | Q5: samedi 26 août 2023 | R5: 18:00:00 | U5: 3 | V5: Périgueux | X5: 4 | Y5: 0 | Z5: u | AA5: 1 | AB5: 1 | AC5: 0 | AD5: 0 | AE5: 25 | AF5: 25 | AG5: 14 | AH5: 14 | AI5: 11 | AJ5: 0 | AK5: 0 | AL5: 0 | AM5: 0 | AN5: 0 | AO5: 0 | AP5: 3 | AQ5: 2 | AR5: 1 | AS5: 3 | AT5: Bourgoin-Jallieu | AV5: 4 | AW5: 0 | AX5: u | AY5: 1 | AZ5: 1 | BA5: 0 | BB5: 0 | BC5: 17 | BD5: 17 | BE5: 6 | BF5: 6 | BG5: 11 | BH5: 0 | BI5: 0 | BJ5: 0 | BK5: 0 | BL5: 0 | BM5: 0 | BN5: 1 | BO5: 0 | BP5: 1 | BQ5: 3 | BR5: Tarbes | BT5: 1 | BU5: 0 | BV5: u | BW5: 1 | BX5: 0 | BY5: 0 | BZ5: 1 | CA5: 13 | CB5: 13 | CC5: 20 | CD5: 20 | CE5: -7 | CF5: 1 | CG5: 0 | CH5: 0 | CI5: 1 | CJ5: 0 | CK5: 0 | CL5: 1 | CM5: 2 | CN5: -1 | CO5: 3 | CP5: 8 | CQ5: 3 | CR5: 6 | CS5: 3 | CT5: 5 | CU5: =IF(Equipes!$C$4="","",Equipes!$C$4) -> Bourg-en-Bresse | CV5: 8 | CW5: 0 | CX5: u | CY5: 8 | CZ5: =SUMPRODUCT(($D$3:$D$10=CU5)*($FX$3:$FX$10))+SUMPRODUCT(($M$3:$M$10=CU5)*($FY$3:$FY$10)) -> 1 | DA5: =SUMPRODUCT(($D$3:$D$10=CU5)*($GB$3:$GB$10))+SUMPRODUCT(($M$3:$M$10=CU5)*($GC$3:$GC$10)) -> 1 | DB5: =SUMPRODUCT(($D$3:$D$10=CU5)*($GF$3:$GF$10))+SUMPRODUCT(($M$3:$M$10=CU5)*($GG$3:$GG$10)) -> 0 | DC5: =SUMPRODUCT(($D$3:$D$10=CU5)*($GH$3:$GH$10))+SUMPRODUCT(($M$3:$M$10=CU5)*($GI$3:$GI$10)) -> 0 | DD5: =SUMPRODUCT(($D$3:$D$10=CU5)*($GJ$3:$GJ$10))+SUMPRODUCT(($M$3:$M$10=CU5)*($GK$3:$GK$10)) -> 1 | DE5: =SUMPRODUCT(($D$3:$D$10=CU5)*($GL$3:$GL$10))+SUMPRODUCT(($M$3:$M$10=CU5)*($GM$3:$GM$10)) -> 10 | DF5: 10 | DG5: =SUMPRODUCT(($D$3:$D$10=CU5)*($GN$3:$GN$10))+SUMPRODUCT(($M$3:$M$10=CU5)*($GO$3:$GO$10)) -> 12 | DH5: 12 | DI5: -2 | DJ5: =SUMPRODUCT(($D$3:$D$10=CU5)*($FR$3:$FR$10))+SUMPRODUCT(($M$3:$M$10=CU5)*($FS$3:$FS$10)) -> 0 | DK5: =SUMPRODUCT(($D$3:$D$10=CU5)*($FT$3:$FT$10))+SUMPRODUCT(($M$3:$M$10=CU5)*($FU$3:$FU$10)) -> 1 | DL5: 0 | DM5: =SUMPRODUCT(($D$3:$D$10=CU5)*($GP$3:$GP$10))+SUMPRODUCT(($M$3:$M$10=CU5)*($GQ$3:$GQ$10)) -> 1 | DN5: =SUMPRODUCT(($D$3:$D$10=CU5)*($GR$3:$GR$10))+SUMPRODUCT(($M$3:$M$10=CU5)*($GS$3:$GS$10)) -> 0 | DO5: 1 | DP5: =IF(Equipes!$C$4="","",Equipes!$C$4) -> Bourg-en-Bresse | DQ5: 6 | DR5: 0 | DS5: u | DT5: 6 | DU5: =SUMPRODUCT(($D$3:$D$10=DP5)*($FV$3:$FV$10)) -> 1 | DV5: =SUMPRODUCT(($D$3:$D$10=DP5)*($GB$3:$GB$10)) -> 1 | DW5: =SUMPRODUCT(($D$3:$D$10=DP5)*($GF$3:$GF$10)) -> 0 | DX5: =SUMPRODUCT(($D$3:$D$10=DP5)*($GH$3:$GH$10)) -> 0 | DY5: =SUMPRODUCT(($D$3:$D$10=DP5)*($GJ$3:$GJ$10)) -> 1 | DZ5: =SUMPRODUCT(($D$3:$D$10=DP5)*($GL$3:$GL$10)) -> 10 | EA5: 10 | EB5: =SUMPRODUCT(($D$3:$D$10=DP5)*($GN$3:$GN$10)) -> 12 | EC5: 12 | ED5: -2 | EE5: =SUMPRODUCT(($D$3:$D$10=DP5)*($FR$3:$FR$10)) -> 0 | EF5: =SUMPRODUCT(($D$3:$D$10=DP5)*($FT$3:$FT$10)) -> 1 | EG5: 0 | EH5: =SUMPRODUCT(($D$3:$D$10=DP5)*($GP$3:$GP$10)) -> 1 | EI5: =SUMPRODUCT(($D$3:$D$10=DP5)*($GR$3:$GR$10)) -> 0 | EJ5: 1 | EK5: =IF(Equipes!$C$4="","",Equipes!$C$4) -> Bourg-en-Bresse | EL5: 4 | EM5: 0 | EN5: u | EO5: 5 | EP5: =SUMPRODUCT(($M$3:$M$10=EK5)*($FW$3:$FW$10)) -> 0 | EQ5: =SUMPRODUCT(($M$3:$M$10=EK5)*($GC$3:$GC$10)) -> 0 | ER5: =SUMPRODUCT(($M$3:$M$10=EK5)*($GG$3:$GG$10)) -> 0 | ES5: =SUMPRODUCT(($M$3:$M$10=EK5)*($GI$3:$GI$10)) -> 0 | ET5: =SUMPRODUCT(($M$3:$M$10=EK5)*($GK$3:$GK$10)) -> 0 | EU5: =SUMPRODUCT(($M$3:$M$10=EK5)*($GM$3:$GM$10)) -> 0 | EV5: 0 | EW5: =SUMPRODUCT(($M$3:$M$10=EK5)*($GO$3:$GO$10)) -> 0 | EX5: 0 | EY5: 0 | EZ5: =SUMPRODUCT(($M$3:$M$10=EK5)*($FS$3:$FS$10)) -> 0 | FA5: 1 | FB5: 0 | FC5: =SUMPRODUCT(($M$3:$M$10=EK5)*($GQ$3:$GQ$10)) -> 0 | FD5: =SUMPRODUCT(($M$3:$M$10=EK5)*($GS$3:$GS$10)) -> 0 | FE5: 0 | FF5: 999.981 | FG5: =FF5+0.00000012 -> 999.9810001 | FH5: 999.981 | FI5: =FH5+0.00000012 -> 999.9810001 | FJ5: 0 | FK5: =FJ5+0.00000012 -> 1.2e-07 | FL5: 2 | FM5: 0 | FN5: 0 | FO5: 1 | FP5: 0 | FQ5: 4 | FR5: FALSE | FS5: FALSE | FT5: FALSE | FU5: FALSE | FV5: 0 | FW5: 4 | FX5: -2 | FY5: 5 | GB5: 1 | GC5: 1 | GD5: 1 | GE5: 1 | GF5: FALSE | GG5: 1 | GH5: FALSE | GI5: FALSE | GJ5: 1 | GK5: FALSE | GL5: 0 | GM5: 25 | GN5: 25 | GO5: 0 | GP5: 0 | GQ5: 0 | GR5: 0 | GS5: 0 | GT5: Périgueux | GU5: 4000.1125 | GV5: =IF(GU5="","",_xlfn.RANK.EQ(GU5,GU3:GU18)) -> 3 | GW5: Bourg-en-Bresse | GX5: Bourgoin-Jallieu | GY5: 4000.1117 | GZ5: =IF(GY5="","",_xlfn.RANK.EQ(GY5,GY3:GY18)) -> 3 | HA5: Bourg-en-Bresse | HB5: Tarbes | HC5: 999.9313 | HD5: =IF(HC5="","",_xlfn.RANK.EQ(HC5,HC3:HC18)) -> 3 | HE5: Bourg-en-Bresse | HG5: ok | HM5: 1 | HN5: 1
D6: Périgueux | E6: 25 | G6: 3 | I6: 14 | K6: 2 | M6: Nice | Q6: samedi 26 août 2023 | R6: 18:00:00 | U6: 4 | V6: Bourgoin-Jallieu | X6: 4 | Y6: 0 | Z6: u | AA6: 1 | AB6: 1 | AC6: 0 | AD6: 0 | AE6: 17 | AF6: 17 | AG6: 6 | AH6: 6 | AI6: 11 | AJ6: 0 | AK6: 0 | AL6: 0 | AM6: 0 | AN6: 0 | AO6: 0 | AP6: 1 | AQ6: 0 | AR6: 1 | AS6: 4 | AT6: Narbonne | AV6: 4 | AW6: 0 | AX6: u | AY6: 1 | AZ6: 1 | BA6: 0 | BB6: 0 | BC6: 17 | BD6: 17 | BE6: 9 | BF6: 9 | BG6: 8 | BH6: 0 | BI6: 0 | BJ6: 0 | BK6: 0 | BL6: 0 | BM6: 0 | BN6: 2 | BO6: 0 | BP6: 2 | BQ6: 4 | BR6: Blagnac | BT6: 0 | BU6: 0 | BV6: u | BW6: 0 | BX6: 0 | BY6: 0 | BZ6: 0 | CA6: 0 | CB6: 0 | CC6: 0 | CD6: 0 | CE6: 0 | CF6: 0 | CG6: 0 | CH6: 0 | CI6: 0 | CJ6: 0 | CK6: 0 | CL6: 0 | CM6: 0 | CN6: 0 | CO6: 4 | CP6: 4 | CQ6: 4 | CR6: 3 | CS6: 4 | CT6: 6 | CU6: =IF(Equipes!$C$5="","",Equipes!$C$5) -> Bourgoin-Jallieu | CV6: 4 | CW6: 0 | CX6: u | CY6: 4 | CZ6: =SUMPRODUCT(($D$3:$D$10=CU6)*($FX$3:$FX$10))+SUMPRODUCT(($M$3:$M$10=CU6)*($FY$3:$FY$10)) -> 4 | DA6: =SUMPRODUCT(($D$3:$D$10=CU6)*($GB$3:$GB$10))+SUMPRODUCT(($M$3:$M$10=CU6)*($GC$3:$GC$10)) -> 1 | DB6: =SUMPRODUCT(($D$3:$D$10=CU6)*($GF$3:$GF$10))+SUMPRODUCT(($M$3:$M$10=CU6)*($GG$3:$GG$10)) -> 1 | DC6: =SUMPRODUCT(($D$3:$D$10=CU6)*($GH$3:$GH$10))+SUMPRODUCT(($M$3:$M$10=CU6)*($GI$3:$GI$10)) -> 0 | DD6: =SUMPRODUCT(($D$3:$D$10=CU6)*($GJ$3:$GJ$10))+SUMPRODUCT(($M$3:$M$10=CU6)*($GK$3:$GK$10)) -> 0 | DE6: =SUMPRODUCT(($D$3:$D$10=CU6)*($GL$3:$GL$10))+SUMPRODUCT(($M$3:$M$10=CU6)*($GM$3:$GM$10)) -> 17 | DF6: 17 | DG6: =SUMPRODUCT(($D$3:$D$10=CU6)*($GN$3:$GN$10))+SUMPRODUCT(($M$3:$M$10=CU6)*($GO$3:$GO$10)) -> 6 | DH6: 6 | DI6: 11 | DJ6: =SUMPRODUCT(($D$3:$D$10=CU6)*($FR$3:$FR$10))+SUMPRODUCT(($M$3:$M$10=CU6)*($FS$3:$FS$10)) -> 0 | DK6: =SUMPRODUCT(($D$3:$D$10=CU6)*($FT$3:$FT$10))+SUMPRODUCT(($M$3:$M$10=CU6)*($FU$3:$FU$10)) -> 0 | DL6: 0 | DM6: =SUMPRODUCT(($D$3:$D$10=CU6)*($GP$3:$GP$10))+SUMPRODUCT(($M$3:$M$10=CU6)*($GQ$3:$GQ$10)) -> 1 | DN6: =SUMPRODUCT(($D$3:$D$10=CU6)*($GR$3:$GR$10))+SUMPRODUCT(($M$3:$M$10=CU6)*($GS$3:$GS$10)) -> 0 | DO6: 1 | DP6: =IF(Equipes!$C$5="","",Equipes!$C$5) -> Bourgoin-Jallieu | DQ6: 3 | DR6: 0 | DS6: u | DT6: 3 | DU6: =SUMPRODUCT(($D$3:$D$10=DP6)*($FV$3:$FV$10)) -> 4 | DV6: =SUMPRODUCT(($D$3:$D$10=DP6)*($GB$3:$GB$10)) -> 1 | DW6: =SUMPRODUCT(($D$3:$D$10=DP6)*($GF$3:$GF$10)) -> 1 | DX6: =SUMPRODUCT(($D$3:$D$10=DP6)*($GH$3:$GH$10)) -> 0 | DY6: =SUMPRODUCT(($D$3:$D$10=DP6)*($GJ$3:$GJ$10)) -> 0 | DZ6: =SUMPRODUCT(($D$3:$D$10=DP6)*($GL$3:$GL$10)) -> 17 | EA6: 17 | EB6: =SUMPRODUCT(($D$3:$D$10=DP6)*($GN$3:$GN$10)) -> 6 | EC6: 6 | ED6: 11 | EE6: =SUMPRODUCT(($D$3:$D$10=DP6)*($FR$3:$FR$10)) -> 0 | EF6: =SUMPRODUCT(($D$3:$D$10=DP6)*($FT$3:$FT$10)) -> 0 | EG6: 0 | EH6: =SUMPRODUCT(($D$3:$D$10=DP6)*($GP$3:$GP$10)) -> 1 | EI6: =SUMPRODUCT(($D$3:$D$10=DP6)*($GR$3:$GR$10)) -> 0 | EJ6: 1 | EK6: =IF(Equipes!$C$5="","",Equipes!$C$5) -> Bourgoin-Jallieu | EL6: 4 | EM6: 0 | EN6: u | EO6: 6 | EP6: =SUMPRODUCT(($M$3:$M$10=EK6)*($FW$3:$FW$10)) -> 0 | EQ6: =SUMPRODUCT(($M$3:$M$10=EK6)*($GC$3:$GC$10)) -> 0 | ER6: =SUMPRODUCT(($M$3:$M$10=EK6)*($GG$3:$GG$10)) -> 0 | ES6: =SUMPRODUCT(($M$3:$M$10=EK6)*($GI$3:$GI$10)) -> 0 | ET6: =SUMPRODUCT(($M$3:$M$10=EK6)*($GK$3:$GK$10)) -> 0 | EU6: =SUMPRODUCT(($M$3:$M$10=EK6)*($GM$3:$GM$10)) -> 0 | EV6: 0 | EW6: =SUMPRODUCT(($M$3:$M$10=EK6)*($GO$3:$GO$10)) -> 0 | EX6: 0 | EY6: 0 | EZ6: =SUMPRODUCT(($M$3:$M$10=EK6)*($FS$3:$FS$10)) -> 0 | FA6: =SUMPRODUCT(($M$3:$M$10=EK6)*($FU$3:$FU$10)) -> 0 | FB6: 0 | FC6: =SUMPRODUCT(($M$3:$M$10=EK6)*($GQ$3:$GQ$10)) -> 0 | FD6: =SUMPRODUCT(($M$3:$M$10=EK6)*($GS$3:$GS$10)) -> 0 | FE6: 0 | FF6: 4000.1117 | FG6: =FF6+0.00000011 -> 4000.1117 | FH6: 4000.1117 | FI6: =FH6+0.00000011 -> 4000.1117 | FJ6: 0 | FK6: =FJ6+0.00000011 -> 1.1e-07 | FL6: 0 | FM6: 0 | FN6: 0 | FO6: 0 | FP6: 4 | FQ6: 0 | FR6: FALSE | FS6: FALSE | FT6: FALSE | FU6: FALSE | FV6: 4 | FW6: 0 | FX6: 4 | FY6: 0 | GB6: 1 | GC6: 1 | GD6: 1 | GE6: 1 | GF6: 1 | GG6: FALSE | GH6: FALSE | GI6: FALSE | GJ6: FALSE | GK6: 1 | GL6: 25 | GM6: 14 | GN6: 14 | GO6: 25 | GP6: 3 | GQ6: 2 | GR6: 2 | GS6: 3 | GT6: Bourgoin-Jallieu | GU6: 4000.1117 | GV6: =IF(GU6="","",_xlfn.RANK.EQ(GU6,GU3:GU18)) -> 4 | GW6: Bourgoin-Jallieu | GX6: Narbonne | GY6: 4000.0817 | GZ6: =IF(GY6="","",_xlfn.RANK.EQ(GY6,GY3:GY18)) -> 4 | HA6: Bourgoin-Jallieu | HB6: Blagnac | HC6: 0 | HD6: =IF(HC6="","",_xlfn.RANK.EQ(HC6,HC3:HC18)) -> 4 | HE6: Bourgoin-Jallieu | HG6: ok | HM6: 1 | HN6: 1
D7: Bourgoin-Jallieu | E7: 17 | G7: 1 | I7: 6 | K7: 0 | M7: Albi | Q7: samedi 26 août 2023 | R7: 19:00:00 | U7: 5 | V7: Narbonne | X7: 4 | Y7: 0 | Z7: u | AA7: 1 | AB7: 1 | AC7: 0 | AD7: 0 | AE7: 17 | AF7: 17 | AG7: 9 | AH7: 9 | AI7: 8 | AJ7: 0 | AK7: 0 | AL7: 0 | AM7: 0 | AN7: 0 | AO7: 0 | AP7: 2 | AQ7: 0 | AR7: 2 | AS7: 5 | AT7: Massy | AV7: 4 | AW7: 0 | AX7: u | AY7: 1 | AZ7: 1 | BA7: 0 | BB7: 0 | BC7: 20 | BD7: 20 | BE7: 13 | BF7: 13 | BG7: 7 | BH7: 0 | BI7: 0 | BJ7: 0 | BK7: 0 | BL7: 0 | BM7: 0 | BN7: 2 | BO7: 1 | BP7: 1 | BQ7: 4 | BR7: Bourg-en-Bresse | BT7: 0 | BU7: 0 | BV7: u | BW7: 0 | BX7: 0 | BY7: 0 | BZ7: 0 | CA7: 0 | CB7: 0 | CC7: 0 | CD7: 0 | CE7: 0 | CF7: 1 | CG7: 0 | CH7: 0 | CI7: 1 | CJ7: 0 | CK7: 0 | CL7: 0 | CM7: 0 | CN7: 0 | CO7: 5 | CP7: 7 | CQ7: 5 | CR7: 8 | CS7: 5 | CT7: 2 | CU7: =IF(Equipes!$C$6="","",Equipes!$C$6) -> Carcassonne | CV7: 7 | CW7: 0 | CX7: u | CY7: 7 | CZ7: =SUMPRODUCT(($D$3:$D$10=CU7)*($FX$3:$FX$10))+SUMPRODUCT(($M$3:$M$10=CU7)*($FY$3:$FY$10)) -> 4 | DA7: =SUMPRODUCT(($D$3:$D$10=CU7)*($GB$3:$GB$10))+SUMPRODUCT(($M$3:$M$10=CU7)*($GC$3:$GC$10)) -> 1 | DB7: =SUMPRODUCT(($D$3:$D$10=CU7)*($GF$3:$GF$10))+SUMPRODUCT(($M$3:$M$10=CU7)*($GG$3:$GG$10)) -> 1 | DC7: =SUMPRODUCT(($D$3:$D$10=CU7)*($GH$3:$GH$10))+SUMPRODUCT(($M$3:$M$10=CU7)*($GI$3:$GI$10)) -> 0 | DD7: =SUMPRODUCT(($D$3:$D$10=CU7)*($GJ$3:$GJ$10))+SUMPRODUCT(($M$3:$M$10=CU7)*($GK$3:$GK$10)) -> 0 | DE7: =SUMPRODUCT(($D$3:$D$10=CU7)*($GL$3:$GL$10))+SUMPRODUCT(($M$3:$M$10=CU7)*($GM$3:$GM$10)) -> 12 | DF7: 12 | DG7: =SUMPRODUCT(($D$3:$D$10=CU7)*($GN$3:$GN$10))+SUMPRODUCT(($M$3:$M$10=CU7)*($GO$3:$GO$10)) -> 10 | DH7: 10 | DI7: 2 | DJ7: =SUMPRODUCT(($D$3:$D$10=CU7)*($FR$3:$FR$10))+SUMPRODUCT(($M$3:$M$10=CU7)*($FS$3:$FS$10)) -> 0 | DK7: =SUMPRODUCT(($D$3:$D$10=CU7)*($FT$3:$FT$10))+SUMPRODUCT(($M$3:$M$10=CU7)*($FU$3:$FU$10)) -> 0 | DL7: 0 | DM7: =SUMPRODUCT(($D$3:$D$10=CU7)*($GP$3:$GP$10))+SUMPRODUCT(($M$3:$M$10=CU7)*($GQ$3:$GQ$10)) -> 0 | DN7: =SUMPRODUCT(($D$3:$D$10=CU7)*($GR$3:$GR$10))+SUMPRODUCT(($M$3:$M$10=CU7)*($GS$3:$GS$10)) -> 1 | DO7: -1 | DP7: =IF(Equipes!$C$6="","",Equipes!$C$6) -> Carcassonne | DQ7: 7 | DR7: 0 | DS7: u | DT7: 8 | DU7: =SUMPRODUCT(($D$3:$D$10=DP7)*($FV$3:$FV$10)) -> 0 | DV7: =SUMPRODUCT(($D$3:$D$10=DP7)*($GB$3:$GB$10)) -> 0 | DW7: =SUMPRODUCT(($D$3:$D$10=DP7)*($GF$3:$GF$10)) -> 0 | DX7: =SUMPRODUCT(($D$3:$D$10=DP7)*($GH$3:$GH$10)) -> 0 | DY7: =SUMPRODUCT(($D$3:$D$10=DP7)*($GJ$3:$GJ$10)) -> 0 | DZ7: =SUMPRODUCT(($D$3:$D$10=DP7)*($GL$3:$GL$10)) -> 0 | EA7: 0 | EB7: =SUMPRODUCT(($D$3:$D$10=DP7)*($GN$3:$GN$10)) -> 0 | EC7: 0 | ED7: 0 | EE7: =SUMPRODUCT(($D$3:$D$10=DP7)*($FR$3:$FR$10)) -> 0 | EF7: =SUMPRODUCT(($D$3:$D$10=DP7)*($FT$3:$FT$10)) -> 0 | EG7: 0 | EH7: =SUMPRODUCT(($D$3:$D$10=DP7)*($GP$3:$GP$10)) -> 0 | EI7: =SUMPRODUCT(($D$3:$D$10=DP7)*($GR$3:$GR$10)) -> 0 | EJ7: 0 | EK7: =IF(Equipes!$C$6="","",Equipes!$C$6) -> Carcassonne | EL7: 2 | EM7: 0 | EN7: u | EO7: 2 | EP7: =SUMPRODUCT(($M$3:$M$10=EK7)*($FW$3:$FW$10)) -> 4 | EQ7: =SUMPRODUCT(($M$3:$M$10=EK7)*($GC$3:$GC$10)) -> 1 | ER7: =SUMPRODUCT(($M$3:$M$10=EK7)*($GG$3:$GG$10)) -> 1 | ES7: =SUMPRODUCT(($M$3:$M$10=EK7)*($GI$3:$GI$10)) -> 0 | ET7: =SUMPRODUCT(($M$3:$M$10=EK7)*($GK$3:$GK$10)) -> 0 | EU7: =SUMPRODUCT(($M$3:$M$10=EK7)*($GM$3:$GM$10)) -> 12 | EV7: 12 | EW7: =SUMPRODUCT(($M$3:$M$10=EK7)*($GO$3:$GO$10)) -> 10 | EX7: 10 | EY7: 2 | EZ7: =SUMPRODUCT(($M$3:$M$10=EK7)*($FS$3:$FS$10)) -> 0 | FA7: =SUMPRODUCT(($M$3:$M$10=EK7)*($FU$3:$FU$10)) -> 0 | FB7: 0 | FC7: =SUMPRODUCT(($M$3:$M$10=EK7)*($GQ$3:$GQ$10)) -> 0 | FD7: =SUMPRODUCT(($M$3:$M$10=EK7)*($GS$3:$GS$10)) -> 1 | FE7: -1 | FF7: 4000.0212 | FG7: =FF7+0.0000001 -> 4000.0212 | FH7: 0 | FI7: =FH7+0.0000001 -> 1e-07 | FJ7: 4000.0212 | FK7: =FJ7+0.0000001 -> 4000.0212 | FL7: 0 | FM7: 0 | FN7: 0 | FO7: 0 | FP7: 4 | FQ7: 0 | FR7: FALSE | FS7: FALSE | FT7: FALSE | FU7: FALSE | FV7: 4 | FW7: 0 | FX7: 4 | FY7: 0 | GB7: 1 | GC7: 1 | GD7: 1 | GE7: 1 | GF7: 1 | GG7: FALSE | GH7: FALSE | GI7: FALSE | GJ7: FALSE | GK7: 1 | GL7: 17 | GM7: 6 | GN7: 6 | GO7: 17 | GP7: 1 | GQ7: 0 | GR7: 0 | GS7: 1 | GT7: Narbonne | GU7: 4000.0817 | GV7: =IF(GU7="","",_xlfn.RANK.EQ(GU7,GU3:GU18)) -> 5 | GW7: Carcassonne | GX7: Massy | GY7: 4000.072 | GZ7: =IF(GY7="","",_xlfn.RANK.EQ(GY7,GY3:GY18)) -> 5 | HA7: Carcassonne | HB7: Bourg-en-Bresse | HC7: 0 | HD7: =IF(HC7="","",_xlfn.RANK.EQ(HC7,HC3:HC18)) -> 4 | HE7: Carcassonne | HG7: ok | HM7: 1 | HN7: 1
D8: Narbonne | E8: 17 | G8: 2 | I8: 9 | K8: 0 | M8: Chambéry | Q8: samedi 26 août 2023 | R8: 19:00:00 | U8: 6 | V8: Massy | X8: 4 | Y8: 0 | Z8: u | AA8: 1 | AB8: 1 | AC8: 0 | AD8: 0 | AE8: 20 | AF8: 20 | AG8: 13 | AH8: 13 | AI8: 7 | AJ8: 0 | AK8: 0 | AL8: 0 | AM8: 0 | AN8: 0 | AO8: 0 | AP8: 2 | AQ8: 1 | AR8: 1 | AS8: 6 | AT8: Bourg-en-Bresse | AV8: 1 | AW8: 0 | AX8: u | AY8: 1 | AZ8: 0 | BA8: 0 | BB8: 1 | BC8: 10 | BD8: 10 | BE8: 12 | BF8: 12 | BG8: -2 | BH8: 1 | BI8: 0 | BJ8: 0 | BK8: 1 | BL8: 0 | BM8: 0 | BN8: 1 | BO8: 0 | BP8: 1 | BQ8: 4 | BR8: Bourgoin-Jallieu | BT8: 0 | BU8: 0 | BV8: u | BW8: 0 | BX8: 0 | BY8: 0 | BZ8: 0 | CA8: 0 | CB8: 0 | CC8: 0 | CD8: 0 | CE8: 0 | CF8: 0 | CG8: 0 | CH8: 0 | CI8: 0 | CJ8: 0 | CK8: 0 | CL8: 0 | CM8: 0 | CN8: 0 | CO8: 6 | CP8: 10 | CQ8: 6 | CR8: 9 | CS8: 6 | CT8: 11 | CU8: =IF(Equipes!$C$7="","",Equipes!$C$7) -> Chambéry | CV8: 10 | CW8: 0 | CX8: u | CY8: 10 | CZ8: =SUMPRODUCT(($D$3:$D$10=CU8)*($FX$3:$FX$10))+SUMPRODUCT(($M$3:$M$10=CU8)*($FY$3:$FY$10)) -> 0 | DA8: =SUMPRODUCT(($D$3:$D$10=CU8)*($GB$3:$GB$10))+SUMPRODUCT(($M$3:$M$10=CU8)*($GC$3:$GC$10)) -> 1 | DB8: =SUMPRODUCT(($D$3:$D$10=CU8)*($GF$3:$GF$10))+SUMPRODUCT(($M$3:$M$10=CU8)*($GG$3:$GG$10)) -> 0 | DC8: =SUMPRODUCT(($D$3:$D$10=CU8)*($GH$3:$GH$10))+SUMPRODUCT(($M$3:$M$10=CU8)*($GI$3:$GI$10)) -> 0 | DD8: =SUMPRODUCT(($D$3:$D$10=CU8)*($GJ$3:$GJ$10))+SUMPRODUCT(($M$3:$M$10=CU8)*($GK$3:$GK$10)) -> 1 | DE8: =SUMPRODUCT(($D$3:$D$10=CU8)*($GL$3:$GL$10))+SUMPRODUCT(($M$3:$M$10=CU8)*($GM$3:$GM$10)) -> 9 | DF8: 9 | DG8: =SUMPRODUCT(($D$3:$D$10=CU8)*($GN$3:$GN$10))+SUMPRODUCT(($M$3:$M$10=CU8)*($GO$3:$GO$10)) -> 17 | DH8: 17 | DI8: -8 | DJ8: =SUMPRODUCT(($D$3:$D$10=CU8)*($FR$3:$FR$10))+SUMPRODUCT(($M$3:$M$10=CU8)*($FS$3:$FS$10)) -> 0 | DK8: =SUMPRODUCT(($D$3:$D$10=CU8)*($FT$3:$FT$10))+SUMPRODUCT(($M$3:$M$10=CU8)*($FU$3:$FU$10)) -> 0 | DL8: 0 | DM8: =SUMPRODUCT(($D$3:$D$10=CU8)*($GP$3:$GP$10))+SUMPRODUCT(($M$3:$M$10=CU8)*($GQ$3:$GQ$10)) -> 0 | DN8: =SUMPRODUCT(($D$3:$D$10=CU8)*($GR$3:$GR$10))+SUMPRODUCT(($M$3:$M$10=CU8)*($GS$3:$GS$10)) -> 2 | DO8: -2 | DP8: =IF(Equipes!$C$7="","",Equipes!$C$7) -> Chambéry | DQ8: 7 | DR8: 0 | DS8: u | DT8: 9 | DU8: =SUMPRODUCT(($D$3:$D$10=DP8)*($FV$3:$FV$10)) -> 0 | DV8: =SUMPRODUCT(($D$3:$D$10=DP8)*($GB$3:$GB$10)) -> 0 | DW8: =SUMPRODUCT(($D$3:$D$10=DP8)*($GF$3:$GF$10)) -> 0 | DX8: =SUMPRODUCT(($D$3:$D$10=DP8)*($GH$3:$GH$10)) -> 0 | DY8: =SUMPRODUCT(($D$3:$D$10=DP8)*($GJ$3:$GJ$10)) -> 0 | DZ8: =SUMPRODUCT(($D$3:$D$10=DP8)*($GL$3:$GL$10)) -> 0 | EA8: 0 | EB8: =SUMPRODUCT(($D$3:$D$10=DP8)*($GN$3:$GN$10)) -> 0 | EC8: 0 | ED8: 0 | EE8: =SUMPRODUCT(($D$3:$D$10=DP8)*($FR$3:$FR$10)) -> 0 | EF8: =SUMPRODUCT(($D$3:$D$10=DP8)*($FT$3:$FT$10)) -> 0 | EG8: 0 | EH8: =SUMPRODUCT(($D$3:$D$10=DP8)*($GP$3:$GP$10)) -> 0 | EI8: =SUMPRODUCT(($D$3:$D$10=DP8)*($GR$3:$GR$10)) -> 0 | EJ8: 0 | EK8: =IF(Equipes!$C$7="","",Equipes!$C$7) -> Chambéry | EL8: 11 | EM8: 0 | EN8: u | EO8: 11 | EP8: =SUMPRODUCT(($M$3:$M$10=EK8)*($FW$3:$FW$10)) -> 0 | EQ8: =SUMPRODUCT(($M$3:$M$10=EK8)*($GC$3:$GC$10)) -> 1 | ER8: =SUMPRODUCT(($M$3:$M$10=EK8)*($GG$3:$GG$10)) -> 0 | ES8: =SUMPRODUCT(($M$3:$M$10=EK8)*($GI$3:$GI$10)) -> 0 | ET8: =SUMPRODUCT(($M$3:$M$10=EK8)*($GK$3:$GK$10)) -> 1 | EU8: =SUMPRODUCT(($M$3:$M$10=EK8)*($GM$3:$GM$10)) -> 9 | EV8: 9 | EW8: =SUMPRODUCT(($M$3:$M$10=EK8)*($GO$3:$GO$10)) -> 17 | EX8: 17 | EY8: -8 | EZ8: =SUMPRODUCT(($M$3:$M$10=EK8)*($FS$3:$FS$10)) -> 0 | FA8: =SUMPRODUCT(($M$3:$M$10=EK8)*($FU$3:$FU$10)) -> 0 | FB8: 0 | FC8: =SUMPRODUCT(($M$3:$M$10=EK8)*($GQ$3:$GQ$10)) -> 0 | FD8: =SUMPRODUCT(($M$3:$M$10=EK8)*($GS$3:$GS$10)) -> 2 | FE8: -2 | FF8: -0.0791 | FG8: =FF8+0.00000009 -> -0.07909991 | FH8: 0 | FI8: =FH8+0.00000009 -> 9e-08 | FJ8: -0.0791 | FK8: =FJ8+0.00000009 -> -0.07909991 | FL8: 0 | FM8: 0 | FN8: 0 | FO8: 0 | FP8: 4 | FQ8: 0 | FR8: FALSE | FS8: FALSE | FT8: FALSE | FU8: FALSE | FV8: 4 | FW8: 0 | FX8: 4 | FY8: 0 | GB8: 1 | GC8: 1 | GD8: 1 | GE8: 1 | GF8: 1 | GG8: FALSE | GH8: FALSE | GI8: FALSE | GJ8: FALSE | GK8: 1 | GL8: 17 | GM8: 9 | GN8: 9 | GO8: 17 | GP8: 2 | GQ8: 0 | GR8: 0 | GS8: 2 | GT8: Massy | GU8: 4000.072 | GV8: =IF(GU8="","",_xlfn.RANK.EQ(GU8,GU3:GU18)) -> 6 | GW8: Chambéry | GX8: Bourg-en-Bresse | GY8: 999.981 | GZ8: =IF(GY8="","",_xlfn.RANK.EQ(GY8,GY3:GY18)) -> 6 | HA8: Chambéry | HB8: Bourgoin-Jallieu | HC8: 0 | HD8: =IF(HC8="","",_xlfn.RANK.EQ(HC8,HC3:HC18)) -> 4 | HE8: Chambéry | HG8: ok | HM8: 1 | HN8: 1
D9: Bourg-en-Bresse | E9: 10 | F9: Bd | G9: 1 | I9: 12 | J9: =IF(I9="","",IF(E9="","",IF(I9>E9,"",IF(I9=E9,"",IF(I9<E9,IF(SUM(E9-I9)<=L10,"Bd","")))))) ->  | K9: 0 | M9: Carcassonne | Q9: vendredi 25 août 2023 | R9: 19:30:00 | U9: 7 | V9: Carcassonne | X9: 4 | Y9: 0 | Z9: u | AA9: 1 | AB9: 1 | AC9: 0 | AD9: 0 | AE9: 12 | AF9: 12 | AG9: 10 | AH9: 10 | AI9: 2 | AJ9: 0 | AK9: 0 | AL9: 0 | AM9: 0 | AN9: 0 | AO9: 0 | AP9: 0 | AQ9: 1 | AR9: -1 | AS9: 7 | AT9: Albi | AV9: 0 | AW9: 0 | AX9: u | AY9: 0 | AZ9: 0 | BA9: 0 | BB9: 0 | BC9: 0 | BD9: 0 | BE9: 0 | BF9: 0 | BG9: 0 | BH9: 0 | BI9: 0 | BJ9: 0 | BK9: 0 | BL9: 0 | BM9: 0 | BN9: 0 | BO9: 0 | BP9: 0 | BQ9: 4 | BR9: Hyères | BT9: 0 | BU9: 0 | BV9: u | BW9: 0 | BX9: 0 | BY9: 0 | BZ9: 0 | CA9: 0 | CB9: 0 | CC9: 0 | CD9: 0 | CE9: 0 | CF9: 0 | CG9: 0 | CH9: 0 | CI9: 0 | CJ9: 0 | CK9: 0 | CL9: 0 | CM9: 0 | CN9: 0 | CO9: 7 | CP9: 2 | CQ9: 7 | CR9: 1 | CS9: 7 | CT9: 7 | CU9: =IF(Equipes!$C$8="","",Equipes!$C$8) -> Hyères | CV9: 2 | CW9: 0 | CX9: u | CY9: 2 | CZ9: =SUMPRODUCT(($D$3:$D$10=CU9)*($FX$3:$FX$10))+SUMPRODUCT(($M$3:$M$10=CU9)*($FY$3:$FY$10)) -> 4 | DA9: =SUMPRODUCT(($D$3:$D$10=CU9)*($GB$3:$GB$10))+SUMPRODUCT(($M$3:$M$10=CU9)*($GC$3:$GC$10)) -> 1 | DB9: =SUMPRODUCT(($D$3:$D$10=CU9)*($GF$3:$GF$10))+SUMPRODUCT(($M$3:$M$10=CU9)*($GG$3:$GG$10)) -> 1 | DC9: =SUMPRODUCT(($D$3:$D$10=CU9)*($GH$3:$GH$10))+SUMPRODUCT(($M$3:$M$10=CU9)*($GI$3:$GI$10)) -> 0 | DD9: =SUMPRODUCT(($D$3:$D$10=CU9)*($GJ$3:$GJ$10))+SUMPRODUCT(($M$3:$M$10=CU9)*($GK$3:$GK$10)) -> 0 | DE9: =SUMPRODUCT(($D$3:$D$10=CU9)*($GL$3:$GL$10))+SUMPRODUCT(($M$3:$M$10=CU9)*($GM$3:$GM$10)) -> 24 | DF9: 24 | DG9: =SUMPRODUCT(($D$3:$D$10=CU9)*($GN$3:$GN$10))+SUMPRODUCT(($M$3:$M$10=CU9)*($GO$3:$GO$10)) -> 10 | DH9: 10 | DI9: 14 | DJ9: =SUMPRODUCT(($D$3:$D$10=CU9)*($FR$3:$FR$10))+SUMPRODUCT(($M$3:$M$10=CU9)*($FS$3:$FS$10)) -> 0 | DK9: =SUMPRODUCT(($D$3:$D$10=CU9)*($FT$3:$FT$10))+SUMPRODUCT(($M$3:$M$10=CU9)*($FU$3:$FU$10)) -> 0 | DL9: 0 | DM9: =SUMPRODUCT(($D$3:$D$10=CU9)*($GP$3:$GP$10))+SUMPRODUCT(($M$3:$M$10=CU9)*($GQ$3:$GQ$10)) -> 2 | DN9: =SUMPRODUCT(($D$3:$D$10=CU9)*($GR$3:$GR$10))+SUMPRODUCT(($M$3:$M$10=CU9)*($GS$3:$GS$10)) -> 1 | DO9: 1 | DP9: =IF(Equipes!$C$8="","",Equipes!$C$8) -> Hyères | DQ9: 1 | DR9: 0 | DS9: u | DT9: 1 | DU9: =SUMPRODUCT(($D$3:$D$10=DP9)*($FV$3:$FV$10)) -> 4 | DV9: =SUMPRODUCT(($D$3:$D$10=DP9)*($GB$3:$GB$10)) -> 1 | DW9: =SUMPRODUCT(($D$3:$D$10=DP9)*($GF$3:$GF$10)) -> 1 | DX9: =SUMPRODUCT(($D$3:$D$10=DP9)*($GH$3:$GH$10)) -> 0 | DY9: =SUMPRODUCT(($D$3:$D$10=DP9)*($GJ$3:$GJ$10)) -> 0 | DZ9: =SUMPRODUCT(($D$3:$D$10=DP9)*($GL$3:$GL$10)) -> 24 | EA9: 24 | EB9: =SUMPRODUCT(($D$3:$D$10=DP9)*($GN$3:$GN$10)) -> 10 | EC9: 10 | ED9: 14 | EE9: =SUMPRODUCT(($D$3:$D$10=DP9)*($FR$3:$FR$10)) -> 0 | EF9: =SUMPRODUCT(($D$3:$D$10=DP9)*($FT$3:$FT$10)) -> 0 | EG9: 0 | EH9: =SUMPRODUCT(($D$3:$D$10=DP9)*($GP$3:$GP$10)) -> 2 | EI9: =SUMPRODUCT(($D$3:$D$10=DP9)*($GR$3:$GR$10)) -> 1 | EJ9: 1 | EK9: =IF(Equipes!$C$8="","",Equipes!$C$8) -> Hyères | EL9: 4 | EM9: 0 | EN9: u | EO9: 7 | EP9: =SUMPRODUCT(($M$3:$M$10=EK9)*($FW$3:$FW$10)) -> 0 | EQ9: =SUMPRODUCT(($M$3:$M$10=EK9)*($GC$3:$GC$10)) -> 0 | ER9: =SUMPRODUCT(($M$3:$M$10=EK9)*($GG$3:$GG$10)) -> 0 | ES9: =SUMPRODUCT(($M$3:$M$10=EK9)*($GI$3:$GI$10)) -> 0 | ET9: =SUMPRODUCT(($M$3:$M$10=EK9)*($GK$3:$GK$10)) -> 0 | EU9: =SUMPRODUCT(($M$3:$M$10=EK9)*($GM$3:$GM$10)) -> 0 | EV9: 0 | EW9: =SUMPRODUCT(($M$3:$M$10=EK9)*($GO$3:$GO$10)) -> 0 | EX9: 0 | EY9: 0 | EZ9: =SUMPRODUCT(($M$3:$M$10=EK9)*($FS$3:$FS$10)) -> 0 | FA9: =SUMPRODUCT(($M$3:$M$10=EK9)*($FU$3:$FU$10)) -> 0 | FB9: 0 | FC9: =SUMPRODUCT(($M$3:$M$10=EK9)*($GQ$3:$GQ$10)) -> 0 | FD9: =SUMPRODUCT(($M$3:$M$10=EK9)*($GS$3:$GS$10)) -> 0 | FE9: 0 | FF9: 4000.1424 | FG9: =FF9+0.00000008 -> 4000.1424 | FH9: 4000.1424 | FI9: =FH9+0.00000008 -> 4000.1424 | FJ9: 0 | FK9: =FJ9+0.00000008 -> 8e-08 | FL9: 0 | FM9: 0 | FN9: 0 | FO9: 0 | FP9: 0 | FQ9: 4 | FR9: FALSE | FS9: FALSE | FT9: 1 | FU9: FALSE | FV9: 1 | FW9: 4 | FX9: 1 | FY9: 4 | GB9: 1 | GC9: 1 | GD9: 1 | GE9: 1 | GF9: FALSE | GG9: 1 | GH9: FALSE | GI9: FALSE | GJ9: 1 | GK9: FALSE | GL9: 10 | GM9: 12 | GN9: 12 | GO9: 10 | GP9: 1 | GQ9: 0 | GR9: 0 | GS9: 1 | GT9: Carcassonne | GU9: 4000.0212 | GV9: =IF(GU9="","",_xlfn.RANK.EQ(GU9,GU3:GU18)) -> 7 | GW9: Hyères | GX9: Albi | GY9: 0 | GZ9: =IF(GY9="","",_xlfn.RANK.EQ(GY9,GY3:GY18)) -> 7 | HA9: Hyères | HB9: Hyères | HC9: 0 | HD9: =IF(HC9="","",_xlfn.RANK.EQ(HC9,HC3:HC18)) -> 4 | HE9: Hyères | HG9: ok | HM9: 1 | HN9: 1
U10: 8 | V10: Bourg-en-Bresse | X10: 1 | Y10: 0 | Z10: u | AA10: 1 | AB10: 0 | AC10: 0 | AD10: 1 | AE10: 10 | AF10: 10 | AG10: 12 | AH10: 12 | AI10: -2 | AJ10: 1 | AK10: 0 | AL10: 0 | AM10: 1 | AN10: 0 | AO10: 0 | AP10: 1 | AQ10: 0 | AR10: 1 | AS10: 7 | AT10: Carcassonne | AV10: 0 | AW10: 0 | AX10: u | AY10: 0 | AZ10: 0 | BA10: 0 | BB10: 0 | BC10: 0 | BD10: 0 | BE10: 0 | BF10: 0 | BG10: 0 | BH10: 0 | BI10: 0 | BJ10: 0 | BK10: 0 | BL10: 0 | BM10: 0 | BN10: 0 | BO10: 0 | BP10: 0 | BQ10: 4 | BR10: Massy | BT10: 0 | BU10: 0 | BV10: u | BW10: 0 | BX10: 0 | BY10: 0 | BZ10: 0 | CA10: 0 | CB10: 0 | CC10: 0 | CD10: 0 | CE10: 0 | CF10: 0 | CG10: 0 | CH10: 0 | CI10: 0 | CJ10: 0 | CK10: 0 | CL10: 0 | CM10: 0 | CN10: 0 | CO10: 8 | CP10: 6 | CQ10: 8 | CR10: 5 | CS10: 8 | CT10: 8 | CU10: =IF(Equipes!$C$9="","",Equipes!$C$9) -> Massy | CV10: 6 | CW10: 0 | CX10: u | CY10: 6 | CZ10: =SUMPRODUCT(($D$3:$D$10=CU10)*($FX$3:$FX$10))+SUMPRODUCT(($M$3:$M$10=CU10)*($FY$3:$FY$10)) -> 4 | DA10: =SUMPRODUCT(($D$3:$D$10=CU10)*($GB$3:$GB$10))+SUMPRODUCT(($M$3:$M$10=CU10)*($GC$3:$GC$10)) -> 1 | DB10: =SUMPRODUCT(($D$3:$D$10=CU10)*($GF$3:$GF$10))+SUMPRODUCT(($M$3:$M$10=CU10)*($GG$3:$GG$10)) -> 1 | DC10: =SUMPRODUCT(($D$3:$D$10=CU10)*($GH$3:$GH$10))+SUMPRODUCT(($M$3:$M$10=CU10)*($GI$3:$GI$10)) -> 0 | DD10: =SUMPRODUCT(($D$3:$D$10=CU10)*($GJ$3:$GJ$10))+SUMPRODUCT(($M$3:$M$10=CU10)*($GK$3:$GK$10)) -> 0 | DE10: =SUMPRODUCT(($D$3:$D$10=CU10)*($GL$3:$GL$10))+SUMPRODUCT(($M$3:$M$10=CU10)*($GM$3:$GM$10)) -> 20 | DF10: 20 | DG10: =SUMPRODUCT(($D$3:$D$10=CU10)*($GN$3:$GN$10))+SUMPRODUCT(($M$3:$M$10=CU10)*($GO$3:$GO$10)) -> 13 | DH10: 13 | DI10: 7 | DJ10: =SUMPRODUCT(($D$3:$D$10=CU10)*($FR$3:$FR$10))+SUMPRODUCT(($M$3:$M$10=CU10)*($FS$3:$FS$10)) -> 0 | DK10: =SUMPRODUCT(($D$3:$D$10=CU10)*($FT$3:$FT$10))+SUMPRODUCT(($M$3:$M$10=CU10)*($FU$3:$FU$10)) -> 0 | DL10: 0 | DM10: =SUMPRODUCT(($D$3:$D$10=CU10)*($GP$3:$GP$10))+SUMPRODUCT(($M$3:$M$10=CU10)*($GQ$3:$GQ$10)) -> 2 | DN10: =SUMPRODUCT(($D$3:$D$10=CU10)*($GR$3:$GR$10))+SUMPRODUCT(($M$3:$M$10=CU10)*($GS$3:$GS$10)) -> 1 | DO10: 1 | DP10: =IF(Equipes!$C$9="","",Equipes!$C$9) -> Massy | DQ10: 5 | DR10: 0 | DS10: u | DT10: 5 | DU10: =SUMPRODUCT(($D$3:$D$10=DP10)*($FV$3:$FV$10)) -> 4 | DV10: =SUMPRODUCT(($D$3:$D$10=DP10)*($GB$3:$GB$10)) -> 1 | DW10: =SUMPRODUCT(($D$3:$D$10=DP10)*($GF$3:$GF$10)) -> 1 | DX10: =SUMPRODUCT(($D$3:$D$10=DP10)*($GH$3:$GH$10)) -> 0 | DY10: =SUMPRODUCT(($D$3:$D$10=DP10)*($GJ$3:$GJ$10)) -> 0 | DZ10: =SUMPRODUCT(($D$3:$D$10=DP10)*($GL$3:$GL$10)) -> 20 | EA10: 20 | EB10: =SUMPRODUCT(($D$3:$D$10=DP10)*($GN$3:$GN$10)) -> 13 | EC10: 13 | ED10: 7 | EE10: =SUMPRODUCT(($D$3:$D$10=DP10)*($FR$3:$FR$10)) -> 0 | EF10: =SUMPRODUCT(($D$3:$D$10=DP10)*($FT$3:$FT$10)) -> 0 | EG10: 0 | EH10: =SUMPRODUCT(($D$3:$D$10=DP10)*($GP$3:$GP$10)) -> 2 | EI10: =SUMPRODUCT(($D$3:$D$10=DP10)*($GR$3:$GR$10)) -> 1 | EJ10: 1 | EK10: =IF(Equipes!$C$9="","",Equipes!$C$9) -> Massy | EL10: 4 | EM10: 0 | EN10: u | EO10: 8 | EP10: =SUMPRODUCT(($M$3:$M$10=EK10)*($FW$3:$FW$10)) -> 0 | EQ10: =SUMPRODUCT(($M$3:$M$10=EK10)*($GC$3:$GC$10)) -> 0 | ER10: =SUMPRODUCT(($M$3:$M$10=EK10)*($GG$3:$GG$10)) -> 0 | ES10: =SUMPRODUCT(($M$3:$M$10=EK10)*($GI$3:$GI$10)) -> 0 | ET10: =SUMPRODUCT(($M$3:$M$10=EK10)*($GK$3:$GK$10)) -> 0 | EU10: =SUMPRODUCT(($M$3:$M$10=EK10)*($GM$3:$GM$10)) -> 0 | EV10: 0 | EW10: =SUMPRODUCT(($M$3:$M$10=EK10)*($GO$3:$GO$10)) -> 0 | EX10: 0 | EY10: 0 | EZ10: =SUMPRODUCT(($M$3:$M$10=EK10)*($FS$3:$FS$10)) -> 0 | FA10: =SUMPRODUCT(($M$3:$M$10=EK10)*($FU$3:$FU$10)) -> 0 | FB10: 0 | FC10: =SUMPRODUCT(($M$3:$M$10=EK10)*($GQ$3:$GQ$10)) -> 0 | FD10: =SUMPRODUCT(($M$3:$M$10=EK10)*($GS$3:$GS$10)) -> 0 | FE10: 0 | FF10: 4000.072 | FG10: =FF10+0.00000007 -> 4000.072 | FH10: 4000.072 | FI10: =FH10+0.00000007 -> 4000.072 | FJ10: 0 | FK10: =FJ10+0.00000007 -> 7e-08 | GT10: Bourg-en-Bresse | GU10: 999.981 | GV10: =IF(GU10="","",_xlfn.RANK.EQ(GU10,GU3:GU18)) -> 8 | GW10: Massy | GX10: Carcassonne | GY10: 0 | GZ10: =IF(GY10="","",_xlfn.RANK.EQ(GY10,GY3:GY18)) -> 7 | HA10: Massy | HB10: Massy | HC10: 0 | HD10: =IF(HC10="","",_xlfn.RANK.EQ(HC10,HC3:HC18)) -> 4 | HE10: Massy
U11: 9 | V11: Tarbes | X11: 1 | Y11: 0 | Z11: u | AA11: 1 | AB11: 0 | AC11: 0 | AD11: 1 | AE11: 13 | AF11: 13 | AG11: 20 | AH11: 20 | AI11: -7 | AJ11: 1 | AK11: 0 | AL11: 0 | AM11: 1 | AN11: 0 | AO11: 0 | AP11: 1 | AQ11: 2 | AR11: -1 | AS11: 7 | AT11: Chambéry | AV11: 0 | AW11: 0 | AX11: u | AY11: 0 | AZ11: 0 | BA11: 0 | BB11: 0 | BC11: 0 | BD11: 0 | BE11: 0 | BF11: 0 | BG11: 0 | BH11: 0 | BI11: 0 | BJ11: 0 | BK11: 0 | BL11: 0 | BM11: 0 | BN11: 0 | BO11: 0 | BP11: 0 | BQ11: 4 | BR11: Narbonne | BT11: 0 | BU11: 0 | BV11: u | BW11: 0 | BX11: 0 | BY11: 0 | BZ11: 0 | CA11: 0 | CB11: 0 | CC11: 0 | CD11: 0 | CE11: 0 | CF11: 0 | CG11: 0 | CH11: 0 | CI11: 0 | CJ11: 0 | CK11: 0 | CL11: 0 | CM11: 0 | CN11: 0 | CO11: 9 | CP11: 5 | CQ11: 9 | CR11: 4 | CS11: 9 | CT11: 9 | CU11: =IF(Equipes!$C$10="","",Equipes!$C$10) -> Narbonne | CV11: 5 | CW11: 0 | CX11: u | CY11: 5 | CZ11: =SUMPRODUCT(($D$3:$D$10=CU11)*($FX$3:$FX$10))+SUMPRODUCT(($M$3:$M$10=CU11)*($FY$3:$FY$10)) -> 4 | DA11: =SUMPRODUCT(($D$3:$D$10=CU11)*($GB$3:$GB$10))+SUMPRODUCT(($M$3:$M$10=CU11)*($GC$3:$GC$10)) -> 1 | DB11: =SUMPRODUCT(($D$3:$D$10=CU11)*($GF$3:$GF$10))+SUMPRODUCT(($M$3:$M$10=CU11)*($GG$3:$GG$10)) -> 1 | DC11: =SUMPRODUCT(($D$3:$D$10=CU11)*($GH$3:$GH$10))+SUMPRODUCT(($M$3:$M$10=CU11)*($GI$3:$GI$10)) -> 0 | DD11: =SUMPRODUCT(($D$3:$D$10=CU11)*($GJ$3:$GJ$10))+SUMPRODUCT(($M$3:$M$10=CU11)*($GK$3:$GK$10)) -> 0 | DE11: =SUMPRODUCT(($D$3:$D$10=CU11)*($GL$3:$GL$10))+SUMPRODUCT(($M$3:$M$10=CU11)*($GM$3:$GM$10)) -> 17 | DF11: 17 | DG11: =SUMPRODUCT(($D$3:$D$10=CU11)*($GN$3:$GN$10))+SUMPRODUCT(($M$3:$M$10=CU11)*($GO$3:$GO$10)) -> 9 | DH11: 9 | DI11: 8 | DJ11: =SUMPRODUCT(($D$3:$D$10=CU11)*($FR$3:$FR$10))+SUMPRODUCT(($M$3:$M$10=CU11)*($FS$3:$FS$10)) -> 0 | DK11: =SUMPRODUCT(($D$3:$D$10=CU11)*($FT$3:$FT$10))+SUMPRODUCT(($M$3:$M$10=CU11)*($FU$3:$FU$10)) -> 0 | DL11: 0 | DM11: =SUMPRODUCT(($D$3:$D$10=CU11)*($GP$3:$GP$10))+SUMPRODUCT(($M$3:$M$10=CU11)*($GQ$3:$GQ$10)) -> 2 | DN11: =SUMPRODUCT(($D$3:$D$10=CU11)*($GR$3:$GR$10))+SUMPRODUCT(($M$3:$M$10=CU11)*($GS$3:$GS$10)) -> 0 | DO11: 2 | DP11: =IF(Equipes!$C$10="","",Equipes!$C$10) -> Narbonne | DQ11: 4 | DR11: 0 | DS11: u | DT11: 4 | DU11: =SUMPRODUCT(($D$3:$D$10=DP11)*($FV$3:$FV$10)) -> 4 | DV11: =SUMPRODUCT(($D$3:$D$10=DP11)*($GB$3:$GB$10)) -> 1 | DW11: =SUMPRODUCT(($D$3:$D$10=DP11)*($GF$3:$GF$10)) -> 1 | DX11: =SUMPRODUCT(($D$3:$D$10=DP11)*($GH$3:$GH$10)) -> 0 | DY11: =SUMPRODUCT(($D$3:$D$10=DP11)*($GJ$3:$GJ$10)) -> 0 | DZ11: =SUMPRODUCT(($D$3:$D$10=DP11)*($GL$3:$GL$10)) -> 17 | EA11: 17 | EB11: =SUMPRODUCT(($D$3:$D$10=DP11)*($GN$3:$GN$10)) -> 9 | EC11: 9 | ED11: 8 | EE11: =SUMPRODUCT(($D$3:$D$10=DP11)*($FR$3:$FR$10)) -> 0 | EF11: =SUMPRODUCT(($D$3:$D$10=DP11)*($FT$3:$FT$10)) -> 0 | EG11: 0 | EH11: =SUMPRODUCT(($D$3:$D$10=DP11)*($GP$3:$GP$10)) -> 2 | EI11: =SUMPRODUCT(($D$3:$D$10=DP11)*($GR$3:$GR$10)) -> 0 | EJ11: 2 | EK11: =IF(Equipes!$C$10="","",Equipes!$C$10) -> Narbonne | EL11: 4 | EM11: 0 | EN11: u | EO11: 9 | EP11: =SUMPRODUCT(($M$3:$M$10=EK11)*($FW$3:$FW$10)) -> 0 | EQ11: =SUMPRODUCT(($M$3:$M$10=EK11)*($GC$3:$GC$10)) -> 0 | ER11: =SUMPRODUCT(($M$3:$M$10=EK11)*($GG$3:$GG$10)) -> 0 | ES11: =SUMPRODUCT(($M$3:$M$10=EK11)*($GI$3:$GI$10)) -> 0 | ET11: =SUMPRODUCT(($M$3:$M$10=EK11)*($GK$3:$GK$10)) -> 0 | EU11: =SUMPRODUCT(($M$3:$M$10=EK11)*($GM$3:$GM$10)) -> 0 | EV11: 0 | EW11: =SUMPRODUCT(($M$3:$M$10=EK11)*($GO$3:$GO$10)) -> 0 | EX11: 0 | EY11: 0 | EZ11: =SUMPRODUCT(($M$3:$M$10=EK11)*($FS$3:$FS$10)) -> 0 | FA11: =SUMPRODUCT(($M$3:$M$10=EK11)*($FU$3:$FU$10)) -> 0 | FB11: 0 | FC11: =SUMPRODUCT(($M$3:$M$10=EK11)*($GQ$3:$GQ$10)) -> 0 | FD11: =SUMPRODUCT(($M$3:$M$10=EK11)*($GS$3:$GS$10)) -> 0 | FE11: 0 | FF11: 4000.0817 | FG11: =FF11+0.00000006 -> 4000.0817 | FH11: 4000.0817 | FI11: =FH11+0.00000006 -> 4000.0817 | FJ11: 0 | FK11: =FJ11+0.00000006 -> 6e-08 | GT11: Tarbes | GU11: 999.9313 | GV11: =IF(GU11="","",_xlfn.RANK.EQ(GU11,GU3:GU18)) -> 9 | GW11: Narbonne | GX11: Chambéry | GY11: 0 | GZ11: =IF(GY11="","",_xlfn.RANK.EQ(GY11,GY3:GY18)) -> 7 | HA11: Narbonne | HB11: Narbonne | HC11: 0 | HD11: =IF(HC11="","",_xlfn.RANK.EQ(HC11,HC3:HC18)) -> 4 | HE11: Narbonne
U12: 10 | V12: Chambéry | X12: 0 | Y12: 0 | Z12: u | AA12: 1 | AB12: 0 | AC12: 0 | AD12: 1 | AE12: 9 | AF12: 9 | AG12: 17 | AH12: 17 | AI12: -8 | AJ12: 0 | AK12: 0 | AL12: 0 | AM12: 0 | AN12: 0 | AO12: 0 | AP12: 0 | AQ12: 2 | AR12: -2 | AS12: 7 | AT12: Nice | AV12: 0 | AW12: 0 | AX12: u | AY12: 0 | AZ12: 0 | BA12: 0 | BB12: 0 | BC12: 0 | BD12: 0 | BE12: 0 | BF12: 0 | BG12: 0 | BH12: 0 | BI12: 0 | BJ12: 0 | BK12: 0 | BL12: 0 | BM12: 0 | BN12: 0 | BO12: 0 | BP12: 0 | BQ12: 4 | BR12: Périgueux | BT12: 0 | BU12: 0 | BV12: u | BW12: 0 | BX12: 0 | BY12: 0 | BZ12: 0 | CA12: 0 | CB12: 0 | CC12: 0 | CD12: 0 | CE12: 0 | CF12: 0 | CG12: 0 | CH12: 0 | CI12: 0 | CJ12: 0 | CK12: 0 | CL12: 0 | CM12: 0 | CN12: 0 | CO12: 10 | CP12: 11 | CQ12: 10 | CR12: 10 | CS12: 10 | CT12: 12 | CU12: =IF(Equipes!$C$11="","",Equipes!$C$11) -> Nice | CV12: 11 | CW12: 0 | CX12: u | CY12: 11 | CZ12: =SUMPRODUCT(($D$3:$D$10=CU12)*($FX$3:$FX$10))+SUMPRODUCT(($M$3:$M$10=CU12)*($FY$3:$FY$10)) -> 0 | DA12: =SUMPRODUCT(($D$3:$D$10=CU12)*($GB$3:$GB$10))+SUMPRODUCT(($M$3:$M$10=CU12)*($GC$3:$GC$10)) -> 1 | DB12: =SUMPRODUCT(($D$3:$D$10=CU12)*($GF$3:$GF$10))+SUMPRODUCT(($M$3:$M$10=CU12)*($GG$3:$GG$10)) -> 0 | DC12: =SUMPRODUCT(($D$3:$D$10=CU12)*($GH$3:$GH$10))+SUMPRODUCT(($M$3:$M$10=CU12)*($GI$3:$GI$10)) -> 0 | DD12: =SUMPRODUCT(($D$3:$D$10=CU12)*($GJ$3:$GJ$10))+SUMPRODUCT(($M$3:$M$10=CU12)*($GK$3:$GK$10)) -> 1 | DE12: =SUMPRODUCT(($D$3:$D$10=CU12)*($GL$3:$GL$10))+SUMPRODUCT(($M$3:$M$10=CU12)*($GM$3:$GM$10)) -> 14 | DF12: 14 | DG12: =SUMPRODUCT(($D$3:$D$10=CU12)*($GN$3:$GN$10))+SUMPRODUCT(($M$3:$M$10=CU12)*($GO$3:$GO$10)) -> 25 | DH12: 25 | DI12: -11 | DJ12: =SUMPRODUCT(($D$3:$D$10=CU12)*($FR$3:$FR$10))+SUMPRODUCT(($M$3:$M$10=CU12)*($FS$3:$FS$10)) -> 0 | DK12: =SUMPRODUCT(($D$3:$D$10=CU12)*($FT$3:$FT$10))+SUMPRODUCT(($M$3:$M$10=CU12)*($FU$3:$FU$10)) -> 0 | DL12: 0 | DM12: =SUMPRODUCT(($D$3:$D$10=CU12)*($GP$3:$GP$10))+SUMPRODUCT(($M$3:$M$10=CU12)*($GQ$3:$GQ$10)) -> 2 | DN12: =SUMPRODUCT(($D$3:$D$10=CU12)*($GR$3:$GR$10))+SUMPRODUCT(($M$3:$M$10=CU12)*($GS$3:$GS$10)) -> 3 | DO12: -1 | DP12: =IF(Equipes!$C$11="","",Equipes!$C$11) -> Nice | DQ12: 7 | DR12: 0 | DS12: u | DT12: 10 | DU12: =SUMPRODUCT(($D$3:$D$10=DP12)*($FV$3:$FV$10)) -> 0 | DV12: =SUMPRODUCT(($D$3:$D$10=DP12)*($GB$3:$GB$10)) -> 0 | DW12: =SUMPRODUCT(($D$3:$D$10=DP12)*($GF$3:$GF$10)) -> 0 | DX12: =SUMPRODUCT(($D$3:$D$10=DP12)*($GH$3:$GH$10)) -> 0 | DY12: =SUMPRODUCT(($D$3:$D$10=DP12)*($GJ$3:$GJ$10)) -> 0 | DZ12: =SUMPRODUCT(($D$3:$D$10=DP12)*($GL$3:$GL$10)) -> 0 | EA12: 0 | EB12: =SUMPRODUCT(($D$3:$D$10=DP12)*($GN$3:$GN$10)) -> 0 | EC12: 0 | ED12: 0 | EE12: =SUMPRODUCT(($D$3:$D$10=DP12)*($FR$3:$FR$10)) -> 0 | EF12: =SUMPRODUCT(($D$3:$D$10=DP12)*($FT$3:$FT$10)) -> 0 | EG12: 0 | EH12: =SUMPRODUCT(($D$3:$D$10=DP12)*($GP$3:$GP$10)) -> 0 | EI12: =SUMPRODUCT(($D$3:$D$10=DP12)*($GR$3:$GR$10)) -> 0 | EJ12: 0 | EK12: =IF(Equipes!$C$11="","",Equipes!$C$11) -> Nice | EL12: 12 | EM12: 0 | EN12: u | EO12: 12 | EP12: =SUMPRODUCT(($M$3:$M$10=EK12)*($FW$3:$FW$10)) -> 0 | EQ12: =SUMPRODUCT(($M$3:$M$10=EK12)*($GC$3:$GC$10)) -> 1 | ER12: =SUMPRODUCT(($M$3:$M$10=EK12)*($GG$3:$GG$10)) -> 0 | ES12: =SUMPRODUCT(($M$3:$M$10=EK12)*($GI$3:$GI$10)) -> 0 | ET12: =SUMPRODUCT(($M$3:$M$10=EK12)*($GK$3:$GK$10)) -> 1 | EU12: =SUMPRODUCT(($M$3:$M$10=EK12)*($GM$3:$GM$10)) -> 14 | EV12: 14 | EW12: =SUMPRODUCT(($M$3:$M$10=EK12)*($GO$3:$GO$10)) -> 25 | EX12: 25 | EY12: -11 | EZ12: =SUMPRODUCT(($M$3:$M$10=EK12)*($FS$3:$FS$10)) -> 0 | FA12: =SUMPRODUCT(($M$3:$M$10=EK12)*($FU$3:$FU$10)) -> 0 | FB12: 0 | FC12: =SUMPRODUCT(($M$3:$M$10=EK12)*($GQ$3:$GQ$10)) -> 2 | FD12: =SUMPRODUCT(($M$3:$M$10=EK12)*($GS$3:$GS$10)) -> 3 | FE12: -1 | FF12: -0.1086 | FG12: =FF12+0.00000005 -> -0.10859995 | FH12: 0 | FI12: =FH12+0.00000005 -> 5e-08 | FJ12: -0.1086 | FK12: =FJ12+0.00000005 -> -0.10859995 | GT12: Chambéry | GU12: -0.0791 | GV12: =IF(GU12="","",_xlfn.RANK.EQ(GU12,GU3:GU18)) -> 10 | GW12: Nice | GX12: Nice | GY12: 0 | GZ12: =IF(GY12="","",_xlfn.RANK.EQ(GY12,GY3:GY18)) -> 7 | HA12: Nice | HB12: Périgueux | HC12: 0 | HD12: =IF(HC12="","",_xlfn.RANK.EQ(HC12,HC3:HC18)) -> 4 | HE12: Nice
U13: 11 | V13: Nice | X13: 0 | Y13: 0 | Z13: u | AA13: 1 | AB13: 0 | AC13: 0 | AD13: 1 | AE13: 14 | AF13: 14 | AG13: 25 | AH13: 25 | AI13: -11 | AJ13: 0 | AK13: 0 | AL13: 0 | AM13: 0 | AN13: 0 | AO13: 0 | AP13: 2 | AQ13: 3 | AR13: -1 | AS13: 7 | AT13: Suresnes | AV13: 0 | AW13: 0 | AX13: u | AY13: 0 | AZ13: 0 | BA13: 0 | BB13: 0 | BC13: 0 | BD13: 0 | BE13: 0 | BF13: 0 | BG13: 0 | BH13: 0 | BI13: 0 | BJ13: 0 | BK13: 0 | BL13: 0 | BM13: 0 | BN13: 0 | BO13: 0 | BP13: 0 | BQ13: 11 | BR13: Chambéry | BT13: 0 | BU13: 0 | BV13: u | BW13: 1 | BX13: 0 | BY13: 0 | BZ13: 1 | CA13: 9 | CB13: 9 | CC13: 17 | CD13: 17 | CE13: -8 | CF13: 0 | CG13: 0 | CH13: 0 | CI13: 0 | CJ13: 0 | CK13: 0 | CL13: 0 | CM13: 2 | CN13: -2 | CO13: 11 | CP13: 3 | CQ13: 11 | CR13: 2 | CS13: 11 | CT13: 10 | CU13: =IF(Equipes!$C$12="","",Equipes!$C$12) -> Périgueux | CV13: 3 | CW13: 0 | CX13: u | CY13: 3 | CZ13: =SUMPRODUCT(($D$3:$D$10=CU13)*($FX$3:$FX$10))+SUMPRODUCT(($M$3:$M$10=CU13)*($FY$3:$FY$10)) -> 4 | DA13: =SUMPRODUCT(($D$3:$D$10=CU13)*($GB$3:$GB$10))+SUMPRODUCT(($M$3:$M$10=CU13)*($GC$3:$GC$10)) -> 1 | DB13: =SUMPRODUCT(($D$3:$D$10=CU13)*($GF$3:$GF$10))+SUMPRODUCT(($M$3:$M$10=CU13)*($GG$3:$GG$10)) -> 1 | DC13: =SUMPRODUCT(($D$3:$D$10=CU13)*($GH$3:$GH$10))+SUMPRODUCT(($M$3:$M$10=CU13)*($GI$3:$GI$10)) -> 0 | DD13: =SUMPRODUCT(($D$3:$D$10=CU13)*($GJ$3:$GJ$10))+SUMPRODUCT(($M$3:$M$10=CU13)*($GK$3:$GK$10)) -> 0 | DE13: =SUMPRODUCT(($D$3:$D$10=CU13)*($GL$3:$GL$10))+SUMPRODUCT(($M$3:$M$10=CU13)*($GM$3:$GM$10)) -> 25 | DF13: 25 | DG13: =SUMPRODUCT(($D$3:$D$10=CU13)*($GN$3:$GN$10))+SUMPRODUCT(($M$3:$M$10=CU13)*($GO$3:$GO$10)) -> 14 | DH13: 14 | DI13: 11 | DJ13: =SUMPRODUCT(($D$3:$D$10=CU13)*($FR$3:$FR$10))+SUMPRODUCT(($M$3:$M$10=CU13)*($FS$3:$FS$10)) -> 0 | DK13: =SUMPRODUCT(($D$3:$D$10=CU13)*($FT$3:$FT$10))+SUMPRODUCT(($M$3:$M$10=CU13)*($FU$3:$FU$10)) -> 0 | DL13: 0 | DM13: =SUMPRODUCT(($D$3:$D$10=CU13)*($GP$3:$GP$10))+SUMPRODUCT(($M$3:$M$10=CU13)*($GQ$3:$GQ$10)) -> 3 | DN13: =SUMPRODUCT(($D$3:$D$10=CU13)*($GR$3:$GR$10))+SUMPRODUCT(($M$3:$M$10=CU13)*($GS$3:$GS$10)) -> 2 | DO13: 1 | DP13: =IF(Equipes!$C$12="","",Equipes!$C$12) -> Périgueux | DQ13: 2 | DR13: 0 | DS13: u | DT13: 2 | DU13: =SUMPRODUCT(($D$3:$D$10=DP13)*($FV$3:$FV$10)) -> 4 | DV13: =SUMPRODUCT(($D$3:$D$10=DP13)*($GB$3:$GB$10)) -> 1 | DW13: =SUMPRODUCT(($D$3:$D$10=DP13)*($GF$3:$GF$10)) -> 1 | DX13: =SUMPRODUCT(($D$3:$D$10=DP13)*($GH$3:$GH$10)) -> 0 | DY13: =SUMPRODUCT(($D$3:$D$10=DP13)*($GJ$3:$GJ$10)) -> 0 | DZ13: =SUMPRODUCT(($D$3:$D$10=DP13)*($GL$3:$GL$10)) -> 25 | EA13: 25 | EB13: =SUMPRODUCT(($D$3:$D$10=DP13)*($GN$3:$GN$10)) -> 14 | EC13: 14 | ED13: 11 | EE13: =SUMPRODUCT(($D$3:$D$10=DP13)*($FR$3:$FR$10)) -> 0 | EF13: =SUMPRODUCT(($D$3:$D$10=DP13)*($FT$3:$FT$10)) -> 0 | EG13: 0 | EH13: =SUMPRODUCT(($D$3:$D$10=DP13)*($GP$3:$GP$10)) -> 3 | EI13: =SUMPRODUCT(($D$3:$D$10=DP13)*($GR$3:$GR$10)) -> 2 | EJ13: 1 | EK13: =IF(Equipes!$C$12="","",Equipes!$C$12) -> Périgueux | EL13: 4 | EM13: 0 | EN13: u | EO13: 10 | EP13: =SUMPRODUCT(($M$3:$M$10=EK13)*($FW$3:$FW$10)) -> 0 | EQ13: =SUMPRODUCT(($M$3:$M$10=EK13)*($GC$3:$GC$10)) -> 0 | ER13: =SUMPRODUCT(($M$3:$M$10=EK13)*($GG$3:$GG$10)) -> 0 | ES13: =SUMPRODUCT(($M$3:$M$10=EK13)*($GI$3:$GI$10)) -> 0 | ET13: =SUMPRODUCT(($M$3:$M$10=EK13)*($GK$3:$GK$10)) -> 0 | EU13: =SUMPRODUCT(($M$3:$M$10=EK13)*($GM$3:$GM$10)) -> 0 | EV13: 0 | EW13: =SUMPRODUCT(($M$3:$M$10=EK13)*($GO$3:$GO$10)) -> 0 | EX13: 0 | EY13: 0 | EZ13: =SUMPRODUCT(($M$3:$M$10=EK13)*($FS$3:$FS$10)) -> 0 | FA13: =SUMPRODUCT(($M$3:$M$10=EK13)*($FU$3:$FU$10)) -> 0 | FB13: 0 | FC13: =SUMPRODUCT(($M$3:$M$10=EK13)*($GQ$3:$GQ$10)) -> 0 | FD13: =SUMPRODUCT(($M$3:$M$10=EK13)*($GS$3:$GS$10)) -> 0 | FE13: 0 | FF13: 4000.1125 | FG13: =FF13+0.00000004 -> 4000.1125 | FH13: 4000.1125 | FI13: =FH13+0.00000004 -> 4000.1125 | FJ13: 0 | FK13: =FJ13+0.00000004 -> 4e-08 | GT13: Nice | GU13: -0.1086 | GV13: =IF(GU13="","",_xlfn.RANK.EQ(GU13,GU3:GU18)) -> 11 | GW13: Périgueux | GX13: Suresnes | GY13: 0 | GZ13: =IF(GY13="","",_xlfn.RANK.EQ(GY13,GY3:GY18)) -> 7 | HA13: Périgueux | HB13: Chambéry | HC13: -0.0791 | HD13: =IF(HC13="","",_xlfn.RANK.EQ(HC13,HC3:HC18)) -> 11 | HE13: Périgueux
N14: =IF(Accueil!$D$2="","",IF(Accueil!$D$2="Choix de la saison","","Aujourd'hui, nous sommes le "&TEXT(TODAY(),"jjjj jj mmmm aaaa"))) -> Aujourd'hui, nous sommes le lundi 11 mars 2024 | U14: 12 | V14: Albi | X14: 0 | Y14: 0 | Z14: u | AA14: 1 | AB14: 0 | AC14: 0 | AD14: 1 | AE14: 6 | AF14: 6 | AG14: 17 | AH14: 17 | AI14: -11 | AJ14: 0 | AK14: 0 | AL14: 0 | AM14: 0 | AN14: 0 | AO14: 0 | AP14: 0 | AQ14: 1 | AR14: -1 | AS14: 7 | AT14: Tarbes | AV14: 0 | AW14: 0 | AX14: u | AY14: 0 | AZ14: 0 | BA14: 0 | BB14: 0 | BC14: 0 | BD14: 0 | BE14: 0 | BF14: 0 | BG14: 0 | BH14: 1 | BI14: 0 | BJ14: 0 | BK14: 1 | BL14: 0 | BM14: 0 | BN14: 0 | BO14: 0 | BP14: 0 | BQ14: 12 | BR14: Nice | BT14: 0 | BU14: 0 | BV14: u | BW14: 1 | BX14: 0 | BY14: 0 | BZ14: 1 | CA14: 14 | CB14: 14 | CC14: 25 | CD14: 25 | CE14: -11 | CF14: 0 | CG14: 0 | CH14: 0 | CI14: 0 | CJ14: 0 | CK14: 0 | CL14: 2 | CM14: 3 | CN14: -1 | CO14: 12 | CP14: 13 | CQ14: 12 | CR14: 11 | CS14: 12 | CT14: 14 | CU14: =IF(Equipes!$C$13="","",Equipes!$C$13) -> Suresnes | CV14: 13 | CW14: 0 | CX14: u | CY14: 13 | CZ14: =SUMPRODUCT(($D$3:$D$10=CU14)*($FX$3:$FX$10))+SUMPRODUCT(($M$3:$M$10=CU14)*($FY$3:$FY$10)) -> 0 | DA14: =SUMPRODUCT(($D$3:$D$10=CU14)*($GB$3:$GB$10))+SUMPRODUCT(($M$3:$M$10=CU14)*($GC$3:$GC$10)) -> 1 | DB14: =SUMPRODUCT(($D$3:$D$10=CU14)*($GF$3:$GF$10))+SUMPRODUCT(($M$3:$M$10=CU14)*($GG$3:$GG$10)) -> 0 | DC14: =SUMPRODUCT(($D$3:$D$10=CU14)*($GH$3:$GH$10))+SUMPRODUCT(($M$3:$M$10=CU14)*($GI$3:$GI$10)) -> 0 | DD14: =SUMPRODUCT(($D$3:$D$10=CU14)*($GJ$3:$GJ$10))+SUMPRODUCT(($M$3:$M$10=CU14)*($GK$3:$GK$10)) -> 1 | DE14: =SUMPRODUCT(($D$3:$D$10=CU14)*($GL$3:$GL$10))+SUMPRODUCT(($M$3:$M$10=CU14)*($GM$3:$GM$10)) -> 10 | DF14: 10 | DG14: =SUMPRODUCT(($D$3:$D$10=CU14)*($GN$3:$GN$10))+SUMPRODUCT(($M$3:$M$10=CU14)*($GO$3:$GO$10)) -> 24 | DH14: 24 | DI14: -14 | DJ14: =SUMPRODUCT(($D$3:$D$10=CU14)*($FR$3:$FR$10))+SUMPRODUCT(($M$3:$M$10=CU14)*($FS$3:$FS$10)) -> 0 | DK14: =SUMPRODUCT(($D$3:$D$10=CU14)*($FT$3:$FT$10))+SUMPRODUCT(($M$3:$M$10=CU14)*($FU$3:$FU$10)) -> 0 | DL14: 0 | DM14: =SUMPRODUCT(($D$3:$D$10=CU14)*($GP$3:$GP$10))+SUMPRODUCT(($M$3:$M$10=CU14)*($GQ$3:$GQ$10)) -> 1 | DN14: =SUMPRODUCT(($D$3:$D$10=CU14)*($GR$3:$GR$10))+SUMPRODUCT(($M$3:$M$10=CU14)*($GS$3:$GS$10)) -> 2 | DO14: -1 | DP14: =IF(Equipes!$C$13="","",Equipes!$C$13) -> Suresnes | DQ14: 7 | DR14: 0 | DS14: u | DT14: 11 | DU14: =SUMPRODUCT(($D$3:$D$10=DP14)*($FV$3:$FV$10)) -> 0 | DV14: =SUMPRODUCT(($D$3:$D$10=DP14)*($GB$3:$GB$10)) -> 0 | DW14: =SUMPRODUCT(($D$3:$D$10=DP14)*($GF$3:$GF$10)) -> 0 | DX14: =SUMPRODUCT(($D$3:$D$10=DP14)*($GH$3:$GH$10)) -> 0 | DY14: =SUMPRODUCT(($D$3:$D$10=DP14)*($GJ$3:$GJ$10)) -> 0 | DZ14: =SUMPRODUCT(($D$3:$D$10=DP14)*($GL$3:$GL$10)) -> 0 | EA14: 0 | EB14: =SUMPRODUCT(($D$3:$D$10=DP14)*($GN$3:$GN$10)) -> 0 | EC14: 0 | ED14: 0 | EE14: =SUMPRODUCT(($D$3:$D$10=DP14)*($FR$3:$FR$10)) -> 0 | EF14: =SUMPRODUCT(($D$3:$D$10=DP14)*($FT$3:$FT$10)) -> 0 | EG14: 0 | EH14: =SUMPRODUCT(($D$3:$D$10=DP14)*($GP$3:$GP$10)) -> 0 | EI14: =SUMPRODUCT(($D$3:$D$10=DP14)*($GR$3:$GR$10)) -> 0 | EJ14: 0 | EK14: =IF(Equipes!$C$13="","",Equipes!$C$13) -> Suresnes | EL14: 14 | EM14: 0 | EN14: u | EO14: 14 | EP14: =SUMPRODUCT(($M$3:$M$10=EK14)*($FW$3:$FW$10)) -> 0 | EQ14: =SUMPRODUCT(($M$3:$M$10=EK14)*($GC$3:$GC$10)) -> 1 | ER14: =SUMPRODUCT(($M$3:$M$10=EK14)*($GG$3:$GG$10)) -> 0 | ES14: =SUMPRODUCT(($M$3:$M$10=EK14)*($GI$3:$GI$10)) -> 0 | ET14: =SUMPRODUCT(($M$3:$M$10=EK14)*($GK$3:$GK$10)) -> 1 | EU14: =SUMPRODUCT(($M$3:$M$10=EK14)*($GM$3:$GM$10)) -> 10 | EV14: 10 | EW14: =SUMPRODUCT(($M$3:$M$10=EK14)*($GO$3:$GO$10)) -> 24 | EX14: 24 | EY14: -14 | EZ14: =SUMPRODUCT(($M$3:$M$10=EK14)*($FS$3:$FS$10)) -> 0 | FA14: =SUMPRODUCT(($M$3:$M$10=EK14)*($FU$3:$FU$10)) -> 0 | FB14: 0 | FC14: =SUMPRODUCT(($M$3:$M$10=EK14)*($GQ$3:$GQ$10)) -> 1 | FD14: =SUMPRODUCT(($M$3:$M$10=EK14)*($GS$3:$GS$10)) -> 2 | FE14: -1 | FF14: -0.139 | FG14: =FF14+0.00000003 -> -0.13899997 | FH14: 0 | FI14: =FH14+0.00000003 -> 3e-08 | FJ14: -0.139 | FK14: =FJ14+0.00000003 -> -0.13899997 | GT14: Albi | GU14: -0.1094 | GV14: =IF(GU14="","",_xlfn.RANK.EQ(GU14,GU3:GU18)) -> 12 | GW14: Suresnes | GX14: Tarbes | GY14: 0 | GZ14: =IF(GY14="","",_xlfn.RANK.EQ(GY14,GY3:GY18)) -> 7 | HA14: Suresnes | HB14: Nice | HC14: -0.1086 | HD14: =IF(HC14="","",_xlfn.RANK.EQ(HC14,HC3:HC18)) -> 12 | HE14: Suresnes
U15: 13 | V15: Suresnes | X15: 0 | Y15: 0 | Z15: u | AA15: 1 | AB15: 0 | AC15: 0 | AD15: 1 | AE15: 10 | AF15: 10 | AG15: 24 | AH15: 24 | AI15: -14 | AJ15: 0 | AK15: 0 | AL15: 0 | AM15: 0 | AN15: 0 | AO15: 0 | AP15: 1 | AQ15: 2 | AR15: -1 | AS15: 7 | AT15: Vienne | AV15: 0 | AW15: 0 | AX15: u | AY15: 0 | AZ15: 0 | BA15: 0 | BB15: 0 | BC15: 0 | BD15: 0 | BE15: 0 | BF15: 0 | BG15: 0 | BH15: 0 | BI15: 0 | BJ15: 0 | BK15: 0 | BL15: 0 | BM15: 0 | BN15: 0 | BO15: 0 | BP15: 0 | BQ15: 13 | BR15: Albi | BT15: 0 | BU15: 0 | BV15: u | BW15: 1 | BX15: 0 | BY15: 0 | BZ15: 1 | CA15: 6 | CB15: 6 | CC15: 17 | CD15: 17 | CE15: -11 | CF15: 0 | CG15: 0 | CH15: 0 | CI15: 0 | CJ15: 0 | CK15: 0 | CL15: 0 | CM15: 1 | CN15: -1 | CO15: 13 | CP15: 9 | CQ15: 13 | CR15: 12 | CS15: 13 | CT15: 3 | CU15: =IF(Equipes!$C$14="","",Equipes!$C$14) -> Tarbes | CV15: 9 | CW15: 0 | CX15: u | CY15: 9 | CZ15: =SUMPRODUCT(($D$3:$D$10=CU15)*($FX$3:$FX$10))+SUMPRODUCT(($M$3:$M$10=CU15)*($FY$3:$FY$10)) -> 1 | DA15: =SUMPRODUCT(($D$3:$D$10=CU15)*($GB$3:$GB$10))+SUMPRODUCT(($M$3:$M$10=CU15)*($GC$3:$GC$10)) -> 1 | DB15: =SUMPRODUCT(($D$3:$D$10=CU15)*($GF$3:$GF$10))+SUMPRODUCT(($M$3:$M$10=CU15)*($GG$3:$GG$10)) -> 0 | DC15: =SUMPRODUCT(($D$3:$D$10=CU15)*($GH$3:$GH$10))+SUMPRODUCT(($M$3:$M$10=CU15)*($GI$3:$GI$10)) -> 0 | DD15: =SUMPRODUCT(($D$3:$D$10=CU15)*($GJ$3:$GJ$10))+SUMPRODUCT(($M$3:$M$10=CU15)*($GK$3:$GK$10)) -> 1 | DE15: =SUMPRODUCT(($D$3:$D$10=CU15)*($GL$3:$GL$10))+SUMPRODUCT(($M$3:$M$10=CU15)*($GM$3:$GM$10)) -> 13 | DF15: 13 | DG15: =SUMPRODUCT(($D$3:$D$10=CU15)*($GN$3:$GN$10))+SUMPRODUCT(($M$3:$M$10=CU15)*($GO$3:$GO$10)) -> 20 | DH15: 20 | DI15: -7 | DJ15: =SUMPRODUCT(($D$3:$D$10=CU15)*($FR$3:$FR$10))+SUMPRODUCT(($M$3:$M$10=CU15)*($FS$3:$FS$10)) -> 0 | DK15: =SUMPRODUCT(($D$3:$D$10=CU15)*($FT$3:$FT$10))+SUMPRODUCT(($M$3:$M$10=CU15)*($FU$3:$FU$10)) -> 1 | DL15: 0 | DM15: =SUMPRODUCT(($D$3:$D$10=CU15)*($GP$3:$GP$10))+SUMPRODUCT(($M$3:$M$10=CU15)*($GQ$3:$GQ$10)) -> 1 | DN15: =SUMPRODUCT(($D$3:$D$10=CU15)*($GR$3:$GR$10))+SUMPRODUCT(($M$3:$M$10=CU15)*($GS$3:$GS$10)) -> 2 | DO15: -1 | DP15: =IF(Equipes!$C$14="","",Equipes!$C$14) -> Tarbes | DQ15: 7 | DR15: 0 | DS15: u | DT15: 12 | DU15: =SUMPRODUCT(($D$3:$D$10=DP15)*($FV$3:$FV$10)) -> 0 | DV15: =SUMPRODUCT(($D$3:$D$10=DP15)*($GB$3:$GB$10)) -> 0 | DW15: =SUMPRODUCT(($D$3:$D$10=DP15)*($GF$3:$GF$10)) -> 0 | DX15: =SUMPRODUCT(($D$3:$D$10=DP15)*($GH$3:$GH$10)) -> 0 | DY15: =SUMPRODUCT(($D$3:$D$10=DP15)*($GJ$3:$GJ$10)) -> 0 | DZ15: =SUMPRODUCT(($D$3:$D$10=DP15)*($GL$3:$GL$10)) -> 0 | EA15: 0 | EB15: =SUMPRODUCT(($D$3:$D$10=DP15)*($GN$3:$GN$10)) -> 0 | EC15: 0 | ED15: 0 | EE15: =SUMPRODUCT(($D$3:$D$10=DP15)*($FR$3:$FR$10)) -> 0 | EF15: 1 | EG15: 0 | EH15: =SUMPRODUCT(($D$3:$D$10=DP15)*($GP$3:$GP$10)) -> 0 | EI15: =SUMPRODUCT(($D$3:$D$10=DP15)*($GR$3:$GR$10)) -> 0 | EJ15: 0 | EK15: =IF(Equipes!$C$14="","",Equipes!$C$14) -> Tarbes | EL15: 3 | EM15: 0 | EN15: u | EO15: 3 | EP15: =SUMPRODUCT(($M$3:$M$10=EK15)*($FW$3:$FW$10)) -> 1 | EQ15: =SUMPRODUCT(($M$3:$M$10=EK15)*($GC$3:$GC$10)) -> 1 | ER15: =SUMPRODUCT(($M$3:$M$10=EK15)*($GG$3:$GG$10)) -> 0 | ES15: =SUMPRODUCT(($M$3:$M$10=EK15)*($GI$3:$GI$10)) -> 0 | ET15: =SUMPRODUCT(($M$3:$M$10=EK15)*($GK$3:$GK$10)) -> 1 | EU15: =SUMPRODUCT(($M$3:$M$10=EK15)*($GM$3:$GM$10)) -> 13 | EV15: 13 | EW15: =SUMPRODUCT(($M$3:$M$10=EK15)*($GO$3:$GO$10)) -> 20 | EX15: 20 | EY15: -7 | EZ15: =SUMPRODUCT(($M$3:$M$10=EK15)*($FS$3:$FS$10)) -> 0 | FA15: =SUMPRODUCT(($M$3:$M$10=EK15)*($FU$3:$FU$10)) -> 1 | FB15: 0 | FC15: =SUMPRODUCT(($M$3:$M$10=EK15)*($GQ$3:$GQ$10)) -> 1 | FD15: =SUMPRODUCT(($M$3:$M$10=EK15)*($GS$3:$GS$10)) -> 2 | FE15: -1 | FF15: 999.9313 | FG15: =FF15+0.00000002 -> 999.9313 | FH15: 0 | FI15: =FH15+0.00000002 -> 2e-08 | FJ15: 999.9313 | FK15: =FJ15+0.00000002 -> 999.9313 | GT15: Suresnes | GU15: -0.139 | GV15: =IF(GU15="","",_xlfn.RANK.EQ(GU15,GU3:GU18)) -> 13 | GW15: Tarbes | GX15: Vienne | GY15: 0 | GZ15: =IF(GY15="","",_xlfn.RANK.EQ(GY15,GY3:GY18)) -> 7 | HA15: Tarbes | HB15: Albi | HC15: -0.1094 | HD15: =IF(HC15="","",_xlfn.RANK.EQ(HC15,HC3:HC18)) -> 13 | HE15: Tarbes
N16: =IF(Equipes!$M$20="","",Equipes!$M$20) -> Date du début du Championnat : vendredi 25 août 2023 | U16: 14 | V16: Blagnac | X16: -2 | Y16: 0 | Z16: u | AA16: 1 | AB16: 0 | AC16: 0 | AD16: 1 | AE16: 0 | AF16: 0 | AG16: 25 | AH16: 25 | AI16: -25 | AJ16: 0 | AK16: 0 | AL16: 0 | AM16: 0 | AN16: 0 | AO16: 0 | AP16: 0 | AQ16: 0 | AR16: 0 | AS16: 14 | AT16: Blagnac | AV16: 0 | AW16: 0 | AX16: u | AY16: 1 | AZ16: 0 | BA16: 0 | BB16: 1 | BC16: 0 | BD16: 0 | BE16: 25 | BF16: 25 | BG16: -25 | BH16: 0 | BI16: 0 | BJ16: 0 | BK16: 0 | BL16: 0 | BM16: 0 | BN16: 0 | BO16: 0 | BP16: 0 | BQ16: 14 | BR16: Suresnes | BT16: 0 | BU16: 0 | BV16: u | BW16: 1 | BX16: 0 | BY16: 0 | BZ16: 1 | CA16: 10 | CB16: 10 | CC16: 24 | CD16: 24 | CE16: -14 | CF16: 0 | CG16: 0 | CH16: 0 | CI16: 0 | CJ16: 0 | CK16: 0 | CL16: 1 | CM16: 2 | CN16: -1 | CO16: 14 | CP16: 1 | CQ16: 14 | CR16: 13 | CS16: 14 | CT16: 1 | CU16: =IF(Equipes!$C$15="","",Equipes!$C$15) -> Vienne | CV16: 1 | CW16: 0 | CX16: u | CY16: 1 | CZ16: =SUMPRODUCT(($D$3:$D$10=CU16)*($FX$3:$FX$10))+SUMPRODUCT(($M$3:$M$10=CU16)*($FY$3:$FY$10)) -> 5 | DA16: =SUMPRODUCT(($D$3:$D$10=CU16)*($GB$3:$GB$10))+SUMPRODUCT(($M$3:$M$10=CU16)*($GC$3:$GC$10)) -> 1 | DB16: =SUMPRODUCT(($D$3:$D$10=CU16)*($GF$3:$GF$10))+SUMPRODUCT(($M$3:$M$10=CU16)*($GG$3:$GG$10)) -> 1 | DC16: =SUMPRODUCT(($D$3:$D$10=CU16)*($GH$3:$GH$10))+SUMPRODUCT(($M$3:$M$10=CU16)*($GI$3:$GI$10)) -> 0 | DD16: =SUMPRODUCT(($D$3:$D$10=CU16)*($GJ$3:$GJ$10))+SUMPRODUCT(($M$3:$M$10=CU16)*($GK$3:$GK$10)) -> 0 | DE16: =SUMPRODUCT(($D$3:$D$10=CU16)*($GL$3:$GL$10))+SUMPRODUCT(($M$3:$M$10=CU16)*($GM$3:$GM$10)) -> 25 | DF16: 25 | DG16: =SUMPRODUCT(($D$3:$D$10=CU16)*($GN$3:$GN$10))+SUMPRODUCT(($M$3:$M$10=CU16)*($GO$3:$GO$10)) -> 0 | DH16: 0 | DI16: 25 | DJ16: =SUMPRODUCT(($D$3:$D$10=CU16)*($FR$3:$FR$10))+SUMPRODUCT(($M$3:$M$10=CU16)*($FS$3:$FS$10)) -> 0 | DK16: =SUMPRODUCT(($D$3:$D$10=CU16)*($FT$3:$FT$10))+SUMPRODUCT(($M$3:$M$10=CU16)*($FU$3:$FU$10)) -> 0 | DL16: 0 | DM16: =SUMPRODUCT(($D$3:$D$10=CU16)*($GP$3:$GP$10))+SUMPRODUCT(($M$3:$M$10=CU16)*($GQ$3:$GQ$10)) -> 0 | DN16: =SUMPRODUCT(($D$3:$D$10=CU16)*($GR$3:$GR$10))+SUMPRODUCT(($M$3:$M$10=CU16)*($GS$3:$GS$10)) -> 0 | DO16: 0 | DP16: =IF(Equipes!$C$15="","",Equipes!$C$15) -> Vienne | DQ16: 7 | DR16: 0 | DS16: u | DT16: 13 | DU16: =SUMPRODUCT(($D$3:$D$10=DP16)*($FV$3:$FV$10)) -> 0 | DV16: =SUMPRODUCT(($D$3:$D$10=DP16)*($GB$3:$GB$10)) -> 0 | DW16: =SUMPRODUCT(($D$3:$D$10=DP16)*($GF$3:$GF$10)) -> 0 | DX16: =SUMPRODUCT(($D$3:$D$10=DP16)*($GH$3:$GH$10)) -> 0 | DY16: =SUMPRODUCT(($D$3:$D$10=DP16)*($GJ$3:$GJ$10)) -> 0 | DZ16: =SUMPRODUCT(($D$3:$D$10=DP16)*($GL$3:$GL$10)) -> 0 | EA16: 0 | EB16: =SUMPRODUCT(($D$3:$D$10=DP16)*($GN$3:$GN$10)) -> 0 | EC16: 0 | ED16: 0 | EE16: =SUMPRODUCT(($D$3:$D$10=DP16)*($FR$3:$FR$10)) -> 0 | EF16: =SUMPRODUCT(($D$3:$D$10=DP16)*($FT$3:$FT$10)) -> 0 | EG16: 0 | EH16: =SUMPRODUCT(($D$3:$D$10=DP16)*($GP$3:$GP$10)) -> 0 | EI16: =SUMPRODUCT(($D$3:$D$10=DP16)*($GR$3:$GR$10)) -> 0 | EJ16: 0 | EK16: =IF(Equipes!$C$15="","",Equipes!$C$15) -> Vienne | EL16: 1 | EM16: 0 | EN16: u | EO16: 1 | EP16: =SUMPRODUCT(($M$3:$M$10=EK16)*($FW$3:$FW$10)) -> 4 | EQ16: =SUMPRODUCT(($M$3:$M$10=EK16)*($GC$3:$GC$10)) -> 1 | ER16: =SUMPRODUCT(($M$3:$M$10=EK16)*($GG$3:$GG$10)) -> 1 | ES16: =SUMPRODUCT(($M$3:$M$10=EK16)*($GI$3:$GI$10)) -> 0 | ET16: =SUMPRODUCT(($M$3:$M$10=EK16)*($GK$3:$GK$10)) -> 0 | EU16: =SUMPRODUCT(($M$3:$M$10=EK16)*($GM$3:$GM$10)) -> 25 | EV16: 25 | EW16: =SUMPRODUCT(($M$3:$M$10=EK16)*($GO$3:$GO$10)) -> 0 | EX16: 0 | EY16: 25 | EZ16: =SUMPRODUCT(($M$3:$M$10=EK16)*($FS$3:$FS$10)) -> 0 | FA16: =SUMPRODUCT(($M$3:$M$10=EK16)*($FU$3:$FU$10)) -> 0 | FB16: 0 | FC16: =SUMPRODUCT(($M$3:$M$10=EK16)*($GQ$3:$GQ$10)) -> 0 | FD16: =SUMPRODUCT(($M$3:$M$10=EK16)*($GS$3:$GS$10)) -> 0 | FE16: 0 | FF16: 5000.2525 | FG16: =FF16+0.00000001 -> 5000.2525 | FH16: 0 | FI16: =FH16+0.00000001 -> 1e-08 | FJ16: 4000.2525 | FK16: =FJ16+0.00000001 -> 4000.2525 | GT16: Blagnac | GU16: -2000.25 | GV16: =IF(GU16="","",_xlfn.RANK.EQ(GU16,GU3:GU18)) -> 14 | GW16: Vienne | GX16: Blagnac | GY16: -0.25 | GZ16: =IF(GY16="","",_xlfn.RANK.EQ(GY16,GY3:GY18)) -> 14 | HA16: Vienne | HB16: Suresnes | HC16: -0.139 | HD16: =IF(HC16="","",_xlfn.RANK.EQ(HC16,HC3:HC18)) -> 14 | HE16: Vienne
N18: =IF(Equipes!$M$22="","",Equipes!$M$22) -> Date de la fin du Championnat : samedi 27 avril 2024
AA20: =IF(SUM(AA3:AA16)<>0,SUM(AA3:AA16),"") -> 14 | CV20: p | CW20: u | CX20: q | DQ20: p | DR20: u | DS20: q | EL20: p | EM20: u | EN20: q
CV21: p | CW21: u | CX21: q | DQ21: p | DR21: u | DS21: q | EL21: p | EM21: u | EN21: q

Sheet J02
A1: =IF(Accueil!$H$2="","",IF(Accueil!$H$2="Choix du Championnat de Rugby","",IF(Accueil!$B$2="","",IF(Accueil!$D$2="","",IF(Accueil!$D$2="Choix de la saison","",_xlfn.CONCAT(Accueil!$H$2," / ",Accueil!$B$2," ",Accueil!$D$2)))))) -> Championnat de France de Rugby à 15 - Nationale / Saison du Championnat : 2023 - 2024 | S1: ='J01'!S1+1 -> 2 | U1: CLASSEMENT GENERAL | AS1: CLASSEMENT A DOMICILE | BQ1: CLASSEMENT A L'EXTERIEUR | CO1: =U1 -> CLASSEMENT GENERAL | CQ1: =AS1 -> CLASSEMENT A DOMICILE | CS1: =BQ1 -> CLASSEMENT A L'EXTERIEUR | CU1: =U1 -> CLASSEMENT GENERAL | DP1: =AS1 -> CLASSEMENT A DOMICILE | EK1: =BQ1 -> CLASSEMENT A L'EXTERIEUR | FF1: =U1 -> CLASSEMENT GENERAL | FH1: =AS1 -> CLASSEMENT A DOMICILE | FJ1: =BQ1 -> CLASSEMENT A L'EXTERIEUR | FL1: Dom. | FM1: Ext. | FN1: Dom. | FO1: Ext. | FP1: Dom. | FQ1: Ext. | FR1: Dom. | FS1: Ext. | FT1: Dom. | FU1: Ext. | FV1: Dom. | FW1: Ext. | FX1: Dom. | FY1: Ext. | FZ1: Dom. | GA1: Ext. | GB1: Dom. | GC1: Ext. | GD1: Dom. | GE1: Ext. | GF1: Dom. | GG1: Ext. | GH1: Dom. | GI1: Ext. | GJ1: Dom. | GK1: Ext. | GL1: Dom. | GM1: Ext. | GN1: Dom. | GO1: Ext. | GP1: Dom. | GQ1: Ext. | GR1: Dom. | GS1: Ext. | GT1: =U1 -> CLASSEMENT GENERAL | GX1: =AS1 -> CLASSEMENT A DOMICILE | HB1: =BQ1 -> CLASSEMENT A L'EXTERIEUR
A2: Points de pénalités | B2: Points de bonus | C2: Equipes exclues, forfaits, matchs gagnés ou perdus sur tapis vert | D2: Equipes | E2: Points | F2: Bonus défensif Bd | G2: Essais | H2: Bonus offensif Bo | I2: Points | J2: Bonus défensif Bd | K2: Essais | L2: Bonus offensif Bo | M2: Equipes | N2: Equipes exclues, forfaits, matchs gagnés ou perdus sur tapis vert | O2: Points de bonus | P2: Points de pénalités | Q2: Dates | R2: Horaires | S2: Matchs à rejouer, annulés, arrêtés, avec réserves, reportés ou reprogrammés | U2: Place | V2: Equipes | W2: Logo | X2: Points | Y2: Evolution | AA2: Joués | AB2: Gagnés | AC2: Nuls | AD2: Perdus | AE2: Points marqués | AF2: Moyenne par match | AG2: Points encaissés | AH2: Moyenne par match | AI2: +/- | AJ2: Tous les bonus | AK2: B.O + B.P | AL2: Bonus offensif | AM2: Bonus défensif | AN2: Bonus fédération | AO2: Bonus pénalité | AP2: Essais marqués | AQ2: Essais encaissés | AR2: +/- | AS2: Place | AT2: Equipes | AU2: Logo | AV2: Points | AW2: Evolution | AY2: Joués | AZ2: Gagnés | BA2: Nuls | BB2: Perdus | BC2: Points marqués | BD2: Moyenne par match | BE2: Points encaissés | BF2: Moyenne par match | BG2: +/- | BH2: Tous les bonus | BI2: B.O + B.P | BJ2: Bonus offensif | BK2: Bonus défensif | BL2: Bonus fédération | BM2: Bonus pénalité | BN2: Essais marqués | BO2: Essais encaissés | BP2: +/- | BQ2: Place | BR2: Equipes | BS2: Logo | BT2: Points | BU2: Evolution | BW2: Joués | BX2: Gagnés | BY2: Nuls | BZ2: Perdus | CA2: Points marqués | CB2: Moyenne par match | CC2: Points encaissés | CD2: Moyenne par match | CE2: +/- | CF2: Tous les bonus | CG2: B.O + B.P | CH2: Bonus offensif | CI2: Bonus défensif | CJ2: Bonus fédération | CK2: Bonus pénalité | CL2: Essais marqués | CM2: Essais encaissés | CN2: +/- | CO2: Rang | CP2: Place | CQ2: Rang | CR2: Place | CS2: Rang | CT2: Place | CU2: Equipes | CV2: Rang | CW2: Evolution | CY2: Place | CZ2: Points | DA2: Joués | DB2: Gagnés | DC2: Nuls | DD2: Perdus | DE2: Points marqués | DF2: Moyenne par match | DG2: Points encaissés | DH2: Moyenne par match | DI2: +/- | DJ2: Bonus offensif | DK2: Bonus défensif | DL2: Bonus fédération | DM2: Essais marqués | DN2: Essais encaissés | DO2: +/- | DP2: Equipes | DQ2: Rang | DR2: Evolution | DT2: Place | DU2: Points | DV2: Joués | DW2: Gagnés | DX2: Nuls | DY2: Perdus | DZ2: Points marqués | EA2: Moyenne par match | EB2: Points encaissés | EC2: Moyenne par match | ED2: +/- | EE2: Bonus offensif | EF2: Bonus défensif | EG2: Bonus fédération | EH2: Essais marqués | EI2: Essais encaissés | EJ2: +/- | EK2: Equipes | EL2: Rang | EM2: Evolution | EO2: Place | EP2: Points | EQ2: Joués | ER2: Gagnés | ES2: Nuls | ET2: Perdus | EU2: Points marqués | EV2: Moyenne par match | EW2: Points encaissés | EX2: Moyenne par match | EY2: +/- | EZ2: Bonus offensif | FA2: Bonus défensif | FB2: Bonus fédération | FC2: Essais marqués | FD2: Essais encaissés | FE2: +/- | FF2: Rang | FG2: Place | FH2: Rang | FI2: Place | FJ2: Rang | FK2: Place | FL2: Points de pénalités | FM2: Points de pénalités | FN2: Points de bonus | FO2: Points de bonus | FP2: Pts | FQ2: Pts | FR2: Bo | FS2: Bo | FT2: Bd | FU2: Bd | FV2: T Pts | FW2: T Pts | FX2: T Pts | FY2: TPts | FZ2: J annulé | GA2: J annulé | GB2: J | GC2: J | GD2: Total J | GE2: Total J | GF2: G | GG2: G | GH2: N | GI2: N | GJ2: P | GK2: P | GL2: Pts + | GM2: Pts + | GN2: Pts - | GO2: Pts - | GP2: Essais + | GQ2: Essais + | GR2: Essais - | GS2: Essais - | GT2: Equipes | GU2: Rang | GV2: Place | GW2: Equipes | GX2: Equipes | GY2: Rang | GZ2: Place | HA2: Equipes | HB2: Equipes | HC2: Rang | HD2: Place | HE2: Equipes | HG2: ok | HH2: Dates et horaires des matchs prévus | HI2: Dates et horaires des matchs restant à jouer | HJ2: Date et horaire minimum à jouer | HK2: Date et horaire maximum à jouer | HM2: Total J | HN2: Total J
D3: Hyères | E3: 16 | F3: =IF(E3="","",IF(I3="","",IF(E3>I3,"",IF(E3=I3,"",IF(E3<I3,IF(SUM(I3-E3)<=7,"Bd","")))))) ->  | G3: 1 | H3: =IF(G3="","",IF(K3="","",IF(SUM(G3-K3)>=3,"Bo",""))) ->  | I3: 16 | J3: =IF(I3="","",IF(E3="","",IF(I3>E3,"",IF(I3=E3,"",IF(I3<E3,IF(SUM(E3-I3)<=7,"Bd","")))))) ->  | K3: 1 | L3: =IF(K3="","",IF(G3="","",IF(SUM(K3-G3)>=3,"Bo",""))) ->  | M3: Chambéry | Q3: Samedi 2 septembre 2023 | R3: 15:30:00 | U3: 1 | V3: =IFERROR(_xlfn.XLOOKUP(CO3,$CP$3:$CP$18,$CU$3:$CU$18),"") -> Périgueux | X3: =IFERROR(_xlfn.XLOOKUP(V3,$CU$3:$CU$18,$CZ$3:$CZ$18),"") -> 8 | Y3: =IFERROR(_xlfn.XLOOKUP(V3,$CU$3:$CU$18,$CW$3:$CW$18),"") -> 2 | Z3: =IFERROR(_xlfn.XLOOKUP(V3,$CU$3:$CU$18,$CX$3:$CX$18),"") -> p | AA3: =IFERROR(_xlfn.XLOOKUP(V3,$CU$3:$CU$18,$DA$3:$DA$18),"") -> 2 | AB3: =IFERROR(_xlfn.XLOOKUP(V3,$CU$3:$CU$18,$DB$3:$DB$18),"") -> 2 | AC3: =IFERROR(_xlfn.XLOOKUP(V3,$CU$3:$CU$18,$DC$3:$DC$18),"") -> 0 | AD3: =IFERROR(_xlfn.XLOOKUP(V3,$CU$3:$CU$18,$DD$3:$DD$18),"") -> 0 | AE3: =IFERROR(_xlfn.XLOOKUP(V3,$CU$3:$CU$18,$DE$3:$DE$18),"") -> 47 | AF3: =IFERROR(ROUND(AE3/AA3,0),0) -> 24 | AG3: =IFERROR(_xlfn.XLOOKUP(V3,$CU$3:$CU$18,$DG$3:$DG$18),"") -> 21 | AH3: =IFERROR(ROUND(AG3/AA3,0),0) -> 11 | AI3: =IFERROR(_xlfn.XLOOKUP(V3,$CU$3:$CU$18,$DI$3:$DI$18),"") -> 26 | AJ3: =SUM(AL3:AO3) -> 0 | AK3: =(AL3+AO3) -> 0 | AL3: =IFERROR(_xlfn.XLOOKUP(V3,$CU$3:$CU$18,$DJ$3:$DJ$18),"") -> 0 | AM3: =IFERROR(_xlfn.XLOOKUP(V3,$CU$3:$CU$18,$DK$3:$DK$18),"") -> 0 | AN3: 0 | AO3: 0 | AP3: =IFERROR(_xlfn.XLOOKUP(V3,$CU$3:$CU$18,$DM$3:$DM$18),"") -> 6 | AQ3: =IFERROR(_xlfn.XLOOKUP(V3,$CU$3:$CU$18,$DN$3:$DN$18),"") -> 3 | AR3: =IFERROR(_xlfn.XLOOKUP(V3,$CU$3:$CU$18,$DO$3:$DO$18),"") -> 3 | AS3: 1 | AT3: =IFERROR(_xlfn.XLOOKUP(CQ3,$CR$3:$CR$18,$DP$3:$DP$18),"") -> Périgueux | AV3: =IFERROR(_xlfn.XLOOKUP(AT3,$DP$3:$DP$18,$DU$3:$DU$18),"") -> 8 | AW3: =IFERROR(_xlfn.XLOOKUP(AT3,$DP$3:$DP$18,$DR$3:$DR$18),"") -> 1 | AX3: =IFERROR(_xlfn.XLOOKUP(AT3,$DP$3:$DP$18,$DS$3:$DS$18),"") -> p | AY3: =IFERROR(_xlfn.XLOOKUP(AT3,$DP$3:$DP$18,$DV$3:$DV$18),"") -> 2 | AZ3: =IFERROR(_xlfn.XLOOKUP(AT3,$DP$3:$DP$18,$DW$3:$DW$18),"") -> 2 | BA3: =IFERROR(_xlfn.XLOOKUP(AT3,$DP$3:$DP$18,$DX$3:$DX$18),"") -> 0 | BB3: =IFERROR(_xlfn.XLOOKUP(AT3,$DP$3:$DP$18,$DY$3:$DY$18),"") -> 0 | BC3: =IFERROR(_xlfn.XLOOKUP(AT3,$DP$3:$DP$18,$DZ$3:$DZ$18),"") -> 47 | BD3: =IFERROR(ROUND(BC3/AY3,0),0) -> 24 | BE3: =IFERROR(_xlfn.XLOOKUP(AT3,$DP$3:$DP$18,$EB$3:$EB$18),"") -> 21 | BF3: =IFERROR(ROUND(BE3/AY3,0),0) -> 11 | BG3: =IFERROR(_xlfn.XLOOKUP(AT3,$DP$3:$DP$18,$ED$3:$ED$18),"") -> 26 | BH3: =SUM(BJ3:BM3) -> 0 | BI3: =(BJ3+BM3) -> 0 | BJ3: =IFERROR(_xlfn.XLOOKUP(AT3,$DP$3:$DP$18,$EE$3:$EE$18),"") -> 0 | BK3: =IFERROR(_xlfn.XLOOKUP(AT3,$DP$3:$DP$18,$EF$3:$EF$18),"") -> 0 | BL3: 0 | BM3: 0 | BN3: =IFERROR(_xlfn.XLOOKUP(AT3,$DP$3:$DP$18,$EH$3:$EH$18),"") -> 6 | BO3: =IFERROR(_xlfn.XLOOKUP(AT3,$DP$3:$DP$18,$EI$3:$EI$18),"") -> 3 | BP3: =IFERROR(_xlfn.XLOOKUP(AT3,$DP$3:$DP$18,$EJ$3:$EJ$18),"") -> 3 | BQ3: 1 | BR3: =IFERROR(_xlfn.XLOOKUP(CS3,$CT$3:$CT$18,$EK$3:$EK$18),"") -> Nice | BT3: =IFERROR(_xlfn.XLOOKUP(BR3,$EK$3:$EK$18,$EP$3:$EP$18),"") -> 5 | BU3: =IFERROR(_xlfn.XLOOKUP(BR3,$EK$3:$EK$18,$EM$3:$EM$18),"") -> 11 | BV3: =IFERROR(_xlfn.XLOOKUP(BR3,$EK$3:$EK$18,$EN$3:$EN$18),"") -> p | BW3: =IFERROR(_xlfn.XLOOKUP(BR3,$EK$3:$EK$18,$EQ$3:$EQ$18),"") -> 2 | BX3: =IFERROR(_xlfn.XLOOKUP(BR3,$EK$3:$EK$18,$ER$3:$ER$18),"") -> 1 | BY3: =IFERROR(_xlfn.XLOOKUP(BR3,$EK$3:$EK$18,$ES$3:$ES$18),"") -> 0 | BZ3: =IFERROR(_xlfn.XLOOKUP(BR3,$EK$3:$EK$18,$ET$3:$ET$18),"") -> 1 | CA3: =IFERROR(_xlfn.XLOOKUP(BR3,$EK$3:$EK$18,$EU$3:$EU$18),"") -> 39 | CB3: =IFERROR(ROUND(CA3/BW3,0),0) -> 20 | CC3: =IFERROR(_xlfn.XLOOKUP(BR3,$EK$3:$EK$18,$EW$3:$EW$18),"") -> 28 | CD3: =IFERROR(ROUND(CC3/BW3,0),0) -> 14 | CE3: =IFERROR(_xlfn.XLOOKUP(BR3,$EK$3:$EK$18,$EY$3:$EY$18),"") -> 11 | CF3: =SUM(CH3:CK3) -> 1 | CG3: =(CH3+CK3) -> 1 | CH3: =IFERROR(_xlfn.XLOOKUP(BR3,$EK$3:$EK$18,$EZ$3:$EZ$18),"") -> 1 | CI3: =IFERROR(_xlfn.XLOOKUP(BR3,$EK$3:$EK$18,$FA$3:$FA$18),"") -> 0 | CJ3: 0 | CK3: 0 | CL3: =IFERROR(_xlfn.XLOOKUP(BR3,$EK$3:$EK$18,$FC$3:$FC$18),"") -> 5 | CM3: =IFERROR(_xlfn.XLOOKUP(BR3,$EK$3:$EK$18,$FD$3:$FD$18),"") -> 3 | CN3: =IFERROR(_xlfn.XLOOKUP(BR3,$EK$3:$EK$18,$FE$3:$FE$18),"") -> 2 | CO3: 1 | CP3: =CY3 -> 9 | CQ3: 1 | CR3: =DT3 -> 5 | CS3: 1 | CT3: =EO3 -> 12 | CU3: =IF(Equipes!$C$2="","",Equipes!$C$2) -> Albi | CV3: =_xlfn.RANK.EQ(FF3,$FF$3:$FF$18) -> 9 | CW3: ='J01'!CV3-CV3 -> 3 | CX3: =IF(CV3>'J01'!CV3,'J01'!$CX$20,IF(CV3='J01'!CV3,'J01'!$CW$20,IF(CV3<'J01'!CV3,'J01'!$CV$20))) -> p | CY3: =_xlfn.RANK.EQ(FG3,$FG$3:$FG$18) -> 9 | CZ3: =SUMPRODUCT(($D$3:$D$10=CU3)*($FX$3:$FX$10))+SUMPRODUCT(($M$3:$M$10=CU3)*($FY$3:$FY$10))+'J01'!CZ3+DL3 -> 4 | DA3: =SUMPRODUCT(($D$3:$D$10=CU3)*($GB$3:$GB$10))+SUMPRODUCT(($M$3:$M$10=CU3)*($GC$3:$GC$10))+'J01'!DA3 -> 2 | DB3: =SUMPRODUCT(($D$3:$D$10=CU3)*($GF$3:$GF$10))+SUMPRODUCT(($M$3:$M$10=CU3)*($GG$3:$GG$10))+'J01'!DB3 -> 1 | DC3: =SUMPRODUCT(($D$3:$D$10=CU3)*($GH$3:$GH$10))+SUMPRODUCT(($M$3:$M$10=CU3)*($GI$3:$GI$10))+'J01'!DC3 -> 0 | DD3: =SUMPRODUCT(($D$3:$D$10=CU3)*($GJ$3:$GJ$10))+SUMPRODUCT(($M$3:$M$10=CU3)*($GK$3:$GK$10))+'J01'!DD3 -> 1 | DE3: =SUMPRODUCT(($D$3:$D$10=CU3)*($GL$3:$GL$10))+SUMPRODUCT(($M$3:$M$10=CU3)*($GM$3:$GM$10))+'J01'!DE3 -> 33 | DF3: =ROUND(DE3/DA3,0) -> 17 | DG3: =SUMPRODUCT(($D$3:$D$10=CU3)*($GN$3:$GN$10))+SUMPRODUCT(($M$3:$M$10=CU3)*($GO$3:$GO$10))+'J01'!DG3 -> 33 | DH3: =ROUND(DG3/DA3,0) -> 17 | DI3: =DE3-DG3 -> 0 | DJ3: =SUMPRODUCT(($D$3:$D$10=CU3)*($FR$3:$FR$10))+SUMPRODUCT(($M$3:$M$10=CU3)*($FS$3:$FS$10))+'J01'!DJ3 -> 0 | DK3: =SUMPRODUCT(($D$3:$D$10=CU3)*($FT$3:$FT$10))+SUMPRODUCT(($M$3:$M$10=CU3)*($FU$3:$FU$10))+'J01'!DK3 -> 0 | DL3: 0 | DM3: =SUMPRODUCT(($D$3:$D$10=CU3)*($GP$3:$GP$10))+SUMPRODUCT(($M$3:$M$10=CU3)*($GQ$3:$GQ$10))+'J01'!DM3 -> 3 | DN3: =SUMPRODUCT(($D$3:$D$10=CU3)*($GR$3:$GR$10))+SUMPRODUCT(($M$3:$M$10=CU3)*($GS$3:$GS$10))+'J01'!DN3 -> 2 | DO3: =DM3-DN3 -> 1 | DP3: =IF(Equipes!$C$2="","",Equipes!$C$2) -> Albi | DQ3: =_xlfn.RANK.EQ(FH3,$FH$3:$FH$18) -> 5 | DR3: ='J01'!DQ3-DQ3 -> 2 | DS3: =IF(DQ3>'J01'!DQ3,'J01'!$DS$20,IF(DQ3='J01'!DQ3,'J01'!$DR$20,IF(DQ3<'J01'!DQ3,'J01'!$DQ$20))) -> p | DT3: =_xlfn.RANK.EQ(FI3,$FI$3:$FI$18) -> 5 | DU3: =SUMPRODUCT(($D$3:$D$10=DP3)*($FV$3:$FV$10))+'J01'!DU3+EG3 -> 4 | DV3: =SUMPRODUCT(($D$3:$D$10=DP3)*($GB$3:$GB$10))+'J01'!DV3 -> 1 | DW3: =SUMPRODUCT(($D$3:$D$10=DP3)*($GF$3:$GF$10))+'J01'!DW3 -> 1 | DX3: =SUMPRODUCT(($D$3:$D$10=DP3)*($GH$3:$GH$10))+'J01'!DX3 -> 0 | DY3: =SUMPRODUCT(($D$3:$D$10=DP3)*($GJ$3:$GJ$10))+'J01'!DY3 -> 0 | DZ3: =SUMPRODUCT(($D$3:$D$10=DP3)*($GL$3:$GL$10))+'J01'!DZ3 -> 27 | EA3: =IFERROR(ROUND(DZ3/DV3,0),0) -> 27 | EB3: =SUMPRODUCT(($D$3:$D$10=DP3)*($GN$3:$GN$10))+'J01'!EB3 -> 16 | EC3: =IFERROR(ROUND(EB3/DV3,0),0) -> 16 | ED3: =DZ3-EB3 -> 11 | EE3: =SUMPRODUCT(($D$3:$D$10=DP3)*($FR$3:$FR$10))+'J01'!EE3 -> 0 | EF3: =SUMPRODUCT(($D$3:$D$10=DP3)*($FT$3:$FT$10))+'J01'!EF3 -> 0 | EG3: 0 | EH3: =SUMPRODUCT(($D$3:$D$10=DP3)*($GP$3:$GP$10))+'J01'!EH3 -> 3 | EI3: =SUMPRODUCT(($D$3:$D$10=DP3)*($GR$3:$GR$10))+'J01'!EI3 -> 1 | EJ3: =EH3-EI3 -> 2 | EK3: =IF(Equipes!$C$2="","",Equipes!$C$2) -> Albi | EL3: =_xlfn.RANK.EQ(FJ3,$FJ$3:$FJ$18) -> 12 | EM3: ='J01'!EL3-EL3 -> 1 | EN3: =IF(EL3>'J01'!EL3,'J01'!$EN$20,IF(EL3='J01'!EL3,'J01'!$EM$20,IF(EL3<'J01'!EL3,'J01'!$EL$20))) -> p | EO3: =_xlfn.RANK.EQ(FK3,$FK$3:$FK$18) -> 12 | EP3: =SUMPRODUCT(($M$3:$M$10=EK3)*($FW$3:$FW$10))+'J01'!EP3+FB3 -> 0 | EQ3: =SUMPRODUCT(($M$3:$M$10=EK3)*($GC$3:$GC$10))+'J01'!EQ3 -> 1 | ER3: =SUMPRODUCT(($M$3:$M$10=EK3)*($GG$3:$GG$10))+'J01'!ER3 -> 0 | ES3: =SUMPRODUCT(($M$3:$M$10=EK3)*($GI$3:$GI$10))+'J01'!ES3 -> 0 | ET3: =SUMPRODUCT(($M$3:$M$10=EK3)*($GK$3:$GK$10))+'J01'!ET3 -> 1 | EU3: =SUMPRODUCT(($M$3:$M$10=EK3)*($GM$3:$GM$10))+'J01'!EU3 -> 6 | EV3: =IFERROR(EU3/EQ3,0) -> 6 | EW3: =SUMPRODUCT(($M$3:$M$10=EK3)*($GO$3:$GO$10))+'J01'!EW3 -> 17 | EX3: =IFERROR(EW3/EQ3,0) -> 17 | EY3: =EU3-EW3 -> -11 | EZ3: =SUMPRODUCT(($M$3:$M$10=EK3)*($FS$3:$FS$10))+'J01'!EZ3 -> 0 | FA3: =SUMPRODUCT(($M$3:$M$10=EK3)*($FU$3:$FU$10))+'J01'!FA3 -> 0 | FB3: 0 | FC3: =SUMPRODUCT(($M$3:$M$10=EK3)*($GQ$3:$GQ$10))+'J01'!FC3 -> 0 | FD3: =SUMPRODUCT(($M$3:$M$10=EK3)*($GS$3:$GS$10))+'J01'!FD3 -> 1 | FE3: =FC3-FD3 -> -1 | FF3: =SUM(CZ3*1000)+(DI3/100)+(DE3/10000) -> 4000.0033 | FG3: =FF3+0.00000014 -> 4000.0033 | FH3: =SUM(DU3*1000)+(ED3/100)+(DZ3/10000) -> 4000.1127 | FI3: =FH3+0.00000014 -> 4000.1127 | FJ3: =SUM(EP3*1000)+(EY3/100)+(EU3/10000) -> -0.1094 | FK3: =FJ3+0.00000014 -> -0.10939986 | FL3: =A3 -> 0 | FM3: =P3 -> 0 | FN3: =$B3 -> 0 | FO3: =$O3 -> 0 | FP3: =IF(E3="",0,IF(I3="",0,IF(E3>I3,4,IF(E3=I3,2,IF(E3<I3,0))))) -> 2 | FQ3: =IF(I3="",0,IF(E3="",0,IF(I3>E3,4,IF(I3=E3,2,IF(I3<E3,0))))) -> 2 | FR3: =IF(G3<>"",IF(SUM(G3-K3)>=3,1)) -> FALSE | FS3: =IF(K3<>"",IF(SUM(K3-G3)>=3,1)) -> FALSE | FT3: =IF(E3<>"",IF(E3<I3,IF(SUM(I3-E3)<=7,1))) -> FALSE | FU3: =IF(I3<>"",IF(I3<E3,IF(SUM(E3-I3)<=7,1))) -> FALSE | FV3: =SUM(FP3,FR3,FT3) -> 2 | FW3: =SUM(FQ3,FS3,FU3) -> 2 | FX3: =FV3-FL3+FN3 -> 2 | FY3: =FW3-FM3+FO3 -> 2 | FZ3: =IF(S3="Match annulé",1,"") ->  | GA3: =IF(S3="Match annulé",1,"") ->  | GB3: =IF(E3="",0,1) -> 1 | GC3: =IF(I3="",0,1) -> 1 | GD3: =IF(SUM(FZ3,GB3)<>0,SUM(FZ3,GB3),0) -> 1 | GE3: =IF(SUM(GA3,GC3)<>0,SUM(GA3,GC3),0) -> 1 | GF3: =IF(E3<>"",IF(E3>I3,1)) -> FALSE | GG3: =IF(I3<>"",IF(I3>E3,1)) -> FALSE | GH3: =IF(E3<>"",IF(E3=I3,1)) -> 1 | GI3: =IF(I3<>"",IF(I3=E3,1)) -> 1 | GJ3: =IF(E3<>"",IF(E3<I3,1)) -> FALSE | GK3: =IF(I3<>"",IF(I3<E3,1)) -> FALSE | GL3: =E3 -> 16 | GM3: =I3 -> 16 | GN3: =I3 -> 16 | GO3: =E3 -> 16 | GP3: =G3 -> 1 | GQ3: =K3 -> 1 | GR3: =K3 -> 1 | GS3: =G3 -> 1 | GT3: =IFERROR(_xlfn.XLOOKUP(CO3,$CP$3:$CP$18,$CU$3:$CU$18),"") -> Périgueux | GU3: =IFERROR(_xlfn.XLOOKUP(GT3,$CU$3:$CU$18,$FF$3:$FF$18),"") -> 8000.2647 | GV3: =IF(GU3="","",_xlfn.RANK.EQ(GU3,GU3:GU18)) -> 1 | GW3: =IF(CU3="","",CU3) -> Albi | GX3: =IFERROR(_xlfn.XLOOKUP(CQ3,$CR$3:$CR$18,$DP$3:$DP$18),"") -> Périgueux | GY3: =IFERROR(_xlfn.XLOOKUP(GX3,$DP$3:$DP$18,$FH$3:$FH$18),"") -> 8000.2647 | GZ3: =IF(GY3="","",_xlfn.RANK.EQ(GY3,GY3:GY18)) -> 1 | HA3: =IF(DP3="","",DP3) -> Albi | HB3: =IFERROR(_xlfn.XLOOKUP(CS3,$CT$3:$CT$18,$EK$3:$EK$18),"") -> Nice | HC3: =IFERROR(_xlfn.XLOOKUP(HB3,$EK$3:$EK$18,$FJ$3:$FJ$18),"") -> 5000.1139 | HD3: =IF(HC3="","",_xlfn.RANK.EQ(HC3,HC3:HC18)) -> 1 | HE3: =IF(EK3="","",EK3) -> Albi | HG3: =IF(AND(I3="",S3=""),"",IF(AND(I3>=0,S3=""),"ok",IF(AND(I3="",S3="Match à rejouer"),"ok",IF(AND(I3="",S3="Match annulé"),"ok",IF(AND(I3="",S3="Match arrêté"),"ok",IF(AND(I3="",S3="Match avec réserves"),"ok",IF(AND(I3="",S3="Match reporté"),"ok",IF(AND(I3="",S3="Match reprogrammé"),"")))))))) -> ok | HH3: =IF(Q3="","",IF(R3="","",Q3+R3)) ->  | HI3: =IF(Q3="","",IF(R3="","",IF(HG3="ok","",Q3+R3))) ->  | HJ3: =MIN(HI3:HI9) -> 00:00:00 | HK3: =MAX(HI3:HI9) -> 00:00:00 | HM3: =IF(SUM(FZ3,GB3)<>0,SUM(FZ3,GB3),"") -> 1 | HN3: =IF(SUM(GA3,GC3)<>0,SUM(GA3,GC3),"") -> 1
D4: Périgueux | E4: 22 | G4: 3 | I4: 7 | K4: 1 | M4: Bourgoin-Jallieu | Q4: Samedi 2 septembre 2023 | R4: 17:00:00 | U4: =IF(GU4=GU3,GV3,GV4) -> 2 | V4: =IFERROR(_xlfn.XLOOKUP(CO4,$CP$3:$CP$18,$CU$3:$CU$18),"") -> Narbonne | X4: =IFERROR(_xlfn.XLOOKUP(V4,$CU$3:$CU$18,$CZ$3:$CZ$18),"") -> 8 | Y4: =IFERROR(_xlfn.XLOOKUP(V4,$CU$3:$CU$18,$CW$3:$CW$18),"") -> 3 | Z4: =IFERROR(_xlfn.XLOOKUP(V4,$CU$3:$CU$18,$CX$3:$CX$18),"") -> p | AA4: =IFERROR(_xlfn.XLOOKUP(V4,$CU$3:$CU$18,$DA$3:$DA$18),"") -> 2 | AB4: =IFERROR(_xlfn.XLOOKUP(V4,$CU$3:$CU$18,$DB$3:$DB$18),"") -> 2 | AC4: =IFERROR(_xlfn.XLOOKUP(V4,$CU$3:$CU$18,$DC$3:$DC$18),"") -> 0 | AD4: =IFERROR(_xlfn.XLOOKUP(V4,$CU$3:$CU$18,$DD$3:$DD$18),"") -> 0 | AE4: =IFERROR(_xlfn.XLOOKUP(V4,$CU$3:$CU$18,$DE$3:$DE$18),"") -> 44 | AF4: =IFERROR(ROUND(AE4/AA4,0),0) -> 22 | AG4: =IFERROR(_xlfn.XLOOKUP(V4,$CU$3:$CU$18,$DG$3:$DG$18),"") -> 32 | AH4: =IFERROR(ROUND(AG4/AA4,0),0) -> 16 | AI4: =IFERROR(_xlfn.XLOOKUP(V4,$CU$3:$CU$18,$DI$3:$DI$18),"") -> 12 | AJ4: =SUM(AL4:AO4) -> 0 | AK4: =(AL4+AO4) -> 0 | AL4: 0 | AM4: 0 | AN4: 0 | AO4: 0 | AP4: 5 | AQ4: 3 | AR4: 2 | AS4: =IF(GY4=GY3,GZ3,GZ4) -> 2 | AT4: Hyères | AV4: 6 | AW4: -1 | AX4: q | AY4: 2 | AZ4: 1 | BA4: 1 | BB4: 0 | BC4: 40 | BD4: =IFERROR(ROUND(BC4/AY4,0),0) -> 20 | BE4: 26 | BF4: =IFERROR(ROUND(BE4/AY4,0),0) -> 13 | BG4: 14 | BH4: =SUM(BJ4:BM4) -> 0 | BI4: =(BJ4+BM4) -> 0 | BJ4: 0 | BK4: 0 | BL4: 0 | BM4: 0 | BN4: 3 | BO4: 2 | BP4: 1 | BQ4: =IF(HC4=HC3,HD3,HD4) -> 2 | BR4: Vienne | BT4: 4 | BU4: -1 | BV4: q | BW4: 1 | BX4: 1 | BY4: 0 | BZ4: 0 | CA4: 25 | CB4: =IFERROR(ROUND(CA4/BW4,0),0) -> 25 | CC4: 0 | CD4: =IFERROR(ROUND(CC4/BW4,0),0) -> 0 | CE4: 25 | CF4: =SUM(CH4:CK4) -> 0 | CG4: =(CH4+CK4) -> 0 | CH4: 0 | CI4: 0 | CJ4: 0 | CK4: 0 | CL4: 0 | CM4: 0 | CN4: 0 | CO4: 2 | CP4: =CY4 -> 14 | CQ4: 2 | CR4: =DT4 -> 14 | CS4: 2 | CT4: =EO4 -> 14 | CU4: =IF(Equipes!$C$3="","",Equipes!$C$3) -> Blagnac | CV4: =_xlfn.RANK.EQ(FF4,$FF$3:$FF$18) -> 14 | CW4: ='J01'!CV4-CV4 -> 0 | CX4: =IF(CV4>'J01'!CV4,'J01'!$CX$20,IF(CV4='J01'!CV4,'J01'!$CW$20,IF(CV4<'J01'!CV4,'J01'!$CV$20))) -> u | CY4: =_xlfn.RANK.EQ(FG4,$FG$3:$FG$18) -> 14 | CZ4: =SUMPRODUCT(($D$3:$D$10=CU4)*($FX$3:$FX$10))+SUMPRODUCT(($M$3:$M$10=CU4)*($FY$3:$FY$10))+'J01'!CZ4+DL4 -> -4 | DA4: =SUMPRODUCT(($D$3:$D$10=CU4)*($GB$3:$GB$10))+SUMPRODUCT(($M$3:$M$10=CU4)*($GC$3:$GC$10))+'J01'!DA4 -> 2 | DB4: =SUMPRODUCT(($D$3:$D$10=CU4)*($GF$3:$GF$10))+SUMPRODUCT(($M$3:$M$10=CU4)*($GG$3:$GG$10))+'J01'!DB4 -> 0 | DC4: =SUMPRODUCT(($D$3:$D$10=CU4)*($GH$3:$GH$10))+SUMPRODUCT(($M$3:$M$10=CU4)*($GI$3:$GI$10))+'J01'!DC4 -> 0 | DD4: =SUMPRODUCT(($D$3:$D$10=CU4)*($GJ$3:$GJ$10))+SUMPRODUCT(($M$3:$M$10=CU4)*($GK$3:$GK$10))+'J01'!DD4 -> 2 | DE4: =SUMPRODUCT(($D$3:$D$10=CU4)*($GL$3:$GL$10))+SUMPRODUCT(($M$3:$M$10=CU4)*($GM$3:$GM$10))+'J01'!DE4 -> 0 | DF4: =ROUND(DE4/DA4,0) -> 0 | DG4: =SUMPRODUCT(($D$3:$D$10=CU4)*($GN$3:$GN$10))+SUMPRODUCT(($M$3:$M$10=CU4)*($GO$3:$GO$10))+'J01'!DG4 -> 50 | DH4: =ROUND(DG4/DA4,0) -> 25 | DI4: =DE4-DG4 -> -50 | DJ4: =SUMPRODUCT(($D$3:$D$10=CU4)*($FR$3:$FR$10))+SUMPRODUCT(($M$3:$M$10=CU4)*($FS$3:$FS$10))+'J01'!DJ4 -> 0 | DK4: =SUMPRODUCT(($D$3:$D$10=CU4)*($FT$3:$FT$10))+SUMPRODUCT(($M$3:$M$10=CU4)*($FU$3:$FU$10))+'J01'!DK4 -> 0 | DL4: 0 | DM4: =SUMPRODUCT(($D$3:$D$10=CU4)*($GP$3:$GP$10))+SUMPRODUCT(($M$3:$M$10=CU4)*($GQ$3:$GQ$10))+'J01'!DM4 -> 0 | DN4: =SUMPRODUCT(($D$3:$D$10=CU4)*($GR$3:$GR$10))+SUMPRODUCT(($M$3:$M$10=CU4)*($GS$3:$GS$10))+'J01'!DN4 -> 0 | DO4: =DM4-DN4 -> 0 | DP4: =IF(Equipes!$C$3="","",Equipes!$C$3) -> Blagnac | DQ4: =_xlfn.RANK.EQ(FH4,$FH$3:$FH$18) -> 14 | DR4: ='J01'!DQ4-DQ4 -> 0 | DS4: =IF(DQ4>'J01'!DQ4,'J01'!$DS$20,IF(DQ4='J01'!DQ4,'J01'!$DR$20,IF(DQ4<'J01'!DQ4,'J01'!$DQ$20))) -> u | DT4: =_xlfn.RANK.EQ(FI4,$FI$3:$FI$18) -> 14 | DU4: =SUMPRODUCT(($D$3:$D$10=DP4)*($FV$3:$FV$10))+'J01'!DU4+EG4 -> 0 | DV4: =SUMPRODUCT(($D$3:$D$10=DP4)*($GB$3:$GB$10))+'J01'!DV4 -> 1 | DW4: =SUMPRODUCT(($D$3:$D$10=DP4)*($GF$3:$GF$10))+'J01'!DW4 -> 0 | DX4: =SUMPRODUCT(($D$3:$D$10=DP4)*($GH$3:$GH$10))+'J01'!DX4 -> 0 | DY4: =SUMPRODUCT(($D$3:$D$10=DP4)*($GJ$3:$GJ$10))+'J01'!DY4 -> 1 | DZ4: =SUMPRODUCT(($D$3:$D$10=DP4)*($GL$3:$GL$10))+'J01'!DZ4 -> 0 | EA4: =IFERROR(ROUND(DZ4/DV4,0),0) -> 0 | EB4: =SUMPRODUCT(($D$3:$D$10=DP4)*($GN$3:$GN$10))+'J01'!EB4 -> 25 | EC4: =IFERROR(ROUND(EB4/DV4,0),0) -> 25 | ED4: =DZ4-EB4 -> -25 | EE4: =SUMPRODUCT(($D$3:$D$10=DP4)*($FR$3:$FR$10))+'J01'!EE4 -> 0 | EF4: 0 | EG4: 0 | EH4: =SUMPRODUCT(($D$3:$D$10=DP4)*($GP$3:$GP$10))+'J01'!EH4 -> 0 | EI4: =SUMPRODUCT(($D$3:$D$10=DP4)*($GR$3:$GR$10))+'J01'!EI4 -> 0 | EJ4: =EH4-EI4 -> 0 | EK4: =IF(Equipes!$C$3="","",Equipes!$C$3) -> Blagnac | EL4: =_xlfn.RANK.EQ(FJ4,$FJ$3:$FJ$18) -> 14 | EM4: ='J01'!EL4-EL4 -> -10 | EN4: =IF(EL4>'J01'!EL4,'J01'!$EN$20,IF(EL4='J01'!EL4,'J01'!$EM$20,IF(EL4<'J01'!EL4,'J01'!$EL$20))) -> q | EO4: =_xlfn.RANK.EQ(FK4,$FK$3:$FK$18) -> 14 | EP4: =SUMPRODUCT(($M$3:$M$10=EK4)*($FW$3:$FW$10))+'J01'!EP4+FB4 -> 0 | EQ4: =SUMPRODUCT(($M$3:$M$10=EK4)*($GC$3:$GC$10))+'J01'!EQ4 -> 1 | ER4: =SUMPRODUCT(($M$3:$M$10=EK4)*($GG$3:$GG$10))+'J01'!ER4 -> 0 | ES4: =SUMPRODUCT(($M$3:$M$10=EK4)*($GI$3:$GI$10))+'J01'!ES4 -> 0 | ET4: =SUMPRODUCT(($M$3:$M$10=EK4)*($GK$3:$GK$10))+'J01'!ET4 -> 1 | EU4: =SUMPRODUCT(($M$3:$M$10=EK4)*($GM$3:$GM$10))+'J01'!EU4 -> 0 | EV4: =IFERROR(EU4/EQ4,0) -> 0 | EW4: =SUMPRODUCT(($M$3:$M$10=EK4)*($GO$3:$GO$10))+'J01'!EW4 -> 25 | EX4: =IFERROR(EW4/EQ4,0) -> 25 | EY4: =EU4-EW4 -> -25 | EZ4: =SUMPRODUCT(($M$3:$M$10=EK4)*($FS$3:$FS$10))+'J01'!EZ4 -> 0 | FA4: =SUMPRODUCT(($M$3:$M$10=EK4)*($FU$3:$FU$10))+'J01'!FA4 -> 0 | FB4: 0 | FC4: =SUMPRODUCT(($M$3:$M$10=EK4)*($GQ$3:$GQ$10))+'J01'!FC4 -> 0 | FD4: =SUMPRODUCT(($M$3:$M$10=EK4)*($GS$3:$GS$10))+'J01'!FD4 -> 0 | FE4: =FC4-FD4 -> 0 | FF4: -4000.5 | FG4: =FF4+0.00000013 -> -4000.5 | FH4: -0.25 | FI4: =FH4+0.00000013 -> -0.24999987 | FJ4: -0.25 | FK4: =FJ4+0.00000013 -> -0.24999987 | FL4: 0 | FM4: 0 | FN4: =$B4 -> 0 | FO4: =$O4 -> 0 | FP4: 4 | FQ4: 0 | FR4: FALSE | FS4: FALSE | FT4: FALSE | FU4: FALSE | FV4: =SUM(FP4,FR4,FT4) -> 4 | FW4: 0 | FX4: =FV4-FL4+FN4 -> 4 | FY4: =FW4-FM4+FO4 -> 0 | GB4: 1 | GC4: 1 | GD4: =IF(SUM(FZ4,GB4)<>0,SUM(FZ4,GB4),0) -> 1 | GE4: 1 | GF4: 1 | GG4: FALSE | GH4: FALSE | GI4: FALSE | GJ4: FALSE | GK4: 1 | GL4: 22 | GM4: 7 | GN4: 7 | GO4: 22 | GP4: 3 | GQ4: 1 | GR4: 1 | GS4: 3 | GT4: Narbonne | GU4: 8000.1244 | GV4: =IF(GU4="","",_xlfn.RANK.EQ(GU4,GU3:GU18)) -> 2 | GW4: Blagnac | GX4: Hyères | GY4: 6000.144 | GZ4: =IF(GY4="","",_xlfn.RANK.EQ(GY4,GY3:GY18)) -> 2 | HA4: Blagnac | HB4: Vienne | HC4: 4000.2525 | HD4: =IF(HC4="","",_xlfn.RANK.EQ(HC4,HC3:HC18)) -> 2 | HE4: Blagnac | HG4: ok | HM4: =IF(SUM(FZ4,GB4)<>0,SUM(FZ4,GB4),"") -> 1 | HN4: 1
D5: Massy | E5: 23 | F5: =IF(E5="","",IF(I5="","",IF(E5>I5,"",IF(E5=I5,"",IF(E5<I5,IF(SUM(I5-E5)<=7,"Bd","")))))) -> Bd | G5: 3 | I5: 27 | K5: 3 | M5: Narbonne | Q5: Samedi 2 septembre 2023 | R5: 19:00:00 | U5: =IF(GU5=GU4,GV4,GV5) -> 3 | V5: Carcassonne | X5: 8 | Y5: 4 | Z5: p | AA5: 2 | AB5: 2 | AC5: 0 | AD5: 0 | AE5: 33 | AF5: 17 | AG5: 24 | AH5: 12 | AI5: 9 | AJ5: 0 | AK5: 0 | AL5: 0 | AM5: 0 | AN5: 0 | AO5: 0 | AP5: 3 | AQ5: 3 | AR5: 0 | AS5: =IF(GY5=GY4,GZ4,GZ5) -> 3 | AT5: Massy | AV5: 5 | AW5: 2 | AX5: p | AY5: 2 | AZ5: 1 | BA5: 0 | BB5: 1 | BC5: 43 | BD5: 22 | BE5: 40 | BF5: 20 | BG5: 3 | BH5: 1 | BI5: 0 | BJ5: 0 | BK5: 1 | BL5: 0 | BM5: 0 | BN5: 5 | BO5: 4 | BP5: 1 | BQ5: =IF(HC5=HC4,HD4,HD5) -> 3 | BR5: Narbonne | BT5: 4 | BU5: 1 | BV5: p | BW5: 1 | BX5: 1 | BY5: 0 | BZ5: 0 | CA5: 27 | CB5: 27 | CC5: 23 | CD5: 23 | CE5: 4 | CF5: 0 | CG5: 0 | CH5: 0 | CI5: 0 | CJ5: 0 | CK5: 0 | CL5: 3 | CM5: 3 | CN5: 0 | CO5: 3 | CP5: 12 | CQ5: 3 | CR5: 9 | CS5: 3 | CT5: 11 | CU5: =IF(Equipes!$C$4="","",Equipes!$C$4) -> Bourg-en-Bresse | CV5: 12 | CW5: ='J01'!CV5-CV5 -> -4 | CX5: =IF(CV5>'J01'!CV5,'J01'!$CX$20,IF(CV5='J01'!CV5,'J01'!$CW$20,IF(CV5<'J01'!CV5,'J01'!$CV$20))) -> q | CY5: 12 | CZ5: =SUMPRODUCT(($D$3:$D$10=CU5)*($FX$3:$FX$10))+SUMPRODUCT(($M$3:$M$10=CU5)*($FY$3:$FY$10))+'J01'!CZ5+DL5 -> 1 | DA5: =SUMPRODUCT(($D$3:$D$10=CU5)*($GB$3:$GB$10))+SUMPRODUCT(($M$3:$M$10=CU5)*($GC$3:$GC$10))+'J01'!DA5 -> 2 | DB5: =SUMPRODUCT(($D$3:$D$10=CU5)*($GF$3:$GF$10))+SUMPRODUCT(($M$3:$M$10=CU5)*($GG$3:$GG$10))+'J01'!DB5 -> 0 | DC5: =SUMPRODUCT(($D$3:$D$10=CU5)*($GH$3:$GH$10))+SUMPRODUCT(($M$3:$M$10=CU5)*($GI$3:$GI$10))+'J01'!DC5 -> 0 | DD5: =SUMPRODUCT(($D$3:$D$10=CU5)*($GJ$3:$GJ$10))+SUMPRODUCT(($M$3:$M$10=CU5)*($GK$3:$GK$10))+'J01'!DD5 -> 2 | DE5: =SUMPRODUCT(($D$3:$D$10=CU5)*($GL$3:$GL$10))+SUMPRODUCT(($M$3:$M$10=CU5)*($GM$3:$GM$10))+'J01'!DE5 -> 26 | DF5: 13 | DG5: =SUMPRODUCT(($D$3:$D$10=CU5)*($GN$3:$GN$10))+SUMPRODUCT(($M$3:$M$10=CU5)*($GO$3:$GO$10))+'J01'!DG5 -> 39 | DH5: 20 | DI5: -13 | DJ5: =SUMPRODUCT(($D$3:$D$10=CU5)*($FR$3:$FR$10))+SUMPRODUCT(($M$3:$M$10=CU5)*($FS$3:$FS$10))+'J01'!DJ5 -> 0 | DK5: =SUMPRODUCT(($D$3:$D$10=CU5)*($FT$3:$FT$10))+SUMPRODUCT(($M$3:$M$10=CU5)*($FU$3:$FU$10))+'J01'!DK5 -> 1 | DL5: 0 | DM5: =SUMPRODUCT(($D$3:$D$10=CU5)*($GP$3:$GP$10))+SUMPRODUCT(($M$3:$M$10=CU5)*($GQ$3:$GQ$10))+'J01'!DM5 -> 2 | DN5: =SUMPRODUCT(($D$3:$D$10=CU5)*($GR$3:$GR$10))+SUMPRODUCT(($M$3:$M$10=CU5)*($GS$3:$GS$10))+'J01'!DN5 -> 3 | DO5: -1 | DP5: =IF(Equipes!$C$4="","",Equipes!$C$4) -> Bourg-en-Bresse | DQ5: 9 | DR5: ='J01'!DQ5-DQ5 -> -3 | DS5: =IF(DQ5>'J01'!DQ5,'J01'!$DS$20,IF(DQ5='J01'!DQ5,'J01'!$DR$20,IF(DQ5<'J01'!DQ5,'J01'!$DQ$20))) -> q | DT5: 9 | DU5: =SUMPRODUCT(($D$3:$D$10=DP5)*($FV$3:$FV$10))+'J01'!DU5+EG5 -> 1 | DV5: =SUMPRODUCT(($D$3:$D$10=DP5)*($GB$3:$GB$10))+'J01'!DV5 -> 1 | DW5: =SUMPRODUCT(($D$3:$D$10=DP5)*($GF$3:$GF$10))+'J01'!DW5 -> 0 | DX5: =SUMPRODUCT(($D$3:$D$10=DP5)*($GH$3:$GH$10))+'J01'!DX5 -> 0 | DY5: =SUMPRODUCT(($D$3:$D$10=DP5)*($GJ$3:$GJ$10))+'J01'!DY5 -> 1 | DZ5: =SUMPRODUCT(($D$3:$D$10=DP5)*($GL$3:$GL$10))+'J01'!DZ5 -> 10 | EA5: 10 | EB5: =SUMPRODUCT(($D$3:$D$10=DP5)*($GN$3:$GN$10))+'J01'!EB5 -> 12 | EC5: 12 | ED5: -2 | EE5: =SUMPRODUCT(($D$3:$D$10=DP5)*($FR$3:$FR$10))+'J01'!EE5 -> 0 | EF5: =SUMPRODUCT(($D$3:$D$10=DP5)*($FT$3:$FT$10))+'J01'!EF5 -> 1 | EG5: 0 | EH5: =SUMPRODUCT(($D$3:$D$10=DP5)*($GP$3:$GP$10))+'J01'!EH5 -> 1 | EI5: =SUMPRODUCT(($D$3:$D$10=DP5)*($GR$3:$GR$10))+'J01'!EI5 -> 0 | EJ5: 1 | EK5: =IF(Equipes!$C$4="","",Equipes!$C$4) -> Bourg-en-Bresse | EL5: 11 | EM5: ='J01'!EL5-EL5 -> -7 | EN5: =IF(EL5>'J01'!EL5,'J01'!$EN$20,IF(EL5='J01'!EL5,'J01'!$EM$20,IF(EL5<'J01'!EL5,'J01'!$EL$20))) -> q | EO5: 11 | EP5: =SUMPRODUCT(($M$3:$M$10=EK5)*($FW$3:$FW$10))+'J01'!EP5+FB5 -> 0 | EQ5: =SUMPRODUCT(($M$3:$M$10=EK5)*($GC$3:$GC$10))+'J01'!EQ5 -> 1 | ER5: =SUMPRODUCT(($M$3:$M$10=EK5)*($GG$3:$GG$10))+'J01'!ER5 -> 0 | ES5: =SUMPRODUCT(($M$3:$M$10=EK5)*($GI$3:$GI$10))+'J01'!ES5 -> 0 | ET5: =SUMPRODUCT(($M$3:$M$10=EK5)*($GK$3:$GK$10))+'J01'!ET5 -> 1 | EU5: =SUMPRODUCT(($M$3:$M$10=EK5)*($GM$3:$GM$10))+'J01'!EU5 -> 16 | EV5: 16 | EW5: =SUMPRODUCT(($M$3:$M$10=EK5)*($GO$3:$GO$10))+'J01'!EW5 -> 27 | EX5: 27 | EY5: -11 | EZ5: =SUMPRODUCT(($M$3:$M$10=EK5)*($FS$3:$FS$10))+'J01'!EZ5 -> 0 | FA5: =SUMPRODUCT(($M$3:$M$10=EK5)*($FU$3:$FU$10))+'J01'!FA5 -> 1 | FB5: 0 | FC5: =SUMPRODUCT(($M$3:$M$10=EK5)*($GQ$3:$GQ$10))+'J01'!FC5 -> 1 | FD5: =SUMPRODUCT(($M$3:$M$10=EK5)*($GS$3:$GS$10))+'J01'!FD5 -> 3 | FE5: -2 | FF5: 999.8726 | FG5: =FF5+0.00000012 -> 999.8726001 | FH5: 999.981 | FI5: =FH5+0.00000012 -> 999.9810001 | FJ5: -0.1084 | FK5: =FJ5+0.00000012 -> -0.10839988 | FL5: 0 | FM5: 0 | FN5: 0 | FO5: 0 | FP5: 0 | FQ5: 4 | FR5: FALSE | FS5: FALSE | FT5: 1 | FU5: FALSE | FV5: 1 | FW5: 4 | FX5: 1 | FY5: 4 | GB5: 1 | GC5: 1 | GD5: 1 | GE5: 1 | GF5: FALSE | GG5: 1 | GH5: FALSE | GI5: FALSE | GJ5: 1 | GK5: FALSE | GL5: 23 | GM5: 27 | GN5: 27 | GO5: 23 | GP5: 3 | GQ5: 3 | GR5: 3 | GS5: 3 | GT5: Carcassonne | GU5: 8000.0933 | GV5: =IF(GU5="","",_xlfn.RANK.EQ(GU5,GU3:GU18)) -> 3 | GW5: Bourg-en-Bresse | GX5: Massy | GY5: 5000.0343 | GZ5: =IF(GY5="","",_xlfn.RANK.EQ(GY5,GY3:GY18)) -> 3 | HA5: Bourg-en-Bresse | HB5: Narbonne | HC5: 4000.0427 | HD5: =IF(HC5="","",_xlfn.RANK.EQ(HC5,HC3:HC18)) -> 3 | HE5: Bourg-en-Bresse | HG5: ok | HM5: 1 | HN5: 1
D6: Vienne | E6: 3 | G6: 0 | I6: 25 | K6: 3 | L6: Bo | M6: Nice | Q6: Samedi 2 septembre 2023 | R6: 19:00:00 | U6: 4 | V6: Tarbes | X6: 6 | Y6: 5 | Z6: p | AA6: 2 | AB6: 1 | AC6: 0 | AD6: 1 | AE6: 38 | AF6: 19 | AG6: 20 | AH6: 10 | AI6: 18 | AJ6: 1 | AK6: 0 | AL6: 0 | AM6: 1 | AN6: 0 | AO6: 0 | AP6: 1 | AQ6: 2 | AR6: -1 | AS6: 4 | AT6: Tarbes | AV6: 4 | AW6: 3 | AX6: p | AY6: 1 | AZ6: 1 | BA6: 0 | BB6: 0 | BC6: 25 | BD6: 25 | BE6: 0 | BF6: 0 | BG6: 25 | BH6: 1 | BI6: 0 | BJ6: 0 | BK6: 1 | BL6: 0 | BM6: 0 | BN6: 0 | BO6: 0 | BP6: 0 | BQ6: 4 | BR6: Carcassonne | BT6: 4 | BU6: -2 | BV6: q | BW6: 1 | BX6: 1 | BY6: 0 | BZ6: 0 | CA6: 12 | CB6: 12 | CC6: 10 | CD6: 10 | CE6: 2 | CF6: 0 | CG6: 0 | CH6: 0 | CI6: 0 | CJ6: 0 | CK6: 0 | CL6: 0 | CM6: 1 | CN6: -1 | CO6: 4 | CP6: 10 | CQ6: 4 | CR6: 6 | CS6: 4 | CT6: 13 | CU6: =IF(Equipes!$C$5="","",Equipes!$C$5) -> Bourgoin-Jallieu | CV6: 10 | CW6: ='J01'!CV6-CV6 -> -6 | CX6: =IF(CV6>'J01'!CV6,'J01'!$CX$20,IF(CV6='J01'!CV6,'J01'!$CW$20,IF(CV6<'J01'!CV6,'J01'!$CV$20))) -> q | CY6: 10 | CZ6: =SUMPRODUCT(($D$3:$D$10=CU6)*($FX$3:$FX$10))+SUMPRODUCT(($M$3:$M$10=CU6)*($FY$3:$FY$10))+'J01'!CZ6+DL6 -> 4 | DA6: =SUMPRODUCT(($D$3:$D$10=CU6)*($GB$3:$GB$10))+SUMPRODUCT(($M$3:$M$10=CU6)*($GC$3:$GC$10))+'J01'!DA6 -> 2 | DB6: =SUMPRODUCT(($D$3:$D$10=CU6)*($GF$3:$GF$10))+SUMPRODUCT(($M$3:$M$10=CU6)*($GG$3:$GG$10))+'J01'!DB6 -> 1 | DC6: =SUMPRODUCT(($D$3:$D$10=CU6)*($GH$3:$GH$10))+SUMPRODUCT(($M$3:$M$10=CU6)*($GI$3:$GI$10))+'J01'!DC6 -> 0 | DD6: =SUMPRODUCT(($D$3:$D$10=CU6)*($GJ$3:$GJ$10))+SUMPRODUCT(($M$3:$M$10=CU6)*($GK$3:$GK$10))+'J01'!DD6 -> 1 | DE6: =SUMPRODUCT(($D$3:$D$10=CU6)*($GL$3:$GL$10))+SUMPRODUCT(($M$3:$M$10=CU6)*($GM$3:$GM$10))+'J01'!DE6 -> 24 | DF6: 12 | DG6: =SUMPRODUCT(($D$3:$D$10=CU6)*($GN$3:$GN$10))+SUMPRODUCT(($M$3:$M$10=CU6)*($GO$3:$GO$10))+'J01'!DG6 -> 28 | DH6: 14 | DI6: -4 | DJ6: =SUMPRODUCT(($D$3:$D$10=CU6)*($FR$3:$FR$10))+SUMPRODUCT(($M$3:$M$10=CU6)*($FS$3:$FS$10))+'J01'!DJ6 -> 0 | DK6: =SUMPRODUCT(($D$3:$D$10=CU6)*($FT$3:$FT$10))+SUMPRODUCT(($M$3:$M$10=CU6)*($FU$3:$FU$10))+'J01'!DK6 -> 0 | DL6: 0 | DM6: =SUMPRODUCT(($D$3:$D$10=CU6)*($GP$3:$GP$10))+SUMPRODUCT(($M$3:$M$10=CU6)*($GQ$3:$GQ$10))+'J01'!DM6 -> 2 | DN6: =SUMPRODUCT(($D$3:$D$10=CU6)*($GR$3:$GR$10))+SUMPRODUCT(($M$3:$M$10=CU6)*($GS$3:$GS$10))+'J01'!DN6 -> 3 | DO6: -1 | DP6: =IF(Equipes!$C$5="","",Equipes!$C$5) -> Bourgoin-Jallieu | DQ6: 6 | DR6: ='J01'!DQ6-DQ6 -> -3 | DS6: =IF(DQ6>'J01'!DQ6,'J01'!$DS$20,IF(DQ6='J01'!DQ6,'J01'!$DR$20,IF(DQ6<'J01'!DQ6,'J01'!$DQ$20))) -> q | DT6: 6 | DU6: =SUMPRODUCT(($D$3:$D$10=DP6)*($FV$3:$FV$10))+'J01'!DU6+EG6 -> 4 | DV6: =SUMPRODUCT(($D$3:$D$10=DP6)*($GB$3:$GB$10))+'J01'!DV6 -> 1 | DW6: =SUMPRODUCT(($D$3:$D$10=DP6)*($GF$3:$GF$10))+'J01'!DW6 -> 1 | DX6: =SUMPRODUCT(($D$3:$D$10=DP6)*($GH$3:$GH$10))+'J01'!DX6 -> 0 | DY6: =SUMPRODUCT(($D$3:$D$10=DP6)*($GJ$3:$GJ$10))+'J01'!DY6 -> 0 | DZ6: =SUMPRODUCT(($D$3:$D$10=DP6)*($GL$3:$GL$10))+'J01'!DZ6 -> 17 | EA6: 17 | EB6: =SUMPRODUCT(($D$3:$D$10=DP6)*($GN$3:$GN$10))+'J01'!EB6 -> 6 | EC6: 6 | ED6: 11 | EE6: =SUMPRODUCT(($D$3:$D$10=DP6)*($FR$3:$FR$10))+'J01'!EE6 -> 0 | EF6: =SUMPRODUCT(($D$3:$D$10=DP6)*($FT$3:$FT$10))+'J01'!EF6 -> 0 | EG6: 0 | EH6: =SUMPRODUCT(($D$3:$D$10=DP6)*($GP$3:$GP$10))+'J01'!EH6 -> 1 | EI6: =SUMPRODUCT(($D$3:$D$10=DP6)*($GR$3:$GR$10))+'J01'!EI6 -> 0 | EJ6: 1 | EK6: =IF(Equipes!$C$5="","",Equipes!$C$5) -> Bourgoin-Jallieu | EL6: 13 | EM6: ='J01'!EL6-EL6 -> -9 | EN6: =IF(EL6>'J01'!EL6,'J01'!$EN$20,IF(EL6='J01'!EL6,'J01'!$EM$20,IF(EL6<'J01'!EL6,'J01'!$EL$20))) -> q | EO6: 13 | EP6: =SUMPRODUCT(($M$3:$M$10=EK6)*($FW$3:$FW$10))+'J01'!EP6+FB6 -> 0 | EQ6: =SUMPRODUCT(($M$3:$M$10=EK6)*($GC$3:$GC$10))+'J01'!EQ6 -> 1 | ER6: =SUMPRODUCT(($M$3:$M$10=EK6)*($GG$3:$GG$10))+'J01'!ER6 -> 0 | ES6: =SUMPRODUCT(($M$3:$M$10=EK6)*($GI$3:$GI$10))+'J01'!ES6 -> 0 | ET6: =SUMPRODUCT(($M$3:$M$10=EK6)*($GK$3:$GK$10))+'J01'!ET6 -> 1 | EU6: =SUMPRODUCT(($M$3:$M$10=EK6)*($GM$3:$GM$10))+'J01'!EU6 -> 7 | EV6: 7 | EW6: =SUMPRODUCT(($M$3:$M$10=EK6)*($GO$3:$GO$10))+'J01'!EW6 -> 22 | EX6: 22 | EY6: -15 | EZ6: =SUMPRODUCT(($M$3:$M$10=EK6)*($FS$3:$FS$10))+'J01'!EZ6 -> 0 | FA6: =SUMPRODUCT(($M$3:$M$10=EK6)*($FU$3:$FU$10))+'J01'!FA6 -> 0 | FB6: 0 | FC6: =SUMPRODUCT(($M$3:$M$10=EK6)*($GQ$3:$GQ$10))+'J01'!FC6 -> 1 | FD6: =SUMPRODUCT(($M$3:$M$10=EK6)*($GS$3:$GS$10))+'J01'!FD6 -> 3 | FE6: -2 | FF6: 3999.9624 | FG6: =FF6+0.00000011 -> 3999.9624 | FH6: 4000.1117 | FI6: =FH6+0.00000011 -> 4000.1117 | FJ6: -0.1493 | FK6: =FJ6+0.00000011 -> -0.14929989 | FL6: 0 | FM6: 0 | FN6: 0 | FO6: 0 | FP6: 0 | FQ6: 4 | FR6: FALSE | FS6: 1 | FT6: FALSE | FU6: FALSE | FV6: 0 | FW6: 5 | FX6: 0 | FY6: 5 | GB6: 1 | GC6: 1 | GD6: 1 | GE6: 1 | GF6: FALSE | GG6: 1 | GH6: FALSE | GI6: FALSE | GJ6: 1 | GK6: FALSE | GL6: 3 | GM6: 25 | GN6: 25 | GO6: 3 | GP6: 0 | GQ6: 3 | GR6: 3 | GS6: 0 | GT6: Tarbes | GU6: 6000.1838 | GV6: =IF(GU6="","",_xlfn.RANK.EQ(GU6,GU3:GU18)) -> 4 | GW6: Bourgoin-Jallieu | GX6: Tarbes | GY6: 4000.2525 | GZ6: =IF(GY6="","",_xlfn.RANK.EQ(GY6,GY3:GY18)) -> 4 | HA6: Bourgoin-Jallieu | HB6: Carcassonne | HC6: 4000.0212 | HD6: =IF(HC6="","",_xlfn.RANK.EQ(HC6,HC3:HC18)) -> 4 | HE6: Bourgoin-Jallieu | HG6: ok | HM6: 1 | HN6: 1
B7: 1 | C7: Forfait gagnant | D7: Tarbes | E7: 25 | I7: 0 | M7: Blagnac | N7: Forfait général | P7: 2 | Q7: Samedi 2 septembre 2023 | R7: 19:30:00 | U7: 5 | V7: Hyères | X7: 6 | Y7: -3 | Z7: q | AA7: 2 | AB7: 1 | AC7: 1 | AD7: 0 | AE7: 40 | AF7: 20 | AG7: 26 | AH7: 13 | AI7: 14 | AJ7: 0 | AK7: 0 | AL7: 0 | AM7: 0 | AN7: 0 | AO7: 0 | AP7: 3 | AQ7: 2 | AR7: 1 | AS7: 5 | AT7: Albi | AV7: 4 | AW7: 2 | AX7: p | AY7: 1 | AZ7: 1 | BA7: 0 | BB7: 0 | BC7: 27 | BD7: 27 | BE7: 16 | BF7: 16 | BG7: 11 | BH7: 0 | BI7: 0 | BJ7: 0 | BK7: 0 | BL7: 0 | BM7: 0 | BN7: 3 | BO7: 1 | BP7: 2 | BQ7: 5 | BR7: Chambéry | BT7: 2 | BU7: 6 | BV7: p | BW7: 2 | BX7: 0 | BY7: 1 | BZ7: 1 | CA7: 25 | CB7: 13 | CC7: 33 | CD7: 17 | CE7: -8 | CF7: 0 | CG7: 0 | CH7: 0 | CI7: 0 | CJ7: 0 | CK7: 0 | CL7: 1 | CM7: 3 | CN7: -2 | CO7: 5 | CP7: 3 | CQ7: 5 | CR7: 8 | CS7: 5 | CT7: 4 | CU7: =IF(Equipes!$C$6="","",Equipes!$C$6) -> Carcassonne | CV7: 3 | CW7: ='J01'!CV7-CV7 -> 4 | CX7: =IF(CV7>'J01'!CV7,'J01'!$CX$20,IF(CV7='J01'!CV7,'J01'!$CW$20,IF(CV7<'J01'!CV7,'J01'!$CV$20))) -> p | CY7: 3 | CZ7: =SUMPRODUCT(($D$3:$D$10=CU7)*($FX$3:$FX$10))+SUMPRODUCT(($M$3:$M$10=CU7)*($FY$3:$FY$10))+'J01'!CZ7+DL7 -> 8 | DA7: =SUMPRODUCT(($D$3:$D$10=CU7)*($GB$3:$GB$10))+SUMPRODUCT(($M$3:$M$10=CU7)*($GC$3:$GC$10))+'J01'!DA7 -> 2 | DB7: =SUMPRODUCT(($D$3:$D$10=CU7)*($GF$3:$GF$10))+SUMPRODUCT(($M$3:$M$10=CU7)*($GG$3:$GG$10))+'J01'!DB7 -> 2 | DC7: =SUMPRODUCT(($D$3:$D$10=CU7)*($GH$3:$GH$10))+SUMPRODUCT(($M$3:$M$10=CU7)*($GI$3:$GI$10))+'J01'!DC7 -> 0 | DD7: =SUMPRODUCT(($D$3:$D$10=CU7)*($GJ$3:$GJ$10))+SUMPRODUCT(($M$3:$M$10=CU7)*($GK$3:$GK$10))+'J01'!DD7 -> 0 | DE7: =SUMPRODUCT(($D$3:$D$10=CU7)*($GL$3:$GL$10))+SUMPRODUCT(($M$3:$M$10=CU7)*($GM$3:$GM$10))+'J01'!DE7 -> 33 | DF7: 17 | DG7: =SUMPRODUCT(($D$3:$D$10=CU7)*($GN$3:$GN$10))+SUMPRODUCT(($M$3:$M$10=CU7)*($GO$3:$GO$10))+'J01'!DG7 -> 24 | DH7: 12 | DI7: 9 | DJ7: =SUMPRODUCT(($D$3:$D$10=CU7)*($FR$3:$FR$10))+SUMPRODUCT(($M$3:$M$10=CU7)*($FS$3:$FS$10))+'J01'!DJ7 -> 0 | DK7: =SUMPRODUCT(($D$3:$D$10=CU7)*($FT$3:$FT$10))+SUMPRODUCT(($M$3:$M$10=CU7)*($FU$3:$FU$10))+'J01'!DK7 -> 0 | DL7: 0 | DM7: =SUMPRODUCT(($D$3:$D$10=CU7)*($GP$3:$GP$10))+SUMPRODUCT(($M$3:$M$10=CU7)*($GQ$3:$GQ$10))+'J01'!DM7 -> 3 | DN7: =SUMPRODUCT(($D$3:$D$10=CU7)*($GR$3:$GR$10))+SUMPRODUCT(($M$3:$M$10=CU7)*($GS$3:$GS$10))+'J01'!DN7 -> 3 | DO7: 0 | DP7: =IF(Equipes!$C$6="","",Equipes!$C$6) -> Carcassonne | DQ7: 8 | DR7: ='J01'!DQ7-DQ7 -> -1 | DS7: =IF(DQ7>'J01'!DQ7,'J01'!$DS$20,IF(DQ7='J01'!DQ7,'J01'!$DR$20,IF(DQ7<'J01'!DQ7,'J01'!$DQ$20))) -> q | DT7: 8 | DU7: =SUMPRODUCT(($D$3:$D$10=DP7)*($FV$3:$FV$10))+'J01'!DU7+EG7 -> 4 | DV7: =SUMPRODUCT(($D$3:$D$10=DP7)*($GB$3:$GB$10))+'J01'!DV7 -> 1 | DW7: =SUMPRODUCT(($D$3:$D$10=DP7)*($GF$3:$GF$10))+'J01'!DW7 -> 1 | DX7: =SUMPRODUCT(($D$3:$D$10=DP7)*($GH$3:$GH$10))+'J01'!DX7 -> 0 | DY7: =SUMPRODUCT(($D$3:$D$10=DP7)*($GJ$3:$GJ$10))+'J01'!DY7 -> 0 | DZ7: =SUMPRODUCT(($D$3:$D$10=DP7)*($GL$3:$GL$10))+'J01'!DZ7 -> 21 | EA7: 21 | EB7: =SUMPRODUCT(($D$3:$D$10=DP7)*($GN$3:$GN$10))+'J01'!EB7 -> 14 | EC7: 14 | ED7: 7 | EE7: =SUMPRODUCT(($D$3:$D$10=DP7)*($FR$3:$FR$10))+'J01'!EE7 -> 0 | EF7: =SUMPRODUCT(($D$3:$D$10=DP7)*($FT$3:$FT$10))+'J01'!EF7 -> 0 | EG7: 0 | EH7: =SUMPRODUCT(($D$3:$D$10=DP7)*($GP$3:$GP$10))+'J01'!EH7 -> 3 | EI7: =SUMPRODUCT(($D$3:$D$10=DP7)*($GR$3:$GR$10))+'J01'!EI7 -> 2 | EJ7: 1 | EK7: =IF(Equipes!$C$6="","",Equipes!$C$6) -> Carcassonne | EL7: 4 | EM7: ='J01'!EL7-EL7 -> -2 | EN7: =IF(EL7>'J01'!EL7,'J01'!$EN$20,IF(EL7='J01'!EL7,'J01'!$EM$20,IF(EL7<'J01'!EL7,'J01'!$EL$20))) -> q | EO7: 4 | EP7: =SUMPRODUCT(($M$3:$M$10=EK7)*($FW$3:$FW$10))+'J01'!EP7+FB7 -> 4 | EQ7: =SUMPRODUCT(($M$3:$M$10=EK7)*($GC$3:$GC$10))+'J01'!EQ7 -> 1 | ER7: =SUMPRODUCT(($M$3:$M$10=EK7)*($GG$3:$GG$10))+'J01'!ER7 -> 1 | ES7: =SUMPRODUCT(($M$3:$M$10=EK7)*($GI$3:$GI$10))+'J01'!ES7 -> 0 | ET7: =SUMPRODUCT(($M$3:$M$10=EK7)*($GK$3:$GK$10))+'J01'!ET7 -> 0 | EU7: =SUMPRODUCT(($M$3:$M$10=EK7)*($GM$3:$GM$10))+'J01'!EU7 -> 12 | EV7: 12 | EW7: =SUMPRODUCT(($M$3:$M$10=EK7)*($GO$3:$GO$10))+'J01'!EW7 -> 10 | EX7: 10 | EY7: 2 | EZ7: =SUMPRODUCT(($M$3:$M$10=EK7)*($FS$3:$FS$10))+'J01'!EZ7 -> 0 | FA7: =SUMPRODUCT(($M$3:$M$10=EK7)*($FU$3:$FU$10))+'J01'!FA7 -> 0 | FB7: 0 | FC7: =SUMPRODUCT(($M$3:$M$10=EK7)*($GQ$3:$GQ$10))+'J01'!FC7 -> 0 | FD7: =SUMPRODUCT(($M$3:$M$10=EK7)*($GS$3:$GS$10))+'J01'!FD7 -> 1 | FE7: -1 | FF7: 8000.0933 | FG7: =FF7+0.0000001 -> 8000.0933 | FH7: 4000.0721 | FI7: =FH7+0.0000001 -> 4000.0721 | FJ7: 4000.0212 | FK7: =FJ7+0.0000001 -> 4000.0212 | FL7: 0 | FM7: 2 | FN7: 1 | FO7: 0 | FP7: 4 | FQ7: 0 | FR7: FALSE | FS7: FALSE | FT7: FALSE | FU7: FALSE | FV7: 4 | FW7: 0 | FX7: 5 | FY7: -2 | GB7: 1 | GC7: 1 | GD7: 1 | GE7: 1 | GF7: 1 | GG7: FALSE | GH7: FALSE | GI7: FALSE | GJ7: FALSE | GK7: 1 | GL7: 25 | GM7: 0 | GN7: 0 | GO7: 25 | GP7: 0 | GQ7: 0 | GR7: 0 | GS7: 0 | GT7: Hyères | GU7: 6000.144 | GV7: =IF(GU7="","",_xlfn.RANK.EQ(GU7,GU3:GU18)) -> 5 | GW7: Carcassonne | GX7: Albi | GY7: 4000.1127 | GZ7: =IF(GY7="","",_xlfn.RANK.EQ(GY7,GY3:GY18)) -> 5 | HA7: Carcassonne | HB7: Chambéry | HC7: 1999.9225 | HD7: =IF(HC7="","",_xlfn.RANK.EQ(HC7,HC3:HC18)) -> 5 | HE7: Carcassonne | HG7: ok | HM7: 1 | HN7: 1
D8: Albi | E8: 27 | G8: 3 | I8: 16 | K8: 1 | M8: Bourg-en-Bresse | Q8: Vendredi 1 septembre 2023 | R8: 19:30:00 | U8: 6 | V8: Nice | X8: 5 | Y8: 5 | Z8: p | AA8: 2 | AB8: 1 | AC8: 0 | AD8: 1 | AE8: 39 | AF8: 20 | AG8: 28 | AH8: 14 | AI8: 11 | AJ8: 1 | AK8: 1 | AL8: 1 | AM8: 0 | AN8: 0 | AO8: 0 | AP8: 5 | AQ8: 3 | AR8: 2 | AS8: 6 | AT8: Bourgoin-Jallieu | AV8: 4 | AW8: -3 | AX8: q | AY8: 1 | AZ8: 1 | BA8: 0 | BB8: 0 | BC8: 17 | BD8: 17 | BE8: 6 | BF8: 6 | BG8: 11 | BH8: 0 | BI8: 0 | BJ8: 0 | BK8: 0 | BL8: 0 | BM8: 0 | BN8: 1 | BO8: 0 | BP8: 1 | BQ8: 6 | BR8: Tarbes | BT8: 1 | BU8: -3 | BV8: q | BW8: 1 | BX8: 0 | BY8: 0 | BZ8: 1 | CA8: 13 | CB8: 13 | CC8: 20 | CD8: 20 | CE8: -7 | CF8: 1 | CG8: 0 | CH8: 0 | CI8: 1 | CJ8: 0 | CK8: 0 | CL8: 1 | CM8: 2 | CN8: -1 | CO8: 6 | CP8: 11 | CQ8: 6 | CR8: 10 | CS8: 6 | CT8: 5 | CU8: =IF(Equipes!$C$7="","",Equipes!$C$7) -> Chambéry | CV8: 11 | CW8: ='J01'!CV8-CV8 -> -1 | CX8: =IF(CV8>'J01'!CV8,'J01'!$CX$20,IF(CV8='J01'!CV8,'J01'!$CW$20,IF(CV8<'J01'!CV8,'J01'!$CV$20))) -> q | CY8: 11 | CZ8: =SUMPRODUCT(($D$3:$D$10=CU8)*($FX$3:$FX$10))+SUMPRODUCT(($M$3:$M$10=CU8)*($FY$3:$FY$10))+'J01'!CZ8+DL8 -> 2 | DA8: =SUMPRODUCT(($D$3:$D$10=CU8)*($GB$3:$GB$10))+SUMPRODUCT(($M$3:$M$10=CU8)*($GC$3:$GC$10))+'J01'!DA8 -> 2 | DB8: =SUMPRODUCT(($D$3:$D$10=CU8)*($GF$3:$GF$10))+SUMPRODUCT(($M$3:$M$10=CU8)*($GG$3:$GG$10))+'J01'!DB8 -> 0 | DC8: =SUMPRODUCT(($D$3:$D$10=CU8)*($GH$3:$GH$10))+SUMPRODUCT(($M$3:$M$10=CU8)*($GI$3:$GI$10))+'J01'!DC8 -> 1 | DD8: =SUMPRODUCT(($D$3:$D$10=CU8)*($GJ$3:$GJ$10))+SUMPRODUCT(($M$3:$M$10=CU8)*($GK$3:$GK$10))+'J01'!DD8 -> 1 | DE8: =SUMPRODUCT(($D$3:$D$10=CU8)*($GL$3:$GL$10))+SUMPRODUCT(($M$3:$M$10=CU8)*($GM$3:$GM$10))+'J01'!DE8 -> 25 | DF8: 13 | DG8: =SUMPRODUCT(($D$3:$D$10=CU8)*($GN$3:$GN$10))+SUMPRODUCT(($M$3:$M$10=CU8)*($GO$3:$GO$10))+'J01'!DG8 -> 33 | DH8: 17 | DI8: -8 | DJ8: =SUMPRODUCT(($D$3:$D$10=CU8)*($FR$3:$FR$10))+SUMPRODUCT(($M$3:$M$10=CU8)*($FS$3:$FS$10))+'J01'!DJ8 -> 0 | DK8: =SUMPRODUCT(($D$3:$D$10=CU8)*($FT$3:$FT$10))+SUMPRODUCT(($M$3:$M$10=CU8)*($FU$3:$FU$10))+'J01'!DK8 -> 0 | DL8: 0 | DM8: =SUMPRODUCT(($D$3:$D$10=CU8)*($GP$3:$GP$10))+SUMPRODUCT(($M$3:$M$10=CU8)*($GQ$3:$GQ$10))+'J01'!DM8 -> 1 | DN8: =SUMPRODUCT(($D$3:$D$10=CU8)*($GR$3:$GR$10))+SUMPRODUCT(($M$3:$M$10=CU8)*($GS$3:$GS$10))+'J01'!DN8 -> 3 | DO8: -2 | DP8: =IF(Equipes!$C$7="","",Equipes!$C$7) -> Chambéry | DQ8: 10 | DR8: ='J01'!DQ8-DQ8 -> -3 | DS8: =IF(DQ8>'J01'!DQ8,'J01'!$DS$20,IF(DQ8='J01'!DQ8,'J01'!$DR$20,IF(DQ8<'J01'!DQ8,'J01'!$DQ$20))) -> q | DT8: 10 | DU8: =SUMPRODUCT(($D$3:$D$10=DP8)*($FV$3:$FV$10))+'J01'!DU8+EG8 -> 0 | DV8: =SUMPRODUCT(($D$3:$D$10=DP8)*($GB$3:$GB$10))+'J01'!DV8 -> 0 | DW8: =SUMPRODUCT(($D$3:$D$10=DP8)*($GF$3:$GF$10))+'J01'!DW8 -> 0 | DX8: =SUMPRODUCT(($D$3:$D$10=DP8)*($GH$3:$GH$10))+'J01'!DX8 -> 0 | DY8: =SUMPRODUCT(($D$3:$D$10=DP8)*($GJ$3:$GJ$10))+'J01'!DY8 -> 0 | DZ8: =SUMPRODUCT(($D$3:$D$10=DP8)*($GL$3:$GL$10))+'J01'!DZ8 -> 0 | EA8: 0 | EB8: =SUMPRODUCT(($D$3:$D$10=DP8)*($GN$3:$GN$10))+'J01'!EB8 -> 0 | EC8: 0 | ED8: 0 | EE8: =SUMPRODUCT(($D$3:$D$10=DP8)*($FR$3:$FR$10))+'J01'!EE8 -> 0 | EF8: =SUMPRODUCT(($D$3:$D$10=DP8)*($FT$3:$FT$10))+'J01'!EF8 -> 0 | EG8: 0 | EH8: =SUMPRODUCT(($D$3:$D$10=DP8)*($GP$3:$GP$10))+'J01'!EH8 -> 0 | EI8: =SUMPRODUCT(($D$3:$D$10=DP8)*($GR$3:$GR$10))+'J01'!EI8 -> 0 | EJ8: 0 | EK8: =IF(Equipes!$C$7="","",Equipes!$C$7) -> Chambéry | EL8: 5 | EM8: ='J01'!EL8-EL8 -> 6 | EN8: =IF(EL8>'J01'!EL8,'J01'!$EN$20,IF(EL8='J01'!EL8,'J01'!$EM$20,IF(EL8<'J01'!EL8,'J01'!$EL$20))) -> p | EO8: 5 | EP8: =SUMPRODUCT(($M$3:$M$10=EK8)*($FW$3:$FW$10))+'J01'!EP8+FB8 -> 2 | EQ8: =SUMPRODUCT(($M$3:$M$10=EK8)*($GC$3:$GC$10))+'J01'!EQ8 -> 2 | ER8: =SUMPRODUCT(($M$3:$M$10=EK8)*($GG$3:$GG$10))+'J01'!ER8 -> 0 | ES8: =SUMPRODUCT(($M$3:$M$10=EK8)*($GI$3:$GI$10))+'J01'!ES8 -> 1 | ET8: =SUMPRODUCT(($M$3:$M$10=EK8)*($GK$3:$GK$10))+'J01'!ET8 -> 1 | EU8: =SUMPRODUCT(($M$3:$M$10=EK8)*($GM$3:$GM$10))+'J01'!EU8 -> 25 | EV8: 12.5 | EW8: =SUMPRODUCT(($M$3:$M$10=EK8)*($GO$3:$GO$10))+'J01'!EW8 -> 33 | EX8: 16.5 | EY8: -8 | EZ8: =SUMPRODUCT(($M$3:$M$10=EK8)*($FS$3:$FS$10))+'J01'!EZ8 -> 0 | FA8: =SUMPRODUCT(($M$3:$M$10=EK8)*($FU$3:$FU$10))+'J01'!FA8 -> 0 | FB8: 0 | FC8: =SUMPRODUCT(($M$3:$M$10=EK8)*($GQ$3:$GQ$10))+'J01'!FC8 -> 1 | FD8: =SUMPRODUCT(($M$3:$M$10=EK8)*($GS$3:$GS$10))+'J01'!FD8 -> 3 | FE8: -2 | FF8: 1999.9225 | FG8: =FF8+0.00000009 -> 1999.9225 | FH8: 0 | FI8: =FH8+0.00000009 -> 9e-08 | FJ8: 1999.9225 | FK8: =FJ8+0.00000009 -> 1999.9225 | FL8: 0 | FM8: 0 | FN8: 0 | FO8: 0 | FP8: 4 | FQ8: 0 | FR8: FALSE | FS8: FALSE | FT8: FALSE | FU8: FALSE | FV8: 4 | FW8: 0 | FX8: 4 | FY8: 0 | GB8: 1 | GC8: 1 | GD8: 1 | GE8: 1 | GF8: 1 | GG8: FALSE | GH8: FALSE | GI8: FALSE | GJ8: FALSE | GK8: 1 | GL8: 27 | GM8: 16 | GN8: 16 | GO8: 27 | GP8: 3 | GQ8: 1 | GR8: 1 | GS8: 3 | GT8: Nice | GU8: 5000.1139 | GV8: =IF(GU8="","",_xlfn.RANK.EQ(GU8,GU3:GU18)) -> 6 | GW8: Chambéry | GX8: Bourgoin-Jallieu | GY8: 4000.1117 | GZ8: =IF(GY8="","",_xlfn.RANK.EQ(GY8,GY3:GY18)) -> 6 | HA8: Chambéry | HB8: Tarbes | HC8: 999.9313 | HD8: =IF(HC8="","",_xlfn.RANK.EQ(HC8,HC3:HC18)) -> 6 | HE8: Chambéry | HG8: ok | HM8: 1 | HN8: 1
D9: Carcassonne | E9: 21 | G9: 3 | I9: 14 | J9: Bd | K9: 2 | M9: Suresnes | Q9: Vendredi 1 septembre 2023 | R9: 19:30:00 | U9: 7 | V9: Massy | X9: 5 | Y9: -1 | Z9: q | AA9: 2 | AB9: 1 | AC9: 0 | AD9: 1 | AE9: 43 | AF9: 22 | AG9: 40 | AH9: 20 | AI9: 3 | AJ9: 1 | AK9: 0 | AL9: 0 | AM9: 1 | AN9: 0 | AO9: 0 | AP9: 5 | AQ9: 4 | AR9: 1 | AS9: 7 | AT9: Narbonne | AV9: 4 | AW9: -3 | AX9: q | AY9: 1 | AZ9: 1 | BA9: 0 | BB9: 0 | BC9: 17 | BD9: 17 | BE9: 9 | BF9: 9 | BG9: 8 | BH9: 0 | BI9: 0 | BJ9: 0 | BK9: 0 | BL9: 0 | BM9: 0 | BN9: 2 | BO9: 0 | BP9: 2 | BQ9: 7 | BR9: Suresnes | BT9: 1 | BU9: 7 | BV9: p | BW9: 2 | BX9: 0 | BY9: 0 | BZ9: 2 | CA9: 24 | CB9: 12 | CC9: 45 | CD9: 23 | CE9: -21 | CF9: 1 | CG9: 0 | CH9: 0 | CI9: 1 | CJ9: 0 | CK9: 0 | CL9: 3 | CM9: 5 | CN9: -2 | CO9: 7 | CP9: 5 | CQ9: 7 | CR9: 2 | CS9: 7 | CT9: 8 | CU9: =IF(Equipes!$C$8="","",Equipes!$C$8) -> Hyères | CV9: 5 | CW9: ='J01'!CV9-CV9 -> -3 | CX9: =IF(CV9>'J01'!CV9,'J01'!$CX$20,IF(CV9='J01'!CV9,'J01'!$CW$20,IF(CV9<'J01'!CV9,'J01'!$CV$20))) -> q | CY9: 5 | CZ9: =SUMPRODUCT(($D$3:$D$10=CU9)*($FX$3:$FX$10))+SUMPRODUCT(($M$3:$M$10=CU9)*($FY$3:$FY$10))+'J01'!CZ9+DL9 -> 6 | DA9: =SUMPRODUCT(($D$3:$D$10=CU9)*($GB$3:$GB$10))+SUMPRODUCT(($M$3:$M$10=CU9)*($GC$3:$GC$10))+'J01'!DA9 -> 2 | DB9: =SUMPRODUCT(($D$3:$D$10=CU9)*($GF$3:$GF$10))+SUMPRODUCT(($M$3:$M$10=CU9)*($GG$3:$GG$10))+'J01'!DB9 -> 1 | DC9: =SUMPRODUCT(($D$3:$D$10=CU9)*($GH$3:$GH$10))+SUMPRODUCT(($M$3:$M$10=CU9)*($GI$3:$GI$10))+'J01'!DC9 -> 1 | DD9: =SUMPRODUCT(($D$3:$D$10=CU9)*($GJ$3:$GJ$10))+SUMPRODUCT(($M$3:$M$10=CU9)*($GK$3:$GK$10))+'J01'!DD9 -> 0 | DE9: =SUMPRODUCT(($D$3:$D$10=CU9)*($GL$3:$GL$10))+SUMPRODUCT(($M$3:$M$10=CU9)*($GM$3:$GM$10))+'J01'!DE9 -> 40 | DF9: 20 | DG9: =SUMPRODUCT(($D$3:$D$10=CU9)*($GN$3:$GN$10))+SUMPRODUCT(($M$3:$M$10=CU9)*($GO$3:$GO$10))+'J01'!DG9 -> 26 | DH9: 13 | DI9: 14 | DJ9: =SUMPRODUCT(($D$3:$D$10=CU9)*($FR$3:$FR$10))+SUMPRODUCT(($M$3:$M$10=CU9)*($FS$3:$FS$10))+'J01'!DJ9 -> 0 | DK9: =SUMPRODUCT(($D$3:$D$10=CU9)*($FT$3:$FT$10))+SUMPRODUCT(($M$3:$M$10=CU9)*($FU$3:$FU$10))+'J01'!DK9 -> 0 | DL9: 0 | DM9: =SUMPRODUCT(($D$3:$D$10=CU9)*($GP$3:$GP$10))+SUMPRODUCT(($M$3:$M$10=CU9)*($GQ$3:$GQ$10))+'J01'!DM9 -> 3 | DN9: =SUMPRODUCT(($D$3:$D$10=CU9)*($GR$3:$GR$10))+SUMPRODUCT(($M$3:$M$10=CU9)*($GS$3:$GS$10))+'J01'!DN9 -> 2 | DO9: 1 | DP9: =IF(Equipes!$C$8="","",Equipes!$C$8) -> Hyères | DQ9: 2 | DR9: ='J01'!DQ9-DQ9 -> -1 | DS9: =IF(DQ9>'J01'!DQ9,'J01'!$DS$20,IF(DQ9='J01'!DQ9,'J01'!$DR$20,IF(DQ9<'J01'!DQ9,'J01'!$DQ$20))) -> q | DT9: 2 | DU9: =SUMPRODUCT(($D$3:$D$10=DP9)*($FV$3:$FV$10))+'J01'!DU9+EG9 -> 6 | DV9: =SUMPRODUCT(($D$3:$D$10=DP9)*($GB$3:$GB$10))+'J01'!DV9 -> 2 | DW9: =SUMPRODUCT(($D$3:$D$10=DP9)*($GF$3:$GF$10))+'J01'!DW9 -> 1 | DX9: =SUMPRODUCT(($D$3:$D$10=DP9)*($GH$3:$GH$10))+'J01'!DX9 -> 1 | DY9: =SUMPRODUCT(($D$3:$D$10=DP9)*($GJ$3:$GJ$10))+'J01'!DY9 -> 0 | DZ9: =SUMPRODUCT(($D$3:$D$10=DP9)*($GL$3:$GL$10))+'J01'!DZ9 -> 40 | EA9: 20 | EB9: =SUMPRODUCT(($D$3:$D$10=DP9)*($GN$3:$GN$10))+'J01'!EB9 -> 26 | EC9: 13 | ED9: 14 | EE9: =SUMPRODUCT(($D$3:$D$10=DP9)*($FR$3:$FR$10))+'J01'!EE9 -> 0 | EF9: =SUMPRODUCT(($D$3:$D$10=DP9)*($FT$3:$FT$10))+'J01'!EF9 -> 0 | EG9: 0 | EH9: =SUMPRODUCT(($D$3:$D$10=DP9)*($GP$3:$GP$10))+'J01'!EH9 -> 3 | EI9: =SUMPRODUCT(($D$3:$D$10=DP9)*($GR$3:$GR$10))+'J01'!EI9 -> 2 | EJ9: 1 | EK9: =IF(Equipes!$C$8="","",Equipes!$C$8) -> Hyères | EL9: 8 | EM9: ='J01'!EL9-EL9 -> -4 | EN9: =IF(EL9>'J01'!EL9,'J01'!$EN$20,IF(EL9='J01'!EL9,'J01'!$EM$20,IF(EL9<'J01'!EL9,'J01'!$EL$20))) -> q | EO9: 8 | EP9: =SUMPRODUCT(($M$3:$M$10=EK9)*($FW$3:$FW$10))+'J01'!EP9+FB9 -> 0 | EQ9: =SUMPRODUCT(($M$3:$M$10=EK9)*($GC$3:$GC$10))+'J01'!EQ9 -> 0 | ER9: =SUMPRODUCT(($M$3:$M$10=EK9)*($GG$3:$GG$10))+'J01'!ER9 -> 0 | ES9: =SUMPRODUCT(($M$3:$M$10=EK9)*($GI$3:$GI$10))+'J01'!ES9 -> 0 | ET9: =SUMPRODUCT(($M$3:$M$10=EK9)*($GK$3:$GK$10))+'J01'!ET9 -> 0 | EU9: =SUMPRODUCT(($M$3:$M$10=EK9)*($GM$3:$GM$10))+'J01'!EU9 -> 0 | EV9: 0 | EW9: =SUMPRODUCT(($M$3:$M$10=EK9)*($GO$3:$GO$10))+'J01'!EW9 -> 0 | EX9: 0 | EY9: 0 | EZ9: =SUMPRODUCT(($M$3:$M$10=EK9)*($FS$3:$FS$10))+'J01'!EZ9 -> 0 | FA9: =SUMPRODUCT(($M$3:$M$10=EK9)*($FU$3:$FU$10))+'J01'!FA9 -> 0 | FB9: 0 | FC9: =SUMPRODUCT(($M$3:$M$10=EK9)*($GQ$3:$GQ$10))+'J01'!FC9 -> 0 | FD9: =SUMPRODUCT(($M$3:$M$10=EK9)*($GS$3:$GS$10))+'J01'!FD9 -> 0 | FE9: 0 | FF9: 6000.144 | FG9: =FF9+0.00000008 -> 6000.144 | FH9: 6000.144 | FI9: =FH9+0.00000008 -> 6000.144 | FJ9: 0 | FK9: =FJ9+0.00000008 -> 8e-08 | FL9: 0 | FM9: 0 | FN9: 0 | FO9: 0 | FP9: 4 | FQ9: 0 | FR9: FALSE | FS9: FALSE | FT9: FALSE | FU9: 1 | FV9: 4 | FW9: 1 | FX9: 4 | FY9: 1 | GB9: 1 | GC9: 1 | GD9: 1 | GE9: 1 | GF9: 1 | GG9: FALSE | GH9: FALSE | GI9: FALSE | GJ9: FALSE | GK9: 1 | GL9: 21 | GM9: 14 | GN9: 14 | GO9: 21 | GP9: 3 | GQ9: 2 | GR9: 2 | GS9: 3 | GT9: Massy | GU9: 5000.0343 | GV9: =IF(GU9="","",_xlfn.RANK.EQ(GU9,GU3:GU18)) -> 7 | GW9: Hyères | GX9: Narbonne | GY9: 4000.0817 | GZ9: =IF(GY9="","",_xlfn.RANK.EQ(GY9,GY3:GY18)) -> 7 | HA9: Hyères | HB9: Suresnes | HC9: 999.7924 | HD9: =IF(HC9="","",_xlfn.RANK.EQ(HC9,HC3:HC18)) -> 7 | HE9: Hyères | HG9: ok | HM9: 1 | HN9: 1
U10: 8 | V10: Vienne | X10: 5 | Y10: -7 | Z10: q | AA10: 2 | AB10: 1 | AC10: 0 | AD10: 1 | AE10: 28 | AF10: 14 | AG10: 25 | AH10: 13 | AI10: 3 | AJ10: 0 | AK10: 0 | AL10: 0 | AM10: 0 | AN10: 0 | AO10: 0 | AP10: 0 | AQ10: 3 | AR10: -3 | AS10: 8 | AT10: Carcassonne | AV10: 4 | AW10: -1 | AX10: q | AY10: 1 | AZ10: 1 | BA10: 0 | BB10: 0 | BC10: 21 | BD10: 21 | BE10: 14 | BF10: 14 | BG10: 7 | BH10: 0 | BI10: 0 | BJ10: 0 | BK10: 0 | BL10: 0 | BM10: 0 | BN10: 3 | BO10: 2 | BP10: 1 | BQ10: 8 | BR10: Hyères | BT10: 0 | BU10: -4 | BV10: q | BW10: 0 | BX10: 0 | BY10: 0 | BZ10: 0 | CA10: 0 | CB10: 0 | CC10: 0 | CD10: 0 | CE10: 0 | CF10: 0 | CG10: 0 | CH10: 0 | CI10: 0 | CJ10: 0 | CK10: 0 | CL10: 0 | CM10: 0 | CN10: 0 | CO10: 8 | CP10: 7 | CQ10: 8 | CR10: 3 | CS10: 8 | CT10: 9 | CU10: =IF(Equipes!$C$9="","",Equipes!$C$9) -> Massy | CV10: 7 | CW10: ='J01'!CV10-CV10 -> -1 | CX10: =IF(CV10>'J01'!CV10,'J01'!$CX$20,IF(CV10='J01'!CV10,'J01'!$CW$20,IF(CV10<'J01'!CV10,'J01'!$CV$20))) -> q | CY10: 7 | CZ10: =SUMPRODUCT(($D$3:$D$10=CU10)*($FX$3:$FX$10))+SUMPRODUCT(($M$3:$M$10=CU10)*($FY$3:$FY$10))+'J01'!CZ10+DL10 -> 5 | DA10: =SUMPRODUCT(($D$3:$D$10=CU10)*($GB$3:$GB$10))+SUMPRODUCT(($M$3:$M$10=CU10)*($GC$3:$GC$10))+'J01'!DA10 -> 2 | DB10: =SUMPRODUCT(($D$3:$D$10=CU10)*($GF$3:$GF$10))+SUMPRODUCT(($M$3:$M$10=CU10)*($GG$3:$GG$10))+'J01'!DB10 -> 1 | DC10: =SUMPRODUCT(($D$3:$D$10=CU10)*($GH$3:$GH$10))+SUMPRODUCT(($M$3:$M$10=CU10)*($GI$3:$GI$10))+'J01'!DC10 -> 0 | DD10: =SUMPRODUCT(($D$3:$D$10=CU10)*($GJ$3:$GJ$10))+SUMPRODUCT(($M$3:$M$10=CU10)*($GK$3:$GK$10))+'J01'!DD10 -> 1 | DE10: =SUMPRODUCT(($D$3:$D$10=CU10)*($GL$3:$GL$10))+SUMPRODUCT(($M$3:$M$10=CU10)*($GM$3:$GM$10))+'J01'!DE10 -> 43 | DF10: 22 | DG10: =SUMPRODUCT(($D$3:$D$10=CU10)*($GN$3:$GN$10))+SUMPRODUCT(($M$3:$M$10=CU10)*($GO$3:$GO$10))+'J01'!DG10 -> 40 | DH10: 20 | DI10: 3 | DJ10: =SUMPRODUCT(($D$3:$D$10=CU10)*($FR$3:$FR$10))+SUMPRODUCT(($M$3:$M$10=CU10)*($FS$3:$FS$10))+'J01'!DJ10 -> 0 | DK10: =SUMPRODUCT(($D$3:$D$10=CU10)*($FT$3:$FT$10))+SUMPRODUCT(($M$3:$M$10=CU10)*($FU$3:$FU$10))+'J01'!DK10 -> 1 | DL10: 0 | DM10: =SUMPRODUCT(($D$3:$D$10=CU10)*($GP$3:$GP$10))+SUMPRODUCT(($M$3:$M$10=CU10)*($GQ$3:$GQ$10))+'J01'!DM10 -> 5 | DN10: =SUMPRODUCT(($D$3:$D$10=CU10)*($GR$3:$GR$10))+SUMPRODUCT(($M$3:$M$10=CU10)*($GS$3:$GS$10))+'J01'!DN10 -> 4 | DO10: 1 | DP10: =IF(Equipes!$C$9="","",Equipes!$C$9) -> Massy | DQ10: 3 | DR10: ='J01'!DQ10-DQ10 -> 2 | DS10: =IF(DQ10>'J01'!DQ10,'J01'!$DS$20,IF(DQ10='J01'!DQ10,'J01'!$DR$20,IF(DQ10<'J01'!DQ10,'J01'!$DQ$20))) -> p | DT10: 3 | DU10: =SUMPRODUCT(($D$3:$D$10=DP10)*($FV$3:$FV$10))+'J01'!DU10+EG10 -> 5 | DV10: =SUMPRODUCT(($D$3:$D$10=DP10)*($GB$3:$GB$10))+'J01'!DV10 -> 2 | DW10: =SUMPRODUCT(($D$3:$D$10=DP10)*($GF$3:$GF$10))+'J01'!DW10 -> 1 | DX10: =SUMPRODUCT(($D$3:$D$10=DP10)*($GH$3:$GH$10))+'J01'!DX10 -> 0 | DY10: =SUMPRODUCT(($D$3:$D$10=DP10)*($GJ$3:$GJ$10))+'J01'!DY10 -> 1 | DZ10: =SUMPRODUCT(($D$3:$D$10=DP10)*($GL$3:$GL$10))+'J01'!DZ10 -> 43 | EA10: 22 | EB10: =SUMPRODUCT(($D$3:$D$10=DP10)*($GN$3:$GN$10))+'J01'!EB10 -> 40 | EC10: 20 | ED10: 3 | EE10: =SUMPRODUCT(($D$3:$D$10=DP10)*($FR$3:$FR$10))+'J01'!EE10 -> 0 | EF10: =SUMPRODUCT(($D$3:$D$10=DP10)*($FT$3:$FT$10))+'J01'!EF10 -> 1 | EG10: 0 | EH10: =SUMPRODUCT(($D$3:$D$10=DP10)*($GP$3:$GP$10))+'J01'!EH10 -> 5 | EI10: =SUMPRODUCT(($D$3:$D$10=DP10)*($GR$3:$GR$10))+'J01'!EI10 -> 4 | EJ10: 1 | EK10: =IF(Equipes!$C$9="","",Equipes!$C$9) -> Massy | EL10: 8 | EM10: ='J01'!EL10-EL10 -> -4 | EN10: =IF(EL10>'J01'!EL10,'J01'!$EN$20,IF(EL10='J01'!EL10,'J01'!$EM$20,IF(EL10<'J01'!EL10,'J01'!$EL$20))) -> q | EO10: 9 | EP10: =SUMPRODUCT(($M$3:$M$10=EK10)*($FW$3:$FW$10))+'J01'!EP10+FB10 -> 0 | EQ10: =SUMPRODUCT(($M$3:$M$10=EK10)*($GC$3:$GC$10))+'J01'!EQ10 -> 0 | ER10: =SUMPRODUCT(($M$3:$M$10=EK10)*($GG$3:$GG$10))+'J01'!ER10 -> 0 | ES10: =SUMPRODUCT(($M$3:$M$10=EK10)*($GI$3:$GI$10))+'J01'!ES10 -> 0 | ET10: =SUMPRODUCT(($M$3:$M$10=EK10)*($GK$3:$GK$10))+'J01'!ET10 -> 0 | EU10: =SUMPRODUCT(($M$3:$M$10=EK10)*($GM$3:$GM$10))+'J01'!EU10 -> 0 | EV10: 0 | EW10: =SUMPRODUCT(($M$3:$M$10=EK10)*($GO$3:$GO$10))+'J01'!EW10 -> 0 | EX10: 0 | EY10: 0 | EZ10: =SUMPRODUCT(($M$3:$M$10=EK10)*($FS$3:$FS$10))+'J01'!EZ10 -> 0 | FA10: 1 | FB10: 0 | FC10: =SUMPRODUCT(($M$3:$M$10=EK10)*($GQ$3:$GQ$10))+'J01'!FC10 -> 0 | FD10: =SUMPRODUCT(($M$3:$M$10=EK10)*($GS$3:$GS$10))+'J01'!FD10 -> 0 | FE10: 0 | FF10: 5000.0343 | FG10: =FF10+0.00000007 -> 5000.0343 | FH10: 5000.0343 | FI10: =FH10+0.00000007 -> 5000.0343 | FJ10: 0 | FK10: =FJ10+0.00000007 -> 7e-08 | GT10: Vienne | GU10: 5000.0328 | GV10: =IF(GU10="","",_xlfn.RANK.EQ(GU10,GU3:GU18)) -> 8 | GW10: Massy | GX10: Carcassonne | GY10: 4000.0721 | GZ10: =IF(GY10="","",_xlfn.RANK.EQ(GY10,GY3:GY18)) -> 8 | HA10: Massy | HB10: Hyères | HC10: 0 | HD10: =IF(HC10="","",_xlfn.RANK.EQ(HC10,HC3:HC18)) -> 8 | HE10: Massy
U11: 9 | V11: Albi | X11: 4 | Y11: 3 | Z11: p | AA11: 2 | AB11: 1 | AC11: 0 | AD11: 1 | AE11: 33 | AF11: 17 | AG11: 33 | AH11: 17 | AI11: 0 | AJ11: 0 | AK11: 0 | AL11: 0 | AM11: 0 | AN11: 0 | AO11: 0 | AP11: 3 | AQ11: 2 | AR11: 1 | AS11: 9 | AT11: Bourg-en-Bresse | AV11: 1 | AW11: -3 | AX11: q | AY11: 1 | AZ11: 0 | BA11: 0 | BB11: 1 | BC11: 10 | BD11: 10 | BE11: 12 | BF11: 12 | BG11: -2 | BH11: 1 | BI11: 0 | BJ11: 0 | BK11: 1 | BL11: 0 | BM11: 0 | BN11: 1 | BO11: 0 | BP11: 1 | BQ11: 8 | BR11: Massy | BT11: 0 | BU11: -4 | BV11: q | BW11: 0 | BX11: 0 | BY11: 0 | BZ11: 0 | CA11: 0 | CB11: 0 | CC11: 0 | CD11: 0 | CE11: 0 | CF11: 1 | CG11: 0 | CH11: 0 | CI11: 1 | CJ11: 0 | CK11: 0 | CL11: 0 | CM11: 0 | CN11: 0 | CO11: 9 | CP11: 2 | CQ11: 9 | CR11: 7 | CS11: 9 | CT11: 3 | CU11: =IF(Equipes!$C$10="","",Equipes!$C$10) -> Narbonne | CV11: 2 | CW11: ='J01'!CV11-CV11 -> 3 | CX11: =IF(CV11>'J01'!CV11,'J01'!$CX$20,IF(CV11='J01'!CV11,'J01'!$CW$20,IF(CV11<'J01'!CV11,'J01'!$CV$20))) -> p | CY11: 2 | CZ11: =SUMPRODUCT(($D$3:$D$10=CU11)*($FX$3:$FX$10))+SUMPRODUCT(($M$3:$M$10=CU11)*($FY$3:$FY$10))+'J01'!CZ11+DL11 -> 8 | DA11: =SUMPRODUCT(($D$3:$D$10=CU11)*($GB$3:$GB$10))+SUMPRODUCT(($M$3:$M$10=CU11)*($GC$3:$GC$10))+'J01'!DA11 -> 2 | DB11: =SUMPRODUCT(($D$3:$D$10=CU11)*($GF$3:$GF$10))+SUMPRODUCT(($M$3:$M$10=CU11)*($GG$3:$GG$10))+'J01'!DB11 -> 2 | DC11: =SUMPRODUCT(($D$3:$D$10=CU11)*($GH$3:$GH$10))+SUMPRODUCT(($M$3:$M$10=CU11)*($GI$3:$GI$10))+'J01'!DC11 -> 0 | DD11: =SUMPRODUCT(($D$3:$D$10=CU11)*($GJ$3:$GJ$10))+SUMPRODUCT(($M$3:$M$10=CU11)*($GK$3:$GK$10))+'J01'!DD11 -> 0 | DE11: =SUMPRODUCT(($D$3:$D$10=CU11)*($GL$3:$GL$10))+SUMPRODUCT(($M$3:$M$10=CU11)*($GM$3:$GM$10))+'J01'!DE11 -> 44 | DF11: 22 | DG11: =SUMPRODUCT(($D$3:$D$10=CU11)*($GN$3:$GN$10))+SUMPRODUCT(($M$3:$M$10=CU11)*($GO$3:$GO$10))+'J01'!DG11 -> 32 | DH11: 16 | DI11: 12 | DJ11: =SUMPRODUCT(($D$3:$D$10=CU11)*($FR$3:$FR$10))+SUMPRODUCT(($M$3:$M$10=CU11)*($FS$3:$FS$10))+'J01'!DJ11 -> 0 | DK11: =SUMPRODUCT(($D$3:$D$10=CU11)*($FT$3:$FT$10))+SUMPRODUCT(($M$3:$M$10=CU11)*($FU$3:$FU$10))+'J01'!DK11 -> 0 | DL11: 0 | DM11: =SUMPRODUCT(($D$3:$D$10=CU11)*($GP$3:$GP$10))+SUMPRODUCT(($M$3:$M$10=CU11)*($GQ$3:$GQ$10))+'J01'!DM11 -> 5 | DN11: =SUMPRODUCT(($D$3:$D$10=CU11)*($GR$3:$GR$10))+SUMPRODUCT(($M$3:$M$10=CU11)*($GS$3:$GS$10))+'J01'!DN11 -> 3 | DO11: 2 | DP11: =IF(Equipes!$C$10="","",Equipes!$C$10) -> Narbonne | DQ11: 7 | DR11: ='J01'!DQ11-DQ11 -> -3 | DS11: =IF(DQ11>'J01'!DQ11,'J01'!$DS$20,IF(DQ11='J01'!DQ11,'J01'!$DR$20,IF(DQ11<'J01'!DQ11,'J01'!$DQ$20))) -> q | DT11: 7 | DU11: =SUMPRODUCT(($D$3:$D$10=DP11)*($FV$3:$FV$10))+'J01'!DU11+EG11 -> 4 | DV11: =SUMPRODUCT(($D$3:$D$10=DP11)*($GB$3:$GB$10))+'J01'!DV11 -> 1 | DW11: =SUMPRODUCT(($D$3:$D$10=DP11)*($GF$3:$GF$10))+'J01'!DW11 -> 1 | DX11: =SUMPRODUCT(($D$3:$D$10=DP11)*($GH$3:$GH$10))+'J01'!DX11 -> 0 | DY11: =SUMPRODUCT(($D$3:$D$10=DP11)*($GJ$3:$GJ$10))+'J01'!DY11 -> 0 | DZ11: =SUMPRODUCT(($D$3:$D$10=DP11)*($GL$3:$GL$10))+'J01'!DZ11 -> 17 | EA11: 17 | EB11: =SUMPRODUCT(($D$3:$D$10=DP11)*($GN$3:$GN$10))+'J01'!EB11 -> 9 | EC11: 9 | ED11: 8 | EE11: =SUMPRODUCT(($D$3:$D$10=DP11)*($FR$3:$FR$10))+'J01'!EE11 -> 0 | EF11: =SUMPRODUCT(($D$3:$D$10=DP11)*($FT$3:$FT$10))+'J01'!EF11 -> 0 | EG11: 0 | EH11: =SUMPRODUCT(($D$3:$D$10=DP11)*($GP$3:$GP$10))+'J01'!EH11 -> 2 | EI11: =SUMPRODUCT(($D$3:$D$10=DP11)*($GR$3:$GR$10))+'J01'!EI11 -> 0 | EJ11: 2 | EK11: =IF(Equipes!$C$10="","",Equipes!$C$10) -> Narbonne | EL11: 3 | EM11: ='J01'!EL11-EL11 -> 1 | EN11: =IF(EL11>'J01'!EL11,'J01'!$EN$20,IF(EL11='J01'!EL11,'J01'!$EM$20,IF(EL11<'J01'!EL11,'J01'!$EL$20))) -> p | EO11: 3 | EP11: =SUMPRODUCT(($M$3:$M$10=EK11)*($FW$3:$FW$10))+'J01'!EP11+FB11 -> 4 | EQ11: =SUMPRODUCT(($M$3:$M$10=EK11)*($GC$3:$GC$10))+'J01'!EQ11 -> 1 | ER11: =SUMPRODUCT(($M$3:$M$10=EK11)*($GG$3:$GG$10))+'J01'!ER11 -> 1 | ES11: =SUMPRODUCT(($M$3:$M$10=EK11)*($GI$3:$GI$10))+'J01'!ES11 -> 0 | ET11: =SUMPRODUCT(($M$3:$M$10=EK11)*($GK$3:$GK$10))+'J01'!ET11 -> 0 | EU11: =SUMPRODUCT(($M$3:$M$10=EK11)*($GM$3:$GM$10))+'J01'!EU11 -> 27 | EV11: 27 | EW11: =SUMPRODUCT(($M$3:$M$10=EK11)*($GO$3:$GO$10))+'J01'!EW11 -> 23 | EX11: 23 | EY11: 4 | EZ11: =SUMPRODUCT(($M$3:$M$10=EK11)*($FS$3:$FS$10))+'J01'!EZ11 -> 0 | FA11: =SUMPRODUCT(($M$3:$M$10=EK11)*($FU$3:$FU$10))+'J01'!FA11 -> 0 | FB11: 0 | FC11: =SUMPRODUCT(($M$3:$M$10=EK11)*($GQ$3:$GQ$10))+'J01'!FC11 -> 3 | FD11: =SUMPRODUCT(($M$3:$M$10=EK11)*($GS$3:$GS$10))+'J01'!FD11 -> 3 | FE11: 0 | FF11: 8000.1244 | FG11: =FF11+0.00000006 -> 8000.1244 | FH11: 4000.0817 | FI11: =FH11+0.00000006 -> 4000.0817 | FJ11: 4000.0427 | FK11: =FJ11+0.00000006 -> 4000.0427 | GT11: Albi | GU11: 4000.0033 | GV11: =IF(GU11="","",_xlfn.RANK.EQ(GU11,GU3:GU18)) -> 9 | GW11: Narbonne | GX11: Bourg-en-Bresse | GY11: 999.981 | GZ11: =IF(GY11="","",_xlfn.RANK.EQ(GY11,GY3:GY18)) -> 9 | HA11: Narbonne | HB11: Massy | HC11: 0 | HD11: =IF(HC11="","",_xlfn.RANK.EQ(HC11,HC3:HC18)) -> 8 | HE11: Narbonne
U12: 10 | V12: Bourgoin-Jallieu | X12: 4 | Y12: -6 | Z12: q | AA12: 2 | AB12: 1 | AC12: 0 | AD12: 1 | AE12: 24 | AF12: 12 | AG12: 28 | AH12: 14 | AI12: -4 | AJ12: 0 | AK12: 0 | AL12: 0 | AM12: 0 | AN12: 0 | AO12: 0 | AP12: 2 | AQ12: 3 | AR12: -1 | AS12: 10 | AT12: Chambéry | AV12: 0 | AW12: -3 | AX12: q | AY12: 0 | AZ12: 0 | BA12: 0 | BB12: 0 | BC12: 0 | BD12: 0 | BE12: 0 | BF12: 0 | BG12: 0 | BH12: 0 | BI12: 0 | BJ12: 0 | BK12: 0 | BL12: 0 | BM12: 0 | BN12: 0 | BO12: 0 | BP12: 0 | BQ12: 8 | BR12: Périgueux | BT12: 0 | BU12: -4 | BV12: q | BW12: 0 | BX12: 0 | BY12: 0 | BZ12: 0 | CA12: 0 | CB12: 0 | CC12: 0 | CD12: 0 | CE12: 0 | CF12: 0 | CG12: 0 | CH12: 0 | CI12: 0 | CJ12: 0 | CK12: 0 | CL12: 0 | CM12: 0 | CN12: 0 | CO12: 10 | CP12: 6 | CQ12: 10 | CR12: 11 | CS12: 10 | CT12: 1 | CU12: =IF(Equipes!$C$11="","",Equipes!$C$11) -> Nice | CV12: 6 | CW12: ='J01'!CV12-CV12 -> 5 | CX12: =IF(CV12>'J01'!CV12,'J01'!$CX$20,IF(CV12='J01'!CV12,'J01'!$CW$20,IF(CV12<'J01'!CV12,'J01'!$CV$20))) -> p | CY12: 6 | CZ12: =SUMPRODUCT(($D$3:$D$10=CU12)*($FX$3:$FX$10))+SUMPRODUCT(($M$3:$M$10=CU12)*($FY$3:$FY$10))+'J01'!CZ12+DL12 -> 5 | DA12: =SUMPRODUCT(($D$3:$D$10=CU12)*($GB$3:$GB$10))+SUMPRODUCT(($M$3:$M$10=CU12)*($GC$3:$GC$10))+'J01'!DA12 -> 2 | DB12: =SUMPRODUCT(($D$3:$D$10=CU12)*($GF$3:$GF$10))+SUMPRODUCT(($M$3:$M$10=CU12)*($GG$3:$GG$10))+'J01'!DB12 -> 1 | DC12: =SUMPRODUCT(($D$3:$D$10=CU12)*($GH$3:$GH$10))+SUMPRODUCT(($M$3:$M$10=CU12)*($GI$3:$GI$10))+'J01'!DC12 -> 0 | DD12: =SUMPRODUCT(($D$3:$D$10=CU12)*($GJ$3:$GJ$10))+SUMPRODUCT(($M$3:$M$10=CU12)*($GK$3:$GK$10))+'J01'!DD12 -> 1 | DE12: =SUMPRODUCT(($D$3:$D$10=CU12)*($GL$3:$GL$10))+SUMPRODUCT(($M$3:$M$10=CU12)*($GM$3:$GM$10))+'J01'!DE12 -> 39 | DF12: 20 | DG12: =SUMPRODUCT(($D$3:$D$10=CU12)*($GN$3:$GN$10))+SUMPRODUCT(($M$3:$M$10=CU12)*($GO$3:$GO$10))+'J01'!DG12 -> 28 | DH12: 14 | DI12: 11 | DJ12: =SUMPRODUCT(($D$3:$D$10=CU12)*($FR$3:$FR$10))+SUMPRODUCT(($M$3:$M$10=CU12)*($FS$3:$FS$10))+'J01'!DJ12 -> 1 | DK12: =SUMPRODUCT(($D$3:$D$10=CU12)*($FT$3:$FT$10))+SUMPRODUCT(($M$3:$M$10=CU12)*($FU$3:$FU$10))+'J01'!DK12 -> 0 | DL12: 0 | DM12: =SUMPRODUCT(($D$3:$D$10=CU12)*($GP$3:$GP$10))+SUMPRODUCT(($M$3:$M$10=CU12)*($GQ$3:$GQ$10))+'J01'!DM12 -> 5 | DN12: =SUMPRODUCT(($D$3:$D$10=CU12)*($GR$3:$GR$10))+SUMPRODUCT(($M$3:$M$10=CU12)*($GS$3:$GS$10))+'J01'!DN12 -> 3 | DO12: 2 | DP12: =IF(Equipes!$C$11="","",Equipes!$C$11) -> Nice | DQ12: 10 | DR12: ='J01'!DQ12-DQ12 -> -3 | DS12: =IF(DQ12>'J01'!DQ12,'J01'!$DS$20,IF(DQ12='J01'!DQ12,'J01'!$DR$20,IF(DQ12<'J01'!DQ12,'J01'!$DQ$20))) -> q | DT12: 11 | DU12: =SUMPRODUCT(($D$3:$D$10=DP12)*($FV$3:$FV$10))+'J01'!DU12+EG12 -> 0 | DV12: =SUMPRODUCT(($D$3:$D$10=DP12)*($GB$3:$GB$10))+'J01'!DV12 -> 0 | DW12: =SUMPRODUCT(($D$3:$D$10=DP12)*($GF$3:$GF$10))+'J01'!DW12 -> 0 | DX12: =SUMPRODUCT(($D$3:$D$10=DP12)*($GH$3:$GH$10))+'J01'!DX12 -> 0 | DY12: =SUMPRODUCT(($D$3:$D$10=DP12)*($GJ$3:$GJ$10))+'J01'!DY12 -> 0 | DZ12: =SUMPRODUCT(($D$3:$D$10=DP12)*($GL$3:$GL$10))+'J01'!DZ12 -> 0 | EA12: 0 | EB12: =SUMPRODUCT(($D$3:$D$10=DP12)*($GN$3:$GN$10))+'J01'!EB12 -> 0 | EC12: 0 | ED12: 0 | EE12: 1 | EF12: =SUMPRODUCT(($D$3:$D$10=DP12)*($FT$3:$FT$10))+'J01'!EF12 -> 0 | EG12: 0 | EH12: =SUMPRODUCT(($D$3:$D$10=DP12)*($GP$3:$GP$10))+'J01'!EH12 -> 0 | EI12: =SUMPRODUCT(($D$3:$D$10=DP12)*($GR$3:$GR$10))+'J01'!EI12 -> 0 | EJ12: 0 | EK12: =IF(Equipes!$C$11="","",Equipes!$C$11) -> Nice | EL12: 1 | EM12: ='J01'!EL12-EL12 -> 11 | EN12: =IF(EL12>'J01'!EL12,'J01'!$EN$20,IF(EL12='J01'!EL12,'J01'!$EM$20,IF(EL12<'J01'!EL12,'J01'!$EL$20))) -> p | EO12: 1 | EP12: =SUMPRODUCT(($M$3:$M$10=EK12)*($FW$3:$FW$10))+'J01'!EP12+FB12 -> 5 | EQ12: =SUMPRODUCT(($M$3:$M$10=EK12)*($GC$3:$GC$10))+'J01'!EQ12 -> 2 | ER12: =SUMPRODUCT(($M$3:$M$10=EK12)*($GG$3:$GG$10))+'J01'!ER12 -> 1 | ES12: =SUMPRODUCT(($M$3:$M$10=EK12)*($GI$3:$GI$10))+'J01'!ES12 -> 0 | ET12: =SUMPRODUCT(($M$3:$M$10=EK12)*($GK$3:$GK$10))+'J01'!ET12 -> 1 | EU12: =SUMPRODUCT(($M$3:$M$10=EK12)*($GM$3:$GM$10))+'J01'!EU12 -> 39 | EV12: 19.5 | EW12: =SUMPRODUCT(($M$3:$M$10=EK12)*($GO$3:$GO$10))+'J01'!EW12 -> 28 | EX12: 14 | EY12: 11 | EZ12: =SUMPRODUCT(($M$3:$M$10=EK12)*($FS$3:$FS$10))+'J01'!EZ12 -> 1 | FA12: =SUMPRODUCT(($M$3:$M$10=EK12)*($FU$3:$FU$10))+'J01'!FA12 -> 0 | FB12: 0 | FC12: =SUMPRODUCT(($M$3:$M$10=EK12)*($GQ$3:$GQ$10))+'J01'!FC12 -> 5 | FD12: =SUMPRODUCT(($M$3:$M$10=EK12)*($GS$3:$GS$10))+'J01'!FD12 -> 3 | FE12: 2 | FF12: 5000.1139 | FG12: =FF12+0.00000005 -> 5000.1139 | FH12: 0 | FI12: =FH12+0.00000005 -> 5e-08 | FJ12: 5000.1139 | FK12: =FJ12+0.00000005 -> 5000.1139 | GT12: Bourgoin-Jallieu | GU12: 3999.9624 | GV12: =IF(GU12="","",_xlfn.RANK.EQ(GU12,GU3:GU18)) -> 10 | GW12: Nice | GX12: Chambéry | GY12: 0 | GZ12: =IF(GY12="","",_xlfn.RANK.EQ(GY12,GY3:GY18)) -> 10 | HA12: Nice | HB12: Périgueux | HC12: 0 | HD12: =IF(HC12="","",_xlfn.RANK.EQ(HC12,HC3:HC18)) -> 8 | HE12: Nice
U13: 11 | V13: Chambéry | X13: 2 | Y13: -1 | Z13: q | AA13: 2 | AB13: 0 | AC13: 1 | AD13: 1 | AE13: 25 | AF13: 13 | AG13: 33 | AH13: 17 | AI13: -8 | AJ13: 0 | AK13: 0 | AL13: 0 | AM13: 0 | AN13: 0 | AO13: 0 | AP13: 1 | AQ13: 3 | AR13: -2 | AS13: 10 | AT13: Nice | AV13: 0 | AW13: -3 | AX13: q | AY13: 0 | AZ13: 0 | BA13: 0 | BB13: 0 | BC13: 0 | BD13: 0 | BE13: 0 | BF13: 0 | BG13: 0 | BH13: 1 | BI13: 1 | BJ13: 1 | BK13: 0 | BL13: 0 | BM13: 0 | BN13: 0 | BO13: 0 | BP13: 0 | BQ13: 11 | BR13: Bourg-en-Bresse | BT13: 0 | BU13: -7 | BV13: q | BW13: 1 | BX13: 0 | BY13: 0 | BZ13: 1 | CA13: 16 | CB13: 16 | CC13: 27 | CD13: 27 | CE13: -11 | CF13: 1 | CG13: 0 | CH13: 0 | CI13: 1 | CJ13: 0 | CK13: 0 | CL13: 1 | CM13: 3 | CN13: -2 | CO13: 11 | CP13: 1 | CQ13: 11 | CR13: 1 | CS13: 11 | CT13: 10 | CU13: =IF(Equipes!$C$12="","",Equipes!$C$12) -> Périgueux | CV13: 1 | CW13: ='J01'!CV13-CV13 -> 2 | CX13: =IF(CV13>'J01'!CV13,'J01'!$CX$20,IF(CV13='J01'!CV13,'J01'!$CW$20,IF(CV13<'J01'!CV13,'J01'!$CV$20))) -> p | CY13: 1 | CZ13: =SUMPRODUCT(($D$3:$D$10=CU13)*($FX$3:$FX$10))+SUMPRODUCT(($M$3:$M$10=CU13)*($FY$3:$FY$10))+'J01'!CZ13+DL13 -> 8 | DA13: =SUMPRODUCT(($D$3:$D$10=CU13)*($GB$3:$GB$10))+SUMPRODUCT(($M$3:$M$10=CU13)*($GC$3:$GC$10))+'J01'!DA13 -> 2 | DB13: =SUMPRODUCT(($D$3:$D$10=CU13)*($GF$3:$GF$10))+SUMPRODUCT(($M$3:$M$10=CU13)*($GG$3:$GG$10))+'J01'!DB13 -> 2 | DC13: =SUMPRODUCT(($D$3:$D$10=CU13)*($GH$3:$GH$10))+SUMPRODUCT(($M$3:$M$10=CU13)*($GI$3:$GI$10))+'J01'!DC13 -> 0 | DD13: =SUMPRODUCT(($D$3:$D$10=CU13)*($GJ$3:$GJ$10))+SUMPRODUCT(($M$3:$M$10=CU13)*($GK$3:$GK$10))+'J01'!DD13 -> 0 | DE13: =SUMPRODUCT(($D$3:$D$10=CU13)*($GL$3:$GL$10))+SUMPRODUCT(($M$3:$M$10=CU13)*($GM$3:$GM$10))+'J01'!DE13 -> 47 | DF13: 24 | DG13: =SUMPRODUCT(($D$3:$D$10=CU13)*($GN$3:$GN$10))+SUMPRODUCT(($M$3:$M$10=CU13)*($GO$3:$GO$10))+'J01'!DG13 -> 21 | DH13: 11 | DI13: 26 | DJ13: =SUMPRODUCT(($D$3:$D$10=CU13)*($FR$3:$FR$10))+SUMPRODUCT(($M$3:$M$10=CU13)*($FS$3:$FS$10))+'J01'!DJ13 -> 0 | DK13: =SUMPRODUCT(($D$3:$D$10=CU13)*($FT$3:$FT$10))+SUMPRODUCT(($M$3:$M$10=CU13)*($FU$3:$FU$10))+'J01'!DK13 -> 0 | DL13: 0 | DM13: =SUMPRODUCT(($D$3:$D$10=CU13)*($GP$3:$GP$10))+SUMPRODUCT(($M$3:$M$10=CU13)*($GQ$3:$GQ$10))+'J01'!DM13 -> 6 | DN13: =SUMPRODUCT(($D$3:$D$10=CU13)*($GR$3:$GR$10))+SUMPRODUCT(($M$3:$M$10=CU13)*($GS$3:$GS$10))+'J01'!DN13 -> 3 | DO13: 3 | DP13: =IF(Equipes!$C$12="","",Equipes!$C$12) -> Périgueux | DQ13: 1 | DR13: ='J01'!DQ13-DQ13 -> 1 | DS13: =IF(DQ13>'J01'!DQ13,'J01'!$DS$20,IF(DQ13='J01'!DQ13,'J01'!$DR$20,IF(DQ13<'J01'!DQ13,'J01'!$DQ$20))) -> p | DT13: 1 | DU13: =SUMPRODUCT(($D$3:$D$10=DP13)*($FV$3:$FV$10))+'J01'!DU13+EG13 -> 8 | DV13: =SUMPRODUCT(($D$3:$D$10=DP13)*($GB$3:$GB$10))+'J01'!DV13 -> 2 | DW13: =SUMPRODUCT(($D$3:$D$10=DP13)*($GF$3:$GF$10))+'J01'!DW13 -> 2 | DX13: =SUMPRODUCT(($D$3:$D$10=DP13)*($GH$3:$GH$10))+'J01'!DX13 -> 0 | DY13: =SUMPRODUCT(($D$3:$D$10=DP13)*($GJ$3:$GJ$10))+'J01'!DY13 -> 0 | DZ13: =SUMPRODUCT(($D$3:$D$10=DP13)*($GL$3:$GL$10))+'J01'!DZ13 -> 47 | EA13: 24 | EB13: =SUMPRODUCT(($D$3:$D$10=DP13)*($GN$3:$GN$10))+'J01'!EB13 -> 21 | EC13: 11 | ED13: 26 | EE13: =SUMPRODUCT(($D$3:$D$10=DP13)*($FR$3:$FR$10))+'J01'!EE13 -> 0 | EF13: =SUMPRODUCT(($D$3:$D$10=DP13)*($FT$3:$FT$10))+'J01'!EF13 -> 0 | EG13: 0 | EH13: =SUMPRODUCT(($D$3:$D$10=DP13)*($GP$3:$GP$10))+'J01'!EH13 -> 6 | EI13: =SUMPRODUCT(($D$3:$D$10=DP13)*($GR$3:$GR$10))+'J01'!EI13 -> 3 | EJ13: 3 | EK13: =IF(Equipes!$C$12="","",Equipes!$C$12) -> Périgueux | EL13: 8 | EM13: ='J01'!EL13-EL13 -> -4 | EN13: =IF(EL13>'J01'!EL13,'J01'!$EN$20,IF(EL13='J01'!EL13,'J01'!$EM$20,IF(EL13<'J01'!EL13,'J01'!$EL$20))) -> q | EO13: 10 | EP13: =SUMPRODUCT(($M$3:$M$10=EK13)*($FW$3:$FW$10))+'J01'!EP13+FB13 -> 0 | EQ13: =SUMPRODUCT(($M$3:$M$10=EK13)*($GC$3:$GC$10))+'J01'!EQ13 -> 0 | ER13: =SUMPRODUCT(($M$3:$M$10=EK13)*($GG$3:$GG$10))+'J01'!ER13 -> 0 | ES13: =SUMPRODUCT(($M$3:$M$10=EK13)*($GI$3:$GI$10))+'J01'!ES13 -> 0 | ET13: =SUMPRODUCT(($M$3:$M$10=EK13)*($GK$3:$GK$10))+'J01'!ET13 -> 0 | EU13: =SUMPRODUCT(($M$3:$M$10=EK13)*($GM$3:$GM$10))+'J01'!EU13 -> 0 | EV13: 0 | EW13: =SUMPRODUCT(($M$3:$M$10=EK13)*($GO$3:$GO$10))+'J01'!EW13 -> 0 | EX13: 0 | EY13: 0 | EZ13: =SUMPRODUCT(($M$3:$M$10=EK13)*($FS$3:$FS$10))+'J01'!EZ13 -> 0 | FA13: =SUMPRODUCT(($M$3:$M$10=EK13)*($FU$3:$FU$10))+'J01'!FA13 -> 0 | FB13: 0 | FC13: =SUMPRODUCT(($M$3:$M$10=EK13)*($GQ$3:$GQ$10))+'J01'!FC13 -> 0 | FD13: =SUMPRODUCT(($M$3:$M$10=EK13)*($GS$3:$GS$10))+'J01'!FD13 -> 0 | FE13: 0 | FF13: 8000.2647 | FG13: =FF13+0.00000004 -> 8000.2647 | FH13: 8000.2647 | FI13: =FH13+0.00000004 -> 8000.2647 | FJ13: 0 | FK13: =FJ13+0.00000004 -> 4e-08 | GT13: Chambéry | GU13: 1999.9225 | GV13: =IF(GU13="","",_xlfn.RANK.EQ(GU13,GU3:GU18)) -> 11 | GW13: Périgueux | GX13: Nice | GY13: 0 | GZ13: =IF(GY13="","",_xlfn.RANK.EQ(GY13,GY3:GY18)) -> 10 | HA13: Périgueux | HB13: Bourg-en-Bresse | HC13: -0.1084 | HD13: =IF(HC13="","",_xlfn.RANK.EQ(HC13,HC3:HC18)) -> 11 | HE13: Périgueux
N14: =IF(Accueil!$D$2="","",IF(Accueil!$D$2="Choix de la saison","","Aujourd'hui, nous sommes le "&TEXT(TODAY(),"jjjj jj mmmm aaaa"))) -> Aujourd'hui, nous sommes le lundi 11 mars 2024 | U14: 12 | V14: Bourg-en-Bresse | X14: 1 | Y14: -4 | Z14: q | AA14: 2 | AB14: 0 | AC14: 0 | AD14: 2 | AE14: 26 | AF14: 13 | AG14: 39 | AH14: 20 | AI14: -13 | AJ14: 1 | AK14: 0 | AL14: 0 | AM14: 1 | AN14: 0 | AO14: 0 | AP14: 2 | AQ14: 3 | AR14: -1 | AS14: 10 | AT14: Suresnes | AV14: 0 | AW14: -3 | AX14: q | AY14: 0 | AZ14: 0 | BA14: 0 | BB14: 0 | BC14: 0 | BD14: 0 | BE14: 0 | BF14: 0 | BG14: 0 | BH14: 1 | BI14: 0 | BJ14: 0 | BK14: 1 | BL14: 0 | BM14: 0 | BN14: 0 | BO14: 0 | BP14: 0 | BQ14: 12 | BR14: Albi | BT14: 0 | BU14: 1 | BV14: p | BW14: 1 | BX14: 0 | BY14: 0 | BZ14: 1 | CA14: 6 | CB14: 6 | CC14: 17 | CD14: 17 | CE14: -11 | CF14: 0 | CG14: 0 | CH14: 0 | CI14: 0 | CJ14: 0 | CK14: 0 | CL14: 0 | CM14: 1 | CN14: -1 | CO14: 12 | CP14: 13 | CQ14: 12 | CR14: 12 | CS14: 12 | CT14: 7 | CU14: =IF(Equipes!$C$13="","",Equipes!$C$13) -> Suresnes | CV14: 13 | CW14: ='J01'!CV14-CV14 -> 0 | CX14: =IF(CV14>'J01'!CV14,'J01'!$CX$20,IF(CV14='J01'!CV14,'J01'!$CW$20,IF(CV14<'J01'!CV14,'J01'!$CV$20))) -> u | CY14: 13 | CZ14: =SUMPRODUCT(($D$3:$D$10=CU14)*($FX$3:$FX$10))+SUMPRODUCT(($M$3:$M$10=CU14)*($FY$3:$FY$10))+'J01'!CZ14+DL14 -> 1 | DA14: =SUMPRODUCT(($D$3:$D$10=CU14)*($GB$3:$GB$10))+SUMPRODUCT(($M$3:$M$10=CU14)*($GC$3:$GC$10))+'J01'!DA14 -> 2 | DB14: =SUMPRODUCT(($D$3:$D$10=CU14)*($GF$3:$GF$10))+SUMPRODUCT(($M$3:$M$10=CU14)*($GG$3:$GG$10))+'J01'!DB14 -> 0 | DC14: =SUMPRODUCT(($D$3:$D$10=CU14)*($GH$3:$GH$10))+SUMPRODUCT(($M$3:$M$10=CU14)*($GI$3:$GI$10))+'J01'!DC14 -> 0 | DD14: =SUMPRODUCT(($D$3:$D$10=CU14)*($GJ$3:$GJ$10))+SUMPRODUCT(($M$3:$M$10=CU14)*($GK$3:$GK$10))+'J01'!DD14 -> 2 | DE14: =SUMPRODUCT(($D$3:$D$10=CU14)*($GL$3:$GL$10))+SUMPRODUCT(($M$3:$M$10=CU14)*($GM$3:$GM$10))+'J01'!DE14 -> 24 | DF14: 12 | DG14: =SUMPRODUCT(($D$3:$D$10=CU14)*($GN$3:$GN$10))+SUMPRODUCT(($M$3:$M$10=CU14)*($GO$3:$GO$10))+'J01'!DG14 -> 45 | DH14: 23 | DI14: -21 | DJ14: =SUMPRODUCT(($D$3:$D$10=CU14)*($FR$3:$FR$10))+SUMPRODUCT(($M$3:$M$10=CU14)*($FS$3:$FS$10))+'J01'!DJ14 -> 0 | DK14: =SUMPRODUCT(($D$3:$D$10=CU14)*($FT$3:$FT$10))+SUMPRODUCT(($M$3:$M$10=CU14)*($FU$3:$FU$10))+'J01'!DK14 -> 1 | DL14: 0 | DM14: =SUMPRODUCT(($D$3:$D$10=CU14)*($GP$3:$GP$10))+SUMPRODUCT(($M$3:$M$10=CU14)*($GQ$3:$GQ$10))+'J01'!DM14 -> 3 | DN14: =SUMPRODUCT(($D$3:$D$10=CU14)*($GR$3:$GR$10))+SUMPRODUCT(($M$3:$M$10=CU14)*($GS$3:$GS$10))+'J01'!DN14 -> 5 | DO14: -2 | DP14: =IF(Equipes!$C$13="","",Equipes!$C$13) -> Suresnes | DQ14: 10 | DR14: ='J01'!DQ14-DQ14 -> -3 | DS14: =IF(DQ14>'J01'!DQ14,'J01'!$DS$20,IF(DQ14='J01'!DQ14,'J01'!$DR$20,IF(DQ14<'J01'!DQ14,'J01'!$DQ$20))) -> q | DT14: 12 | DU14: =SUMPRODUCT(($D$3:$D$10=DP14)*($FV$3:$FV$10))+'J01'!DU14+EG14 -> 0 | DV14: =SUMPRODUCT(($D$3:$D$10=DP14)*($GB$3:$GB$10))+'J01'!DV14 -> 0 | DW14: =SUMPRODUCT(($D$3:$D$10=DP14)*($GF$3:$GF$10))+'J01'!DW14 -> 0 | DX14: =SUMPRODUCT(($D$3:$D$10=DP14)*($GH$3:$GH$10))+'J01'!DX14 -> 0 | DY14: =SUMPRODUCT(($D$3:$D$10=DP14)*($GJ$3:$GJ$10))+'J01'!DY14 -> 0 | DZ14: =SUMPRODUCT(($D$3:$D$10=DP14)*($GL$3:$GL$10))+'J01'!DZ14 -> 0 | EA14: 0 | EB14: =SUMPRODUCT(($D$3:$D$10=DP14)*($GN$3:$GN$10))+'J01'!EB14 -> 0 | EC14: 0 | ED14: 0 | EE14: =SUMPRODUCT(($D$3:$D$10=DP14)*($FR$3:$FR$10))+'J01'!EE14 -> 0 | EF14: 1 | EG14: 0 | EH14: =SUMPRODUCT(($D$3:$D$10=DP14)*($GP$3:$GP$10))+'J01'!EH14 -> 0 | EI14: =SUMPRODUCT(($D$3:$D$10=DP14)*($GR$3:$GR$10))+'J01'!EI14 -> 0 | EJ14: 0 | EK14: =IF(Equipes!$C$13="","",Equipes!$C$13) -> Suresnes | EL14: 7 | EM14: ='J01'!EL14-EL14 -> 7 | EN14: =IF(EL14>'J01'!EL14,'J01'!$EN$20,IF(EL14='J01'!EL14,'J01'!$EM$20,IF(EL14<'J01'!EL14,'J01'!$EL$20))) -> p | EO14: 7 | EP14: =SUMPRODUCT(($M$3:$M$10=EK14)*($FW$3:$FW$10))+'J01'!EP14+FB14 -> 1 | EQ14: =SUMPRODUCT(($M$3:$M$10=EK14)*($GC$3:$GC$10))+'J01'!EQ14 -> 2 | ER14: =SUMPRODUCT(($M$3:$M$10=EK14)*($GG$3:$GG$10))+'J01'!ER14 -> 0 | ES14: =SUMPRODUCT(($M$3:$M$10=EK14)*($GI$3:$GI$10))+'J01'!ES14 -> 0 | ET14: =SUMPRODUCT(($M$3:$M$10=EK14)*($GK$3:$GK$10))+'J01'!ET14 -> 2 | EU14: =SUMPRODUCT(($M$3:$M$10=EK14)*($GM$3:$GM$10))+'J01'!EU14 -> 24 | EV14: 12 | EW14: =SUMPRODUCT(($M$3:$M$10=EK14)*($GO$3:$GO$10))+'J01'!EW14 -> 45 | EX14: 22.5 | EY14: -21 | EZ14: =SUMPRODUCT(($M$3:$M$10=EK14)*($FS$3:$FS$10))+'J01'!EZ14 -> 0 | FA14: =SUMPRODUCT(($M$3:$M$10=EK14)*($FU$3:$FU$10))+'J01'!FA14 -> 1 | FB14: 0 | FC14: =SUMPRODUCT(($M$3:$M$10=EK14)*($GQ$3:$GQ$10))+'J01'!FC14 -> 3 | FD14: =SUMPRODUCT(($M$3:$M$10=EK14)*($GS$3:$GS$10))+'J01'!FD14 -> 5 | FE14: -2 | FF14: 999.7924 | FG14: =FF14+0.00000003 -> 999.7924 | FH14: 0 | FI14: =FH14+0.00000003 -> 3e-08 | FJ14: 999.7924 | FK14: =FJ14+0.00000003 -> 999.7924 | GT14: Bourg-en-Bresse | GU14: 999.8726 | GV14: =IF(GU14="","",_xlfn.RANK.EQ(GU14,GU3:GU18)) -> 12 | GW14: Suresnes | GX14: Suresnes | GY14: 0 | GZ14: =IF(GY14="","",_xlfn.RANK.EQ(GY14,GY3:GY18)) -> 10 | HA14: Suresnes | HB14: Albi | HC14: -0.1094 | HD14: =IF(HC14="","",_xlfn.RANK.EQ(HC14,HC3:HC18)) -> 12 | HE14: Suresnes
U15: 13 | V15: Suresnes | X15: 1 | Y15: 0 | Z15: u | AA15: 2 | AB15: 0 | AC15: 0 | AD15: 2 | AE15: 24 | AF15: 12 | AG15: 45 | AH15: 23 | AI15: -21 | AJ15: 1 | AK15: 0 | AL15: 0 | AM15: 1 | AN15: 0 | AO15: 0 | AP15: 3 | AQ15: 5 | AR15: -2 | AS15: 13 | AT15: Vienne | AV15: 0 | AW15: -6 | AX15: q | AY15: 1 | AZ15: 0 | BA15: 0 | BB15: 1 | BC15: 3 | BD15: 3 | BE15: 25 | BF15: 25 | BG15: -22 | BH15: 0 | BI15: 0 | BJ15: 0 | BK15: 0 | BL15: 0 | BM15: 0 | BN15: 0 | BO15: 3 | BP15: -3 | BQ15: 13 | BR15: Bourgoin-Jallieu | BT15: 0 | BU15: -9 | BV15: q | BW15: 1 | BX15: 0 | BY15: 0 | BZ15: 1 | CA15: 7 | CB15: 7 | CC15: 22 | CD15: 22 | CE15: -15 | CF15: 0 | CG15: 0 | CH15: 0 | CI15: 0 | CJ15: 0 | CK15: 0 | CL15: 1 | CM15: 3 | CN15: -2 | CO15: 13 | CP15: 4 | CQ15: 13 | CR15: 4 | CS15: 13 | CT15: 6 | CU15: =IF(Equipes!$C$14="","",Equipes!$C$14) -> Tarbes | CV15: 4 | CW15: ='J01'!CV15-CV15 -> 5 | CX15: =IF(CV15>'J01'!CV15,'J01'!$CX$20,IF(CV15='J01'!CV15,'J01'!$CW$20,IF(CV15<'J01'!CV15,'J01'!$CV$20))) -> p | CY15: 4 | CZ15: =SUMPRODUCT(($D$3:$D$10=CU15)*($FX$3:$FX$10))+SUMPRODUCT(($M$3:$M$10=CU15)*($FY$3:$FY$10))+'J01'!CZ15+DL15 -> 6 | DA15: =SUMPRODUCT(($D$3:$D$10=CU15)*($GB$3:$GB$10))+SUMPRODUCT(($M$3:$M$10=CU15)*($GC$3:$GC$10))+'J01'!DA15 -> 2 | DB15: =SUMPRODUCT(($D$3:$D$10=CU15)*($GF$3:$GF$10))+SUMPRODUCT(($M$3:$M$10=CU15)*($GG$3:$GG$10))+'J01'!DB15 -> 1 | DC15: =SUMPRODUCT(($D$3:$D$10=CU15)*($GH$3:$GH$10))+SUMPRODUCT(($M$3:$M$10=CU15)*($GI$3:$GI$10))+'J01'!DC15 -> 0 | DD15: =SUMPRODUCT(($D$3:$D$10=CU15)*($GJ$3:$GJ$10))+SUMPRODUCT(($M$3:$M$10=CU15)*($GK$3:$GK$10))+'J01'!DD15 -> 1 | DE15: =SUMPRODUCT(($D$3:$D$10=CU15)*($GL$3:$GL$10))+SUMPRODUCT(($M$3:$M$10=CU15)*($GM$3:$GM$10))+'J01'!DE15 -> 38 | DF15: 19 | DG15: =SUMPRODUCT(($D$3:$D$10=CU15)*($GN$3:$GN$10))+SUMPRODUCT(($M$3:$M$10=CU15)*($GO$3:$GO$10))+'J01'!DG15 -> 20 | DH15: 10 | DI15: 18 | DJ15: =SUMPRODUCT(($D$3:$D$10=CU15)*($FR$3:$FR$10))+SUMPRODUCT(($M$3:$M$10=CU15)*($FS$3:$FS$10))+'J01'!DJ15 -> 0 | DK15: =SUMPRODUCT(($D$3:$D$10=CU15)*($FT$3:$FT$10))+SUMPRODUCT(($M$3:$M$10=CU15)*($FU$3:$FU$10))+'J01'!DK15 -> 1 | DL15: 0 | DM15: =SUMPRODUCT(($D$3:$D$10=CU15)*($GP$3:$GP$10))+SUMPRODUCT(($M$3:$M$10=CU15)*($GQ$3:$GQ$10))+'J01'!DM15 -> 1 | DN15: =SUMPRODUCT(($D$3:$D$10=CU15)*($GR$3:$GR$10))+SUMPRODUCT(($M$3:$M$10=CU15)*($GS$3:$GS$10))+'J01'!DN15 -> 2 | DO15: -1 | DP15: =IF(Equipes!$C$14="","",Equipes!$C$14) -> Tarbes | DQ15: 4 | DR15: ='J01'!DQ15-DQ15 -> 3 | DS15: =IF(DQ15>'J01'!DQ15,'J01'!$DS$20,IF(DQ15='J01'!DQ15,'J01'!$DR$20,IF(DQ15<'J01'!DQ15,'J01'!$DQ$20))) -> p | DT15: 4 | DU15: =SUMPRODUCT(($D$3:$D$10=DP15)*($FV$3:$FV$10))+'J01'!DU15+EG15 -> 4 | DV15: =SUMPRODUCT(($D$3:$D$10=DP15)*($GB$3:$GB$10))+'J01'!DV15 -> 1 | DW15: =SUMPRODUCT(($D$3:$D$10=DP15)*($GF$3:$GF$10))+'J01'!DW15 -> 1 | DX15: =SUMPRODUCT(($D$3:$D$10=DP15)*($GH$3:$GH$10))+'J01'!DX15 -> 0 | DY15: =SUMPRODUCT(($D$3:$D$10=DP15)*($GJ$3:$GJ$10))+'J01'!DY15 -> 0 | DZ15: =SUMPRODUCT(($D$3:$D$10=DP15)*($GL$3:$GL$10))+'J01'!DZ15 -> 25 | EA15: 25 | EB15: =SUMPRODUCT(($D$3:$D$10=DP15)*($GN$3:$GN$10))+'J01'!EB15 -> 0 | EC15: 0 | ED15: 25 | EE15: =SUMPRODUCT(($D$3:$D$10=DP15)*($FR$3:$FR$10))+'J01'!EE15 -> 0 | EF15: =SUMPRODUCT(($D$3:$D$10=DP15)*($FT$3:$FT$10))+'J01'!EF15 -> 1 | EG15: 0 | EH15: =SUMPRODUCT(($D$3:$D$10=DP15)*($GP$3:$GP$10))+'J01'!EH15 -> 0 | EI15: =SUMPRODUCT(($D$3:$D$10=DP15)*($GR$3:$GR$10))+'J01'!EI15 -> 0 | EJ15: 0 | EK15: =IF(Equipes!$C$14="","",Equipes!$C$14) -> Tarbes | EL15: 6 | EM15: ='J01'!EL15-EL15 -> -3 | EN15: =IF(EL15>'J01'!EL15,'J01'!$EN$20,IF(EL15='J01'!EL15,'J01'!$EM$20,IF(EL15<'J01'!EL15,'J01'!$EL$20))) -> q | EO15: 6 | EP15: =SUMPRODUCT(($M$3:$M$10=EK15)*($FW$3:$FW$10))+'J01'!EP15+FB15 -> 1 | EQ15: =SUMPRODUCT(($M$3:$M$10=EK15)*($GC$3:$GC$10))+'J01'!EQ15 -> 1 | ER15: =SUMPRODUCT(($M$3:$M$10=EK15)*($GG$3:$GG$10))+'J01'!ER15 -> 0 | ES15: =SUMPRODUCT(($M$3:$M$10=EK15)*($GI$3:$GI$10))+'J01'!ES15 -> 0 | ET15: =SUMPRODUCT(($M$3:$M$10=EK15)*($GK$3:$GK$10))+'J01'!ET15 -> 1 | EU15: =SUMPRODUCT(($M$3:$M$10=EK15)*($GM$3:$GM$10))+'J01'!EU15 -> 13 | EV15: 13 | EW15: =SUMPRODUCT(($M$3:$M$10=EK15)*($GO$3:$GO$10))+'J01'!EW15 -> 20 | EX15: 20 | EY15: -7 | EZ15: =SUMPRODUCT(($M$3:$M$10=EK15)*($FS$3:$FS$10))+'J01'!EZ15 -> 0 | FA15: =SUMPRODUCT(($M$3:$M$10=EK15)*($FU$3:$FU$10))+'J01'!FA15 -> 1 | FB15: 0 | FC15: =SUMPRODUCT(($M$3:$M$10=EK15)*($GQ$3:$GQ$10))+'J01'!FC15 -> 1 | FD15: =SUMPRODUCT(($M$3:$M$10=EK15)*($GS$3:$GS$10))+'J01'!FD15 -> 2 | FE15: -1 | FF15: 6000.1838 | FG15: =FF15+0.00000002 -> 6000.1838 | FH15: 4000.2525 | FI15: =FH15+0.00000002 -> 4000.2525 | FJ15: 999.9313 | FK15: =FJ15+0.00000002 -> 999.9313 | GT15: Suresnes | GU15: 999.7924 | GV15: =IF(GU15="","",_xlfn.RANK.EQ(GU15,GU3:GU18)) -> 13 | GW15: Tarbes | GX15: Vienne | GY15: -0.2197 | GZ15: =IF(GY15="","",_xlfn.RANK.EQ(GY15,GY3:GY18)) -> 13 | HA15: Tarbes | HB15: Bourgoin-Jallieu | HC15: -0.1493 | HD15: =IF(HC15="","",_xlfn.RANK.EQ(HC15,HC3:HC18)) -> 13 | HE15: Tarbes
N16: =IF(Equipes!$M$20="","",Equipes!$M$20) -> Date du début du Championnat : vendredi 25 août 2023 | U16: 14 | V16: Blagnac | X16: -4 | Y16: 0 | Z16: u | AA16: 2 | AB16: 0 | AC16: 0 | AD16: 2 | AE16: 0 | AF16: 0 | AG16: 50 | AH16: 25 | AI16: -50 | AJ16: 0 | AK16: 0 | AL16: 0 | AM16: 0 | AN16: 0 | AO16: 0 | AP16: 0 | AQ16: 0 | AR16: 0 | AS16: 14 | AT16: Blagnac | AV16: 0 | AW16: 0 | AX16: u | AY16: 1 | AZ16: 0 | BA16: 0 | BB16: 1 | BC16: 0 | BD16: 0 | BE16: 25 | BF16: 25 | BG16: -25 | BH16: 0 | BI16: 0 | BJ16: 0 | BK16: 0 | BL16: 0 | BM16: 0 | BN16: 0 | BO16: 0 | BP16: 0 | BQ16: 14 | BR16: Blagnac | BT16: 0 | BU16: -10 | BV16: q | BW16: 1 | BX16: 0 | BY16: 0 | BZ16: 1 | CA16: 0 | CB16: 0 | CC16: 25 | CD16: 25 | CE16: -25 | CF16: 0 | CG16: 0 | CH16: 0 | CI16: 0 | CJ16: 0 | CK16: 0 | CL16: 0 | CM16: 0 | CN16: 0 | CO16: 14 | CP16: 8 | CQ16: 14 | CR16: 13 | CS16: 14 | CT16: 2 | CU16: =IF(Equipes!$C$15="","",Equipes!$C$15) -> Vienne | CV16: 8 | CW16: ='J01'!CV16-CV16 -> -7 | CX16: =IF(CV16>'J01'!CV16,'J01'!$CX$20,IF(CV16='J01'!CV16,'J01'!$CW$20,IF(CV16<'J01'!CV16,'J01'!$CV$20))) -> q | CY16: 8 | CZ16: =SUMPRODUCT(($D$3:$D$10=CU16)*($FX$3:$FX$10))+SUMPRODUCT(($M$3:$M$10=CU16)*($FY$3:$FY$10))+'J01'!CZ16+DL16 -> 5 | DA16: =SUMPRODUCT(($D$3:$D$10=CU16)*($GB$3:$GB$10))+SUMPRODUCT(($M$3:$M$10=CU16)*($GC$3:$GC$10))+'J01'!DA16 -> 2 | DB16: =SUMPRODUCT(($D$3:$D$10=CU16)*($GF$3:$GF$10))+SUMPRODUCT(($M$3:$M$10=CU16)*($GG$3:$GG$10))+'J01'!DB16 -> 1 | DC16: =SUMPRODUCT(($D$3:$D$10=CU16)*($GH$3:$GH$10))+SUMPRODUCT(($M$3:$M$10=CU16)*($GI$3:$GI$10))+'J01'!DC16 -> 0 | DD16: =SUMPRODUCT(($D$3:$D$10=CU16)*($GJ$3:$GJ$10))+SUMPRODUCT(($M$3:$M$10=CU16)*($GK$3:$GK$10))+'J01'!DD16 -> 1 | DE16: =SUMPRODUCT(($D$3:$D$10=CU16)*($GL$3:$GL$10))+SUMPRODUCT(($M$3:$M$10=CU16)*($GM$3:$GM$10))+'J01'!DE16 -> 28 | DF16: 14 | DG16: =SUMPRODUCT(($D$3:$D$10=CU16)*($GN$3:$GN$10))+SUMPRODUCT(($M$3:$M$10=CU16)*($GO$3:$GO$10))+'J01'!DG16 -> 25 | DH16: 13 | DI16: 3 | DJ16: =SUMPRODUCT(($D$3:$D$10=CU16)*($FR$3:$FR$10))+SUMPRODUCT(($M$3:$M$10=CU16)*($FS$3:$FS$10))+'J01'!DJ16 -> 0 | DK16: =SUMPRODUCT(($D$3:$D$10=CU16)*($FT$3:$FT$10))+SUMPRODUCT(($M$3:$M$10=CU16)*($FU$3:$FU$10))+'J01'!DK16 -> 0 | DL16: 0 | DM16: =SUMPRODUCT(($D$3:$D$10=CU16)*($GP$3:$GP$10))+SUMPRODUCT(($M$3:$M$10=CU16)*($GQ$3:$GQ$10))+'J01'!DM16 -> 0 | DN16: =SUMPRODUCT(($D$3:$D$10=CU16)*($GR$3:$GR$10))+SUMPRODUCT(($M$3:$M$10=CU16)*($GS$3:$GS$10))+'J01'!DN16 -> 3 | DO16: -3 | DP16: =IF(Equipes!$C$15="","",Equipes!$C$15) -> Vienne | DQ16: 13 | DR16: ='J01'!DQ16-DQ16 -> -6 | DS16: =IF(DQ16>'J01'!DQ16,'J01'!$DS$20,IF(DQ16='J01'!DQ16,'J01'!$DR$20,IF(DQ16<'J01'!DQ16,'J01'!$DQ$20))) -> q | DT16: 13 | DU16: =SUMPRODUCT(($D$3:$D$10=DP16)*($FV$3:$FV$10))+'J01'!DU16+EG16 -> 0 | DV16: =SUMPRODUCT(($D$3:$D$10=DP16)*($GB$3:$GB$10))+'J01'!DV16 -> 1 | DW16: =SUMPRODUCT(($D$3:$D$10=DP16)*($GF$3:$GF$10))+'J01'!DW16 -> 0 | DX16: =SUMPRODUCT(($D$3:$D$10=DP16)*($GH$3:$GH$10))+'J01'!DX16 -> 0 | DY16: =SUMPRODUCT(($D$3:$D$10=DP16)*($GJ$3:$GJ$10))+'J01'!DY16 -> 1 | DZ16: =SUMPRODUCT(($D$3:$D$10=DP16)*($GL$3:$GL$10))+'J01'!DZ16 -> 3 | EA16: 3 | EB16: =SUMPRODUCT(($D$3:$D$10=DP16)*($GN$3:$GN$10))+'J01'!EB16 -> 25 | EC16: 25 | ED16: -22 | EE16: =SUMPRODUCT(($D$3:$D$10=DP16)*($FR$3:$FR$10))+'J01'!EE16 -> 0 | EF16: =SUMPRODUCT(($D$3:$D$10=DP16)*($FT$3:$FT$10))+'J01'!EF16 -> 0 | EG16: 0 | EH16: =SUMPRODUCT(($D$3:$D$10=DP16)*($GP$3:$GP$10))+'J01'!EH16 -> 0 | EI16: =SUMPRODUCT(($D$3:$D$10=DP16)*($GR$3:$GR$10))+'J01'!EI16 -> 3 | EJ16: -3 | EK16: =IF(Equipes!$C$15="","",Equipes!$C$15) -> Vienne | EL16: 2 | EM16: ='J01'!EL16-EL16 -> -1 | EN16: =IF(EL16>'J01'!EL16,'J01'!$EN$20,IF(EL16='J01'!EL16,'J01'!$EM$20,IF(EL16<'J01'!EL16,'J01'!$EL$20))) -> q | EO16: 2 | EP16: =SUMPRODUCT(($M$3:$M$10=EK16)*($FW$3:$FW$10))+'J01'!EP16+FB16 -> 4 | EQ16: =SUMPRODUCT(($M$3:$M$10=EK16)*($GC$3:$GC$10))+'J01'!EQ16 -> 1 | ER16: =SUMPRODUCT(($M$3:$M$10=EK16)*($GG$3:$GG$10))+'J01'!ER16 -> 1 | ES16: =SUMPRODUCT(($M$3:$M$10=EK16)*($GI$3:$GI$10))+'J01'!ES16 -> 0 | ET16: =SUMPRODUCT(($M$3:$M$10=EK16)*($GK$3:$GK$10))+'J01'!ET16 -> 0 | EU16: =SUMPRODUCT(($M$3:$M$10=EK16)*($GM$3:$GM$10))+'J01'!EU16 -> 25 | EV16: 25 | EW16: =SUMPRODUCT(($M$3:$M$10=EK16)*($GO$3:$GO$10))+'J01'!EW16 -> 0 | EX16: 0 | EY16: 25 | EZ16: =SUMPRODUCT(($M$3:$M$10=EK16)*($FS$3:$FS$10))+'J01'!EZ16 -> 0 | FA16: =SUMPRODUCT(($M$3:$M$10=EK16)*($FU$3:$FU$10))+'J01'!FA16 -> 0 | FB16: 0 | FC16: =SUMPRODUCT(($M$3:$M$10=EK16)*($GQ$3:$GQ$10))+'J01'!FC16 -> 0 | FD16: =SUMPRODUCT(($M$3:$M$10=EK16)*($GS$3:$GS$10))+'J01'!FD16 -> 0 | FE16: 0 | FF16: 5000.0328 | FG16: =FF16+0.00000001 -> 5000.0328 | FH16: -0.2197 | FI16: =FH16+0.00000001 -> -0.21969999 | FJ16: 4000.2525 | FK16: =FJ16+0.00000001 -> 4000.2525 | GT16: Blagnac | GU16: -4000.5 | GV16: =IF(GU16="","",_xlfn.RANK.EQ(GU16,GU3:GU18)) -> 14 | GW16: Vienne | GX16: Blagnac | GY16: -0.25 | GZ16: =IF(GY16="","",_xlfn.RANK.EQ(GY16,GY3:GY18)) -> 14 | HA16: Vienne | HB16: Blagnac | HC16: -0.25 | HD16: =IF(HC16="","",_xlfn.RANK.EQ(HC16,HC3:HC18)) -> 14 | HE16: Vienne
N18: =IF(Equipes!$M$22="","",Equipes!$M$22) -> Date de la fin du Championnat : samedi 27 avril 2024
AA20: =IF(SUM(AA3:AA16)<>0,SUM(AA3:AA16),"") -> 28 | CV20: p | CW20: u | CX20: q | DQ20: p | DR20: u | DS20: q | EL20: p | EM20: u | EN20: q
CV21: p | CW21: u | CX21: q | DQ21: p | DR21: u | DS21: q | EL21: p | EM21: u | EN21: q

Sheet J03
A1: =IF(Accueil!$H$2="","",IF(Accueil!$H$2="Choix du Championnat de Rugby","",IF(Accueil!$B$2="","",IF(Accueil!$D$2="","",IF(Accueil!$D$2="Choix de la saison","",_xlfn.CONCAT(Accueil!$H$2," / ",Accueil!$B$2," ",Accueil!$D$2)))))) -> Championnat de France de Rugby à 15 - Nationale / Saison du Championnat : 2023 - 2024 | S1: ='J02'!S1+1 -> 3 | U1: CLASSEMENT GENERAL | AS1: CLASSEMENT A DOMICILE | BQ1: CLASSEMENT A L'EXTERIEUR | CO1: =U1 -> CLASSEMENT GENERAL | CQ1: =AS1 -> CLASSEMENT A DOMICILE | CS1: =BQ1 -> CLASSEMENT A L'EXTERIEUR | CU1: =U1 -> CLASSEMENT GENERAL | DP1: =AS1 -> CLASSEMENT A DOMICILE | EK1: =BQ1 -> CLASSEMENT A L'EXTERIEUR | FF1: =U1 -> CLASSEMENT GENERAL | FH1: =AS1 -> CLASSEMENT A DOMICILE | FJ1: =BQ1 -> CLASSEMENT A L'EXTERIEUR | FL1: Dom. | FM1: Ext. | FN1: Dom. | FO1: Ext. | FP1: Dom. | FQ1: Ext. | FR1: Dom. | FS1: Ext. | FT1: Dom. | FU1: Ext. | FV1: Dom. | FW1: Ext. | FX1: Dom. | FY1: Ext. | FZ1: Dom. | GA1: Ext. | GB1: Dom. | GC1: Ext. | GD1: Dom. | GE1: Ext. | GF1: Dom. | GG1: Ext. | GH1: Dom. | GI1: Ext. | GJ1: Dom. | GK1: Ext. | GL1: Dom. | GM1: Ext. | GN1: Dom. | GO1: Ext. | GP1: Dom. | GQ1: Ext. | GR1: Dom. | GS1: Ext. | GT1: =U1 -> CLASSEMENT GENERAL | GX1: =AS1 -> CLASSEMENT A DOMICILE | HB1: =BQ1 -> CLASSEMENT A L'EXTERIEUR
A2: Points de pénalités | B2: Points de bonus | C2: Equipes exclues, forfaits, matchs gagnés ou perdus sur tapis vert | D2: Equipes | E2: Points | F2: Bonus défensif Bd | G2: Essais | H2: Bonus offensif Bo | I2: Points | J2: Bonus défensif Bd | K2: Essais | L2: Bonus offensif Bo | M2: Equipes | N2: Equipes exclues, forfaits, matchs gagnés ou perdus sur tapis vert | O2: Points de bonus | P2: Points de pénalités | Q2: Dates | R2: Horaires | S2: Matchs à rejouer, annulés, arrêtés, avec réserves, reportés ou reprogrammés | U2: Place | V2: Equipes | W2: Logo | X2: Points | Y2: Evolution | AA2: Joués | AB2: Gagnés | AC2: Nuls | AD2: Perdus | AE2: Points marqués | AF2: Moyenne par match | AG2: Points encaissés | AH2: Moyenne par match | AI2: +/- | AJ2: Tous les bonus | AK2: B.O + B.P | AL2: Bonus offensif | AM2: Bonus défensif | AN2: Bonus fédération | AO2: Bonus pénalité | AP2: Essais marqués | AQ2: Essais encaissés | AR2: +/- | AS2: Place | AT2: Equipes | AU2: Logo | AV2: Points | AW2: Evolution | AY2: Joués | AZ2: Gagnés | BA2: Nuls | BB2: Perdus | BC2: Points marqués | BD2: Moyenne par match | BE2: Points encaissés | BF2: Moyenne par match | BG2: +/- | BH2: Tous les bonus | BI2: B.O + B.P | BJ2: Bonus offensif | BK2: Bonus défensif | BL2: Bonus fédération | BM2: Bonus pénalité | BN2: Essais marqués | BO2: Essais encaissés | BP2: +/- | BQ2: Place | BR2: Equipes | BS2: Logo | BT2: Points | BU2: Evolution | BW2: Joués | BX2: Gagnés | BY2: Nuls | BZ2: Perdus | CA2: Points marqués | CB2: Moyenne par match | CC2: Points encaissés | CD2: Moyenne par match | CE2: +/- | CF2: Tous les bonus | CG2: B.O + B.P | CH2: Bonus offensif | CI2: Bonus défensif | CJ2: Bonus fédération | CK2: Bonus pénalité | CL2: Essais marqués | CM2: Essais encaissés | CN2: +/- | CO2: Rang | CP2: Place | CQ2: Rang | CR2: Place | CS2: Rang | CT2: Place | CU2: Equipes | CV2: Rang | CW2: Evolution | CY2: Place | CZ2: Points | DA2: Joués | DB2: Gagnés | DC2: Nuls | DD2: Perdus | DE2: Points marqués | DF2: Moyenne par match | DG2: Points encaissés | DH2: Moyenne par match | DI2: +/- | DJ2: Bonus offensif | DK2: Bonus défensif | DL2: Bonus fédération | DM2: Essais marqués | DN2: Essais encaissés | DO2: +/- | DP2: Equipes | DQ2: Rang | DR2: Evolution | DT2: Place | DU2: Points | DV2: Joués | DW2: Gagnés | DX2: Nuls | DY2: Perdus | DZ2: Points marqués | EA2: Moyenne par match | EB2: Points encaissés | EC2: Moyenne par match | ED2: +/- | EE2: Bonus offensif | EF2: Bonus défensif | EG2: Bonus fédération | EH2: Essais marqués | EI2: Essais encaissés | EJ2: +/- | EK2: Equipes | EL2: Rang | EM2: Evolution | EO2: Place | EP2: Points | EQ2: Joués | ER2: Gagnés | ES2: Nuls | ET2: Perdus | EU2: Points marqués | EV2: Moyenne par match | EW2: Points encaissés | EX2: Moyenne par match | EY2: +/- | EZ2: Bonus offensif | FA2: Bonus défensif | FB2: Bonus fédération | FC2: Essais marqués | FD2: Essais encaissés | FE2: +/- | FF2: Rang | FG2: Place | FH2: Rang | FI2: Place | FJ2: Rang | FK2: Place | FL2: Points de pénalités | FM2: Points de pénalités | FN2: Points de bonus | FO2: Points de bonus | FP2: Pts | FQ2: Pts | FR2: Bo | FS2: Bo | FT2: Bd | FU2: Bd | FV2: T Pts | FW2: T Pts | FX2: T Pts | FY2: TPts | FZ2: J annulé | GA2: J annulé | GB2: J | GC2: J | GD2: Total J | GE2: Total J | GF2: G | GG2: G | GH2: N | GI2: N | GJ2: P | GK2: P | GL2: Pts + | GM2: Pts + | GN2: Pts - | GO2: Pts - | GP2: Essais + | GQ2: Essais + | GR2: Essais - | GS2: Essais - | GT2: Equipes | GU2: Rang | GV2: Place | GW2: Equipes | GX2: Equipes | GY2: Rang | GZ2: Place | HA2: Equipes | HB2: Equipes | HC2: Rang | HD2: Place | HE2: Equipes | HG2: ok | HH2: Dates et horaires des matchs prévus | HI2: Dates et horaires des matchs restant à jouer | HJ2: Date et horaire minimum à jouer | HK2: Date et horaire maximum à jouer | HM2: Total J | HN2: Total J
D3: Albi | E3: 10 | F3: =IF(E3="","",IF(I3="","",IF(E3>I3,"",IF(E3=I3,"",IF(E3<I3,IF(SUM(I3-E3)<=7,"Bd","")))))) ->  | G3: 1 | H3: =IF(G3="","",IF(K3="","",IF(SUM(G3-K3)>=3,"Bo",""))) ->  | I3: 7 | J3: =IF(I3="","",IF(E3="","",IF(I3>E3,"",IF(I3=E3,"",IF(I3<E3,IF(SUM(E3-I3)<=7,"Bd","")))))) -> Bd | K3: 1 | L3: =IF(K3="","",IF(G3="","",IF(SUM(K3-G3)>=3,"Bo",""))) ->  | M3: Périgueux | Q3: Samedi 9 septembre 2023 | R3: 19:00:00 | U3: 1 | V3: =IFERROR(_xlfn.XLOOKUP(CO3,$CP$3:$CP$18,$CU$3:$CU$18),"") -> Narbonne | X3: =IFERROR(_xlfn.XLOOKUP(V3,$CU$3:$CU$18,$CZ$3:$CZ$18),"") -> 13 | Y3: =IFERROR(_xlfn.XLOOKUP(V3,$CU$3:$CU$18,$CW$3:$CW$18),"") -> 1 | Z3: =IFERROR(_xlfn.XLOOKUP(V3,$CU$3:$CU$18,$CX$3:$CX$18),"") -> p | AA3: =IFERROR(_xlfn.XLOOKUP(V3,$CU$3:$CU$18,$DA$3:$DA$18),"") -> 3 | AB3: =IFERROR(_xlfn.XLOOKUP(V3,$CU$3:$CU$18,$DB$3:$DB$18),"") -> 3 | AC3: =IFERROR(_xlfn.XLOOKUP(V3,$CU$3:$CU$18,$DC$3:$DC$18),"") -> 0 | AD3: =IFERROR(_xlfn.XLOOKUP(V3,$CU$3:$CU$18,$DD$3:$DD$18),"") -> 0 | AE3: =IFERROR(_xlfn.XLOOKUP(V3,$CU$3:$CU$18,$DE$3:$DE$18),"") -> 69 | AF3: =IFERROR(ROUND(AE3/AA3,0),0) -> 23 | AG3: =IFERROR(_xlfn.XLOOKUP(V3,$CU$3:$CU$18,$DG$3:$DG$18),"") -> 32 | AH3: =IFERROR(ROUND(AG3/AA3,0),0) -> 11 | AI3: =IFERROR(_xlfn.XLOOKUP(V3,$CU$3:$CU$18,$DI$3:$DI$18),"") -> 37 | AJ3: =SUM(AL3:AO3) -> 0 | AK3: =(AL3+AO3) -> 0 | AL3: =IFERROR(_xlfn.XLOOKUP(V3,$CU$3:$CU$18,$DJ$3:$DJ$18),"") -> 0 | AM3: =IFERROR(_xlfn.XLOOKUP(V3,$CU$3:$CU$18,$DK$3:$DK$18),"") -> 0 | AN3: 0 | AO3: 0 | AP3: =IFERROR(_xlfn.XLOOKUP(V3,$CU$3:$CU$18,$DM$3:$DM$18),"") -> 5 | AQ3: =IFERROR(_xlfn.XLOOKUP(V3,$CU$3:$CU$18,$DN$3:$DN$18),"") -> 3 | AR3: =IFERROR(_xlfn.XLOOKUP(V3,$CU$3:$CU$18,$DO$3:$DO$18),"") -> 2 | AS3: 1 | AT3: =IFERROR(_xlfn.XLOOKUP(CQ3,$CR$3:$CR$18,$DP$3:$DP$18),"") -> Narbonne | AV3: =IFERROR(_xlfn.XLOOKUP(AT3,$DP$3:$DP$18,$DU$3:$DU$18),"") -> 8 | AW3: =IFERROR(_xlfn.XLOOKUP(AT3,$DP$3:$DP$18,$DR$3:$DR$18),"") -> 6 | AX3: =IFERROR(_xlfn.XLOOKUP(AT3,$DP$3:$DP$18,$DS$3:$DS$18),"") -> p | AY3: =IFERROR(_xlfn.XLOOKUP(AT3,$DP$3:$DP$18,$DV$3:$DV$18),"") -> 2 | AZ3: =IFERROR(_xlfn.XLOOKUP(AT3,$DP$3:$DP$18,$DW$3:$DW$18),"") -> 2 | BA3: =IFERROR(_xlfn.XLOOKUP(AT3,$DP$3:$DP$18,$DX$3:$DX$18),"") -> 0 | BB3: =IFERROR(_xlfn.XLOOKUP(AT3,$DP$3:$DP$18,$DY$3:$DY$18),"") -> 0 | BC3: =IFERROR(_xlfn.XLOOKUP(AT3,$DP$3:$DP$18,$DZ$3:$DZ$18),"") -> 42 | BD3: =IFERROR(ROUND(BC3/AY3,0),0) -> 21 | BE3: =IFERROR(_xlfn.XLOOKUP(AT3,$DP$3:$DP$18,$EB$3:$EB$18),"") -> 9 | BF3: =IFERROR(ROUND(BE3/AY3,0),0) -> 5 | BG3: =IFERROR(_xlfn.XLOOKUP(AT3,$DP$3:$DP$18,$ED$3:$ED$18),"") -> 33 | BH3: =SUM(BJ3:BM3) -> 0 | BI3: =(BJ3+BM3) -> 0 | BJ3: =IFERROR(_xlfn.XLOOKUP(AT3,$DP$3:$DP$18,$EE$3:$EE$18),"") -> 0 | BK3: =IFERROR(_xlfn.XLOOKUP(AT3,$DP$3:$DP$18,$EF$3:$EF$18),"") -> 0 | BL3: 0 | BM3: 0 | BN3: =IFERROR(_xlfn.XLOOKUP(AT3,$DP$3:$DP$18,$EH$3:$EH$18),"") -> 2 | BO3: =IFERROR(_xlfn.XLOOKUP(AT3,$DP$3:$DP$18,$EI$3:$EI$18),"") -> 0 | BP3: =IFERROR(_xlfn.XLOOKUP(AT3,$DP$3:$DP$18,$EJ$3:$EJ$18),"") -> 2 | BQ3: 1 | BR3: =IFERROR(_xlfn.XLOOKUP(CS3,$CT$3:$CT$18,$EK$3:$EK$18),"") -> Nice | BT3: =IFERROR(_xlfn.XLOOKUP(BR3,$EK$3:$EK$18,$EP$3:$EP$18),"") -> 10 | BU3: =IFERROR(_xlfn.XLOOKUP(BR3,$EK$3:$EK$18,$EM$3:$EM$18),"") -> 0 | BV3: =IFERROR(_xlfn.XLOOKUP(BR3,$EK$3:$EK$18,$EN$3:$EN$18),"") -> u | BW3: =IFERROR(_xlfn.XLOOKUP(BR3,$EK$3:$EK$18,$EQ$3:$EQ$18),"") -> 3 | BX3: =IFERROR(_xlfn.XLOOKUP(BR3,$EK$3:$EK$18,$ER$3:$ER$18),"") -> 2 | BY3: =IFERROR(_xlfn.XLOOKUP(BR3,$EK$3:$EK$18,$ES$3:$ES$18),"") -> 0 | BZ3: =IFERROR(_xlfn.XLOOKUP(BR3,$EK$3:$EK$18,$ET$3:$ET$18),"") -> 1 | CA3: =IFERROR(_xlfn.XLOOKUP(BR3,$EK$3:$EK$18,$EU$3:$EU$18),"") -> 77 | CB3: =IFERROR(ROUND(CA3/BW3,0),0) -> 26 | CC3: =IFERROR(_xlfn.XLOOKUP(BR3,$EK$3:$EK$18,$EW$3:$EW$18),"") -> 31 | CD3: =IFERROR(ROUND(CC3/BW3,0),0) -> 10 | CE3: =IFERROR(_xlfn.XLOOKUP(BR3,$EK$3:$EK$18,$EY$3:$EY$18),"") -> 46 | CF3: =SUM(CH3:CK3) -> 2 | CG3: =(CH3+CK3) -> 2 | CH3: =IFERROR(_xlfn.XLOOKUP(BR3,$EK$3:$EK$18,$EZ$3:$EZ$18),"") -> 2 | CI3: =IFERROR(_xlfn.XLOOKUP(BR3,$EK$3:$EK$18,$FA$3:$FA$18),"") -> 0 | CJ3: 0 | CK3: 0 | CL3: =IFERROR(_xlfn.XLOOKUP(BR3,$EK$3:$EK$18,$FC$3:$FC$18),"") -> 10 | CM3: =IFERROR(_xlfn.XLOOKUP(BR3,$EK$3:$EK$18,$FD$3:$FD$18),"") -> 3 | CN3: =IFERROR(_xlfn.XLOOKUP(BR3,$EK$3:$EK$18,$FE$3:$FE$18),"") -> 7 | CO3: 1 | CP3: =CY3 -> 7 | CQ3: 1 | CR3: =DT3 -> 3 | CS3: 1 | CT3: =EO3 -> 13 | CU3: =IF(Equipes!$C$2="","",Equipes!$C$2) -> Albi | CV3: =_xlfn.RANK.EQ(FF3,$FF$3:$FF$18) -> 7 | CW3: ='J02'!CV3-CV3 -> 2 | CX3: =IF(CV3>'J02'!CV3,'J02'!$CX$20,IF(CV3='J02'!CV3,'J02'!$CW$20,IF(CV3<'J02'!CV3,'J02'!$CV$20))) -> p | CY3: =_xlfn.RANK.EQ(FG3,$FG$3:$FG$18) -> 7 | CZ3: =SUMPRODUCT(($D$3:$D$10=CU3)*($FX$3:$FX$10))+SUMPRODUCT(($M$3:$M$10=CU3)*($FY$3:$FY$10))+'J02'!CZ3+DL3+EG3 -> 8 | DA3: =SUMPRODUCT(($D$3:$D$10=CU3)*($GB$3:$GB$10))+SUMPRODUCT(($M$3:$M$10=CU3)*($GC$3:$GC$10))+'J02'!DA3 -> 3 | DB3: =SUMPRODUCT(($D$3:$D$10=CU3)*($GF$3:$GF$10))+SUMPRODUCT(($M$3:$M$10=CU3)*($GG$3:$GG$10))+'J02'!DB3 -> 2 | DC3: =SUMPRODUCT(($D$3:$D$10=CU3)*($GH$3:$GH$10))+SUMPRODUCT(($M$3:$M$10=CU3)*($GI$3:$GI$10))+'J02'!DC3 -> 0 | DD3: =SUMPRODUCT(($D$3:$D$10=CU3)*($GJ$3:$GJ$10))+SUMPRODUCT(($M$3:$M$10=CU3)*($GK$3:$GK$10))+'J02'!DD3 -> 1 | DE3: =SUMPRODUCT(($D$3:$D$10=CU3)*($GL$3:$GL$10))+SUMPRODUCT(($M$3:$M$10=CU3)*($GM$3:$GM$10))+'J02'!DE3 -> 43 | DF3: =ROUND(DE3/DA3,0) -> 14 | DG3: =SUMPRODUCT(($D$3:$D$10=CU3)*($GN$3:$GN$10))+SUMPRODUCT(($M$3:$M$10=CU3)*($GO$3:$GO$10))+'J02'!DG3 -> 40 | DH3: =ROUND(DG3/DA3,0) -> 13 | DI3: =DE3-DG3 -> 3 | DJ3: =SUMPRODUCT(($D$3:$D$10=CU3)*($FR$3:$FR$10))+SUMPRODUCT(($M$3:$M$10=CU3)*($FS$3:$FS$10))+'J02'!DJ3 -> 0 | DK3: =SUMPRODUCT(($D$3:$D$10=CU3)*($FT$3:$FT$10))+SUMPRODUCT(($M$3:$M$10=CU3)*($FU$3:$FU$10))+'J02'!DK3 -> 0 | DL3: 0 | DM3: =SUMPRODUCT(($D$3:$D$10=CU3)*($GP$3:$GP$10))+SUMPRODUCT(($M$3:$M$10=CU3)*($GQ$3:$GQ$10))+'J02'!DM3 -> 4 | DN3: =SUMPRODUCT(($D$3:$D$10=CU3)*($GR$3:$GR$10))+SUMPRODUCT(($M$3:$M$10=CU3)*($GS$3:$GS$10))+'J02'!DN3 -> 3 | DO3: =DM3-DN3 -> 1 | DP3: =IF(Equipes!$C$2="","",Equipes!$C$2) -> Albi | DQ3: =_xlfn.RANK.EQ(FH3,$FH$3:$FH$18) -> 3 | DR3: ='J02'!DQ3-DQ3 -> 2 | DS3: =IF(DQ3>'J02'!DQ3,'J02'!$DS$20,IF(DQ3='J02'!DQ3,'J02'!$DR$20,IF(DQ3<'J02'!DQ3,'J02'!$DQ$20))) -> p | DT3: =_xlfn.RANK.EQ(FI3,$FI$3:$FI$18) -> 3 | DU3: =SUMPRODUCT(($D$3:$D$10=DP3)*($FV$3:$FV$10))+'J02'!DU3 -> 8 | DV3: =SUMPRODUCT(($D$3:$D$10=DP3)*($GB$3:$GB$10))+'J02'!DV3 -> 2 | DW3: =SUMPRODUCT(($D$3:$D$10=DP3)*($GF$3:$GF$10))+'J02'!DW3 -> 2 | DX3: =SUMPRODUCT(($D$3:$D$10=DP3)*($GH$3:$GH$10))+'J02'!DX3 -> 0 | DY3: =SUMPRODUCT(($D$3:$D$10=DP3)*($GJ$3:$GJ$10))+'J02'!DY3 -> 0 | DZ3: =SUMPRODUCT(($D$3:$D$10=DP3)*($GL$3:$GL$10))+'J02'!DZ3 -> 37 | EA3: =IFERROR(ROUND(DZ3/DV3,0),0) -> 19 | EB3: =SUMPRODUCT(($D$3:$D$10=DP3)*($GN$3:$GN$10))+'J02'!EB3 -> 23 | EC3: =IFERROR(ROUND(EB3/DV3,0),0) -> 12 | ED3: =DZ3-EB3 -> 14 | EE3: =SUMPRODUCT(($D$3:$D$10=DP3)*($FR$3:$FR$10))+'J02'!EE3 -> 0 | EF3: =SUMPRODUCT(($D$3:$D$10=DP3)*($FT$3:$FT$10))+'J02'!EF3 -> 0 | EG3: 0 | EH3: =SUMPRODUCT(($D$3:$D$10=DP3)*($GP$3:$GP$10))+'J02'!EH3 -> 4 | EI3: =SUMPRODUCT(($D$3:$D$10=DP3)*($GR$3:$GR$10))+'J02'!EI3 -> 2 | EJ3: =EH3-EI3 -> 2 | EK3: =IF(Equipes!$C$2="","",Equipes!$C$2) -> Albi | EL3: =_xlfn.RANK.EQ(FJ3,$FJ$3:$FJ$18) -> 13 | EM3: ='J02'!EL3-EL3 -> -1 | EN3: =IF(EL3>'J02'!EL3,'J02'!$EN$20,IF(EL3='J02'!EL3,'J02'!$EM$20,IF(EL3<'J02'!EL3,'J02'!$EL$20))) -> q | EO3: =_xlfn.RANK.EQ(FK3,$FK$3:$FK$18) -> 13 | EP3: =SUMPRODUCT(($M$3:$M$10=EK3)*($FW$3:$FW$10))+'J02'!EP3+FB3 -> 0 | EQ3: =SUMPRODUCT(($M$3:$M$10=EK3)*($GC$3:$GC$10))+'J02'!EQ3 -> 1 | ER3: =SUMPRODUCT(($M$3:$M$10=EK3)*($GG$3:$GG$10))+'J02'!ER3 -> 0 | ES3: =SUMPRODUCT(($M$3:$M$10=EK3)*($GI$3:$GI$10))+'J02'!ES3 -> 0 | ET3: =SUMPRODUCT(($M$3:$M$10=EK3)*($GK$3:$GK$10))+'J02'!ET3 -> 1 | EU3: =SUMPRODUCT(($M$3:$M$10=EK3)*($GM$3:$GM$10))+'J02'!EU3 -> 6 | EV3: =IFERROR(ROUND(EU3/EQ3,0),0) -> 6 | EW3: =SUMPRODUCT(($M$3:$M$10=EK3)*($GO$3:$GO$10))+'J02'!EW3 -> 17 | EX3: =IFERROR(ROUND(EW3/EQ3,0),0) -> 17 | EY3: =EU3-EW3 -> -11 | EZ3: =SUMPRODUCT(($M$3:$M$10=EK3)*($FS$3:$FS$10))+'J02'!EZ3 -> 0 | FA3: =SUMPRODUCT(($M$3:$M$10=EK3)*($FU$3:$FU$10))+'J02'!FA3 -> 0 | FB3: 0 | FC3: =SUMPRODUCT(($M$3:$M$10=EK3)*($GQ$3:$GQ$10))+'J02'!FC3 -> 0 | FD3: =SUMPRODUCT(($M$3:$M$10=EK3)*($GS$3:$GS$10))+'J02'!FD3 -> 1 | FE3: =FC3-FD3 -> -1 | FF3: =SUM(CZ3*1000)+(DI3/100)+(DE3/10000) -> 8000.0343 | FG3: =FF3+0.00000014 -> 8000.0343 | FH3: =SUM(DU3*1000)+(ED3/100)+(DZ3/10000) -> 8000.1437 | FI3: =FH3+0.00000014 -> 8000.1437 | FJ3: =SUM(EP3*1000)+(EY3/100)+(EU3/10000) -> -0.1094 | FK3: =FJ3+0.00000014 -> -0.10939986 | FL3: =A3 -> 0 | FM3: =P3 -> 0 | FN3: =$B3 -> 0 | FO3: =$O3 -> 0 | FP3: =IF(E3="",0,IF(I3="",0,IF(E3>I3,4,IF(E3=I3,2,IF(E3<I3,0))))) -> 4 | FQ3: =IF(I3="",0,IF(E3="",0,IF(I3>E3,4,IF(I3=E3,2,IF(I3<E3,0))))) -> 0 | FR3: =IF(G3<>"",IF(SUM(G3-K3)>=3,1)) -> FALSE | FS3: =IF(K3<>"",IF(SUM(K3-G3)>=3,1)) -> FALSE | FT3: =IF(E3<>"",IF(E3<I3,IF(SUM(I3-E3)<=7,1))) -> FALSE | FU3: =IF(I3<>"",IF(I3<E3,IF(SUM(E3-I3)<=7,1))) -> 1 | FV3: =SUM(FP3,FR3,FT3) -> 4 | FW3: =SUM(FQ3,FS3,FU3) -> 1 | FX3: =FV3-FL3+FN3 -> 4 | FY3: =FW3-FM3+FO3 -> 1 | FZ3: =IF(S3="Match annulé",1,"") ->  | GA3: =IF(S3="Match annulé",1,"") ->  | GB3: =IF(E3="",0,1) -> 1 | GC3: =IF(I3="",0,1) -> 1 | GD3: =IF(SUM(FZ3,GB3)<>0,SUM(FZ3,GB3),0) -> 1 | GE3: =IF(SUM(GA3,GC3)<>0,SUM(GA3,GC3),0) -> 1 | GF3: =IF(E3<>"",IF(E3>I3,1)) -> 1 | GG3: =IF(I3<>"",IF(I3>E3,1)) -> FALSE | GH3: =IF(E3<>"",IF(E3=I3,1)) -> FALSE | GI3: =IF(I3<>"",IF(I3=E3,1)) -> FALSE | GJ3: =IF(E3<>"",IF(E3<I3,1)) -> FALSE | GK3: =IF(I3<>"",IF(I3<E3,1)) -> 1 | GL3: =E3 -> 10 | GM3: =I3 -> 7 | GN3: =I3 -> 7 | GO3: =E3 -> 10 | GP3: =G3 -> 1 | GQ3: =K3 -> 1 | GR3: =K3 -> 1 | GS3: =G3 -> 1 | GT3: =IFERROR(_xlfn.XLOOKUP(CO3,$CP$3:$CP$18,$CU$3:$CU$18),"") -> Narbonne | GU3: =IFERROR(_xlfn.XLOOKUP(GT3,$CU$3:$CU$18,$FF$3:$FF$18),"") -> 13000.3769 | GV3: =IF(GU3="","",_xlfn.RANK.EQ(GU3,GU3:GU18)) -> 1 | GW3: =IF(CU3="","",CU3) -> Albi | GX3: =IFERROR(_xlfn.XLOOKUP(CQ3,$CR$3:$CR$18,$DP$3:$DP$18),"") -> Narbonne | GY3: =IFERROR(_xlfn.XLOOKUP(GX3,$DP$3:$DP$18,$FH$3:$FH$18),"") -> 8000.3342 | GZ3: =IF(GY3="","",_xlfn.RANK.EQ(GY3,GY3:GY18)) -> 1 | HA3: =IF(DP3="","",DP3) -> Albi | HB3: =IFERROR(_xlfn.XLOOKUP(CS3,$CT$3:$CT$18,$EK$3:$EK$18),"") -> Nice | HC3: =IFERROR(_xlfn.XLOOKUP(HB3,$EK$3:$EK$18,$FJ$3:$FJ$18),"") -> 10000.4677 | HD3: =IF(HC3="","",_xlfn.RANK.EQ(HC3,HC3:HC18)) -> 1 | HE3: =IF(EK3="","",EK3) -> Albi | HG3: =IF(AND(I3="",S3=""),"",IF(AND(I3>=0,S3=""),"ok",IF(AND(I3="",S3="Match à rejouer"),"ok",IF(AND(I3="",S3="Match annulé"),"ok",IF(AND(I3="",S3="Match arrêté"),"ok",IF(AND(I3="",S3="Match avec réserves"),"ok",IF(AND(I3="",S3="Match reporté"),"ok",IF(AND(I3="",S3="Match reprogrammé"),"")))))))) -> ok | HH3: =IF(Q3="","",IF(R3="","",Q3+R3)) ->  | HI3: =IF(Q3="","",IF(R3="","",IF(HG3="ok","",Q3+R3))) ->  | HJ3: =MIN(HI3:HI9) -> 00:00:00 | HK3: =MAX(HI3:HI9) -> 00:00:00 | HM3: =IF(SUM(FZ3,GB3)<>0,SUM(FZ3,GB3),"") -> 1 | HN3: =IF(SUM(GA3,GC3)<>0,SUM(GA3,GC3),"") -> 1
B4: 1 | C4: Forfait gagnant | D4: Narbonne | E4: 25 | I4: 0 | M4: Blagnac | N4: Forfait général | P4: 2 | Q4: Samedi 9 septembre 2023 | R4: 19:00:00 | U4: =IF(GU4=GU3,GV3,GV4) -> 2 | V4: =IFERROR(_xlfn.XLOOKUP(CO4,$CP$3:$CP$18,$CU$3:$CU$18),"") -> Carcassonne | X4: 12 | Y4: 1 | Z4: p | AA4: 3 | AB4: 3 | AC4: 0 | AD4: 0 | AE4: 53 | AF4: =IFERROR(ROUND(AE4/AA4,0),0) -> 18 | AG4: 40 | AH4: =IFERROR(ROUND(AG4/AA4,0),0) -> 13 | AI4: 13 | AJ4: =SUM(AL4:AO4) -> 0 | AK4: =(AL4+AO4) -> 0 | AL4: 0 | AM4: 0 | AN4: 0 | AO4: 0 | AP4: 5 | AQ4: 4 | AR4: 1 | AS4: =IF(GY4=GY3,GZ3,GZ4) -> 2 | AT4: =IFERROR(_xlfn.XLOOKUP(CQ4,$CR$3:$CR$18,$DP$3:$DP$18),"") -> Périgueux | AV4: 8 | AW4: -1 | AX4: q | AY4: 2 | AZ4: 2 | BA4: 0 | BB4: 0 | BC4: 47 | BD4: =IFERROR(ROUND(BC4/AY4,0),0) -> 24 | BE4: 21 | BF4: =IFERROR(ROUND(BE4/AY4,0),0) -> 11 | BG4: 26 | BH4: =SUM(BJ4:BM4) -> 1 | BI4: =(BJ4+BM4) -> 0 | BJ4: 0 | BK4: 1 | BL4: 0 | BM4: 0 | BN4: 6 | BO4: 3 | BP4: 3 | BQ4: =IF(HC4=HC3,HD3,HD4) -> 2 | BR4: Suresnes | BT4: 5 | BU4: 5 | BV4: p | BW4: 3 | BX4: 1 | BY4: 0 | BZ4: 2 | CA4: 46 | CB4: =IFERROR(ROUND(CA4/BW4,0),0) -> 15 | CC4: 62 | CD4: =IFERROR(ROUND(CC4/BW4,0),0) -> 21 | CE4: -16 | CF4: =SUM(CH4:CK4) -> 1 | CG4: =(CH4+CK4) -> 0 | CH4: 0 | CI4: 1 | CJ4: 0 | CK4: 0 | CL4: 4 | CM4: 7 | CN4: -3 | CO4: 2 | CP4: =CY4 -> 14 | CQ4: 2 | CR4: =DT4 -> 13 | CS4: 2 | CT4: =EO4 -> 14 | CU4: =IF(Equipes!$C$3="","",Equipes!$C$3) -> Blagnac | CV4: =_xlfn.RANK.EQ(FF4,$FF$3:$FF$18) -> 14 | CW4: ='J02'!CV4-CV4 -> 0 | CX4: =IF(CV4>'J02'!CV4,'J02'!$CX$20,IF(CV4='J02'!CV4,'J02'!$CW$20,IF(CV4<'J02'!CV4,'J02'!$CV$20))) -> u | CY4: =_xlfn.RANK.EQ(FG4,$FG$3:$FG$18) -> 14 | CZ4: =SUMPRODUCT(($D$3:$D$10=CU4)*($FX$3:$FX$10))+SUMPRODUCT(($M$3:$M$10=CU4)*($FY$3:$FY$10))+'J02'!CZ4+DL4+EG4 -> -6 | DA4: =SUMPRODUCT(($D$3:$D$10=CU4)*($GB$3:$GB$10))+SUMPRODUCT(($M$3:$M$10=CU4)*($GC$3:$GC$10))+'J02'!DA4 -> 3 | DB4: =SUMPRODUCT(($D$3:$D$10=CU4)*($GF$3:$GF$10))+SUMPRODUCT(($M$3:$M$10=CU4)*($GG$3:$GG$10))+'J02'!DB4 -> 0 | DC4: =SUMPRODUCT(($D$3:$D$10=CU4)*($GH$3:$GH$10))+SUMPRODUCT(($M$3:$M$10=CU4)*($GI$3:$GI$10))+'J02'!DC4 -> 0 | DD4: =SUMPRODUCT(($D$3:$D$10=CU4)*($GJ$3:$GJ$10))+SUMPRODUCT(($M$3:$M$10=CU4)*($GK$3:$GK$10))+'J02'!DD4 -> 3 | DE4: =SUMPRODUCT(($D$3:$D$10=CU4)*($GL$3:$GL$10))+SUMPRODUCT(($M$3:$M$10=CU4)*($GM$3:$GM$10))+'J02'!DE4 -> 0 | DF4: =ROUND(DE4/DA4,0) -> 0 | DG4: =SUMPRODUCT(($D$3:$D$10=CU4)*($GN$3:$GN$10))+SUMPRODUCT(($M$3:$M$10=CU4)*($GO$3:$GO$10))+'J02'!DG4 -> 75 | DH4: =ROUND(DG4/DA4,0) -> 25 | DI4: =DE4-DG4 -> -75 | DJ4: =SUMPRODUCT(($D$3:$D$10=CU4)*($FR$3:$FR$10))+SUMPRODUCT(($M$3:$M$10=CU4)*($FS$3:$FS$10))+'J02'!DJ4 -> 0 | DK4: =SUMPRODUCT(($D$3:$D$10=CU4)*($FT$3:$FT$10))+SUMPRODUCT(($M$3:$M$10=CU4)*($FU$3:$FU$10))+'J02'!DK4 -> 0 | DL4: 0 | DM4: =SUMPRODUCT(($D$3:$D$10=CU4)*($GP$3:$GP$10))+SUMPRODUCT(($M$3:$M$10=CU4)*($GQ$3:$GQ$10))+'J02'!DM4 -> 0 | DN4: =SUMPRODUCT(($D$3:$D$10=CU4)*($GR$3:$GR$10))+SUMPRODUCT(($M$3:$M$10=CU4)*($GS$3:$GS$10))+'J02'!DN4 -> 0 | DO4: =DM4-DN4 -> 0 | DP4: =IF(Equipes!$C$3="","",Equipes!$C$3) -> Blagnac | DQ4: =_xlfn.RANK.EQ(FH4,$FH$3:$FH$18) -> 13 | DR4: ='J02'!DQ4-DQ4 -> 1 | DS4: =IF(DQ4>'J02'!DQ4,'J02'!$DS$20,IF(DQ4='J02'!DQ4,'J02'!$DR$20,IF(DQ4<'J02'!DQ4,'J02'!$DQ$20))) -> p | DT4: =_xlfn.RANK.EQ(FI4,$FI$3:$FI$18) -> 13 | DU4: =SUMPRODUCT(($D$3:$D$10=DP4)*($FV$3:$FV$10))+'J02'!DU4 -> 0 | DV4: =SUMPRODUCT(($D$3:$D$10=DP4)*($GB$3:$GB$10))+'J02'!DV4 -> 1 | DW4: =SUMPRODUCT(($D$3:$D$10=DP4)*($GF$3:$GF$10))+'J02'!DW4 -> 0 | DX4: =SUMPRODUCT(($D$3:$D$10=DP4)*($GH$3:$GH$10))+'J02'!DX4 -> 0 | DY4: =SUMPRODUCT(($D$3:$D$10=DP4)*($GJ$3:$GJ$10))+'J02'!DY4 -> 1 | DZ4: =SUMPRODUCT(($D$3:$D$10=DP4)*($GL$3:$GL$10))+'J02'!DZ4 -> 0 | EA4: =IFERROR(ROUND(DZ4/DV4,0),0) -> 0 | EB4: =SUMPRODUCT(($D$3:$D$10=DP4)*($GN$3:$GN$10))+'J02'!EB4 -> 25 | EC4: =IFERROR(ROUND(EB4/DV4,0),0) -> 25 | ED4: =DZ4-EB4 -> -25 | EE4: =SUMPRODUCT(($D$3:$D$10=DP4)*($FR$3:$FR$10))+'J02'!EE4 -> 0 | EF4: =SUMPRODUCT(($D$3:$D$10=DP4)*($FT$3:$FT$10))+'J02'!EF4 -> 0 | EG4: 0 | EH4: =SUMPRODUCT(($D$3:$D$10=DP4)*($GP$3:$GP$10))+'J02'!EH4 -> 0 | EI4: =SUMPRODUCT(($D$3:$D$10=DP4)*($GR$3:$GR$10))+'J02'!EI4 -> 0 | EJ4: =EH4-EI4 -> 0 | EK4: =IF(Equipes!$C$3="","",Equipes!$C$3) -> Blagnac | EL4: =_xlfn.RANK.EQ(FJ4,$FJ$3:$FJ$18) -> 14 | EM4: ='J02'!EL4-EL4 -> 0 | EN4: =IF(EL4>'J02'!EL4,'J02'!$EN$20,IF(EL4='J02'!EL4,'J02'!$EM$20,IF(EL4<'J02'!EL4,'J02'!$EL$20))) -> u | EO4: =_xlfn.RANK.EQ(FK4,$FK$3:$FK$18) -> 14 | EP4: =SUMPRODUCT(($M$3:$M$10=EK4)*($FW$3:$FW$10))+'J02'!EP4+FB4 -> 0 | EQ4: =SUMPRODUCT(($M$3:$M$10=EK4)*($GC$3:$GC$10))+'J02'!EQ4 -> 2 | ER4: =SUMPRODUCT(($M$3:$M$10=EK4)*($GG$3:$GG$10))+'J02'!ER4 -> 0 | ES4: =SUMPRODUCT(($M$3:$M$10=EK4)*($GI$3:$GI$10))+'J02'!ES4 -> 0 | ET4: =SUMPRODUCT(($M$3:$M$10=EK4)*($GK$3:$GK$10))+'J02'!ET4 -> 2 | EU4: =SUMPRODUCT(($M$3:$M$10=EK4)*($GM$3:$GM$10))+'J02'!EU4 -> 0 | EV4: =IFERROR(ROUND(EU4/EQ4,0),0) -> 0 | EW4: =SUMPRODUCT(($M$3:$M$10=EK4)*($GO$3:$GO$10))+'J02'!EW4 -> 50 | EX4: =IFERROR(ROUND(EW4/EQ4,0),0) -> 25 | EY4: =EU4-EW4 -> -50 | EZ4: =SUMPRODUCT(($M$3:$M$10=EK4)*($FS$3:$FS$10))+'J02'!EZ4 -> 0 | FA4: =SUMPRODUCT(($M$3:$M$10=EK4)*($FU$3:$FU$10))+'J02'!FA4 -> 0 | FB4: 0 | FC4: =SUMPRODUCT(($M$3:$M$10=EK4)*($GQ$3:$GQ$10))+'J02'!FC4 -> 0 | FD4: =SUMPRODUCT(($M$3:$M$10=EK4)*($GS$3:$GS$10))+'J02'!FD4 -> 0 | FE4: =FC4-FD4 -> 0 | FF4: -6000.75 | FG4: =FF4+0.00000013 -> -6000.75 | FH4: -0.25 | FI4: =FH4+0.00000013 -> -0.24999987 | FJ4: -0.5 | FK4: =FJ4+0.00000013 -> -0.49999987 | FL4: 0 | FM4: 2 | FN4: =$B4 -> 1 | FO4: =$O4 -> 0 | FP4: 4 | FQ4: 0 | FR4: FALSE | FS4: FALSE | FT4: FALSE | FU4: FALSE | FV4: =SUM(FP4,FR4,FT4) -> 4 | FW4: 0 | FX4: =FV4-FL4+FN4 -> 5 | FY4: =FW4-FM4+FO4 -> -2 | GB4: 1 | GC4: 1 | GD4: =IF(SUM(FZ4,GB4)<>0,SUM(FZ4,GB4),0) -> 1 | GE4: 1 | GF4: 1 | GG4: FALSE | GH4: FALSE | GI4: FALSE | GJ4: FALSE | GK4: 1 | GL4: 25 | GM4: 0 | GN4: 0 | GO4: 25 | GP4: 0 | GQ4: 0 | GR4: 0 | GS4: 0 | GT4: Carcassonne | GU4: 12000.1353 | GV4: =IF(GU4="","",_xlfn.RANK.EQ(GU4,GU3:GU18)) -> 2 | GW4: Blagnac | GX4: Périgueux | GY4: 8000.2647 | GZ4: =IF(GY4="","",_xlfn.RANK.EQ(GY4,GY3:GY18)) -> 2 | HA4: Blagnac | HB4: Suresnes | HC4: 4999.8446 | HD4: =IF(HC4="","",_xlfn.RANK.EQ(HC4,HC3:HC18)) -> 2 | HE4: Blagnac | HG4: ok | HM4: =IF(SUM(FZ4,GB4)<>0,SUM(FZ4,GB4),"") -> 1 | HN4: 1
D5: Tarbes | E5: 3 | G5: 0 | I5: 38 | K5: 5 | L5: Bo | M5: Nice | Q5: Samedi 9 septembre 2023 | R5: 19:30:00 | U5: =IF(GU5=GU4,GV4,GV5) -> 3 | V5: Nice | X5: 10 | Y5: 3 | Z5: p | AA5: 3 | AB5: 2 | AC5: 0 | AD5: 1 | AE5: 77 | AF5: 26 | AG5: 31 | AH5: 10 | AI5: 46 | AJ5: 2 | AK5: 2 | AL5: 2 | AM5: 0 | AN5: 0 | AO5: 0 | AP5: 10 | AQ5: 3 | AR5: 7 | AS5: =IF(GY5=GY4,GZ4,GZ5) -> 3 | AT5: Albi | AV5: 8 | AW5: 2 | AX5: p | AY5: 2 | AZ5: 2 | BA5: 0 | BB5: 0 | BC5: 37 | BD5: 19 | BE5: 23 | BF5: 12 | BG5: 14 | BH5: 0 | BI5: 0 | BJ5: 0 | BK5: 0 | BL5: 0 | BM5: 0 | BN5: 4 | BO5: 2 | BP5: 2 | BQ5: =IF(HC5=HC4,HD4,HD5) -> 3 | BR5: Vienne | BT5: 4 | BU5: -1 | BV5: q | BW5: 1 | BX5: 1 | BY5: 0 | BZ5: 0 | CA5: 25 | CB5: 25 | CC5: 0 | CD5: 0 | CE5: 25 | CF5: 0 | CG5: 0 | CH5: 0 | CI5: 0 | CJ5: 0 | CK5: 0 | CL5: 0 | CM5: 0 | CN5: 0 | CO5: 3 | CP5: 13 | CQ5: 3 | CR5: 9 | CS5: 3 | CT5: 12 | CU5: =IF(Equipes!$C$4="","",Equipes!$C$4) -> Bourg-en-Bresse | CV5: 13 | CW5: ='J02'!CV5-CV5 -> -1 | CX5: =IF(CV5>'J02'!CV5,'J02'!$CX$20,IF(CV5='J02'!CV5,'J02'!$CW$20,IF(CV5<'J02'!CV5,'J02'!$CV$20))) -> q | CY5: 13 | CZ5: =SUMPRODUCT(($D$3:$D$10=CU5)*($FX$3:$FX$10))+SUMPRODUCT(($M$3:$M$10=CU5)*($FY$3:$FY$10))+'J02'!CZ5+DL5+EG5 -> 2 | DA5: =SUMPRODUCT(($D$3:$D$10=CU5)*($GB$3:$GB$10))+SUMPRODUCT(($M$3:$M$10=CU5)*($GC$3:$GC$10))+'J02'!DA5 -> 3 | DB5: =SUMPRODUCT(($D$3:$D$10=CU5)*($GF$3:$GF$10))+SUMPRODUCT(($M$3:$M$10=CU5)*($GG$3:$GG$10))+'J02'!DB5 -> 0 | DC5: =SUMPRODUCT(($D$3:$D$10=CU5)*($GH$3:$GH$10))+SUMPRODUCT(($M$3:$M$10=CU5)*($GI$3:$GI$10))+'J02'!DC5 -> 0 | DD5: =SUMPRODUCT(($D$3:$D$10=CU5)*($GJ$3:$GJ$10))+SUMPRODUCT(($M$3:$M$10=CU5)*($GK$3:$GK$10))+'J02'!DD5 -> 3 | DE5: =SUMPRODUCT(($D$3:$D$10=CU5)*($GL$3:$GL$10))+SUMPRODUCT(($M$3:$M$10=CU5)*($GM$3:$GM$10))+'J02'!DE5 -> 43 | DF5: 14 | DG5: =SUMPRODUCT(($D$3:$D$10=CU5)*($GN$3:$GN$10))+SUMPRODUCT(($M$3:$M$10=CU5)*($GO$3:$GO$10))+'J02'!DG5 -> 61 | DH5: 20 | DI5: -18 | DJ5: =SUMPRODUCT(($D$3:$D$10=CU5)*($FR$3:$FR$10))+SUMPRODUCT(($M$3:$M$10=CU5)*($FS$3:$FS$10))+'J02'!DJ5 -> 0 | DK5: =SUMPRODUCT(($D$3:$D$10=CU5)*($FT$3:$FT$10))+SUMPRODUCT(($M$3:$M$10=CU5)*($FU$3:$FU$10))+'J02'!DK5 -> 2 | DL5: 0 | DM5: =SUMPRODUCT(($D$3:$D$10=CU5)*($GP$3:$GP$10))+SUMPRODUCT(($M$3:$M$10=CU5)*($GQ$3:$GQ$10))+'J02'!DM5 -> 4 | DN5: =SUMPRODUCT(($D$3:$D$10=CU5)*($GR$3:$GR$10))+SUMPRODUCT(($M$3:$M$10=CU5)*($GS$3:$GS$10))+'J02'!DN5 -> 4 | DO5: 0 | DP5: =IF(Equipes!$C$4="","",Equipes!$C$4) -> Bourg-en-Bresse | DQ5: 9 | DR5: ='J02'!DQ5-DQ5 -> 0 | DS5: =IF(DQ5>'J02'!DQ5,'J02'!$DS$20,IF(DQ5='J02'!DQ5,'J02'!$DR$20,IF(DQ5<'J02'!DQ5,'J02'!$DQ$20))) -> u | DT5: 9 | DU5: =SUMPRODUCT(($D$3:$D$10=DP5)*($FV$3:$FV$10))+'J02'!DU5 -> 2 | DV5: =SUMPRODUCT(($D$3:$D$10=DP5)*($GB$3:$GB$10))+'J02'!DV5 -> 2 | DW5: =SUMPRODUCT(($D$3:$D$10=DP5)*($GF$3:$GF$10))+'J02'!DW5 -> 0 | DX5: =SUMPRODUCT(($D$3:$D$10=DP5)*($GH$3:$GH$10))+'J02'!DX5 -> 0 | DY5: =SUMPRODUCT(($D$3:$D$10=DP5)*($GJ$3:$GJ$10))+'J02'!DY5 -> 2 | DZ5: =SUMPRODUCT(($D$3:$D$10=DP5)*($GL$3:$GL$10))+'J02'!DZ5 -> 27 | EA5: 14 | EB5: =SUMPRODUCT(($D$3:$D$10=DP5)*($GN$3:$GN$10))+'J02'!EB5 -> 34 | EC5: 17 | ED5: -7 | EE5: =SUMPRODUCT(($D$3:$D$10=DP5)*($FR$3:$FR$10))+'J02'!EE5 -> 0 | EF5: =SUMPRODUCT(($D$3:$D$10=DP5)*($FT$3:$FT$10))+'J02'!EF5 -> 2 | EG5: 0 | EH5: =SUMPRODUCT(($D$3:$D$10=DP5)*($GP$3:$GP$10))+'J02'!EH5 -> 3 | EI5: =SUMPRODUCT(($D$3:$D$10=DP5)*($GR$3:$GR$10))+'J02'!EI5 -> 1 | EJ5: 2 | EK5: =IF(Equipes!$C$4="","",Equipes!$C$4) -> Bourg-en-Bresse | EL5: 12 | EM5: ='J02'!EL5-EL5 -> -1 | EN5: =IF(EL5>'J02'!EL5,'J02'!$EN$20,IF(EL5='J02'!EL5,'J02'!$EM$20,IF(EL5<'J02'!EL5,'J02'!$EL$20))) -> q | EO5: 12 | EP5: =SUMPRODUCT(($M$3:$M$10=EK5)*($FW$3:$FW$10))+'J02'!EP5+FB5 -> 0 | EQ5: =SUMPRODUCT(($M$3:$M$10=EK5)*($GC$3:$GC$10))+'J02'!EQ5 -> 1 | ER5: =SUMPRODUCT(($M$3:$M$10=EK5)*($GG$3:$GG$10))+'J02'!ER5 -> 0 | ES5: =SUMPRODUCT(($M$3:$M$10=EK5)*($GI$3:$GI$10))+'J02'!ES5 -> 0 | ET5: =SUMPRODUCT(($M$3:$M$10=EK5)*($GK$3:$GK$10))+'J02'!ET5 -> 1 | EU5: =SUMPRODUCT(($M$3:$M$10=EK5)*($GM$3:$GM$10))+'J02'!EU5 -> 16 | EV5: 16 | EW5: =SUMPRODUCT(($M$3:$M$10=EK5)*($GO$3:$GO$10))+'J02'!EW5 -> 27 | EX5: 27 | EY5: -11 | EZ5: =SUMPRODUCT(($M$3:$M$10=EK5)*($FS$3:$FS$10))+'J02'!EZ5 -> 0 | FA5: 2 | FB5: 0 | FC5: =SUMPRODUCT(($M$3:$M$10=EK5)*($GQ$3:$GQ$10))+'J02'!FC5 -> 1 | FD5: =SUMPRODUCT(($M$3:$M$10=EK5)*($GS$3:$GS$10))+'J02'!FD5 -> 3 | FE5: -2 | FF5: 1999.8243 | FG5: =FF5+0.00000012 -> 1999.8243 | FH5: 1999.9327 | FI5: =FH5+0.00000012 -> 1999.9327 | FJ5: -0.1084 | FK5: =FJ5+0.00000012 -> -0.10839988 | FL5: 0 | FM5: 0 | FN5: 0 | FO5: 0 | FP5: 0 | FQ5: 4 | FR5: FALSE | FS5: 1 | FT5: FALSE | FU5: FALSE | FV5: 0 | FW5: 5 | FX5: 0 | FY5: 5 | GB5: 1 | GC5: 1 | GD5: 1 | GE5: 1 | GF5: FALSE | GG5: 1 | GH5: FALSE | GI5: FALSE | GJ5: 1 | GK5: FALSE | GL5: 3 | GM5: 38 | GN5: 38 | GO5: 3 | GP5: 0 | GQ5: 5 | GR5: 5 | GS5: 0 | GT5: Nice | GU5: 10000.4677 | GV5: =IF(GU5="","",_xlfn.RANK.EQ(GU5,GU3:GU18)) -> 3 | GW5: Bourg-en-Bresse | GX5: Albi | GY5: 8000.1437 | GZ5: =IF(GY5="","",_xlfn.RANK.EQ(GY5,GY3:GY18)) -> 3 | HA5: Bourg-en-Bresse | HB5: Vienne | HC5: 4000.2525 | HD5: =IF(HC5="","",_xlfn.RANK.EQ(HC5,HC3:HC18)) -> 3 | HE5: Bourg-en-Bresse | HG5: ok | HM5: 1 | HN5: 1
D6: Vienne | E6: 7 | G6: 1 | I6: 21 | K6: 2 | M6: Bourgoin-Jallieu | Q6: Samedi 9 septembre 2023 | R6: 19:30:00 | U6: 4 | V6: Hyères | X6: 10 | Y6: 1 | Z6: p | AA6: 3 | AB6: 2 | AC6: 1 | AD6: 0 | AE6: 53 | AF6: 18 | AG6: 32 | AH6: 11 | AI6: 21 | AJ6: 0 | AK6: 0 | AL6: 0 | AM6: 0 | AN6: 0 | AO6: 0 | AP6: 4 | AQ6: 2 | AR6: 2 | AS6: 4 | AT6: Carcassonne | AV6: 8 | AW6: 4 | AX6: p | AY6: 2 | AZ6: 2 | BA6: 0 | BB6: 0 | BC6: 41 | BD6: 21 | BE6: 30 | BF6: 15 | BG6: 11 | BH6: 0 | BI6: 0 | BJ6: 0 | BK6: 0 | BL6: 0 | BM6: 0 | BN6: 5 | BO6: 3 | BP6: 2 | BQ6: 4 | BR6: Hyères | BT6: 4 | BU6: 4 | BV6: p | BW6: 1 | BX6: 1 | BY6: 0 | BZ6: 0 | CA6: 13 | CB6: 13 | CC6: 6 | CD6: 6 | CE6: 7 | CF6: 0 | CG6: 0 | CH6: 0 | CI6: 0 | CJ6: 0 | CK6: 0 | CL6: 1 | CM6: 0 | CN6: 1 | CO6: 4 | CP6: 6 | CQ6: 4 | CR6: 7 | CS6: 4 | CT6: 7 | CU6: =IF(Equipes!$C$5="","",Equipes!$C$5) -> Bourgoin-Jallieu | CV6: 6 | CW6: ='J02'!CV6-CV6 -> 4 | CX6: =IF(CV6>'J02'!CV6,'J02'!$CX$20,IF(CV6='J02'!CV6,'J02'!$CW$20,IF(CV6<'J02'!CV6,'J02'!$CV$20))) -> p | CY6: 6 | CZ6: =SUMPRODUCT(($D$3:$D$10=CU6)*($FX$3:$FX$10))+SUMPRODUCT(($M$3:$M$10=CU6)*($FY$3:$FY$10))+'J02'!CZ6+DL6+EG6 -> 8 | DA6: =SUMPRODUCT(($D$3:$D$10=CU6)*($GB$3:$GB$10))+SUMPRODUCT(($M$3:$M$10=CU6)*($GC$3:$GC$10))+'J02'!DA6 -> 3 | DB6: =SUMPRODUCT(($D$3:$D$10=CU6)*($GF$3:$GF$10))+SUMPRODUCT(($M$3:$M$10=CU6)*($GG$3:$GG$10))+'J02'!DB6 -> 2 | DC6: =SUMPRODUCT(($D$3:$D$10=CU6)*($GH$3:$GH$10))+SUMPRODUCT(($M$3:$M$10=CU6)*($GI$3:$GI$10))+'J02'!DC6 -> 0 | DD6: =SUMPRODUCT(($D$3:$D$10=CU6)*($GJ$3:$GJ$10))+SUMPRODUCT(($M$3:$M$10=CU6)*($GK$3:$GK$10))+'J02'!DD6 -> 1 | DE6: =SUMPRODUCT(($D$3:$D$10=CU6)*($GL$3:$GL$10))+SUMPRODUCT(($M$3:$M$10=CU6)*($GM$3:$GM$10))+'J02'!DE6 -> 45 | DF6: 15 | DG6: =SUMPRODUCT(($D$3:$D$10=CU6)*($GN$3:$GN$10))+SUMPRODUCT(($M$3:$M$10=CU6)*($GO$3:$GO$10))+'J02'!DG6 -> 35 | DH6: 12 | DI6: 10 | DJ6: =SUMPRODUCT(($D$3:$D$10=CU6)*($FR$3:$FR$10))+SUMPRODUCT(($M$3:$M$10=CU6)*($FS$3:$FS$10))+'J02'!DJ6 -> 0 | DK6: =SUMPRODUCT(($D$3:$D$10=CU6)*($FT$3:$FT$10))+SUMPRODUCT(($M$3:$M$10=CU6)*($FU$3:$FU$10))+'J02'!DK6 -> 0 | DL6: 0 | DM6: =SUMPRODUCT(($D$3:$D$10=CU6)*($GP$3:$GP$10))+SUMPRODUCT(($M$3:$M$10=CU6)*($GQ$3:$GQ$10))+'J02'!DM6 -> 4 | DN6: =SUMPRODUCT(($D$3:$D$10=CU6)*($GR$3:$GR$10))+SUMPRODUCT(($M$3:$M$10=CU6)*($GS$3:$GS$10))+'J02'!DN6 -> 4 | DO6: 0 | DP6: =IF(Equipes!$C$5="","",Equipes!$C$5) -> Bourgoin-Jallieu | DQ6: 7 | DR6: ='J02'!DQ6-DQ6 -> -1 | DS6: =IF(DQ6>'J02'!DQ6,'J02'!$DS$20,IF(DQ6='J02'!DQ6,'J02'!$DR$20,IF(DQ6<'J02'!DQ6,'J02'!$DQ$20))) -> q | DT6: 7 | DU6: =SUMPRODUCT(($D$3:$D$10=DP6)*($FV$3:$FV$10))+'J02'!DU6 -> 4 | DV6: =SUMPRODUCT(($D$3:$D$10=DP6)*($GB$3:$GB$10))+'J02'!DV6 -> 1 | DW6: =SUMPRODUCT(($D$3:$D$10=DP6)*($GF$3:$GF$10))+'J02'!DW6 -> 1 | DX6: =SUMPRODUCT(($D$3:$D$10=DP6)*($GH$3:$GH$10))+'J02'!DX6 -> 0 | DY6: =SUMPRODUCT(($D$3:$D$10=DP6)*($GJ$3:$GJ$10))+'J02'!DY6 -> 0 | DZ6: =SUMPRODUCT(($D$3:$D$10=DP6)*($GL$3:$GL$10))+'J02'!DZ6 -> 17 | EA6: 17 | EB6: =SUMPRODUCT(($D$3:$D$10=DP6)*($GN$3:$GN$10))+'J02'!EB6 -> 6 | EC6: 6 | ED6: 11 | EE6: =SUMPRODUCT(($D$3:$D$10=DP6)*($FR$3:$FR$10))+'J02'!EE6 -> 0 | EF6: =SUMPRODUCT(($D$3:$D$10=DP6)*($FT$3:$FT$10))+'J02'!EF6 -> 0 | EG6: 0 | EH6: =SUMPRODUCT(($D$3:$D$10=DP6)*($GP$3:$GP$10))+'J02'!EH6 -> 1 | EI6: =SUMPRODUCT(($D$3:$D$10=DP6)*($GR$3:$GR$10))+'J02'!EI6 -> 0 | EJ6: 1 | EK6: =IF(Equipes!$C$5="","",Equipes!$C$5) -> Bourgoin-Jallieu | EL6: 7 | EM6: ='J02'!EL6-EL6 -> 6 | EN6: =IF(EL6>'J02'!EL6,'J02'!$EN$20,IF(EL6='J02'!EL6,'J02'!$EM$20,IF(EL6<'J02'!EL6,'J02'!$EL$20))) -> p | EO6: 7 | EP6: =SUMPRODUCT(($M$3:$M$10=EK6)*($FW$3:$FW$10))+'J02'!EP6+FB6 -> 4 | EQ6: =SUMPRODUCT(($M$3:$M$10=EK6)*($GC$3:$GC$10))+'J02'!EQ6 -> 2 | ER6: =SUMPRODUCT(($M$3:$M$10=EK6)*($GG$3:$GG$10))+'J02'!ER6 -> 1 | ES6: =SUMPRODUCT(($M$3:$M$10=EK6)*($GI$3:$GI$10))+'J02'!ES6 -> 0 | ET6: =SUMPRODUCT(($M$3:$M$10=EK6)*($GK$3:$GK$10))+'J02'!ET6 -> 1 | EU6: =SUMPRODUCT(($M$3:$M$10=EK6)*($GM$3:$GM$10))+'J02'!EU6 -> 28 | EV6: 14 | EW6: =SUMPRODUCT(($M$3:$M$10=EK6)*($GO$3:$GO$10))+'J02'!EW6 -> 29 | EX6: 15 | EY6: -1 | EZ6: =SUMPRODUCT(($M$3:$M$10=EK6)*($FS$3:$FS$10))+'J02'!EZ6 -> 0 | FA6: =SUMPRODUCT(($M$3:$M$10=EK6)*($FU$3:$FU$10))+'J02'!FA6 -> 0 | FB6: 0 | FC6: =SUMPRODUCT(($M$3:$M$10=EK6)*($GQ$3:$GQ$10))+'J02'!FC6 -> 3 | FD6: =SUMPRODUCT(($M$3:$M$10=EK6)*($GS$3:$GS$10))+'J02'!FD6 -> 4 | FE6: -1 | FF6: 8000.1045 | FG6: =FF6+0.00000011 -> 8000.1045 | FH6: 4000.1117 | FI6: =FH6+0.00000011 -> 4000.1117 | FJ6: 3999.9928 | FK6: =FJ6+0.00000011 -> 3999.9928 | FL6: 0 | FM6: 0 | FN6: 0 | FO6: 0 | FP6: 0 | FQ6: 4 | FR6: FALSE | FS6: FALSE | FT6: FALSE | FU6: FALSE | FV6: 0 | FW6: 4 | FX6: 0 | FY6: 4 | GB6: 1 | GC6: 1 | GD6: 1 | GE6: 1 | GF6: FALSE | GG6: 1 | GH6: FALSE | GI6: FALSE | GJ6: 1 | GK6: FALSE | GL6: 7 | GM6: 21 | GN6: 21 | GO6: 7 | GP6: 1 | GQ6: 2 | GR6: 2 | GS6: 1 | GT6: Hyères | GU6: 10000.2153 | GV6: =IF(GU6="","",_xlfn.RANK.EQ(GU6,GU3:GU18)) -> 4 | GW6: Bourgoin-Jallieu | GX6: Carcassonne | GY6: 8000.1141 | GZ6: =IF(GY6="","",_xlfn.RANK.EQ(GY6,GY3:GY18)) -> 4 | HA6: Bourgoin-Jallieu | HB6: Hyères | HC6: 4000.0713 | HD6: =IF(HC6="","",_xlfn.RANK.EQ(HC6,HC3:HC18)) -> 4 | HE6: Bourgoin-Jallieu | HG6: ok | HM6: 1 | HN6: 1
D7: Carcassonne | E7: 20 | G7: 2 | I7: 16 | J7: Bd | K7: 1 | M7: Chambéry | Q7: vendredi 8 septembre 2023 | R7: 18:00:00 | U7: 5 | V7: Périgueux | X7: 9 | Y7: -4 | Z7: q | AA7: 3 | AB7: 2 | AC7: 0 | AD7: 1 | AE7: 54 | AF7: 18 | AG7: 31 | AH7: 10 | AI7: 23 | AJ7: 1 | AK7: 0 | AL7: 0 | AM7: 1 | AN7: 0 | AO7: 0 | AP7: 7 | AQ7: 4 | AR7: 3 | AS7: 5 | AT7: Hyères | AV7: 6 | AW7: -3 | AX7: q | AY7: 2 | AZ7: 1 | BA7: 1 | BB7: 0 | BC7: 40 | BD7: 20 | BE7: 26 | BF7: 13 | BG7: 14 | BH7: 0 | BI7: 0 | BJ7: 0 | BK7: 0 | BL7: 0 | BM7: 0 | BN7: 3 | BO7: 2 | BP7: 1 | BQ7: 5 | BR7: Narbonne | BT7: 4 | BU7: -2 | BV7: q | BW7: 1 | BX7: 1 | BY7: 0 | BZ7: 0 | CA7: 27 | CB7: 27 | CC7: 23 | CD7: 23 | CE7: 4 | CF7: 0 | CG7: 0 | CH7: 0 | CI7: 0 | CJ7: 0 | CK7: 0 | CL7: 3 | CM7: 3 | CN7: 0 | CO7: 5 | CP7: 2 | CQ7: 5 | CR7: 4 | CS7: 5 | CT7: 6 | CU7: =IF(Equipes!$C$6="","",Equipes!$C$6) -> Carcassonne | CV7: 2 | CW7: ='J02'!CV7-CV7 -> 1 | CX7: =IF(CV7>'J02'!CV7,'J02'!$CX$20,IF(CV7='J02'!CV7,'J02'!$CW$20,IF(CV7<'J02'!CV7,'J02'!$CV$20))) -> p | CY7: 2 | CZ7: =SUMPRODUCT(($D$3:$D$10=CU7)*($FX$3:$FX$10))+SUMPRODUCT(($M$3:$M$10=CU7)*($FY$3:$FY$10))+'J02'!CZ7+DL7+EG7 -> 12 | DA7: =SUMPRODUCT(($D$3:$D$10=CU7)*($GB$3:$GB$10))+SUMPRODUCT(($M$3:$M$10=CU7)*($GC$3:$GC$10))+'J02'!DA7 -> 3 | DB7: =SUMPRODUCT(($D$3:$D$10=CU7)*($GF$3:$GF$10))+SUMPRODUCT(($M$3:$M$10=CU7)*($GG$3:$GG$10))+'J02'!DB7 -> 3 | DC7: =SUMPRODUCT(($D$3:$D$10=CU7)*($GH$3:$GH$10))+SUMPRODUCT(($M$3:$M$10=CU7)*($GI$3:$GI$10))+'J02'!DC7 -> 0 | DD7: =SUMPRODUCT(($D$3:$D$10=CU7)*($GJ$3:$GJ$10))+SUMPRODUCT(($M$3:$M$10=CU7)*($GK$3:$GK$10))+'J02'!DD7 -> 0 | DE7: =SUMPRODUCT(($D$3:$D$10=CU7)*($GL$3:$GL$10))+SUMPRODUCT(($M$3:$M$10=CU7)*($GM$3:$GM$10))+'J02'!DE7 -> 53 | DF7: 18 | DG7: =SUMPRODUCT(($D$3:$D$10=CU7)*($GN$3:$GN$10))+SUMPRODUCT(($M$3:$M$10=CU7)*($GO$3:$GO$10))+'J02'!DG7 -> 40 | DH7: 13 | DI7: 13 | DJ7: =SUMPRODUCT(($D$3:$D$10=CU7)*($FR$3:$FR$10))+SUMPRODUCT(($M$3:$M$10=CU7)*($FS$3:$FS$10))+'J02'!DJ7 -> 0 | DK7: =SUMPRODUCT(($D$3:$D$10=CU7)*($FT$3:$FT$10))+SUMPRODUCT(($M$3:$M$10=CU7)*($FU$3:$FU$10))+'J02'!DK7 -> 0 | DL7: 0 | DM7: =SUMPRODUCT(($D$3:$D$10=CU7)*($GP$3:$GP$10))+SUMPRODUCT(($M$3:$M$10=CU7)*($GQ$3:$GQ$10))+'J02'!DM7 -> 5 | DN7: =SUMPRODUCT(($D$3:$D$10=CU7)*($GR$3:$GR$10))+SUMPRODUCT(($M$3:$M$10=CU7)*($GS$3:$GS$10))+'J02'!DN7 -> 4 | DO7: 1 | DP7: =IF(Equipes!$C$6="","",Equipes!$C$6) -> Carcassonne | DQ7: 4 | DR7: ='J02'!DQ7-DQ7 -> 4 | DS7: =IF(DQ7>'J02'!DQ7,'J02'!$DS$20,IF(DQ7='J02'!DQ7,'J02'!$DR$20,IF(DQ7<'J02'!DQ7,'J02'!$DQ$20))) -> p | DT7: 4 | DU7: =SUMPRODUCT(($D$3:$D$10=DP7)*($FV$3:$FV$10))+'J02'!DU7 -> 8 | DV7: =SUMPRODUCT(($D$3:$D$10=DP7)*($GB$3:$GB$10))+'J02'!DV7 -> 2 | DW7: =SUMPRODUCT(($D$3:$D$10=DP7)*($GF$3:$GF$10))+'J02'!DW7 -> 2 | DX7: =SUMPRODUCT(($D$3:$D$10=DP7)*($GH$3:$GH$10))+'J02'!DX7 -> 0 | DY7: =SUMPRODUCT(($D$3:$D$10=DP7)*($GJ$3:$GJ$10))+'J02'!DY7 -> 0 | DZ7: =SUMPRODUCT(($D$3:$D$10=DP7)*($GL$3:$GL$10))+'J02'!DZ7 -> 41 | EA7: 21 | EB7: =SUMPRODUCT(($D$3:$D$10=DP7)*($GN$3:$GN$10))+'J02'!EB7 -> 30 | EC7: 15 | ED7: 11 | EE7: =SUMPRODUCT(($D$3:$D$10=DP7)*($FR$3:$FR$10))+'J02'!EE7 -> 0 | EF7: =SUMPRODUCT(($D$3:$D$10=DP7)*($FT$3:$FT$10))+'J02'!EF7 -> 0 | EG7: 0 | EH7: =SUMPRODUCT(($D$3:$D$10=DP7)*($GP$3:$GP$10))+'J02'!EH7 -> 5 | EI7: =SUMPRODUCT(($D$3:$D$10=DP7)*($GR$3:$GR$10))+'J02'!EI7 -> 3 | EJ7: 2 | EK7: =IF(Equipes!$C$6="","",Equipes!$C$6) -> Carcassonne | EL7: 6 | EM7: ='J02'!EL7-EL7 -> -2 | EN7: =IF(EL7>'J02'!EL7,'J02'!$EN$20,IF(EL7='J02'!EL7,'J02'!$EM$20,IF(EL7<'J02'!EL7,'J02'!$EL$20))) -> q | EO7: 6 | EP7: =SUMPRODUCT(($M$3:$M$10=EK7)*($FW$3:$FW$10))+'J02'!EP7+FB7 -> 4 | EQ7: =SUMPRODUCT(($M$3:$M$10=EK7)*($GC$3:$GC$10))+'J02'!EQ7 -> 1 | ER7: =SUMPRODUCT(($M$3:$M$10=EK7)*($GG$3:$GG$10))+'J02'!ER7 -> 1 | ES7: =SUMPRODUCT(($M$3:$M$10=EK7)*($GI$3:$GI$10))+'J02'!ES7 -> 0 | ET7: =SUMPRODUCT(($M$3:$M$10=EK7)*($GK$3:$GK$10))+'J02'!ET7 -> 0 | EU7: =SUMPRODUCT(($M$3:$M$10=EK7)*($GM$3:$GM$10))+'J02'!EU7 -> 12 | EV7: 12 | EW7: =SUMPRODUCT(($M$3:$M$10=EK7)*($GO$3:$GO$10))+'J02'!EW7 -> 10 | EX7: 10 | EY7: 2 | EZ7: =SUMPRODUCT(($M$3:$M$10=EK7)*($FS$3:$FS$10))+'J02'!EZ7 -> 0 | FA7: =SUMPRODUCT(($M$3:$M$10=EK7)*($FU$3:$FU$10))+'J02'!FA7 -> 0 | FB7: 0 | FC7: =SUMPRODUCT(($M$3:$M$10=EK7)*($GQ$3:$GQ$10))+'J02'!FC7 -> 0 | FD7: =SUMPRODUCT(($M$3:$M$10=EK7)*($GS$3:$GS$10))+'J02'!FD7 -> 1 | FE7: -1 | FF7: 12000.1353 | FG7: =FF7+0.0000001 -> 12000.1353 | FH7: 8000.1141 | FI7: =FH7+0.0000001 -> 8000.1141 | FJ7: 4000.0212 | FK7: =FJ7+0.0000001 -> 4000.0212 | FL7: 0 | FM7: 0 | FN7: 0 | FO7: 0 | FP7: 4 | FQ7: 0 | FR7: FALSE | FS7: FALSE | FT7: FALSE | FU7: 1 | FV7: 4 | FW7: 1 | FX7: 4 | FY7: 1 | GB7: 1 | GC7: 1 | GD7: 1 | GE7: 1 | GF7: 1 | GG7: FALSE | GH7: FALSE | GI7: FALSE | GJ7: FALSE | GK7: 1 | GL7: 20 | GM7: 16 | GN7: 16 | GO7: 20 | GP7: 2 | GQ7: 1 | GR7: 1 | GS7: 2 | GT7: Périgueux | GU7: 9000.2354 | GV7: =IF(GU7="","",_xlfn.RANK.EQ(GU7,GU3:GU18)) -> 5 | GW7: Carcassonne | GX7: Hyères | GY7: 6000.144 | GZ7: =IF(GY7="","",_xlfn.RANK.EQ(GY7,GY3:GY18)) -> 5 | HA7: Carcassonne | HB7: Narbonne | HC7: 4000.0427 | HD7: =IF(HC7="","",_xlfn.RANK.EQ(HC7,HC3:HC18)) -> 5 | HE7: Carcassonne | HG7: ok | HM7: 1 | HN7: 1
D8: Massy | E8: 6 | F8: Bd | G8: 0 | I8: 13 | K8: 1 | M8: Hyères | Q8: vendredi 8 septembre 2023 | R8: 18:30:00 | U8: 6 | V8: Bourgoin-Jallieu | X8: 8 | Y8: 4 | Z8: p | AA8: 3 | AB8: 2 | AC8: 0 | AD8: 1 | AE8: 45 | AF8: 15 | AG8: 35 | AH8: 12 | AI8: 10 | AJ8: 0 | AK8: 0 | AL8: 0 | AM8: 0 | AN8: 0 | AO8: 0 | AP8: 4 | AQ8: 4 | AR8: 0 | AS8: 6 | AT8: Massy | AV8: 6 | AW8: -3 | AX8: q | AY8: 3 | AZ8: 1 | BA8: 0 | BB8: 2 | BC8: 49 | BD8: 16 | BE8: 53 | BF8: 18 | BG8: -4 | BH8: 2 | BI8: 0 | BJ8: 0 | BK8: 2 | BL8: 0 | BM8: 0 | BN8: 5 | BO8: 5 | BP8: 0 | BQ8: 6 | BR8: Carcassonne | BT8: 4 | BU8: -2 | BV8: q | BW8: 1 | BX8: 1 | BY8: 0 | BZ8: 0 | CA8: 12 | CB8: 12 | CC8: 10 | CD8: 10 | CE8: 2 | CF8: 0 | CG8: 0 | CH8: 0 | CI8: 0 | CJ8: 0 | CK8: 0 | CL8: 0 | CM8: 1 | CN8: -1 | CO8: 6 | CP8: 12 | CQ8: 6 | CR8: 10 | CS8: 6 | CT8: 8 | CU8: =IF(Equipes!$C$7="","",Equipes!$C$7) -> Chambéry | CV8: 12 | CW8: ='J02'!CV8-CV8 -> -1 | CX8: =IF(CV8>'J02'!CV8,'J02'!$CX$20,IF(CV8='J02'!CV8,'J02'!$CW$20,IF(CV8<'J02'!CV8,'J02'!$CV$20))) -> q | CY8: 12 | CZ8: =SUMPRODUCT(($D$3:$D$10=CU8)*($FX$3:$FX$10))+SUMPRODUCT(($M$3:$M$10=CU8)*($FY$3:$FY$10))+'J02'!CZ8+DL8+EG8 -> 3 | DA8: =SUMPRODUCT(($D$3:$D$10=CU8)*($GB$3:$GB$10))+SUMPRODUCT(($M$3:$M$10=CU8)*($GC$3:$GC$10))+'J02'!DA8 -> 3 | DB8: =SUMPRODUCT(($D$3:$D$10=CU8)*($GF$3:$GF$10))+SUMPRODUCT(($M$3:$M$10=CU8)*($GG$3:$GG$10))+'J02'!DB8 -> 0 | DC8: =SUMPRODUCT(($D$3:$D$10=CU8)*($GH$3:$GH$10))+SUMPRODUCT(($M$3:$M$10=CU8)*($GI$3:$GI$10))+'J02'!DC8 -> 1 | DD8: =SUMPRODUCT(($D$3:$D$10=CU8)*($GJ$3:$GJ$10))+SUMPRODUCT(($M$3:$M$10=CU8)*($GK$3:$GK$10))+'J02'!DD8 -> 2 | DE8: =SUMPRODUCT(($D$3:$D$10=CU8)*($GL$3:$GL$10))+SUMPRODUCT(($M$3:$M$10=CU8)*($GM$3:$GM$10))+'J02'!DE8 -> 41 | DF8: 14 | DG8: =SUMPRODUCT(($D$3:$D$10=CU8)*($GN$3:$GN$10))+SUMPRODUCT(($M$3:$M$10=CU8)*($GO$3:$GO$10))+'J02'!DG8 -> 53 | DH8: 18 | DI8: -12 | DJ8: =SUMPRODUCT(($D$3:$D$10=CU8)*($FR$3:$FR$10))+SUMPRODUCT(($M$3:$M$10=CU8)*($FS$3:$FS$10))+'J02'!DJ8 -> 0 | DK8: =SUMPRODUCT(($D$3:$D$10=CU8)*($FT$3:$FT$10))+SUMPRODUCT(($M$3:$M$10=CU8)*($FU$3:$FU$10))+'J02'!DK8 -> 1 | DL8: 0 | DM8: =SUMPRODUCT(($D$3:$D$10=CU8)*($GP$3:$GP$10))+SUMPRODUCT(($M$3:$M$10=CU8)*($GQ$3:$GQ$10))+'J02'!DM8 -> 2 | DN8: =SUMPRODUCT(($D$3:$D$10=CU8)*($GR$3:$GR$10))+SUMPRODUCT(($M$3:$M$10=CU8)*($GS$3:$GS$10))+'J02'!DN8 -> 5 | DO8: -3 | DP8: =IF(Equipes!$C$7="","",Equipes!$C$7) -> Chambéry | DQ8: 10 | DR8: ='J02'!DQ8-DQ8 -> 0 | DS8: =IF(DQ8>'J02'!DQ8,'J02'!$DS$20,IF(DQ8='J02'!DQ8,'J02'!$DR$20,IF(DQ8<'J02'!DQ8,'J02'!$DQ$20))) -> u | DT8: 10 | DU8: =SUMPRODUCT(($D$3:$D$10=DP8)*($FV$3:$FV$10))+'J02'!DU8 -> 0 | DV8: =SUMPRODUCT(($D$3:$D$10=DP8)*($GB$3:$GB$10))+'J02'!DV8 -> 0 | DW8: =SUMPRODUCT(($D$3:$D$10=DP8)*($GF$3:$GF$10))+'J02'!DW8 -> 0 | DX8: =SUMPRODUCT(($D$3:$D$10=DP8)*($GH$3:$GH$10))+'J02'!DX8 -> 0 | DY8: =SUMPRODUCT(($D$3:$D$10=DP8)*($GJ$3:$GJ$10))+'J02'!DY8 -> 0 | DZ8: =SUMPRODUCT(($D$3:$D$10=DP8)*($GL$3:$GL$10))+'J02'!DZ8 -> 0 | EA8: 0 | EB8: =SUMPRODUCT(($D$3:$D$10=DP8)*($GN$3:$GN$10))+'J02'!EB8 -> 0 | EC8: 0 | ED8: 0 | EE8: =SUMPRODUCT(($D$3:$D$10=DP8)*($FR$3:$FR$10))+'J02'!EE8 -> 0 | EF8: 1 | EG8: 0 | EH8: =SUMPRODUCT(($D$3:$D$10=DP8)*($GP$3:$GP$10))+'J02'!EH8 -> 0 | EI8: =SUMPRODUCT(($D$3:$D$10=DP8)*($GR$3:$GR$10))+'J02'!EI8 -> 0 | EJ8: 0 | EK8: =IF(Equipes!$C$7="","",Equipes!$C$7) -> Chambéry | EL8: 8 | EM8: ='J02'!EL8-EL8 -> -3 | EN8: =IF(EL8>'J02'!EL8,'J02'!$EN$20,IF(EL8='J02'!EL8,'J02'!$EM$20,IF(EL8<'J02'!EL8,'J02'!$EL$20))) -> q | EO8: 8 | EP8: =SUMPRODUCT(($M$3:$M$10=EK8)*($FW$3:$FW$10))+'J02'!EP8+FB8 -> 3 | EQ8: =SUMPRODUCT(($M$3:$M$10=EK8)*($GC$3:$GC$10))+'J02'!EQ8 -> 3 | ER8: =SUMPRODUCT(($M$3:$M$10=EK8)*($GG$3:$GG$10))+'J02'!ER8 -> 0 | ES8: =SUMPRODUCT(($M$3:$M$10=EK8)*($GI$3:$GI$10))+'J02'!ES8 -> 1 | ET8: =SUMPRODUCT(($M$3:$M$10=EK8)*($GK$3:$GK$10))+'J02'!ET8 -> 2 | EU8: =SUMPRODUCT(($M$3:$M$10=EK8)*($GM$3:$GM$10))+'J02'!EU8 -> 41 | EV8: 14 | EW8: =SUMPRODUCT(($M$3:$M$10=EK8)*($GO$3:$GO$10))+'J02'!EW8 -> 53 | EX8: 18 | EY8: -12 | EZ8: =SUMPRODUCT(($M$3:$M$10=EK8)*($FS$3:$FS$10))+'J02'!EZ8 -> 0 | FA8: =SUMPRODUCT(($M$3:$M$10=EK8)*($FU$3:$FU$10))+'J02'!FA8 -> 1 | FB8: 0 | FC8: =SUMPRODUCT(($M$3:$M$10=EK8)*($GQ$3:$GQ$10))+'J02'!FC8 -> 2 | FD8: =SUMPRODUCT(($M$3:$M$10=EK8)*($GS$3:$GS$10))+'J02'!FD8 -> 5 | FE8: -3 | FF8: 2999.8841 | FG8: =FF8+0.00000009 -> 2999.8841 | FH8: 0 | FI8: =FH8+0.00000009 -> 9e-08 | FJ8: 2999.8841 | FK8: =FJ8+0.00000009 -> 2999.8841 | FL8: 0 | FM8: 0 | FN8: 0 | FO8: 0 | FP8: 0 | FQ8: 4 | FR8: FALSE | FS8: FALSE | FT8: 1 | FU8: FALSE | FV8: 1 | FW8: 4 | FX8: 1 | FY8: 4 | GB8: 1 | GC8: 1 | GD8: 1 | GE8: 1 | GF8: FALSE | GG8: 1 | GH8: FALSE | GI8: FALSE | GJ8: 1 | GK8: FALSE | GL8: 6 | GM8: 13 | GN8: 13 | GO8: 6 | GP8: 0 | GQ8: 1 | GR8: 1 | GS8: 0 | GT8: Bourgoin-Jallieu | GU8: 8000.1045 | GV8: =IF(GU8="","",_xlfn.RANK.EQ(GU8,GU3:GU18)) -> 6 | GW8: Chambéry | GX8: Massy | GY8: 5999.9649 | GZ8: =IF(GY8="","",_xlfn.RANK.EQ(GY8,GY3:GY18)) -> 6 | HA8: Chambéry | HB8: Carcassonne | HC8: 4000.0212 | HD8: =IF(HC8="","",_xlfn.RANK.EQ(HC8,HC3:HC18)) -> 6 | HE8: Chambéry | HG8: ok | HM8: 1 | HN8: 1
D9: Bourg-en-Bresse | E9: 17 | F9: Bd | G9: 2 | I9: 22 | K9: 1 | M9: Suresnes | Q9: vendredi 8 septembre 2023 | R9: 19:00:00 | U9: 7 | V9: Albi | X9: 8 | Y9: 2 | Z9: p | AA9: 3 | AB9: 2 | AC9: 0 | AD9: 1 | AE9: 43 | AF9: 14 | AG9: 40 | AH9: 13 | AI9: 3 | AJ9: 0 | AK9: 0 | AL9: 0 | AM9: 0 | AN9: 0 | AO9: 0 | AP9: 4 | AQ9: 3 | AR9: 1 | AS9: 7 | AT9: Bourgoin-Jallieu | AV9: 4 | AW9: -1 | AX9: q | AY9: 1 | AZ9: 1 | BA9: 0 | BB9: 0 | BC9: 17 | BD9: 17 | BE9: 6 | BF9: 6 | BG9: 11 | BH9: 0 | BI9: 0 | BJ9: 0 | BK9: 0 | BL9: 0 | BM9: 0 | BN9: 1 | BO9: 0 | BP9: 1 | BQ9: 7 | BR9: Bourgoin-Jallieu | BT9: 4 | BU9: 6 | BV9: p | BW9: 2 | BX9: 1 | BY9: 0 | BZ9: 1 | CA9: 28 | CB9: 14 | CC9: 29 | CD9: 15 | CE9: -1 | CF9: 0 | CG9: 0 | CH9: 0 | CI9: 0 | CJ9: 0 | CK9: 0 | CL9: 3 | CM9: 4 | CN9: -1 | CO9: 7 | CP9: 4 | CQ9: 7 | CR9: 5 | CS9: 7 | CT9: 4 | CU9: =IF(Equipes!$C$8="","",Equipes!$C$8) -> Hyères | CV9: 4 | CW9: ='J02'!CV9-CV9 -> 1 | CX9: =IF(CV9>'J02'!CV9,'J02'!$CX$20,IF(CV9='J02'!CV9,'J02'!$CW$20,IF(CV9<'J02'!CV9,'J02'!$CV$20))) -> p | CY9: 4 | CZ9: =SUMPRODUCT(($D$3:$D$10=CU9)*($FX$3:$FX$10))+SUMPRODUCT(($M$3:$M$10=CU9)*($FY$3:$FY$10))+'J02'!CZ9+DL9+EG9 -> 10 | DA9: =SUMPRODUCT(($D$3:$D$10=CU9)*($GB$3:$GB$10))+SUMPRODUCT(($M$3:$M$10=CU9)*($GC$3:$GC$10))+'J02'!DA9 -> 3 | DB9: =SUMPRODUCT(($D$3:$D$10=CU9)*($GF$3:$GF$10))+SUMPRODUCT(($M$3:$M$10=CU9)*($GG$3:$GG$10))+'J02'!DB9 -> 2 | DC9: =SUMPRODUCT(($D$3:$D$10=CU9)*($GH$3:$GH$10))+SUMPRODUCT(($M$3:$M$10=CU9)*($GI$3:$GI$10))+'J02'!DC9 -> 1 | DD9: =SUMPRODUCT(($D$3:$D$10=CU9)*($GJ$3:$GJ$10))+SUMPRODUCT(($M$3:$M$10=CU9)*($GK$3:$GK$10))+'J02'!DD9 -> 0 | DE9: =SUMPRODUCT(($D$3:$D$10=CU9)*($GL$3:$GL$10))+SUMPRODUCT(($M$3:$M$10=CU9)*($GM$3:$GM$10))+'J02'!DE9 -> 53 | DF9: 18 | DG9: =SUMPRODUCT(($D$3:$D$10=CU9)*($GN$3:$GN$10))+SUMPRODUCT(($M$3:$M$10=CU9)*($GO$3:$GO$10))+'J02'!DG9 -> 32 | DH9: 11 | DI9: 21 | DJ9: =SUMPRODUCT(($D$3:$D$10=CU9)*($FR$3:$FR$10))+SUMPRODUCT(($M$3:$M$10=CU9)*($FS$3:$FS$10))+'J02'!DJ9 -> 0 | DK9: =SUMPRODUCT(($D$3:$D$10=CU9)*($FT$3:$FT$10))+SUMPRODUCT(($M$3:$M$10=CU9)*($FU$3:$FU$10))+'J02'!DK9 -> 0 | DL9: 0 | DM9: =SUMPRODUCT(($D$3:$D$10=CU9)*($GP$3:$GP$10))+SUMPRODUCT(($M$3:$M$10=CU9)*($GQ$3:$GQ$10))+'J02'!DM9 -> 4 | DN9: =SUMPRODUCT(($D$3:$D$10=CU9)*($GR$3:$GR$10))+SUMPRODUCT(($M$3:$M$10=CU9)*($GS$3:$GS$10))+'J02'!DN9 -> 2 | DO9: 2 | DP9: =IF(Equipes!$C$8="","",Equipes!$C$8) -> Hyères | DQ9: 5 | DR9: ='J02'!DQ9-DQ9 -> -3 | DS9: =IF(DQ9>'J02'!DQ9,'J02'!$DS$20,IF(DQ9='J02'!DQ9,'J02'!$DR$20,IF(DQ9<'J02'!DQ9,'J02'!$DQ$20))) -> q | DT9: 5 | DU9: =SUMPRODUCT(($D$3:$D$10=DP9)*($FV$3:$FV$10))+'J02'!DU9 -> 6 | DV9: =SUMPRODUCT(($D$3:$D$10=DP9)*($GB$3:$GB$10))+'J02'!DV9 -> 2 | DW9: =SUMPRODUCT(($D$3:$D$10=DP9)*($GF$3:$GF$10))+'J02'!DW9 -> 1 | DX9: =SUMPRODUCT(($D$3:$D$10=DP9)*($GH$3:$GH$10))+'J02'!DX9 -> 1 | DY9: =SUMPRODUCT(($D$3:$D$10=DP9)*($GJ$3:$GJ$10))+'J02'!DY9 -> 0 | DZ9: =SUMPRODUCT(($D$3:$D$10=DP9)*($GL$3:$GL$10))+'J02'!DZ9 -> 40 | EA9: 20 | EB9: =SUMPRODUCT(($D$3:$D$10=DP9)*($GN$3:$GN$10))+'J02'!EB9 -> 26 | EC9: 13 | ED9: 14 | EE9: =SUMPRODUCT(($D$3:$D$10=DP9)*($FR$3:$FR$10))+'J02'!EE9 -> 0 | EF9: =SUMPRODUCT(($D$3:$D$10=DP9)*($FT$3:$FT$10))+'J02'!EF9 -> 0 | EG9: 0 | EH9: =SUMPRODUCT(($D$3:$D$10=DP9)*($GP$3:$GP$10))+'J02'!EH9 -> 3 | EI9: =SUMPRODUCT(($D$3:$D$10=DP9)*($GR$3:$GR$10))+'J02'!EI9 -> 2 | EJ9: 1 | EK9: =IF(Equipes!$C$8="","",Equipes!$C$8) -> Hyères | EL9: 4 | EM9: ='J02'!EL9-EL9 -> 4 | EN9: =IF(EL9>'J02'!EL9,'J02'!$EN$20,IF(EL9='J02'!EL9,'J02'!$EM$20,IF(EL9<'J02'!EL9,'J02'!$EL$20))) -> p | EO9: 4 | EP9: =SUMPRODUCT(($M$3:$M$10=EK9)*($FW$3:$FW$10))+'J02'!EP9+FB9 -> 4 | EQ9: =SUMPRODUCT(($M$3:$M$10=EK9)*($GC$3:$GC$10))+'J02'!EQ9 -> 1 | ER9: =SUMPRODUCT(($M$3:$M$10=EK9)*($GG$3:$GG$10))+'J02'!ER9 -> 1 | ES9: =SUMPRODUCT(($M$3:$M$10=EK9)*($GI$3:$GI$10))+'J02'!ES9 -> 0 | ET9: =SUMPRODUCT(($M$3:$M$10=EK9)*($GK$3:$GK$10))+'J02'!ET9 -> 0 | EU9: =SUMPRODUCT(($M$3:$M$10=EK9)*($GM$3:$GM$10))+'J02'!EU9 -> 13 | EV9: 13 | EW9: =SUMPRODUCT(($M$3:$M$10=EK9)*($GO$3:$GO$10))+'J02'!EW9 -> 6 | EX9: 6 | EY9: 7 | EZ9: =SUMPRODUCT(($M$3:$M$10=EK9)*($FS$3:$FS$10))+'J02'!EZ9 -> 0 | FA9: =SUMPRODUCT(($M$3:$M$10=EK9)*($FU$3:$FU$10))+'J02'!FA9 -> 0 | FB9: 0 | FC9: =SUMPRODUCT(($M$3:$M$10=EK9)*($GQ$3:$GQ$10))+'J02'!FC9 -> 1 | FD9: =SUMPRODUCT(($M$3:$M$10=EK9)*($GS$3:$GS$10))+'J02'!FD9 -> 0 | FE9: 1 | FF9: 10000.2153 | FG9: =FF9+0.00000008 -> 10000.2153 | FH9: 6000.144 | FI9: =FH9+0.00000008 -> 6000.144 | FJ9: 4000.0713 | FK9: =FJ9+0.00000008 -> 4000.0713 | FL9: 0 | FM9: 0 | FN9: 0 | FO9: 0 | FP9: 0 | FQ9: 4 | FR9: FALSE | FS9: FALSE | FT9: 1 | FU9: FALSE | FV9: 1 | FW9: 4 | FX9: 1 | FY9: 4 | GB9: 1 | GC9: 1 | GD9: 1 | GE9: 1 | GF9: FALSE | GG9: 1 | GH9: FALSE | GI9: FALSE | GJ9: 1 | GK9: FALSE | GL9: 17 | GM9: 22 | GN9: 22 | GO9: 17 | GP9: 2 | GQ9: 1 | GR9: 1 | GS9: 2 | GT9: Albi | GU9: 8000.0343 | GV9: =IF(GU9="","",_xlfn.RANK.EQ(GU9,GU3:GU18)) -> 7 | GW9: Hyères | GX9: Bourgoin-Jallieu | GY9: 4000.1117 | GZ9: =IF(GY9="","",_xlfn.RANK.EQ(GY9,GY3:GY18)) -> 7 | HA9: Hyères | HB9: Bourgoin-Jallieu | HC9: 3999.9928 | HD9: =IF(HC9="","",_xlfn.RANK.EQ(HC9,HC3:HC18)) -> 7 | HE9: Hyères | HG9: ok | HM9: 1 | HN9: 1
U10: 8 | V10: Massy | X10: 6 | Y10: -1 | Z10: q | AA10: 3 | AB10: 1 | AC10: 0 | AD10: 2 | AE10: 49 | AF10: 16 | AG10: 53 | AH10: 18 | AI10: -4 | AJ10: 2 | AK10: 0 | AL10: 0 | AM10: 2 | AN10: 0 | AO10: 0 | AP10: 5 | AQ10: 5 | AR10: 0 | AS10: 8 | AT10: Tarbes | AV10: 4 | AW10: -4 | AX10: q | AY10: 2 | AZ10: 1 | BA10: 0 | BB10: 1 | BC10: 28 | BD10: 14 | BE10: 38 | BF10: 19 | BG10: -10 | BH10: 1 | BI10: 0 | BJ10: 0 | BK10: 1 | BL10: 0 | BM10: 0 | BN10: 0 | BO10: 5 | BP10: -5 | BQ10: 8 | BR10: Chambéry | BT10: 3 | BU10: -3 | BV10: q | BW10: 3 | BX10: 0 | BY10: 1 | BZ10: 2 | CA10: 41 | CB10: 14 | CC10: 53 | CD10: 18 | CE10: -12 | CF10: 1 | CG10: 0 | CH10: 0 | CI10: 1 | CJ10: 0 | CK10: 0 | CL10: 2 | CM10: 5 | CN10: -3 | CO10: 8 | CP10: 8 | CQ10: 8 | CR10: 6 | CS10: 8 | CT10: 11 | CU10: =IF(Equipes!$C$9="","",Equipes!$C$9) -> Massy | CV10: 8 | CW10: ='J02'!CV10-CV10 -> -1 | CX10: =IF(CV10>'J02'!CV10,'J02'!$CX$20,IF(CV10='J02'!CV10,'J02'!$CW$20,IF(CV10<'J02'!CV10,'J02'!$CV$20))) -> q | CY10: 8 | CZ10: =SUMPRODUCT(($D$3:$D$10=CU10)*($FX$3:$FX$10))+SUMPRODUCT(($M$3:$M$10=CU10)*($FY$3:$FY$10))+'J02'!CZ10+DL10+EG10 -> 6 | DA10: =SUMPRODUCT(($D$3:$D$10=CU10)*($GB$3:$GB$10))+SUMPRODUCT(($M$3:$M$10=CU10)*($GC$3:$GC$10))+'J02'!DA10 -> 3 | DB10: =SUMPRODUCT(($D$3:$D$10=CU10)*($GF$3:$GF$10))+SUMPRODUCT(($M$3:$M$10=CU10)*($GG$3:$GG$10))+'J02'!DB10 -> 1 | DC10: =SUMPRODUCT(($D$3:$D$10=CU10)*($GH$3:$GH$10))+SUMPRODUCT(($M$3:$M$10=CU10)*($GI$3:$GI$10))+'J02'!DC10 -> 0 | DD10: =SUMPRODUCT(($D$3:$D$10=CU10)*($GJ$3:$GJ$10))+SUMPRODUCT(($M$3:$M$10=CU10)*($GK$3:$GK$10))+'J02'!DD10 -> 2 | DE10: =SUMPRODUCT(($D$3:$D$10=CU10)*($GL$3:$GL$10))+SUMPRODUCT(($M$3:$M$10=CU10)*($GM$3:$GM$10))+'J02'!DE10 -> 49 | DF10: 16 | DG10: =SUMPRODUCT(($D$3:$D$10=CU10)*($GN$3:$GN$10))+SUMPRODUCT(($M$3:$M$10=CU10)*($GO$3:$GO$10))+'J02'!DG10 -> 53 | DH10: 18 | DI10: -4 | DJ10: =SUMPRODUCT(($D$3:$D$10=CU10)*($FR$3:$FR$10))+SUMPRODUCT(($M$3:$M$10=CU10)*($FS$3:$FS$10))+'J02'!DJ10 -> 0 | DK10: =SUMPRODUCT(($D$3:$D$10=CU10)*($FT$3:$FT$10))+SUMPRODUCT(($M$3:$M$10=CU10)*($FU$3:$FU$10))+'J02'!DK10 -> 2 | DL10: 0 | DM10: =SUMPRODUCT(($D$3:$D$10=CU10)*($GP$3:$GP$10))+SUMPRODUCT(($M$3:$M$10=CU10)*($GQ$3:$GQ$10))+'J02'!DM10 -> 5 | DN10: =SUMPRODUCT(($D$3:$D$10=CU10)*($GR$3:$GR$10))+SUMPRODUCT(($M$3:$M$10=CU10)*($GS$3:$GS$10))+'J02'!DN10 -> 5 | DO10: 0 | DP10: =IF(Equipes!$C$9="","",Equipes!$C$9) -> Massy | DQ10: 6 | DR10: ='J02'!DQ10-DQ10 -> -3 | DS10: =IF(DQ10>'J02'!DQ10,'J02'!$DS$20,IF(DQ10='J02'!DQ10,'J02'!$DR$20,IF(DQ10<'J02'!DQ10,'J02'!$DQ$20))) -> q | DT10: 6 | DU10: =SUMPRODUCT(($D$3:$D$10=DP10)*($FV$3:$FV$10))+'J02'!DU10 -> 6 | DV10: =SUMPRODUCT(($D$3:$D$10=DP10)*($GB$3:$GB$10))+'J02'!DV10 -> 3 | DW10: =SUMPRODUCT(($D$3:$D$10=DP10)*($GF$3:$GF$10))+'J02'!DW10 -> 1 | DX10: =SUMPRODUCT(($D$3:$D$10=DP10)*($GH$3:$GH$10))+'J02'!DX10 -> 0 | DY10: =SUMPRODUCT(($D$3:$D$10=DP10)*($GJ$3:$GJ$10))+'J02'!DY10 -> 2 | DZ10: =SUMPRODUCT(($D$3:$D$10=DP10)*($GL$3:$GL$10))+'J02'!DZ10 -> 49 | EA10: 16 | EB10: =SUMPRODUCT(($D$3:$D$10=DP10)*($GN$3:$GN$10))+'J02'!EB10 -> 53 | EC10: 18 | ED10: -4 | EE10: =SUMPRODUCT(($D$3:$D$10=DP10)*($FR$3:$FR$10))+'J02'!EE10 -> 0 | EF10: =SUMPRODUCT(($D$3:$D$10=DP10)*($FT$3:$FT$10))+'J02'!EF10 -> 2 | EG10: 0 | EH10: =SUMPRODUCT(($D$3:$D$10=DP10)*($GP$3:$GP$10))+'J02'!EH10 -> 5 | EI10: =SUMPRODUCT(($D$3:$D$10=DP10)*($GR$3:$GR$10))+'J02'!EI10 -> 5 | EJ10: 0 | EK10: =IF(Equipes!$C$9="","",Equipes!$C$9) -> Massy | EL10: 11 | EM10: ='J02'!EL10-EL10 -> -3 | EN10: =IF(EL10>'J02'!EL10,'J02'!$EN$20,IF(EL10='J02'!EL10,'J02'!$EM$20,IF(EL10<'J02'!EL10,'J02'!$EL$20))) -> q | EO10: 11 | EP10: =SUMPRODUCT(($M$3:$M$10=EK10)*($FW$3:$FW$10))+'J02'!EP10+FB10 -> 0 | EQ10: =SUMPRODUCT(($M$3:$M$10=EK10)*($GC$3:$GC$10))+'J02'!EQ10 -> 0 | ER10: =SUMPRODUCT(($M$3:$M$10=EK10)*($GG$3:$GG$10))+'J02'!ER10 -> 0 | ES10: =SUMPRODUCT(($M$3:$M$10=EK10)*($GI$3:$GI$10))+'J02'!ES10 -> 0 | ET10: =SUMPRODUCT(($M$3:$M$10=EK10)*($GK$3:$GK$10))+'J02'!ET10 -> 0 | EU10: =SUMPRODUCT(($M$3:$M$10=EK10)*($GM$3:$GM$10))+'J02'!EU10 -> 0 | EV10: 0 | EW10: =SUMPRODUCT(($M$3:$M$10=EK10)*($GO$3:$GO$10))+'J02'!EW10 -> 0 | EX10: 0 | EY10: 0 | EZ10: =SUMPRODUCT(($M$3:$M$10=EK10)*($FS$3:$FS$10))+'J02'!EZ10 -> 0 | FA10: 2 | FB10: 0 | FC10: =SUMPRODUCT(($M$3:$M$10=EK10)*($GQ$3:$GQ$10))+'J02'!FC10 -> 0 | FD10: =SUMPRODUCT(($M$3:$M$10=EK10)*($GS$3:$GS$10))+'J02'!FD10 -> 0 | FE10: 0 | FF10: 5999.9649 | FG10: =FF10+0.00000007 -> 5999.9649 | FH10: 5999.9649 | FI10: =FH10+0.00000007 -> 5999.9649 | FJ10: 0 | FK10: =FJ10+0.00000007 -> 7e-08 | GT10: Massy | GU10: 5999.9649 | GV10: =IF(GU10="","",_xlfn.RANK.EQ(GU10,GU3:GU18)) -> 8 | GW10: Massy | GX10: Tarbes | GY10: 3999.9028 | GZ10: =IF(GY10="","",_xlfn.RANK.EQ(GY10,GY3:GY18)) -> 8 | HA10: Massy | HB10: Chambéry | HC10: 2999.8841 | HD10: =IF(HC10="","",_xlfn.RANK.EQ(HC10,HC3:HC18)) -> 8 | HE10: Massy
U11: 9 | V11: Tarbes | X11: 6 | Y11: -5 | Z11: q | AA11: 3 | AB11: 1 | AC11: 0 | AD11: 2 | AE11: 41 | AF11: 14 | AG11: 58 | AH11: 19 | AI11: -17 | AJ11: 1 | AK11: 0 | AL11: 0 | AM11: 1 | AN11: 0 | AO11: 0 | AP11: 1 | AQ11: 7 | AR11: -6 | AS11: 9 | AT11: Bourg-en-Bresse | AV11: 2 | AW11: 0 | AX11: u | AY11: 2 | AZ11: 0 | BA11: 0 | BB11: 2 | BC11: 27 | BD11: 14 | BE11: 34 | BF11: 17 | BG11: -7 | BH11: 2 | BI11: 0 | BJ11: 0 | BK11: 2 | BL11: 0 | BM11: 0 | BN11: 3 | BO11: 1 | BP11: 2 | BQ11: 9 | BR11: Périgueux | BT11: 1 | BU11: -1 | BV11: q | BW11: 1 | BX11: 0 | BY11: 0 | BZ11: 1 | CA11: 7 | CB11: 7 | CC11: 10 | CD11: 10 | CE11: -3 | CF11: 1 | CG11: 0 | CH11: 0 | CI11: 1 | CJ11: 0 | CK11: 0 | CL11: 1 | CM11: 1 | CN11: 0 | CO11: 9 | CP11: 1 | CQ11: 9 | CR11: 1 | CS11: 9 | CT11: 5 | CU11: =IF(Equipes!$C$10="","",Equipes!$C$10) -> Narbonne | CV11: 1 | CW11: ='J02'!CV11-CV11 -> 1 | CX11: =IF(CV11>'J02'!CV11,'J02'!$CX$20,IF(CV11='J02'!CV11,'J02'!$CW$20,IF(CV11<'J02'!CV11,'J02'!$CV$20))) -> p | CY11: 1 | CZ11: =SUMPRODUCT(($D$3:$D$10=CU11)*($FX$3:$FX$10))+SUMPRODUCT(($M$3:$M$10=CU11)*($FY$3:$FY$10))+'J02'!CZ11+DL11+EG11 -> 13 | DA11: =SUMPRODUCT(($D$3:$D$10=CU11)*($GB$3:$GB$10))+SUMPRODUCT(($M$3:$M$10=CU11)*($GC$3:$GC$10))+'J02'!DA11 -> 3 | DB11: =SUMPRODUCT(($D$3:$D$10=CU11)*($GF$3:$GF$10))+SUMPRODUCT(($M$3:$M$10=CU11)*($GG$3:$GG$10))+'J02'!DB11 -> 3 | DC11: =SUMPRODUCT(($D$3:$D$10=CU11)*($GH$3:$GH$10))+SUMPRODUCT(($M$3:$M$10=CU11)*($GI$3:$GI$10))+'J02'!DC11 -> 0 | DD11: =SUMPRODUCT(($D$3:$D$10=CU11)*($GJ$3:$GJ$10))+SUMPRODUCT(($M$3:$M$10=CU11)*($GK$3:$GK$10))+'J02'!DD11 -> 0 | DE11: =SUMPRODUCT(($D$3:$D$10=CU11)*($GL$3:$GL$10))+SUMPRODUCT(($M$3:$M$10=CU11)*($GM$3:$GM$10))+'J02'!DE11 -> 69 | DF11: 23 | DG11: =SUMPRODUCT(($D$3:$D$10=CU11)*($GN$3:$GN$10))+SUMPRODUCT(($M$3:$M$10=CU11)*($GO$3:$GO$10))+'J02'!DG11 -> 32 | DH11: 11 | DI11: 37 | DJ11: =SUMPRODUCT(($D$3:$D$10=CU11)*($FR$3:$FR$10))+SUMPRODUCT(($M$3:$M$10=CU11)*($FS$3:$FS$10))+'J02'!DJ11 -> 0 | DK11: =SUMPRODUCT(($D$3:$D$10=CU11)*($FT$3:$FT$10))+SUMPRODUCT(($M$3:$M$10=CU11)*($FU$3:$FU$10))+'J02'!DK11 -> 0 | DL11: 0 | DM11: =SUMPRODUCT(($D$3:$D$10=CU11)*($GP$3:$GP$10))+SUMPRODUCT(($M$3:$M$10=CU11)*($GQ$3:$GQ$10))+'J02'!DM11 -> 5 | DN11: =SUMPRODUCT(($D$3:$D$10=CU11)*($GR$3:$GR$10))+SUMPRODUCT(($M$3:$M$10=CU11)*($GS$3:$GS$10))+'J02'!DN11 -> 3 | DO11: 2 | DP11: =IF(Equipes!$C$10="","",Equipes!$C$10) -> Narbonne | DQ11: 1 | DR11: ='J02'!DQ11-DQ11 -> 6 | DS11: =IF(DQ11>'J02'!DQ11,'J02'!$DS$20,IF(DQ11='J02'!DQ11,'J02'!$DR$20,IF(DQ11<'J02'!DQ11,'J02'!$DQ$20))) -> p | DT11: 1 | DU11: =SUMPRODUCT(($D$3:$D$10=DP11)*($FV$3:$FV$10))+'J02'!DU11 -> 8 | DV11: =SUMPRODUCT(($D$3:$D$10=DP11)*($GB$3:$GB$10))+'J02'!DV11 -> 2 | DW11: =SUMPRODUCT(($D$3:$D$10=DP11)*($GF$3:$GF$10))+'J02'!DW11 -> 2 | DX11: =SUMPRODUCT(($D$3:$D$10=DP11)*($GH$3:$GH$10))+'J02'!DX11 -> 0 | DY11: =SUMPRODUCT(($D$3:$D$10=DP11)*($GJ$3:$GJ$10))+'J02'!DY11 -> 0 | DZ11: =SUMPRODUCT(($D$3:$D$10=DP11)*($GL$3:$GL$10))+'J02'!DZ11 -> 42 | EA11: 21 | EB11: =SUMPRODUCT(($D$3:$D$10=DP11)*($GN$3:$GN$10))+'J02'!EB11 -> 9 | EC11: 5 | ED11: 33 | EE11: =SUMPRODUCT(($D$3:$D$10=DP11)*($FR$3:$FR$10))+'J02'!EE11 -> 0 | EF11: =SUMPRODUCT(($D$3:$D$10=DP11)*($FT$3:$FT$10))+'J02'!EF11 -> 0 | EG11: 0 | EH11: =SUMPRODUCT(($D$3:$D$10=DP11)*($GP$3:$GP$10))+'J02'!EH11 -> 2 | EI11: =SUMPRODUCT(($D$3:$D$10=DP11)*($GR$3:$GR$10))+'J02'!EI11 -> 0 | EJ11: 2 | EK11: =IF(Equipes!$C$10="","",Equipes!$C$10) -> Narbonne | EL11: 5 | EM11: ='J02'!EL11-EL11 -> -2 | EN11: =IF(EL11>'J02'!EL11,'J02'!$EN$20,IF(EL11='J02'!EL11,'J02'!$EM$20,IF(EL11<'J02'!EL11,'J02'!$EL$20))) -> q | EO11: 5 | EP11: =SUMPRODUCT(($M$3:$M$10=EK11)*($FW$3:$FW$10))+'J02'!EP11+FB11 -> 4 | EQ11: =SUMPRODUCT(($M$3:$M$10=EK11)*($GC$3:$GC$10))+'J02'!EQ11 -> 1 | ER11: =SUMPRODUCT(($M$3:$M$10=EK11)*($GG$3:$GG$10))+'J02'!ER11 -> 1 | ES11: =SUMPRODUCT(($M$3:$M$10=EK11)*($GI$3:$GI$10))+'J02'!ES11 -> 0 | ET11: =SUMPRODUCT(($M$3:$M$10=EK11)*($GK$3:$GK$10))+'J02'!ET11 -> 0 | EU11: =SUMPRODUCT(($M$3:$M$10=EK11)*($GM$3:$GM$10))+'J02'!EU11 -> 27 | EV11: 27 | EW11: =SUMPRODUCT(($M$3:$M$10=EK11)*($GO$3:$GO$10))+'J02'!EW11 -> 23 | EX11: 23 | EY11: 4 | EZ11: =SUMPRODUCT(($M$3:$M$10=EK11)*($FS$3:$FS$10))+'J02'!EZ11 -> 0 | FA11: =SUMPRODUCT(($M$3:$M$10=EK11)*($FU$3:$FU$10))+'J02'!FA11 -> 0 | FB11: 0 | FC11: =SUMPRODUCT(($M$3:$M$10=EK11)*($GQ$3:$GQ$10))+'J02'!FC11 -> 3 | FD11: =SUMPRODUCT(($M$3:$M$10=EK11)*($GS$3:$GS$10))+'J02'!FD11 -> 3 | FE11: 0 | FF11: 13000.3769 | FG11: =FF11+0.00000006 -> 13000.3769 | FH11: 8000.3342 | FI11: =FH11+0.00000006 -> 8000.3342 | FJ11: 4000.0427 | FK11: =FJ11+0.00000006 -> 4000.0427 | GT11: Tarbes | GU11: 5999.8341 | GV11: =IF(GU11="","",_xlfn.RANK.EQ(GU11,GU3:GU18)) -> 9 | GW11: Narbonne | GX11: Bourg-en-Bresse | GY11: 1999.9327 | GZ11: =IF(GY11="","",_xlfn.RANK.EQ(GY11,GY3:GY18)) -> 9 | HA11: Narbonne | HB11: Périgueux | HC11: 999.9707 | HD11: =IF(HC11="","",_xlfn.RANK.EQ(HC11,HC3:HC18)) -> 9 | HE11: Narbonne
U12: 10 | V12: Vienne | X12: 5 | Y12: -2 | Z12: q | AA12: 3 | AB12: 1 | AC12: 0 | AD12: 2 | AE12: 35 | AF12: 12 | AG12: 46 | AH12: 15 | AI12: -11 | AJ12: 0 | AK12: 0 | AL12: 0 | AM12: 0 | AN12: 0 | AO12: 0 | AP12: 1 | AQ12: 5 | AR12: -4 | AS12: 10 | AT12: Chambéry | AV12: 0 | AW12: 0 | AX12: u | AY12: 0 | AZ12: 0 | BA12: 0 | BB12: 0 | BC12: 0 | BD12: 0 | BE12: 0 | BF12: 0 | BG12: 0 | BH12: 1 | BI12: 0 | BJ12: 0 | BK12: 1 | BL12: 0 | BM12: 0 | BN12: 0 | BO12: 0 | BP12: 0 | BQ12: 10 | BR12: Tarbes | BT12: 1 | BU12: -4 | BV12: q | BW12: 1 | BX12: 0 | BY12: 0 | BZ12: 1 | CA12: 13 | CB12: 13 | CC12: 20 | CD12: 20 | CE12: -7 | CF12: 1 | CG12: 0 | CH12: 0 | CI12: 1 | CJ12: 0 | CK12: 0 | CL12: 1 | CM12: 2 | CN12: -1 | CO12: 10 | CP12: 3 | CQ12: 10 | CR12: 11 | CS12: 10 | CT12: 1 | CU12: =IF(Equipes!$C$11="","",Equipes!$C$11) -> Nice | CV12: 3 | CW12: ='J02'!CV12-CV12 -> 3 | CX12: =IF(CV12>'J02'!CV12,'J02'!$CX$20,IF(CV12='J02'!CV12,'J02'!$CW$20,IF(CV12<'J02'!CV12,'J02'!$CV$20))) -> p | CY12: 3 | CZ12: =SUMPRODUCT(($D$3:$D$10=CU12)*($FX$3:$FX$10))+SUMPRODUCT(($M$3:$M$10=CU12)*($FY$3:$FY$10))+'J02'!CZ12+DL12+EG12 -> 10 | DA12: =SUMPRODUCT(($D$3:$D$10=CU12)*($GB$3:$GB$10))+SUMPRODUCT(($M$3:$M$10=CU12)*($GC$3:$GC$10))+'J02'!DA12 -> 3 | DB12: =SUMPRODUCT(($D$3:$D$10=CU12)*($GF$3:$GF$10))+SUMPRODUCT(($M$3:$M$10=CU12)*($GG$3:$GG$10))+'J02'!DB12 -> 2 | DC12: =SUMPRODUCT(($D$3:$D$10=CU12)*($GH$3:$GH$10))+SUMPRODUCT(($M$3:$M$10=CU12)*($GI$3:$GI$10))+'J02'!DC12 -> 0 | DD12: =SUMPRODUCT(($D$3:$D$10=CU12)*($GJ$3:$GJ$10))+SUMPRODUCT(($M$3:$M$10=CU12)*($GK$3:$GK$10))+'J02'!DD12 -> 1 | DE12: =SUMPRODUCT(($D$3:$D$10=CU12)*($GL$3:$GL$10))+SUMPRODUCT(($M$3:$M$10=CU12)*($GM$3:$GM$10))+'J02'!DE12 -> 77 | DF12: 26 | DG12: =SUMPRODUCT(($D$3:$D$10=CU12)*($GN$3:$GN$10))+SUMPRODUCT(($M$3:$M$10=CU12)*($GO$3:$GO$10))+'J02'!DG12 -> 31 | DH12: 10 | DI12: 46 | DJ12: =SUMPRODUCT(($D$3:$D$10=CU12)*($FR$3:$FR$10))+SUMPRODUCT(($M$3:$M$10=CU12)*($FS$3:$FS$10))+'J02'!DJ12 -> 2 | DK12: =SUMPRODUCT(($D$3:$D$10=CU12)*($FT$3:$FT$10))+SUMPRODUCT(($M$3:$M$10=CU12)*($FU$3:$FU$10))+'J02'!DK12 -> 0 | DL12: 0 | DM12: =SUMPRODUCT(($D$3:$D$10=CU12)*($GP$3:$GP$10))+SUMPRODUCT(($M$3:$M$10=CU12)*($GQ$3:$GQ$10))+'J02'!DM12 -> 10 | DN12: =SUMPRODUCT(($D$3:$D$10=CU12)*($GR$3:$GR$10))+SUMPRODUCT(($M$3:$M$10=CU12)*($GS$3:$GS$10))+'J02'!DN12 -> 3 | DO12: 7 | DP12: =IF(Equipes!$C$11="","",Equipes!$C$11) -> Nice | DQ12: 10 | DR12: ='J02'!DQ12-DQ12 -> 0 | DS12: =IF(DQ12>'J02'!DQ12,'J02'!$DS$20,IF(DQ12='J02'!DQ12,'J02'!$DR$20,IF(DQ12<'J02'!DQ12,'J02'!$DQ$20))) -> u | DT12: 11 | DU12: =SUMPRODUCT(($D$3:$D$10=DP12)*($FV$3:$FV$10))+'J02'!DU12 -> 0 | DV12: =SUMPRODUCT(($D$3:$D$10=DP12)*($GB$3:$GB$10))+'J02'!DV12 -> 0 | DW12: =SUMPRODUCT(($D$3:$D$10=DP12)*($GF$3:$GF$10))+'J02'!DW12 -> 0 | DX12: =SUMPRODUCT(($D$3:$D$10=DP12)*($GH$3:$GH$10))+'J02'!DX12 -> 0 | DY12: =SUMPRODUCT(($D$3:$D$10=DP12)*($GJ$3:$GJ$10))+'J02'!DY12 -> 0 | DZ12: =SUMPRODUCT(($D$3:$D$10=DP12)*($GL$3:$GL$10))+'J02'!DZ12 -> 0 | EA12: 0 | EB12: =SUMPRODUCT(($D$3:$D$10=DP12)*($GN$3:$GN$10))+'J02'!EB12 -> 0 | EC12: 0 | ED12: 0 | EE12: 2 | EF12: =SUMPRODUCT(($D$3:$D$10=DP12)*($FT$3:$FT$10))+'J02'!EF12 -> 0 | EG12: 0 | EH12: =SUMPRODUCT(($D$3:$D$10=DP12)*($GP$3:$GP$10))+'J02'!EH12 -> 0 | EI12: =SUMPRODUCT(($D$3:$D$10=DP12)*($GR$3:$GR$10))+'J02'!EI12 -> 0 | EJ12: 0 | EK12: =IF(Equipes!$C$11="","",Equipes!$C$11) -> Nice | EL12: 1 | EM12: ='J02'!EL12-EL12 -> 0 | EN12: =IF(EL12>'J02'!EL12,'J02'!$EN$20,IF(EL12='J02'!EL12,'J02'!$EM$20,IF(EL12<'J02'!EL12,'J02'!$EL$20))) -> u | EO12: 1 | EP12: =SUMPRODUCT(($M$3:$M$10=EK12)*($FW$3:$FW$10))+'J02'!EP12+FB12 -> 10 | EQ12: =SUMPRODUCT(($M$3:$M$10=EK12)*($GC$3:$GC$10))+'J02'!EQ12 -> 3 | ER12: =SUMPRODUCT(($M$3:$M$10=EK12)*($GG$3:$GG$10))+'J02'!ER12 -> 2 | ES12: =SUMPRODUCT(($M$3:$M$10=EK12)*($GI$3:$GI$10))+'J02'!ES12 -> 0 | ET12: =SUMPRODUCT(($M$3:$M$10=EK12)*($GK$3:$GK$10))+'J02'!ET12 -> 1 | EU12: =SUMPRODUCT(($M$3:$M$10=EK12)*($GM$3:$GM$10))+'J02'!EU12 -> 77 | EV12: 26 | EW12: =SUMPRODUCT(($M$3:$M$10=EK12)*($GO$3:$GO$10))+'J02'!EW12 -> 31 | EX12: 10 | EY12: 46 | EZ12: =SUMPRODUCT(($M$3:$M$10=EK12)*($FS$3:$FS$10))+'J02'!EZ12 -> 2 | FA12: =SUMPRODUCT(($M$3:$M$10=EK12)*($FU$3:$FU$10))+'J02'!FA12 -> 0 | FB12: 0 | FC12: =SUMPRODUCT(($M$3:$M$10=EK12)*($GQ$3:$GQ$10))+'J02'!FC12 -> 10 | FD12: =SUMPRODUCT(($M$3:$M$10=EK12)*($GS$3:$GS$10))+'J02'!FD12 -> 3 | FE12: 7 | FF12: 10000.4677 | FG12: =FF12+0.00000005 -> 10000.4677 | FH12: 0 | FI12: =FH12+0.00000005 -> 5e-08 | FJ12: 10000.4677 | FK12: =FJ12+0.00000005 -> 10000.4677 | GT12: Vienne | GU12: 4999.8935 | GV12: =IF(GU12="","",_xlfn.RANK.EQ(GU12,GU3:GU18)) -> 10 | GW12: Nice | GX12: Chambéry | GY12: 0 | GZ12: =IF(GY12="","",_xlfn.RANK.EQ(GY12,GY3:GY18)) -> 10 | HA12: Nice | HB12: Tarbes | HC12: 999.9313 | HD12: =IF(HC12="","",_xlfn.RANK.EQ(HC12,HC3:HC18)) -> 10 | HE12: Nice
U13: 11 | V13: Suresnes | X13: 5 | Y13: 2 | Z13: p | AA13: 3 | AB13: 1 | AC13: 0 | AD13: 2 | AE13: 46 | AF13: 15 | AG13: 62 | AH13: 21 | AI13: -16 | AJ13: 1 | AK13: 0 | AL13: 0 | AM13: 1 | AN13: 0 | AO13: 0 | AP13: 4 | AQ13: 7 | AR13: -3 | AS13: 10 | AT13: Nice | AV13: 0 | AW13: 0 | AX13: u | AY13: 0 | AZ13: 0 | BA13: 0 | BB13: 0 | BC13: 0 | BD13: 0 | BE13: 0 | BF13: 0 | BG13: 0 | BH13: 2 | BI13: 2 | BJ13: 2 | BK13: 0 | BL13: 0 | BM13: 0 | BN13: 0 | BO13: 0 | BP13: 0 | BQ13: 11 | BR13: Massy | BT13: 0 | BU13: -3 | BV13: q | BW13: 0 | BX13: 0 | BY13: 0 | BZ13: 0 | CA13: 0 | CB13: 0 | CC13: 0 | CD13: 0 | CE13: 0 | CF13: 2 | CG13: 0 | CH13: 0 | CI13: 2 | CJ13: 0 | CK13: 0 | CL13: 0 | CM13: 0 | CN13: 0 | CO13: 11 | CP13: 5 | CQ13: 11 | CR13: 2 | CS13: 11 | CT13: 9 | CU13: =IF(Equipes!$C$12="","",Equipes!$C$12) -> Périgueux | CV13: 5 | CW13: ='J02'!CV13-CV13 -> -4 | CX13: =IF(CV13>'J02'!CV13,'J02'!$CX$20,IF(CV13='J02'!CV13,'J02'!$CW$20,IF(CV13<'J02'!CV13,'J02'!$CV$20))) -> q | CY13: 5 | CZ13: =SUMPRODUCT(($D$3:$D$10=CU13)*($FX$3:$FX$10))+SUMPRODUCT(($M$3:$M$10=CU13)*($FY$3:$FY$10))+'J02'!CZ13+DL13+EG13 -> 9 | DA13: =SUMPRODUCT(($D$3:$D$10=CU13)*($GB$3:$GB$10))+SUMPRODUCT(($M$3:$M$10=CU13)*($GC$3:$GC$10))+'J02'!DA13 -> 3 | DB13: =SUMPRODUCT(($D$3:$D$10=CU13)*($GF$3:$GF$10))+SUMPRODUCT(($M$3:$M$10=CU13)*($GG$3:$GG$10))+'J02'!DB13 -> 2 | DC13: =SUMPRODUCT(($D$3:$D$10=CU13)*($GH$3:$GH$10))+SUMPRODUCT(($M$3:$M$10=CU13)*($GI$3:$GI$10))+'J02'!DC13 -> 0 | DD13: =SUMPRODUCT(($D$3:$D$10=CU13)*($GJ$3:$GJ$10))+SUMPRODUCT(($M$3:$M$10=CU13)*($GK$3:$GK$10))+'J02'!DD13 -> 1 | DE13: =SUMPRODUCT(($D$3:$D$10=CU13)*($GL$3:$GL$10))+SUMPRODUCT(($M$3:$M$10=CU13)*($GM$3:$GM$10))+'J02'!DE13 -> 54 | DF13: 18 | DG13: =SUMPRODUCT(($D$3:$D$10=CU13)*($GN$3:$GN$10))+SUMPRODUCT(($M$3:$M$10=CU13)*($GO$3:$GO$10))+'J02'!DG13 -> 31 | DH13: 10 | DI13: 23 | DJ13: =SUMPRODUCT(($D$3:$D$10=CU13)*($FR$3:$FR$10))+SUMPRODUCT(($M$3:$M$10=CU13)*($FS$3:$FS$10))+'J02'!DJ13 -> 0 | DK13: =SUMPRODUCT(($D$3:$D$10=CU13)*($FT$3:$FT$10))+SUMPRODUCT(($M$3:$M$10=CU13)*($FU$3:$FU$10))+'J02'!DK13 -> 1 | DL13: 0 | DM13: =SUMPRODUCT(($D$3:$D$10=CU13)*($GP$3:$GP$10))+SUMPRODUCT(($M$3:$M$10=CU13)*($GQ$3:$GQ$10))+'J02'!DM13 -> 7 | DN13: =SUMPRODUCT(($D$3:$D$10=CU13)*($GR$3:$GR$10))+SUMPRODUCT(($M$3:$M$10=CU13)*($GS$3:$GS$10))+'J02'!DN13 -> 4 | DO13: 3 | DP13: =IF(Equipes!$C$12="","",Equipes!$C$12) -> Périgueux | DQ13: 2 | DR13: ='J02'!DQ13-DQ13 -> -1 | DS13: =IF(DQ13>'J02'!DQ13,'J02'!$DS$20,IF(DQ13='J02'!DQ13,'J02'!$DR$20,IF(DQ13<'J02'!DQ13,'J02'!$DQ$20))) -> q | DT13: 2 | DU13: =SUMPRODUCT(($D$3:$D$10=DP13)*($FV$3:$FV$10))+'J02'!DU13 -> 8 | DV13: =SUMPRODUCT(($D$3:$D$10=DP13)*($GB$3:$GB$10))+'J02'!DV13 -> 2 | DW13: =SUMPRODUCT(($D$3:$D$10=DP13)*($GF$3:$GF$10))+'J02'!DW13 -> 2 | DX13: =SUMPRODUCT(($D$3:$D$10=DP13)*($GH$3:$GH$10))+'J02'!DX13 -> 0 | DY13: =SUMPRODUCT(($D$3:$D$10=DP13)*($GJ$3:$GJ$10))+'J02'!DY13 -> 0 | DZ13: =SUMPRODUCT(($D$3:$D$10=DP13)*($GL$3:$GL$10))+'J02'!DZ13 -> 47 | EA13: 24 | EB13: =SUMPRODUCT(($D$3:$D$10=DP13)*($GN$3:$GN$10))+'J02'!EB13 -> 21 | EC13: 11 | ED13: 26 | EE13: =SUMPRODUCT(($D$3:$D$10=DP13)*($FR$3:$FR$10))+'J02'!EE13 -> 0 | EF13: 1 | EG13: 0 | EH13: =SUMPRODUCT(($D$3:$D$10=DP13)*($GP$3:$GP$10))+'J02'!EH13 -> 6 | EI13: =SUMPRODUCT(($D$3:$D$10=DP13)*($GR$3:$GR$10))+'J02'!EI13 -> 3 | EJ13: 3 | EK13: =IF(Equipes!$C$12="","",Equipes!$C$12) -> Périgueux | EL13: 9 | EM13: ='J02'!EL13-EL13 -> -1 | EN13: =IF(EL13>'J02'!EL13,'J02'!$EN$20,IF(EL13='J02'!EL13,'J02'!$EM$20,IF(EL13<'J02'!EL13,'J02'!$EL$20))) -> q | EO13: 9 | EP13: =SUMPRODUCT(($M$3:$M$10=EK13)*($FW$3:$FW$10))+'J02'!EP13+FB13 -> 1 | EQ13: =SUMPRODUCT(($M$3:$M$10=EK13)*($GC$3:$GC$10))+'J02'!EQ13 -> 1 | ER13: =SUMPRODUCT(($M$3:$M$10=EK13)*($GG$3:$GG$10))+'J02'!ER13 -> 0 | ES13: =SUMPRODUCT(($M$3:$M$10=EK13)*($GI$3:$GI$10))+'J02'!ES13 -> 0 | ET13: =SUMPRODUCT(($M$3:$M$10=EK13)*($GK$3:$GK$10))+'J02'!ET13 -> 1 | EU13: =SUMPRODUCT(($M$3:$M$10=EK13)*($GM$3:$GM$10))+'J02'!EU13 -> 7 | EV13: 7 | EW13: =SUMPRODUCT(($M$3:$M$10=EK13)*($GO$3:$GO$10))+'J02'!EW13 -> 10 | EX13: 10 | EY13: -3 | EZ13: =SUMPRODUCT(($M$3:$M$10=EK13)*($FS$3:$FS$10))+'J02'!EZ13 -> 0 | FA13: =SUMPRODUCT(($M$3:$M$10=EK13)*($FU$3:$FU$10))+'J02'!FA13 -> 1 | FB13: 0 | FC13: =SUMPRODUCT(($M$3:$M$10=EK13)*($GQ$3:$GQ$10))+'J02'!FC13 -> 1 | FD13: =SUMPRODUCT(($M$3:$M$10=EK13)*($GS$3:$GS$10))+'J02'!FD13 -> 1 | FE13: 0 | FF13: 9000.2354 | FG13: =FF13+0.00000004 -> 9000.2354 | FH13: 8000.2647 | FI13: =FH13+0.00000004 -> 8000.2647 | FJ13: 999.9707 | FK13: =FJ13+0.00000004 -> 999.9707 | GT13: Suresnes | GU13: 4999.8446 | GV13: =IF(GU13="","",_xlfn.RANK.EQ(GU13,GU3:GU18)) -> 11 | GW13: Périgueux | GX13: Nice | GY13: 0 | GZ13: =IF(GY13="","",_xlfn.RANK.EQ(GY13,GY3:GY18)) -> 10 | HA13: Périgueux | HB13: Massy | HC13: 0 | HD13: =IF(HC13="","",_xlfn.RANK.EQ(HC13,HC3:HC18)) -> 11 | HE13: Périgueux
N14: =IF(Accueil!$D$2="","",IF(Accueil!$D$2="Choix de la saison","","Aujourd'hui, nous sommes le "&TEXT(TODAY(),"jjjj jj mmmm aaaa"))) -> Aujourd'hui, nous sommes le lundi 11 mars 2024 | U14: 12 | V14: Chambéry | X14: 3 | Y14: -1 | Z14: q | AA14: 3 | AB14: 0 | AC14: 1 | AD14: 2 | AE14: 41 | AF14: 14 | AG14: 53 | AH14: 18 | AI14: -12 | AJ14: 1 | AK14: 0 | AL14: 0 | AM14: 1 | AN14: 0 | AO14: 0 | AP14: 2 | AQ14: 5 | AR14: -3 | AS14: 10 | AT14: Suresnes | AV14: 0 | AW14: 0 | AX14: u | AY14: 0 | AZ14: 0 | BA14: 0 | BB14: 0 | BC14: 0 | BD14: 0 | BE14: 0 | BF14: 0 | BG14: 0 | BH14: 1 | BI14: 0 | BJ14: 0 | BK14: 1 | BL14: 0 | BM14: 0 | BN14: 0 | BO14: 0 | BP14: 0 | BQ14: 12 | BR14: Bourg-en-Bresse | BT14: 0 | BU14: -1 | BV14: q | BW14: 1 | BX14: 0 | BY14: 0 | BZ14: 1 | CA14: 16 | CB14: 16 | CC14: 27 | CD14: 27 | CE14: -11 | CF14: 2 | CG14: 0 | CH14: 0 | CI14: 2 | CJ14: 0 | CK14: 0 | CL14: 1 | CM14: 3 | CN14: -2 | CO14: 12 | CP14: 11 | CQ14: 12 | CR14: 12 | CS14: 12 | CT14: 2 | CU14: =IF(Equipes!$C$13="","",Equipes!$C$13) -> Suresnes | CV14: 11 | CW14: ='J02'!CV14-CV14 -> 2 | CX14: =IF(CV14>'J02'!CV14,'J02'!$CX$20,IF(CV14='J02'!CV14,'J02'!$CW$20,IF(CV14<'J02'!CV14,'J02'!$CV$20))) -> p | CY14: 11 | CZ14: =SUMPRODUCT(($D$3:$D$10=CU14)*($FX$3:$FX$10))+SUMPRODUCT(($M$3:$M$10=CU14)*($FY$3:$FY$10))+'J02'!CZ14+DL14+EG14 -> 5 | DA14: =SUMPRODUCT(($D$3:$D$10=CU14)*($GB$3:$GB$10))+SUMPRODUCT(($M$3:$M$10=CU14)*($GC$3:$GC$10))+'J02'!DA14 -> 3 | DB14: =SUMPRODUCT(($D$3:$D$10=CU14)*($GF$3:$GF$10))+SUMPRODUCT(($M$3:$M$10=CU14)*($GG$3:$GG$10))+'J02'!DB14 -> 1 | DC14: =SUMPRODUCT(($D$3:$D$10=CU14)*($GH$3:$GH$10))+SUMPRODUCT(($M$3:$M$10=CU14)*($GI$3:$GI$10))+'J02'!DC14 -> 0 | DD14: =SUMPRODUCT(($D$3:$D$10=CU14)*($GJ$3:$GJ$10))+SUMPRODUCT(($M$3:$M$10=CU14)*($GK$3:$GK$10))+'J02'!DD14 -> 2 | DE14: =SUMPRODUCT(($D$3:$D$10=CU14)*($GL$3:$GL$10))+SUMPRODUCT(($M$3:$M$10=CU14)*($GM$3:$GM$10))+'J02'!DE14 -> 46 | DF14: 15 | DG14: =SUMPRODUCT(($D$3:$D$10=CU14)*($GN$3:$GN$10))+SUMPRODUCT(($M$3:$M$10=CU14)*($GO$3:$GO$10))+'J02'!DG14 -> 62 | DH14: 21 | DI14: -16 | DJ14: =SUMPRODUCT(($D$3:$D$10=CU14)*($FR$3:$FR$10))+SUMPRODUCT(($M$3:$M$10=CU14)*($FS$3:$FS$10))+'J02'!DJ14 -> 0 | DK14: =SUMPRODUCT(($D$3:$D$10=CU14)*($FT$3:$FT$10))+SUMPRODUCT(($M$3:$M$10=CU14)*($FU$3:$FU$10))+'J02'!DK14 -> 1 | DL14: 0 | DM14: =SUMPRODUCT(($D$3:$D$10=CU14)*($GP$3:$GP$10))+SUMPRODUCT(($M$3:$M$10=CU14)*($GQ$3:$GQ$10))+'J02'!DM14 -> 4 | DN14: =SUMPRODUCT(($D$3:$D$10=CU14)*($GR$3:$GR$10))+SUMPRODUCT(($M$3:$M$10=CU14)*($GS$3:$GS$10))+'J02'!DN14 -> 7 | DO14: -3 | DP14: =IF(Equipes!$C$13="","",Equipes!$C$13) -> Suresnes | DQ14: 10 | DR14: ='J02'!DQ14-DQ14 -> 0 | DS14: =IF(DQ14>'J02'!DQ14,'J02'!$DS$20,IF(DQ14='J02'!DQ14,'J02'!$DR$20,IF(DQ14<'J02'!DQ14,'J02'!$DQ$20))) -> u | DT14: 12 | DU14: =SUMPRODUCT(($D$3:$D$10=DP14)*($FV$3:$FV$10))+'J02'!DU14 -> 0 | DV14: =SUMPRODUCT(($D$3:$D$10=DP14)*($GB$3:$GB$10))+'J02'!DV14 -> 0 | DW14: =SUMPRODUCT(($D$3:$D$10=DP14)*($GF$3:$GF$10))+'J02'!DW14 -> 0 | DX14: =SUMPRODUCT(($D$3:$D$10=DP14)*($GH$3:$GH$10))+'J02'!DX14 -> 0 | DY14: =SUMPRODUCT(($D$3:$D$10=DP14)*($GJ$3:$GJ$10))+'J02'!DY14 -> 0 | DZ14: =SUMPRODUCT(($D$3:$D$10=DP14)*($GL$3:$GL$10))+'J02'!DZ14 -> 0 | EA14: 0 | EB14: =SUMPRODUCT(($D$3:$D$10=DP14)*($GN$3:$GN$10))+'J02'!EB14 -> 0 | EC14: 0 | ED14: 0 | EE14: =SUMPRODUCT(($D$3:$D$10=DP14)*($FR$3:$FR$10))+'J02'!EE14 -> 0 | EF14: =SUMPRODUCT(($D$3:$D$10=DP14)*($FT$3:$FT$10))+'J02'!EF14 -> 1 | EG14: 0 | EH14: =SUMPRODUCT(($D$3:$D$10=DP14)*($GP$3:$GP$10))+'J02'!EH14 -> 0 | EI14: =SUMPRODUCT(($D$3:$D$10=DP14)*($GR$3:$GR$10))+'J02'!EI14 -> 0 | EJ14: 0 | EK14: =IF(Equipes!$C$13="","",Equipes!$C$13) -> Suresnes | EL14: 2 | EM14: ='J02'!EL14-EL14 -> 5 | EN14: =IF(EL14>'J02'!EL14,'J02'!$EN$20,IF(EL14='J02'!EL14,'J02'!$EM$20,IF(EL14<'J02'!EL14,'J02'!$EL$20))) -> p | EO14: 2 | EP14: =SUMPRODUCT(($M$3:$M$10=EK14)*($FW$3:$FW$10))+'J02'!EP14+FB14 -> 5 | EQ14: =SUMPRODUCT(($M$3:$M$10=EK14)*($GC$3:$GC$10))+'J02'!EQ14 -> 3 | ER14: =SUMPRODUCT(($M$3:$M$10=EK14)*($GG$3:$GG$10))+'J02'!ER14 -> 1 | ES14: =SUMPRODUCT(($M$3:$M$10=EK14)*($GI$3:$GI$10))+'J02'!ES14 -> 0 | ET14: =SUMPRODUCT(($M$3:$M$10=EK14)*($GK$3:$GK$10))+'J02'!ET14 -> 2 | EU14: =SUMPRODUCT(($M$3:$M$10=EK14)*($GM$3:$GM$10))+'J02'!EU14 -> 46 | EV14: 15 | EW14: =SUMPRODUCT(($M$3:$M$10=EK14)*($GO$3:$GO$10))+'J02'!EW14 -> 62 | EX14: 21 | EY14: -16 | EZ14: =SUMPRODUCT(($M$3:$M$10=EK14)*($FS$3:$FS$10))+'J02'!EZ14 -> 0 | FA14: =SUMPRODUCT(($M$3:$M$10=EK14)*($FU$3:$FU$10))+'J02'!FA14 -> 1 | FB14: 0 | FC14: =SUMPRODUCT(($M$3:$M$10=EK14)*($GQ$3:$GQ$10))+'J02'!FC14 -> 4 | FD14: =SUMPRODUCT(($M$3:$M$10=EK14)*($GS$3:$GS$10))+'J02'!FD14 -> 7 | FE14: -3 | FF14: 4999.8446 | FG14: =FF14+0.00000003 -> 4999.8446 | FH14: 0 | FI14: =FH14+0.00000003 -> 3e-08 | FJ14: 4999.8446 | FK14: =FJ14+0.00000003 -> 4999.8446 | GT14: Chambéry | GU14: 2999.8841 | GV14: =IF(GU14="","",_xlfn.RANK.EQ(GU14,GU3:GU18)) -> 12 | GW14: Suresnes | GX14: Suresnes | GY14: 0 | GZ14: =IF(GY14="","",_xlfn.RANK.EQ(GY14,GY3:GY18)) -> 10 | HA14: Suresnes | HB14: Bourg-en-Bresse | HC14: -0.1084 | HD14: =IF(HC14="","",_xlfn.RANK.EQ(HC14,HC3:HC18)) -> 12 | HE14: Suresnes
U15: 13 | V15: Bourg-en-Bresse | X15: 2 | Y15: -1 | Z15: q | AA15: 3 | AB15: 0 | AC15: 0 | AD15: 3 | AE15: 43 | AF15: 14 | AG15: 61 | AH15: 20 | AI15: -18 | AJ15: 2 | AK15: 0 | AL15: 0 | AM15: 2 | AN15: 0 | AO15: 0 | AP15: 4 | AQ15: 4 | AR15: 0 | AS15: 13 | AT15: Blagnac | AV15: 0 | AW15: 1 | AX15: p | AY15: 1 | AZ15: 0 | BA15: 0 | BB15: 1 | BC15: 0 | BD15: 0 | BE15: 25 | BF15: 25 | BG15: -25 | BH15: 0 | BI15: 0 | BJ15: 0 | BK15: 0 | BL15: 0 | BM15: 0 | BN15: 0 | BO15: 0 | BP15: 0 | BQ15: 13 | BR15: Albi | BT15: 0 | BU15: -1 | BV15: q | BW15: 1 | BX15: 0 | BY15: 0 | BZ15: 1 | CA15: 6 | CB15: 6 | CC15: 17 | CD15: 17 | CE15: -11 | CF15: 0 | CG15: 0 | CH15: 0 | CI15: 0 | CJ15: 0 | CK15: 0 | CL15: 0 | CM15: 1 | CN15: -1 | CO15: 13 | CP15: 9 | CQ15: 13 | CR15: 8 | CS15: 13 | CT15: 10 | CU15: =IF(Equipes!$C$14="","",Equipes!$C$14) -> Tarbes | CV15: 9 | CW15: ='J02'!CV15-CV15 -> -5 | CX15: =IF(CV15>'J02'!CV15,'J02'!$CX$20,IF(CV15='J02'!CV15,'J02'!$CW$20,IF(CV15<'J02'!CV15,'J02'!$CV$20))) -> q | CY15: 9 | CZ15: =SUMPRODUCT(($D$3:$D$10=CU15)*($FX$3:$FX$10))+SUMPRODUCT(($M$3:$M$10=CU15)*($FY$3:$FY$10))+'J02'!CZ15+DL15+EG15 -> 6 | DA15: =SUMPRODUCT(($D$3:$D$10=CU15)*($GB$3:$GB$10))+SUMPRODUCT(($M$3:$M$10=CU15)*($GC$3:$GC$10))+'J02'!DA15 -> 3 | DB15: =SUMPRODUCT(($D$3:$D$10=CU15)*($GF$3:$GF$10))+SUMPRODUCT(($M$3:$M$10=CU15)*($GG$3:$GG$10))+'J02'!DB15 -> 1 | DC15: =SUMPRODUCT(($D$3:$D$10=CU15)*($GH$3:$GH$10))+SUMPRODUCT(($M$3:$M$10=CU15)*($GI$3:$GI$10))+'J02'!DC15 -> 0 | DD15: =SUMPRODUCT(($D$3:$D$10=CU15)*($GJ$3:$GJ$10))+SUMPRODUCT(($M$3:$M$10=CU15)*($GK$3:$GK$10))+'J02'!DD15 -> 2 | DE15: =SUMPRODUCT(($D$3:$D$10=CU15)*($GL$3:$GL$10))+SUMPRODUCT(($M$3:$M$10=CU15)*($GM$3:$GM$10))+'J02'!DE15 -> 41 | DF15: 14 | DG15: =SUMPRODUCT(($D$3:$D$10=CU15)*($GN$3:$GN$10))+SUMPRODUCT(($M$3:$M$10=CU15)*($GO$3:$GO$10))+'J02'!DG15 -> 58 | DH15: 19 | DI15: -17 | DJ15: =SUMPRODUCT(($D$3:$D$10=CU15)*($FR$3:$FR$10))+SUMPRODUCT(($M$3:$M$10=CU15)*($FS$3:$FS$10))+'J02'!DJ15 -> 0 | DK15: =SUMPRODUCT(($D$3:$D$10=CU15)*($FT$3:$FT$10))+SUMPRODUCT(($M$3:$M$10=CU15)*($FU$3:$FU$10))+'J02'!DK15 -> 1 | DL15: 0 | DM15: =SUMPRODUCT(($D$3:$D$10=CU15)*($GP$3:$GP$10))+SUMPRODUCT(($M$3:$M$10=CU15)*($GQ$3:$GQ$10))+'J02'!DM15 -> 1 | DN15: =SUMPRODUCT(($D$3:$D$10=CU15)*($GR$3:$GR$10))+SUMPRODUCT(($M$3:$M$10=CU15)*($GS$3:$GS$10))+'J02'!DN15 -> 7 | DO15: -6 | DP15: =IF(Equipes!$C$14="","",Equipes!$C$14) -> Tarbes | DQ15: 8 | DR15: ='J02'!DQ15-DQ15 -> -4 | DS15: =IF(DQ15>'J02'!DQ15,'J02'!$DS$20,IF(DQ15='J02'!DQ15,'J02'!$DR$20,IF(DQ15<'J02'!DQ15,'J02'!$DQ$20))) -> q | DT15: 8 | DU15: =SUMPRODUCT(($D$3:$D$10=DP15)*($FV$3:$FV$10))+'J02'!DU15 -> 4 | DV15: =SUMPRODUCT(($D$3:$D$10=DP15)*($GB$3:$GB$10))+'J02'!DV15 -> 2 | DW15: =SUMPRODUCT(($D$3:$D$10=DP15)*($GF$3:$GF$10))+'J02'!DW15 -> 1 | DX15: =SUMPRODUCT(($D$3:$D$10=DP15)*($GH$3:$GH$10))+'J02'!DX15 -> 0 | DY15: =SUMPRODUCT(($D$3:$D$10=DP15)*($GJ$3:$GJ$10))+'J02'!DY15 -> 1 | DZ15: =SUMPRODUCT(($D$3:$D$10=DP15)*($GL$3:$GL$10))+'J02'!DZ15 -> 28 | EA15: 14 | EB15: =SUMPRODUCT(($D$3:$D$10=DP15)*($GN$3:$GN$10))+'J02'!EB15 -> 38 | EC15: 19 | ED15: -10 | EE15: =SUMPRODUCT(($D$3:$D$10=DP15)*($FR$3:$FR$10))+'J02'!EE15 -> 0 | EF15: =SUMPRODUCT(($D$3:$D$10=DP15)*($FT$3:$FT$10))+'J02'!EF15 -> 1 | EG15: 0 | EH15: =SUMPRODUCT(($D$3:$D$10=DP15)*($GP$3:$GP$10))+'J02'!EH15 -> 0 | EI15: =SUMPRODUCT(($D$3:$D$10=DP15)*($GR$3:$GR$10))+'J02'!EI15 -> 5 | EJ15: -5 | EK15: =IF(Equipes!$C$14="","",Equipes!$C$14) -> Tarbes | EL15: 10 | EM15: ='J02'!EL15-EL15 -> -4 | EN15: =IF(EL15>'J02'!EL15,'J02'!$EN$20,IF(EL15='J02'!EL15,'J02'!$EM$20,IF(EL15<'J02'!EL15,'J02'!$EL$20))) -> q | EO15: 10 | EP15: =SUMPRODUCT(($M$3:$M$10=EK15)*($FW$3:$FW$10))+'J02'!EP15+FB15 -> 1 | EQ15: =SUMPRODUCT(($M$3:$M$10=EK15)*($GC$3:$GC$10))+'J02'!EQ15 -> 1 | ER15: =SUMPRODUCT(($M$3:$M$10=EK15)*($GG$3:$GG$10))+'J02'!ER15 -> 0 | ES15: =SUMPRODUCT(($M$3:$M$10=EK15)*($GI$3:$GI$10))+'J02'!ES15 -> 0 | ET15: =SUMPRODUCT(($M$3:$M$10=EK15)*($GK$3:$GK$10))+'J02'!ET15 -> 1 | EU15: =SUMPRODUCT(($M$3:$M$10=EK15)*($GM$3:$GM$10))+'J02'!EU15 -> 13 | EV15: 13 | EW15: =SUMPRODUCT(($M$3:$M$10=EK15)*($GO$3:$GO$10))+'J02'!EW15 -> 20 | EX15: 20 | EY15: -7 | EZ15: =SUMPRODUCT(($M$3:$M$10=EK15)*($FS$3:$FS$10))+'J02'!EZ15 -> 0 | FA15: =SUMPRODUCT(($M$3:$M$10=EK15)*($FU$3:$FU$10))+'J02'!FA15 -> 1 | FB15: 0 | FC15: =SUMPRODUCT(($M$3:$M$10=EK15)*($GQ$3:$GQ$10))+'J02'!FC15 -> 1 | FD15: =SUMPRODUCT(($M$3:$M$10=EK15)*($GS$3:$GS$10))+'J02'!FD15 -> 2 | FE15: -1 | FF15: 5999.8341 | FG15: =FF15+0.00000002 -> 5999.8341 | FH15: 3999.9028 | FI15: =FH15+0.00000002 -> 3999.9028 | FJ15: 999.9313 | FK15: =FJ15+0.00000002 -> 999.9313 | GT15: Bourg-en-Bresse | GU15: 1999.8243 | GV15: =IF(GU15="","",_xlfn.RANK.EQ(GU15,GU3:GU18)) -> 13 | GW15: Tarbes | GX15: Blagnac | GY15: -0.25 | GZ15: =IF(GY15="","",_xlfn.RANK.EQ(GY15,GY3:GY18)) -> 13 | HA15: Tarbes | HB15: Albi | HC15: -0.1094 | HD15: =IF(HC15="","",_xlfn.RANK.EQ(HC15,HC3:HC18)) -> 13 | HE15: Tarbes
N16: =IF(Equipes!$M$20="","",Equipes!$M$20) -> Date du début du Championnat : vendredi 25 août 2023 | U16: 14 | V16: Blagnac | X16: -6 | Y16: 0 | Z16: u | AA16: 3 | AB16: 0 | AC16: 0 | AD16: 3 | AE16: 0 | AF16: 0 | AG16: 75 | AH16: 25 | AI16: -75 | AJ16: 0 | AK16: 0 | AL16: 0 | AM16: 0 | AN16: 0 | AO16: 0 | AP16: 0 | AQ16: 0 | AR16: 0 | AS16: 14 | AT16: Vienne | AV16: 0 | AW16: -1 | AX16: q | AY16: 2 | AZ16: 0 | BA16: 0 | BB16: 2 | BC16: 10 | BD16: 5 | BE16: 46 | BF16: 23 | BG16: -36 | BH16: 0 | BI16: 0 | BJ16: 0 | BK16: 0 | BL16: 0 | BM16: 0 | BN16: 1 | BO16: 5 | BP16: -4 | BQ16: 14 | BR16: Blagnac | BT16: 0 | BU16: 0 | BV16: u | BW16: 2 | BX16: 0 | BY16: 0 | BZ16: 2 | CA16: 0 | CB16: 0 | CC16: 50 | CD16: 25 | CE16: -50 | CF16: 0 | CG16: 0 | CH16: 0 | CI16: 0 | CJ16: 0 | CK16: 0 | CL16: 0 | CM16: 0 | CN16: 0 | CO16: 14 | CP16: 10 | CQ16: 14 | CR16: 14 | CS16: 14 | CT16: 3 | CU16: =IF(Equipes!$C$15="","",Equipes!$C$15) -> Vienne | CV16: 10 | CW16: ='J02'!CV16-CV16 -> -2 | CX16: =IF(CV16>'J02'!CV16,'J02'!$CX$20,IF(CV16='J02'!CV16,'J02'!$CW$20,IF(CV16<'J02'!CV16,'J02'!$CV$20))) -> q | CY16: 10 | CZ16: =SUMPRODUCT(($D$3:$D$10=CU16)*($FX$3:$FX$10))+SUMPRODUCT(($M$3:$M$10=CU16)*($FY$3:$FY$10))+'J02'!CZ16+DL16+EG16 -> 5 | DA16: =SUMPRODUCT(($D$3:$D$10=CU16)*($GB$3:$GB$10))+SUMPRODUCT(($M$3:$M$10=CU16)*($GC$3:$GC$10))+'J02'!DA16 -> 3 | DB16: =SUMPRODUCT(($D$3:$D$10=CU16)*($GF$3:$GF$10))+SUMPRODUCT(($M$3:$M$10=CU16)*($GG$3:$GG$10))+'J02'!DB16 -> 1 | DC16: =SUMPRODUCT(($D$3:$D$10=CU16)*($GH$3:$GH$10))+SUMPRODUCT(($M$3:$M$10=CU16)*($GI$3:$GI$10))+'J02'!DC16 -> 0 | DD16: =SUMPRODUCT(($D$3:$D$10=CU16)*($GJ$3:$GJ$10))+SUMPRODUCT(($M$3:$M$10=CU16)*($GK$3:$GK$10))+'J02'!DD16 -> 2 | DE16: =SUMPRODUCT(($D$3:$D$10=CU16)*($GL$3:$GL$10))+SUMPRODUCT(($M$3:$M$10=CU16)*($GM$3:$GM$10))+'J02'!DE16 -> 35 | DF16: 12 | DG16: =SUMPRODUCT(($D$3:$D$10=CU16)*($GN$3:$GN$10))+SUMPRODUCT(($M$3:$M$10=CU16)*($GO$3:$GO$10))+'J02'!DG16 -> 46 | DH16: 15 | DI16: -11 | DJ16: =SUMPRODUCT(($D$3:$D$10=CU16)*($FR$3:$FR$10))+SUMPRODUCT(($M$3:$M$10=CU16)*($FS$3:$FS$10))+'J02'!DJ16 -> 0 | DK16: =SUMPRODUCT(($D$3:$D$10=CU16)*($FT$3:$FT$10))+SUMPRODUCT(($M$3:$M$10=CU16)*($FU$3:$FU$10))+'J02'!DK16 -> 0 | DL16: 0 | DM16: =SUMPRODUCT(($D$3:$D$10=CU16)*($GP$3:$GP$10))+SUMPRODUCT(($M$3:$M$10=CU16)*($GQ$3:$GQ$10))+'J02'!DM16 -> 1 | DN16: =SUMPRODUCT(($D$3:$D$10=CU16)*($GR$3:$GR$10))+SUMPRODUCT(($M$3:$M$10=CU16)*($GS$3:$GS$10))+'J02'!DN16 -> 5 | DO16: -4 | DP16: =IF(Equipes!$C$15="","",Equipes!$C$15) -> Vienne | DQ16: 14 | DR16: ='J02'!DQ16-DQ16 -> -1 | DS16: =IF(DQ16>'J02'!DQ16,'J02'!$DS$20,IF(DQ16='J02'!DQ16,'J02'!$DR$20,IF(DQ16<'J02'!DQ16,'J02'!$DQ$20))) -> q | DT16: 14 | DU16: =SUMPRODUCT(($D$3:$D$10=DP16)*($FV$3:$FV$10))+'J02'!DU16 -> 0 | DV16: =SUMPRODUCT(($D$3:$D$10=DP16)*($GB$3:$GB$10))+'J02'!DV16 -> 2 | DW16: =SUMPRODUCT(($D$3:$D$10=DP16)*($GF$3:$GF$10))+'J02'!DW16 -> 0 | DX16: =SUMPRODUCT(($D$3:$D$10=DP16)*($GH$3:$GH$10))+'J02'!DX16 -> 0 | DY16: =SUMPRODUCT(($D$3:$D$10=DP16)*($GJ$3:$GJ$10))+'J02'!DY16 -> 2 | DZ16: =SUMPRODUCT(($D$3:$D$10=DP16)*($GL$3:$GL$10))+'J02'!DZ16 -> 10 | EA16: 5 | EB16: =SUMPRODUCT(($D$3:$D$10=DP16)*($GN$3:$GN$10))+'J02'!EB16 -> 46 | EC16: 23 | ED16: -36 | EE16: =SUMPRODUCT(($D$3:$D$10=DP16)*($FR$3:$FR$10))+'J02'!EE16 -> 0 | EF16: =SUMPRODUCT(($D$3:$D$10=DP16)*($FT$3:$FT$10))+'J02'!EF16 -> 0 | EG16: 0 | EH16: =SUMPRODUCT(($D$3:$D$10=DP16)*($GP$3:$GP$10))+'J02'!EH16 -> 1 | EI16: =SUMPRODUCT(($D$3:$D$10=DP16)*($GR$3:$GR$10))+'J02'!EI16 -> 5 | EJ16: -4 | EK16: =IF(Equipes!$C$15="","",Equipes!$C$15) -> Vienne | EL16: 3 | EM16: ='J02'!EL16-EL16 -> -1 | EN16: =IF(EL16>'J02'!EL16,'J02'!$EN$20,IF(EL16='J02'!EL16,'J02'!$EM$20,IF(EL16<'J02'!EL16,'J02'!$EL$20))) -> q | EO16: 3 | EP16: =SUMPRODUCT(($M$3:$M$10=EK16)*($FW$3:$FW$10))+'J02'!EP16+FB16 -> 4 | EQ16: =SUMPRODUCT(($M$3:$M$10=EK16)*($GC$3:$GC$10))+'J02'!EQ16 -> 1 | ER16: =SUMPRODUCT(($M$3:$M$10=EK16)*($GG$3:$GG$10))+'J02'!ER16 -> 1 | ES16: =SUMPRODUCT(($M$3:$M$10=EK16)*($GI$3:$GI$10))+'J02'!ES16 -> 0 | ET16: =SUMPRODUCT(($M$3:$M$10=EK16)*($GK$3:$GK$10))+'J02'!ET16 -> 0 | EU16: =SUMPRODUCT(($M$3:$M$10=EK16)*($GM$3:$GM$10))+'J02'!EU16 -> 25 | EV16: 25 | EW16: =SUMPRODUCT(($M$3:$M$10=EK16)*($GO$3:$GO$10))+'J02'!EW16 -> 0 | EX16: 0 | EY16: 25 | EZ16: =SUMPRODUCT(($M$3:$M$10=EK16)*($FS$3:$FS$10))+'J02'!EZ16 -> 0 | FA16: =SUMPRODUCT(($M$3:$M$10=EK16)*($FU$3:$FU$10))+'J02'!FA16 -> 0 | FB16: 0 | FC16: =SUMPRODUCT(($M$3:$M$10=EK16)*($GQ$3:$GQ$10))+'J02'!FC16 -> 0 | FD16: =SUMPRODUCT(($M$3:$M$10=EK16)*($GS$3:$GS$10))+'J02'!FD16 -> 0 | FE16: 0 | FF16: 4999.8935 | FG16: =FF16+0.00000001 -> 4999.8935 | FH16: -0.359 | FI16: =FH16+0.00000001 -> -0.35899999 | FJ16: 4000.2525 | FK16: =FJ16+0.00000001 -> 4000.2525 | GT16: Blagnac | GU16: -6000.75 | GV16: =IF(GU16="","",_xlfn.RANK.EQ(GU16,GU3:GU18)) -> 14 | GW16: Vienne | GX16: Vienne | GY16: -0.359 | GZ16: =IF(GY16="","",_xlfn.RANK.EQ(GY16,GY3:GY18)) -> 14 | HA16: Vienne | HB16: Blagnac | HC16: -0.5 | HD16: =IF(HC16="","",_xlfn.RANK.EQ(HC16,HC3:HC18)) -> 14 | HE16: Vienne
N18: =IF(Equipes!$M$22="","",Equipes!$M$22) -> Date de la fin du Championnat : samedi 27 avril 2024
AA20: =IF(SUM(AA3:AA16)<>0,SUM(AA3:AA16),"") -> 42 | CV20: p | CW20: u | CX20: q | DQ20: p | DR20: u | DS20: q | EL20: p | EM20: u | EN20: q
CV21: p | CW21: u | CX21: q | DQ21: p | DR21: u | DS21: q | EL21: p | EM21: u | EN21: q

Sheet J04
A1: =IF(Accueil!$H$2="","",IF(Accueil!$H$2="Choix du Championnat de Rugby","",IF(Accueil!$B$2="","",IF(Accueil!$D$2="","",IF(Accueil!$D$2="Choix de la saison","",_xlfn.CONCAT(Accueil!$H$2," / ",Accueil!$B$2," ",Accueil!$D$2)))))) -> Championnat de France de Rugby à 15 - Nationale / Saison du Championnat : 2023 - 2024 | S1: ='J03'!S1+1 -> 4 | U1: CLASSEMENT GENERAL | AS1: CLASSEMENT A DOMICILE | BQ1: CLASSEMENT A L'EXTERIEUR | CO1: =U1 -> CLASSEMENT GENERAL | CQ1: =AS1 -> CLASSEMENT A DOMICILE | CS1: =BQ1 -> CLASSEMENT A L'EXTERIEUR | CU1: =U1 -> CLASSEMENT GENERAL | DP1: =AS1 -> CLASSEMENT A DOMICILE | EK1: =BQ1 -> CLASSEMENT A L'EXTERIEUR | FF1: =U1 -> CLASSEMENT GENERAL | FH1: =AS1 -> CLASSEMENT A DOMICILE | FJ1: =BQ1 -> CLASSEMENT A L'EXTERIEUR | FL1: Dom. | FM1: Ext. | FN1: Dom. | FO1: Ext. | FP1: Dom. | FQ1: Ext. | FR1: Dom. | FS1: Ext. | FT1: Dom. | FU1: Ext. | FV1: Dom. | FW1: Ext. | FX1: Dom. | FY1: Ext. | FZ1: Dom. | GA1: Ext. | GB1: Dom. | GC1: Ext. | GD1: Dom. | GE1: Ext. | GF1: Dom. | GG1: Ext. | GH1: Dom. | GI1: Ext. | GJ1: Dom. | GK1: Ext. | GL1: Dom. | GM1: Ext. | GN1: Dom. | GO1: Ext. | GP1: Dom. | GQ1: Ext. | GR1: Dom. | GS1: Ext. | GT1: =U1 -> CLASSEMENT GENERAL | GX1: =AS1 -> CLASSEMENT A DOMICILE | HB1: =BQ1 -> CLASSEMENT A L'EXTERIEUR
A2: Points de pénalités | B2: Points de bonus | C2: Equipes exclues, forfaits, matchs gagnés ou perdus sur tapis vert | D2: Equipes | E2: Points | F2: Bonus défensif Bd | G2: Essais | H2: Bonus offensif Bo | I2: Points | J2: Bonus défensif Bd | K2: Essais | L2: Bonus offensif Bo | M2: Equipes | N2: Equipes exclues, forfaits, matchs gagnés ou perdus sur tapis vert | O2: Points de bonus | P2: Points de pénalités | Q2: Dates | R2: Horaires | S2: Matchs à rejouer, annulés, arrêtés, avec réserves, reportés ou reprogrammés | U2: Place | V2: Equipes | W2: Logo | X2: Points | Y2: Evolution | AA2: Joués | AB2: Gagnés | AC2: Nuls | AD2: Perdus | AE2: Points marqués | AF2: Moyenne par match | AG2: Points encaissés | AH2: Moyenne par match | AI2: +/- | AJ2: Tous les bonus | AK2: B.O + B.P | AL2: Bonus offensif | AM2: Bonus défensif | AN2: Bonus fédération | AO2: Bonus pénalité | AP2: Essais marqués | AQ2: Essais encaissés | AR2: +/- | AS2: Place | AT2: Equipes | AU2: Logo | AV2: Points | AW2: Evolution | AY2: Joués | AZ2: Gagnés | BA2: Nuls | BB2: Perdus | BC2: Points marqués | BD2: Moyenne par match | BE2: Points encaissés | BF2: Moyenne par match | BG2: +/- | BH2: Tous les bonus | BI2: B.O + B.P | BJ2: Bonus offensif | BK2: Bonus défensif | BL2: Bonus fédération | BM2: Bonus pénalité | BN2: Essais marqués | BO2: Essais encaissés | BP2: +/- | BQ2: Place | BR2: Equipes | BS2: Logo | BT2: Points | BU2: Evolution | BW2: Joués | BX2: Gagnés | BY2: Nuls | BZ2: Perdus | CA2: Points marqués | CB2: Moyenne par match | CC2: Points encaissés | CD2: Moyenne par match | CE2: +/- | CF2: Tous les bonus | CG2: B.O + B.P | CH2: Bonus offensif | CI2: Bonus défensif | CJ2: Bonus fédération | CK2: Bonus pénalité | CL2: Essais marqués | CM2: Essais encaissés | CN2: +/- | CO2: Rang | CP2: Place | CQ2: Rang | CR2: Place | CS2: Rang | CT2: Place | CU2: Equipes | CV2: Rang | CW2: Evolution | CY2: Place | CZ2: Points | DA2: Joués | DB2: Gagnés | DC2: Nuls | DD2: Perdus | DE2: Points marqués | DF2: Moyenne par match | DG2: Points encaissés | DH2: Moyenne par match | DI2: +/- | DJ2: Bonus offensif | DK2: Bonus défensif | DL2: Bonus fédération | DM2: Essais marqués | DN2: Essais encaissés | DO2: +/- | DP2: Equipes | DQ2: Rang | DR2: Evolution | DT2: Place | DU2: Points | DV2: Joués | DW2: Gagnés | DX2: Nuls | DY2: Perdus | DZ2: Points marqués | EA2: Moyenne par match | EB2: Points encaissés | EC2: Moyenne par match | ED2: Différence | EE2: Bonus offensif | EF2: Bonus défensif | EG2: Bonus fédération | EH2: Essais marqués | EI2: Essais encaissés | EJ2: Différence | EK2: Equipes | EL2: Rang | EM2: Evolution | EO2: Place | EP2: Points | EQ2: Joués | ER2: Gagnés | ES2: Nuls | ET2: Perdus | EU2: Points marqués | EV2: Moyenne par match | EW2: Points encaissés | EX2: Moyenne par match | EY2: +/- | EZ2: Bonus offensif | FA2: Bonus défensif | FB2: Bonus fédération | FC2: Essais marqués | FD2: Essais encaissés | FE2: +/- | FF2: Rang | FG2: Place | FH2: Rang | FI2: Place | FJ2: Rang | FK2: Place | FL2: Points de pénalités | FM2: Points de pénalités | FN2: Points de bonus | FO2: Points de bonus | FP2: Pts | FQ2: Pts | FR2: Bo | FS2: Bo | FT2: Bd | FU2: Bd | FV2: T Pts | FW2: T Pts | FX2: T Pts | FY2: TPts | FZ2: J annulé | GA2: J annulé | GB2: J | GC2: J | GD2: Total J | GE2: Total J | GF2: G | GG2: G | GH2: N | GI2: N | GJ2: P | GK2: P | GL2: Pts + | GM2: Pts + | GN2: Pts - | GO2: Pts - | GP2: Essais + | GQ2: Essais + | GR2: Essais - | GS2: Essais - | GT2: Equipes | GU2: Rang | GV2: Place | GW2: Equipes | GX2: Equipes | GY2: Rang | GZ2: Place | HA2: Equipes | HB2: Equipes | HC2: Rang | HD2: Place | HE2: Equipes | HG2: ok | HH2: Dates et horaires des matchs prévus | HI2: Dates et horaires des matchs restant à jouer | HJ2: Date et horaire minimum à jouer | HK2: Date et horaire maximum à jouer | HM2: Total J | HN2: Total J
